Workbook

Sheet Clima Canal
B2: Selectiontool Clima Canal
G4: Taal/Language/Sprache | H4: 0 | I4: 0 | J4: 0 | K4: Español
G5: Langue/Språk/Lengua/Jazyk
G6: =IF(cal!$S$7=1,"Uitvoering",IF(cal!$S$7=2,"Version",IF(cal!$S$7=3,"Ausfürhung",IF(cal!$S$7=4,"Version",IF(cal!$S$7=5,"Modell",IF(cal!$S$7=6,"Version",IF(cal!$S$7=7,"Modell",IF(cal!$S$7=8,"Verze",IF(cal!$S$7=9,"Version",IF(cal!$S$7=10,"Version",IF(cal!$S$7=11,"Version",))))))))))) -> Version | K6: Clima H19 B34 2P
B8: =cal!B7 -> Temperaturas | M8: =cal!M7 -> Altitud
B9: =cal!B8 -> Calefacción: | G9: =cal!G8 -> Enfriamiento: | M9: 0 | N9: 0 | O9: =cal!O8 -> m
B10: =cal!B9 -> Agua impulsión | C10: =cal!C9 -> 0 | D10: =cal!D9 -> 0 | E10: 75 | G10: =cal!G9 -> Agua impulsión | H10: =cal!H9 -> 0 | I10: =cal!I9 -> 0 | J10: =cal!J9 -> 0 | K10: 16 | M10: =cal!M9 -> Convers. de unidades
B11: =cal!B10 -> Agua retorno | C11: =cal!C10 -> 0 | D11: =cal!D10 -> 0 | E11: 65 | G11: =cal!G10 -> Agua retorno | H11: =cal!H10 -> 0 | I11: =cal!I10 -> 0 | J11: =cal!J10 -> 0 | K11: 19
B12: =cal!B11 -> Ambiente (bulbo seco) | C12: =cal!C11 -> 0 | D12: =cal!D11 -> 0 | E12: 20 | G12: =cal!G11 -> Ambiente (bulbo seco) | H12: =cal!H11 -> 0 | I12: =cal!I11 -> 0 | J12: =cal!J11 -> 0 | K12: 26
G13: =cal!G12 -> Humedad relativa | K13: 0.5
D15: =cal!D14 -> 0 | E15: =cal!E14 -> 1 | F15: =cal!F14 -> 1 | G15: 3.412141633 | H15: =cal!H14 -> 1 | I15: =cal!I14 -> 1 | J15: =cal!J14 -> 1 | K15: =cal!K14 -> 0 | L15: =cal!L14 -> 0 | M15: =cal!M14 -> 0 | N15: =cal!N14 -> 1
B16: =cal!B15 -> Nivel de velocidad: | C16: =cal!C15 -> Voltaje control [V] | D16: =cal!D15 -> Emisión calefacción * 75/65/20 [W] | E16: =cal!E15 -> Caudal de agua, calefacción [l/h] | F16: =cal!F15 -> Pérdida de carga del agua [kPa] | G16: =cal!G15 -> Emisión sensible Frío * 16/19/26 [W] | H16: =cal!H15 -> Emisión total Frío * 16/19/26 [W] | I16: =cal!I15 -> Caudal de agua, calefacción [l/h] | J16: =cal!J15 -> Pérdida de carga del agua [kPa] | K16: =cal!K15 -> Presión sonora *** [dB(A)] | L16: =cal!L15 -> Potencia sonora ** [dB(A)] | M16: =cal!M15 -> Potencia eléctrica absorbida [W] | N16: =cal!N15 -> Caudal de aire [m³/h] | O16: =cal!O15 -> Temperatura salida de aire calefacción [°C] | P16: =cal!P15 -> Temperatura salida de aire refrigeración [°C]
B17: =cal!B16 -> Clima Canal altura 19 cm ancho 34 cm longitud 105 cm (Type 1)
B18: =cal!B17 -> 0.2 | C18: =cal!C17 -> 2 | D18: =IF($E$10<=$E$11,cal!$AC$3,cal!D17) -> 1245.404776 | E18: =IF($E$10<=$E$11,"",cal!E17) -> 107 | F18: =IF($E$10<=$E$11,"",cal!F17) -> 0.3175331641 | G18: =IF($K$10>=$K$11,cal!$AC$3,cal!G17) -> 141.3859005 | H18: =IF($K$10>=$K$11,"",cal!H17) -> 141.3859005 | I18: =IF($K$10>=$K$11,"",cal!I17) -> 41 | J18: =IF($K$10>=$K$11,"",cal!J17) -> 0.04662182277 | K18: =cal!K17 -> 16.96461248 | L18: =cal!L17 -> 24.96461248 | M18: =cal!M17 -> 1.5 | N18: =cal!N17 -> 97
B19: =cal!B18 -> 0.4 | C19: =cal!C18 -> 4 | D19: =IF($E$10<=$E$11,cal!$AC$4,cal!D18) -> 1965.450074 | E19: =IF($E$10<=$E$11,"",cal!E18) -> 169 | F19: =IF($E$10<=$E$11,"",cal!F18) -> 0.7921272339 | G19: =IF($K$10>=$K$11,cal!$AC$5,cal!G18) -> 276.1935247 | H19: =IF($K$10>=$K$11,"",cal!H18) -> 276.1935247 | I19: =IF($K$10>=$K$11,"",cal!I18) -> 79 | J19: =IF($K$10>=$K$11,"",cal!J18) -> 0.1730914907 | K19: =cal!K18 -> 21.00836437 | L19: =cal!L18 -> 29.00836437 | M19: =cal!M18 -> 2.7 | N19: =cal!N18 -> 167
B20: =cal!B19 -> 0.6 | C20: =cal!C19 -> 6 | D20: =IF($E$10<=$E$11,"",cal!D19) -> 2566.688751 | E20: =IF($E$10<=$E$11,"",cal!E19) -> 221 | F20: =IF($E$10<=$E$11,"",cal!F19) -> 1.354584441 | G20: =IF($K$10>=$K$11,"",cal!G19) -> 408.3495409 | H20: =IF($K$10>=$K$11,"",cal!H19) -> 408.3495409 | I20: =IF($K$10>=$K$11,"",cal!I19) -> 117 | J20: =IF($K$10>=$K$11,"",cal!J19) -> 0.3796586151 | K20: =cal!K19 -> 26.99390078 | L20: =cal!L19 -> 34.99390078 | M20: =cal!M19 -> 4.8 | N20: =cal!N19 -> 236
B21: =cal!B20 -> 0.8 | C21: =cal!C20 -> 8 | D21: =IF($E$10<=$E$11,"",cal!D20) -> 3101.79796 | E21: =IF($E$10<=$E$11,"",cal!E20) -> 267 | F21: =IF($E$10<=$E$11,"",cal!F20) -> 1.97717021 | G21: =IF($K$10>=$K$11,"",cal!G20) -> 538.0188677 | H21: =IF($K$10>=$K$11,"",cal!H20) -> 538.0188677 | I21: =IF($K$10>=$K$11,"",cal!I20) -> 154 | J21: =IF($K$10>=$K$11,"",cal!J20) -> 0.6577532117 | K21: =cal!K20 -> 34.99363224 | L21: =cal!L20 -> 42.99363224 | M21: =cal!M20 -> 9.3 | N21: =cal!N20 -> 309
B22: =cal!B21 -> 1 | C22: =cal!C21 -> 10 | D22: =IF($E$10<=$E$11,"",cal!D21) -> 3592.560061 | E22: =IF($E$10<=$E$11,"",cal!E21) -> 309 | F22: =IF($E$10<=$E$11,"",cal!F21) -> 2.64812508 | G22: =IF($K$10>=$K$11,"",cal!G21) -> 665.6583745 | H22: =IF($K$10>=$K$11,"",cal!H21) -> 665.6583745 | I22: =IF($K$10>=$K$11,"",cal!I21) -> 191 | J22: =IF($K$10>=$K$11,"",cal!J21) -> 1.011785078 | K22: =cal!K21 -> 39.99930704 | L22: =cal!L21 -> 47.99930704 | M22: =cal!M21 -> 15 | N22: =cal!N21 -> 351
B23: =cal!B22 -> Clima Canal altura 19 cm ancho 34 cm longitud 120 cm (Type 2)
B24: =cal!B23 -> 0.2 | C24: =cal!C23 -> 2 | D24: =IF($E$10<=$E$11,cal!$AC$3,cal!D23) -> 1547.544397 | E24: =IF($E$10<=$E$11,"",cal!E23) -> 133 | F24: =IF($E$10<=$E$11,"",cal!F23) -> 0.5090389185 | G24: =IF($K$10>=$K$11,cal!$AC$3,cal!G23) -> 175.6866219 | H24: =IF($K$10>=$K$11,"",cal!H23) -> 175.6866219 | I24: =IF($K$10>=$K$11,"",cal!I23) -> 50 | J24: =IF($K$10>=$K$11,"",cal!J23) -> 0.07194286258 | K24: =cal!K23 -> 18.98962805 | L24: =cal!L23 -> 26.98962805 | M24: =cal!M23 -> 3.2 | N24: =cal!N23 -> 82
B25: =cal!B24 -> 0.4 | C25: =cal!C24 -> 4 | D25: =IF($E$10<=$E$11,cal!$AC$4,cal!D24) -> 2442.27524 | E25: =IF($E$10<=$E$11,"",cal!E24) -> 210 | F25: =IF($E$10<=$E$11,"",cal!F24) -> 1.269072096 | G25: =IF($K$10>=$K$11,cal!$AC$5,cal!G24) -> 343.1990544 | H25: =IF($K$10>=$K$11,"",cal!H24) -> 343.1990544 | I25: =IF($K$10>=$K$11,"",cal!I24) -> 98 | J25: =IF($K$10>=$K$11,"",cal!J24) -> 0.2763757009 | K25: =cal!K24 -> 22.0192768 | L25: =cal!L24 -> 30.0192768 | M25: =cal!M24 -> 6.7 | N25: =cal!N24 -> 179
B26: =cal!B25 -> 0.6 | C26: =cal!C25 -> 6 | D26: =IF($E$10<=$E$11,"",cal!D25) -> 3189.376555 | E26: =IF($E$10<=$E$11,"",cal!E25) -> 274 | F26: =IF($E$10<=$E$11,"",cal!F25) -> 2.16047294 | G26: =IF($K$10>=$K$11,"",cal!G25) -> 507.4165893 | H26: =IF($K$10>=$K$11,"",cal!H25) -> 507.4165893 | I26: =IF($K$10>=$K$11,"",cal!I25) -> 145 | J26: =IF($K$10>=$K$11,"",cal!J25) -> 0.6050394743 | K26: =cal!K25 -> 27.99082011 | L26: =cal!L25 -> 35.99082011 | M26: =cal!M25 -> 12.1 | N26: =cal!N25 -> 260
B27: =cal!B26 -> 0.8 | C27: =cal!C26 -> 8 | D27: =IF($E$10<=$E$11,"",cal!D26) -> 3854.305157 | E27: =IF($E$10<=$E$11,"",cal!E26) -> 331 | F27: =IF($E$10<=$E$11,"",cal!F26) -> 3.152852787 | G27: =IF($K$10>=$K$11,"",cal!G26) -> 668.5441552 | H27: =IF($K$10>=$K$11,"",cal!H26) -> 668.5441552 | I27: =IF($K$10>=$K$11,"",cal!I26) -> 192 | J27: =IF($K$10>=$K$11,"",cal!J26) -> 1.060840674 | K27: =cal!K26 -> 36.01549795 | L27: =cal!L26 -> 44.01549795 | M27: =cal!M26 -> 18.4 | N27: =cal!N26 -> 351
B28: =cal!B27 -> 1 | C28: =cal!C27 -> 10 | D28: =IF($E$10<=$E$11,"",cal!D27) -> 4464.127887 | E28: =IF($E$10<=$E$11,"",cal!E27) -> 384 | F28: =IF($E$10<=$E$11,"",cal!F27) -> 4.243362698 | G28: =IF($K$10>=$K$11,"",cal!G27) -> 827.1494594 | H28: =IF($K$10>=$K$11,"",cal!H27) -> 827.1494594 | I28: =IF($K$10>=$K$11,"",cal!I27) -> 237 | J28: =IF($K$10>=$K$11,"",cal!J27) -> 1.616383459 | K28: =cal!K27 -> 41.00333602 | L28: =cal!L27 -> 49.00333602 | M28: =cal!M27 -> 24 | N28: =cal!N27 -> 401
B29: =cal!B28 -> Clima Canal altura 19 cm ancho 34 cm longitud 200 cm (Type 3)
B30: =cal!B29 -> 0.2 | C30: =cal!C29 -> 2 | D30: =IF($E$10<=$E$11,cal!$AC$3,cal!D29) -> 3021.396203 | E30: =IF($E$10<=$E$11,"",cal!E29) -> 260 | F30: =IF($E$10<=$E$11,"",cal!F29) -> 2.272890769 | G30: =IF($K$10>=$K$11,cal!$AC$3,cal!G29) -> 343.0072142 | H30: =IF($K$10>=$K$11,"",cal!H29) -> 343.0072142 | I30: =IF($K$10>=$K$11,"",cal!I29) -> 98 | J30: =IF($K$10>=$K$11,"",cal!J29) -> 0.3229118779 | K30: =cal!K29 -> 21.10439356 | L30: =cal!L29 -> 29.10439356 | M30: =cal!M29 -> 4.6 | N30: =cal!N29 -> 179
B31: =cal!B30 -> 0.4 | C31: =cal!C30 -> 4 | D31: =IF($E$10<=$E$11,cal!$AC$4,cal!D30) -> 4768.251659 | E31: =IF($E$10<=$E$11,"",cal!E30) -> 410 | F31: =IF($E$10<=$E$11,"",cal!F30) -> 5.651966543 | G31: =IF($K$10>=$K$11,cal!$AC$5,cal!G30) -> 670.0552967 | H31: =IF($K$10>=$K$11,"",cal!H30) -> 670.0552967 | I31: =IF($K$10>=$K$11,"",cal!I30) -> 192 | J31: =IF($K$10>=$K$11,"",cal!J30) -> 1.239465167 | K31: =cal!K30 -> 24.55346829 | L31: =cal!L30 -> 32.55346829 | M31: =cal!M30 -> 9.4 | N31: =cal!N30 -> 346
B32: =cal!B31 -> 0.6 | C32: =cal!C31 -> 6 | D32: =IF($E$10<=$E$11,"",cal!D31) -> 6226.878036 | E32: =IF($E$10<=$E$11,"",cal!E31) -> 535 | F32: =IF($E$10<=$E$11,"",cal!F31) -> 9.623641426 | G32: =IF($K$10>=$K$11,"",cal!G31) -> 990.6704839 | H32: =IF($K$10>=$K$11,"",cal!H31) -> 990.6704839 | I32: =IF($K$10>=$K$11,"",cal!I31) -> 284 | J32: =IF($K$10>=$K$11,"",cal!J31) -> 2.711868016 | K32: =cal!K31 -> 30.53120307 | L32: =cal!L31 -> 38.53120307 | M32: =cal!M31 -> 16.9 | N32: =cal!N31 -> 496
B33: =cal!B32 -> 0.8 | C33: =cal!C32 -> 8 | D33: =IF($E$10<=$E$11,"",cal!D32) -> 7525.071973 | E33: =IF($E$10<=$E$11,"",cal!E32) -> 647 | F33: =IF($E$10<=$E$11,"",cal!F32) -> 14.0747416 | G33: =IF($K$10>=$K$11,"",cal!G32) -> 1305.252874 | H33: =IF($K$10>=$K$11,"",cal!H32) -> 1305.252874 | I33: =IF($K$10>=$K$11,"",cal!I32) -> 374 | J33: =IF($K$10>=$K$11,"",cal!J32) -> 4.703001024 | K33: =cal!K32 -> 38.54485074 | L33: =cal!L32 -> 46.54485074 | M33: =cal!M32 -> 27.7 | N33: =cal!N32 -> 660
B34: =cal!B33 -> 1 | C34: =cal!C33 -> 10 | D34: =IF($E$10<=$E$11,"",cal!D33) -> 8715.678255 | E34: =IF($E$10<=$E$11,"",cal!E33) -> 749 | F34: =IF($E$10<=$E$11,"",cal!F33) -> 18.86233719 | G34: =IF($K$10>=$K$11,"",cal!G33) -> 1614.910849 | H34: =IF($K$10>=$K$11,"",cal!H33) -> 1614.910849 | I34: =IF($K$10>=$K$11,"",cal!I33) -> 463 | J34: =IF($K$10>=$K$11,"",cal!J33) -> 7.207652682 | K34: =cal!K33 -> 43.54057181 | L34: =cal!L33 -> 51.54057181 | M34: =cal!M33 -> 38.9 | N34: =cal!N33 -> 752
B35: =cal!B34 -> Clima Canal altura 19 cm ancho 34 cm longitud 280 cm (Type 4)
B36: =cal!B35 -> 0.2 | C36: =cal!C35 -> 2 | D36: =IF($E$10<=$E$11,cal!$AC$3,cal!D35) -> 4495.248009 | E36: =IF($E$10<=$E$11,"",cal!E35) -> 387 | F36: =IF($E$10<=$E$11,"",cal!F35) -> 5.663532183 | G36: =IF($K$10>=$K$11,cal!$AC$3,cal!G35) -> 510.3278064 | H36: =IF($K$10>=$K$11,"",cal!H35) -> 510.3278064 | I36: =IF($K$10>=$K$11,"",cal!I35) -> 146 | J36: =IF($K$10>=$K$11,"",cal!J35) -> 0.8060670233 | K36: =cal!K35 -> 22.52045193 | L36: =cal!L35 -> 30.52045193 | M36: =cal!M35 -> 6.1 | N36: =cal!N35 -> 276
B37: =cal!B36 -> 0.4 | C37: =cal!C36 -> 4 | D37: =IF($E$10<=$E$11,cal!$AC$4,cal!D36) -> 7094.228079 | E37: =IF($E$10<=$E$11,"",cal!E36) -> 610 | F37: =IF($E$10<=$E$11,"",cal!F36) -> 14.07100485 | G37: =IF($K$10>=$K$11,cal!$AC$5,cal!G36) -> 996.911539 | H37: =IF($K$10>=$K$11,"",cal!H36) -> 996.911539 | I37: =IF($K$10>=$K$11,"",cal!I36) -> 286 | J37: =IF($K$10>=$K$11,"",cal!J36) -> 3.093125269 | K37: =cal!K36 -> 26.14332731 | L37: =cal!L36 -> 34.14332731 | M37: =cal!M36 -> 12.1 | N37: =cal!N36 -> 513
B38: =cal!B37 -> 0.6 | C38: =cal!C37 -> 6 | D38: =IF($E$10<=$E$11,"",cal!D37) -> 9264.379517 | E38: =IF($E$10<=$E$11,"",cal!E37) -> 797 | F38: =IF($E$10<=$E$11,"",cal!F37) -> 24.02050234 | G38: =IF($K$10>=$K$11,"",cal!G37) -> 1473.924379 | H38: =IF($K$10>=$K$11,"",cal!H37) -> 1473.924379 | I38: =IF($K$10>=$K$11,"",cal!I37) -> 422 | J38: =IF($K$10>=$K$11,"",cal!J37) -> 6.734267207 | K38: =cal!K37 -> 32.12345518 | L38: =cal!L37 -> 40.12345518 | M38: =cal!M37 -> 21.7 | N38: =cal!N37 -> 732
B39: =cal!B38 -> 0.8 | C39: =cal!C38 -> 8 | D39: =IF($E$10<=$E$11,"",cal!D38) -> 11195.83879 | E39: =IF($E$10<=$E$11,"",cal!E38) -> 963 | F39: =IF($E$10<=$E$11,"",cal!F38) -> 35.06856677 | G39: =IF($K$10>=$K$11,"",cal!G38) -> 1941.961594 | H39: =IF($K$10>=$K$11,"",cal!H38) -> 1941.961594 | I39: =IF($K$10>=$K$11,"",cal!I38) -> 557 | J39: =IF($K$10>=$K$11,"",cal!J38) -> 11.73210208 | K39: =cal!K38 -> 40.13283624 | L39: =cal!L38 -> 48.13283624 | M39: =cal!M38 -> 37 | N39: =cal!N38 -> 969
B40: =cal!B39 -> 1 | C40: =cal!C39 -> 10 | D40: =IF($E$10<=$E$11,"",cal!D39) -> 12967.22862 | E40: =IF($E$10<=$E$11,"",cal!E39) -> 1115 | F40: =IF($E$10<=$E$11,"",cal!F39) -> 47.01269821 | G40: =IF($K$10>=$K$11,"",cal!G39) -> 2402.672239 | H40: =IF($K$10>=$K$11,"",cal!H39) -> 2402.672239 | I40: =IF($K$10>=$K$11,"",cal!I39) -> 689 | J40: =IF($K$10>=$K$11,"",cal!J39) -> 17.95162992 | K40: =cal!K39 -> 45.13160809 | L40: =cal!L39 -> 53.13160809 | M40: =cal!M39 -> 53.8 | N40: =cal!N39 -> 1103
B41: =IF(cal!$X$16=1,"",IF(cal!$X$16=2,"",cal!B40)) -> Clima Canal altura 0 cm ancho 0 cm longitud 0 cm (Type 5)
B42: =cal!B41 -> 0.2 | C42: =cal!C41 -> 2 | D42: =IF($E$10<=$E$11,cal!$AC$3,cal!D41) -> 0 | E42: =IF($E$10<=$E$11,"",cal!E41) -> 0 | F42: =IF($E$10<=$E$11,"",cal!F41) ->  | G42: =IF($K$10>=$K$11,cal!$AC$3,cal!G41) -> 0 | H42: =IF($K$10>=$K$11,"",cal!H41) -> 0 | I42: =IF($K$10>=$K$11,"",cal!I41) -> 0 | J42: =IF($K$10>=$K$11,"",cal!J41) ->  | K42: =IF(cal!K41=-8,"",cal!K41) ->  | L42: =IF(cal!L41=0,"",cal!L41) ->  | M42: =IF(cal!M41=0,"",cal!M41) ->  | N42: =IF(cal!N41=0,"",cal!N41) -> 
B43: =cal!B42 -> 0.4 | C43: =cal!C42 -> 4 | D43: =IF($E$10<=$E$11,cal!$AC$4,cal!D42) -> 0 | E43: =IF($E$10<=$E$11,"",cal!E42) -> 0 | F43: =IF($E$10<=$E$11,"",cal!F42) ->  | G43: =IF($K$10>=$K$11,cal!$AC$5,cal!G42) -> 0 | H43: =IF($K$10>=$K$11,"",cal!H42) -> 0 | I43: =IF($K$10>=$K$11,"",cal!I42) -> 0 | J43: =IF($K$10>=$K$11,"",cal!J42) ->  | K43: =IF(cal!K42=-8,"",cal!K42) ->  | L43: =IF(cal!L42=0,"",cal!L42) ->  | M43: =IF(cal!M42=0,"",cal!M42) ->  | N43: =IF(cal!N42=0,"",cal!N42) -> 
B44: =cal!B43 -> 0.6 | C44: =cal!C43 -> 6 | D44: =IF($E$10<=$E$11,"",cal!D43) -> 0 | E44: =IF($E$10<=$E$11,"",cal!E43) -> 0 | F44: =IF($E$10<=$E$11,"",cal!F43) ->  | G44: =IF($K$10>=$K$11,"",cal!G43) -> 0 | H44: =IF($K$10>=$K$11,"",cal!H43) -> 0 | I44: =IF($K$10>=$K$11,"",cal!I43) -> 0 | J44: =IF($K$10>=$K$11,"",cal!J43) ->  | K44: =IF(cal!K43=-8,"",cal!K43) ->  | L44: =IF(cal!L43=0,"",cal!L43) ->  | M44: =IF(cal!M43=0,"",cal!M43) ->  | N44: =IF(cal!N43=0,"",cal!N43) -> 
B45: =cal!B44 -> 0.8 | C45: =cal!C44 -> 8 | D45: =IF($E$10<=$E$11,"",cal!D44) -> 0 | E45: =IF($E$10<=$E$11,"",cal!E44) -> 0 | F45: =IF($E$10<=$E$11,"",cal!F44) ->  | G45: =IF($K$10>=$K$11,"",cal!G44) -> 0 | H45: =IF($K$10>=$K$11,"",cal!H44) -> 0 | I45: =IF($K$10>=$K$11,"",cal!I44) -> 0 | J45: =IF($K$10>=$K$11,"",cal!J44) ->  | K45: =IF(cal!K44=-8,"",cal!K44) ->  | L45: =IF(cal!L44=0,"",cal!L44) ->  | M45: =IF(cal!M44=0,"",cal!M44) ->  | N45: =IF(cal!N44=0,"",cal!N44) -> 
B46: =cal!B45 -> 1 | C46: =cal!C45 -> 10 | D46: =IF($E$10<=$E$11,"",cal!D45) -> 0 | E46: =IF($E$10<=$E$11,"",cal!E45) -> 0 | F46: =IF($E$10<=$E$11,"",cal!F45) ->  | G46: =IF($K$10>=$K$11,"",cal!G45) -> 0 | H46: =IF($K$10>=$K$11,"",cal!H45) -> 0 | I46: =IF($K$10>=$K$11,"",cal!I45) -> 0 | J46: =IF($K$10>=$K$11,"",cal!J45) ->  | K46: =IF(cal!K45=-8,"",cal!K45) ->  | L46: =IF(cal!L45=0,"",cal!L45) ->  | M46: =IF(cal!M45=0,"",cal!M45) ->  | N46: =IF(cal!N45=0,"",cal!N45) -> 
B47: =IF(cal!$X$16=1,"",IF(cal!$X$16=2,"",cal!B46)) -> Clima Canal altura 0 cm ancho 0 cm longitud 0 cm (Type 6)
B48: =cal!B47 -> 0.2 | C48: =cal!C47 -> 2 | D48: =IF($E$10<=$E$11,cal!$AC$3,cal!D47) -> 0 | E48: =IF($E$10<=$E$11,"",cal!E47) -> 0 | F48: =IF($E$10<=$E$11,"",cal!F47) ->  | G48: =IF($K$10>=$K$11,cal!$AC$3,cal!G47) -> 0 | H48: =IF($K$10>=$K$11,"",cal!H47) -> 0 | I48: =IF($K$10>=$K$11,"",cal!I47) -> 0 | J48: =IF($K$10>=$K$11,"",cal!J47) ->  | K48: =IF(cal!K47=-8,"",cal!K47) ->  | L48: =IF(cal!L47=0,"",cal!L47) ->  | M48: =IF(cal!M47=0,"",cal!M47) ->  | N48: =IF(cal!N47=0,"",cal!N47) -> 
B49: =cal!B48 -> 0.4 | C49: =cal!C48 -> 4 | D49: =IF($E$10<=$E$11,cal!$AC$4,cal!D48) -> 0 | E49: =IF($E$10<=$E$11,"",cal!E48) -> 0 | F49: =IF($E$10<=$E$11,"",cal!F48) ->  | G49: =IF($K$10>=$K$11,cal!$AC$5,cal!G48) -> 0 | H49: =IF($K$10>=$K$11,"",cal!H48) -> 0 | I49: =IF($K$10>=$K$11,"",cal!I48) -> 0 | J49: =IF($K$10>=$K$11,"",cal!J48) ->  | K49: =IF(cal!K48=-8,"",cal!K48) ->  | L49: =IF(cal!L48=0,"",cal!L48) ->  | M49: =IF(cal!M48=0,"",cal!M48) ->  | N49: =IF(cal!N48=0,"",cal!N48) -> 
B50: =cal!B49 -> 0.6 | C50: =cal!C49 -> 6 | D50: =IF($E$10<=$E$11,"",cal!D49) -> 0 | E50: =IF($E$10<=$E$11,"",cal!E49) -> 0 | F50: =IF($E$10<=$E$11,"",cal!F49) ->  | G50: =IF($K$10>=$K$11,"",cal!G49) -> 0 | H50: =IF($K$10>=$K$11,"",cal!H49) -> 0 | I50: =IF($K$10>=$K$11,"",cal!I49) -> 0 | J50: =IF($K$10>=$K$11,"",cal!J49) ->  | K50: =IF(cal!K49=-8,"",cal!K49) ->  | L50: =IF(cal!L49=0,"",cal!L49) ->  | M50: =IF(cal!M49=0,"",cal!M49) ->  | N50: =IF(cal!N49=0,"",cal!N49) -> 
B51: =cal!B50 -> 0.8 | C51: =cal!C50 -> 8 | D51: =IF($E$10<=$E$11,"",cal!D50) -> 0 | E51: =IF($E$10<=$E$11,"",cal!E50) -> 0 | F51: =IF($E$10<=$E$11,"",cal!F50) ->  | G51: =IF($K$10>=$K$11,"",cal!G50) -> 0 | H51: =IF($K$10>=$K$11,"",cal!H50) -> 0 | I51: =IF($K$10>=$K$11,"",cal!I50) -> 0 | J51: =IF($K$10>=$K$11,"",cal!J50) ->  | K51: =IF(cal!K50=-8,"",cal!K50) ->  | L51: =IF(cal!L50=0,"",cal!L50) ->  | M51: =IF(cal!M50=0,"",cal!M50) ->  | N51: =IF(cal!N50=0,"",cal!N50) -> 
B52: =cal!B51 -> 1 | C52: =cal!C51 -> 10 | D52: =IF($E$10<=$E$11,"",cal!D51) -> 0 | E52: =IF($E$10<=$E$11,"",cal!E51) -> 0 | F52: =IF($E$10<=$E$11,"",cal!F51) ->  | G52: =IF($K$10>=$K$11,"",cal!G51) -> 0 | H52: =IF($K$10>=$K$11,"",cal!H51) -> 0 | I52: =IF($K$10>=$K$11,"",cal!I51) -> 0 | J52: =IF($K$10>=$K$11,"",cal!J51) ->  | K52: =IF(cal!K51=-8,"",cal!K51) ->  | L52: =IF(cal!L51=0,"",cal!L51) ->  | M52: =IF(cal!M51=0,"",cal!M51) ->  | N52: =IF(cal!N51=0,"",cal!N51) -> 
B53: =IF(cal!$X$16=1,"",IF(cal!$X$16=2,"",cal!B52)) -> Clima Canal altura 0 cm ancho 0 cm longitud 0 cm (Type 7)
B54: =cal!B53 -> 0.2 | C54: =cal!C53 -> 2 | D54: =IF($E$10<=$E$11,cal!$AC$3,cal!D53) -> 0 | E54: =IF($E$10<=$E$11,"",cal!E53) -> 0 | F54: =IF($E$10<=$E$11,"",cal!F53) ->  | G54: =IF($K$10>=$K$11,cal!$AC$3,cal!G53) -> 0 | H54: =IF($K$10>=$K$11,"",cal!H53) -> 0 | I54: =IF($K$10>=$K$11,"",cal!I53) -> 0 | J54: =IF($K$10>=$K$11,"",cal!J53) ->  | K54: =IF(cal!K53=-8,"",cal!K53) ->  | L54: =IF(cal!L53=0,"",cal!L53) ->  | M54: =IF(cal!M53=0,"",cal!M53) ->  | N54: =IF(cal!N53=0,"",cal!N53) -> 
B55: =cal!B54 -> 0.4 | C55: =cal!C54 -> 4 | D55: =IF($E$10<=$E$11,cal!$AC$4,cal!D54) -> 0 | E55: =IF($E$10<=$E$11,"",cal!E54) -> 0 | F55: =IF($E$10<=$E$11,"",cal!F54) ->  | G55: =IF($K$10>=$K$11,cal!$AC$5,cal!G54) -> 0 | H55: =IF($K$10>=$K$11,"",cal!H54) -> 0 | I55: =IF($K$10>=$K$11,"",cal!I54) -> 0 | J55: =IF($K$10>=$K$11,"",cal!J54) ->  | K55: =IF(cal!K54=-8,"",cal!K54) ->  | L55: =IF(cal!L54=0,"",cal!L54) ->  | M55: =IF(cal!M54=0,"",cal!M54) ->  | N55: =IF(cal!N54=0,"",cal!N54) -> 
B56: =cal!B55 -> 0.6 | C56: =cal!C55 -> 6 | D56: =IF($E$10<=$E$11,"",cal!D55) -> 0 | E56: =IF($E$10<=$E$11,"",cal!E55) -> 0 | F56: =IF($E$10<=$E$11,"",cal!F55) ->  | G56: =IF($K$10>=$K$11,"",cal!G55) -> 0 | H56: =IF($K$10>=$K$11,"",cal!H55) -> 0 | I56: =IF($K$10>=$K$11,"",cal!I55) -> 0 | J56: =IF($K$10>=$K$11,"",cal!J55) ->  | K56: =IF(cal!K55=-8,"",cal!K55) ->  | L56: =IF(cal!L55=0,"",cal!L55) ->  | M56: =IF(cal!M55=0,"",cal!M55) ->  | N56: =IF(cal!N55=0,"",cal!N55) -> 
B57: =cal!B56 -> 0.8 | C57: =cal!C56 -> 8 | D57: =IF($E$10<=$E$11,"",cal!D56) -> 0 | E57: =IF($E$10<=$E$11,"",cal!E56) -> 0 | F57: =IF($E$10<=$E$11,"",cal!F56) ->  | G57: =IF($K$10>=$K$11,"",cal!G56) -> 0 | H57: =IF($K$10>=$K$11,"",cal!H56) -> 0 | I57: =IF($K$10>=$K$11,"",cal!I56) -> 0 | J57: =IF($K$10>=$K$11,"",cal!J56) ->  | K57: =IF(cal!K56=-8,"",cal!K56) ->  | L57: =IF(cal!L56=0,"",cal!L56) ->  | M57: =IF(cal!M56=0,"",cal!M56) ->  | N57: =IF(cal!N56=0,"",cal!N56) -> 
B58: =cal!B57 -> 1 | C58: =cal!C57 -> 10 | D58: =IF($E$10<=$E$11,"",cal!D57) -> 0 | E58: =IF($E$10<=$E$11,"",cal!E57) -> 0 | F58: =IF($E$10<=$E$11,"",cal!F57) ->  | G58: =IF($K$10>=$K$11,"",cal!G57) -> 0 | H58: =IF($K$10>=$K$11,"",cal!H57) -> 0 | I58: =IF($K$10>=$K$11,"",cal!I57) -> 0 | J58: =IF($K$10>=$K$11,"",cal!J57) ->  | K58: =IF(cal!K57=-8,"",cal!K57) ->  | L58: =IF(cal!L57=0,"",cal!L57) ->  | M58: =IF(cal!M57=0,"",cal!M57) ->  | N58: =IF(cal!N57=0,"",cal!N57) -> 
B59: =IF(cal!$X$16=1,"",IF(cal!$X$16=2,"",cal!B58)) -> Clima Canal altura 0 cm ancho 0 cm longitud 0 cm (Type 8)
B60: =cal!B59 -> 0.2 | C60: =cal!C59 -> 2 | D60: =IF($E$10<=$E$11,cal!$AC$3,cal!D59) -> 0 | E60: =IF($E$10<=$E$11,"",cal!E59) -> 0 | F60: =IF($E$10<=$E$11,"",cal!F59) ->  | G60: =IF($K$10>=$K$11,cal!$AC$3,cal!G59) -> 0 | H60: =IF($K$10>=$K$11,"",cal!H59) -> 0 | I60: =IF($K$10>=$K$11,"",cal!I59) -> 0 | J60: =IF($K$10>=$K$11,"",cal!J59) ->  | K60: =IF(cal!K59=-8,"",cal!K59) ->  | L60: =IF(cal!L59=0,"",cal!L59) ->  | M60: =IF(cal!M59=0,"",cal!M59) ->  | N60: =IF(cal!N59=0,"",cal!N59) -> 
B61: =cal!B60 -> 0.4 | C61: =cal!C60 -> 4 | D61: =IF($E$10<=$E$11,cal!$AC$4,cal!D60) -> 0 | E61: =IF($E$10<=$E$11,"",cal!E60) -> 0 | F61: =IF($E$10<=$E$11,"",cal!F60) ->  | G61: =IF($K$10>=$K$11,cal!$AC$5,cal!G60) -> 0 | H61: =IF($K$10>=$K$11,"",cal!H60) -> 0 | I61: =IF($K$10>=$K$11,"",cal!I60) -> 0 | J61: =IF($K$10>=$K$11,"",cal!J60) ->  | K61: =IF(cal!K60=-8,"",cal!K60) ->  | L61: =IF(cal!L60=0,"",cal!L60) ->  | M61: =IF(cal!M60=0,"",cal!M60) ->  | N61: =IF(cal!N60=0,"",cal!N60) -> 
B62: =cal!B61 -> 0.6 | C62: =cal!C61 -> 6 | D62: =IF($E$10<=$E$11,"",cal!D61) -> 0 | E62: =IF($E$10<=$E$11,"",cal!E61) -> 0 | F62: =IF($E$10<=$E$11,"",cal!F61) ->  | G62: =IF($K$10>=$K$11,"",cal!G61) -> 0 | H62: =IF($K$10>=$K$11,"",cal!H61) -> 0 | I62: =IF($K$10>=$K$11,"",cal!I61) -> 0 | J62: =IF($K$10>=$K$11,"",cal!J61) ->  | K62: =IF(cal!K61=-8,"",cal!K61) ->  | L62: =IF(cal!L61=0,"",cal!L61) ->  | M62: =IF(cal!M61=0,"",cal!M61) ->  | N62: =IF(cal!N61=0,"",cal!N61) -> 
B63: =cal!B62 -> 0.8 | C63: =cal!C62 -> 8 | D63: =IF($E$10<=$E$11,"",cal!D62) -> 0 | E63: =IF($E$10<=$E$11,"",cal!E62) -> 0 | F63: =IF($E$10<=$E$11,"",cal!F62) ->  | G63: =IF($K$10>=$K$11,"",cal!G62) -> 0 | H63: =IF($K$10>=$K$11,"",cal!H62) -> 0 | I63: =IF($K$10>=$K$11,"",cal!I62) -> 0 | J63: =IF($K$10>=$K$11,"",cal!J62) ->  | K63: =IF(cal!K62=-8,"",cal!K62) ->  | L63: =IF(cal!L62=0,"",cal!L62) ->  | M63: =IF(cal!M62=0,"",cal!M62) ->  | N63: =IF(cal!N62=0,"",cal!N62) -> 
B64: =cal!B63 -> 1 | C64: =cal!C63 -> 10 | D64: =IF($E$10<=$E$11,"",cal!D63) -> 0 | E64: =IF($E$10<=$E$11,"",cal!E63) -> 0 | F64: =IF($E$10<=$E$11,"",cal!F63) ->  | G64: =IF($K$10>=$K$11,"",cal!G63) -> 0 | H64: =IF($K$10>=$K$11,"",cal!H63) -> 0 | I64: =IF($K$10>=$K$11,"",cal!I63) -> 0 | J64: =IF($K$10>=$K$11,"",cal!J63) ->  | K64: =IF(cal!K63=-8,"",cal!K63) ->  | L64: =IF(cal!L63=0,"",cal!L63) ->  | M64: =IF(cal!M63=0,"",cal!M63) ->  | N64: =IF(cal!N63=0,"",cal!N63) -> 
B65: =IF(cal!$X$16=1,"",IF(cal!$X$16=2,"",cal!B64)) -> Clima Canal altura 0 cm ancho 0 cm longitud 0 cm (Type 9)
B66: =cal!B65 -> 0.2 | C66: =cal!C65 -> 2 | D66: =IF($E$10<=$E$11,cal!$AC$3,cal!D65) -> 0 | E66: =IF($E$10<=$E$11,"",cal!E65) -> 0 | F66: =IF($E$10<=$E$11,"",cal!F65) ->  | G66: =IF($K$10>=$K$11,cal!$AC$3,cal!G65) -> 0 | H66: =IF($K$10>=$K$11,"",cal!H65) -> 0 | I66: =IF($K$10>=$K$11,"",cal!I65) -> 0 | J66: =IF($K$10>=$K$11,"",cal!J65) ->  | K66: =IF(cal!K65=-8,"",cal!K65) ->  | L66: =IF(cal!L65=0,"",cal!L65) ->  | M66: =IF(cal!M65=0,"",cal!M65) ->  | N66: =IF(cal!N65=0,"",cal!N65) -> 
B67: =cal!B66 -> 0.4 | C67: =cal!C66 -> 4 | D67: =IF($E$10<=$E$11,cal!$AC$4,cal!D66) -> 0 | E67: =IF($E$10<=$E$11,"",cal!E66) -> 0 | F67: =IF($E$10<=$E$11,"",cal!F66) ->  | G67: =IF($K$10>=$K$11,cal!$AC$5,cal!G66) -> 0 | H67: =IF($K$10>=$K$11,"",cal!H66) -> 0 | I67: =IF($K$10>=$K$11,"",cal!I66) -> 0 | J67: =IF($K$10>=$K$11,"",cal!J66) ->  | K67: =IF(cal!K66=-8,"",cal!K66) ->  | L67: =IF(cal!L66=0,"",cal!L66) ->  | M67: =IF(cal!M66=0,"",cal!M66) ->  | N67: =IF(cal!N66=0,"",cal!N66) -> 
B68: =cal!B67 -> 0.6 | C68: =cal!C67 -> 6 | D68: =IF($E$10<=$E$11,"",cal!D67) -> 0 | E68: =IF($E$10<=$E$11,"",cal!E67) -> 0 | F68: =IF($E$10<=$E$11,"",cal!F67) ->  | G68: =IF($K$10>=$K$11,"",cal!G67) -> 0 | H68: =IF($K$10>=$K$11,"",cal!H67) -> 0 | I68: =IF($K$10>=$K$11,"",cal!I67) -> 0 | J68: =IF($K$10>=$K$11,"",cal!J67) ->  | K68: =IF(cal!K67=-8,"",cal!K67) ->  | L68: =IF(cal!L67=0,"",cal!L67) ->  | M68: =IF(cal!M67=0,"",cal!M67) ->  | N68: =IF(cal!N67=0,"",cal!N67) -> 
B69: =cal!B68 -> 0.8 | C69: =cal!C68 -> 8 | D69: =IF($E$10<=$E$11,"",cal!D68) -> 0 | E69: =IF($E$10<=$E$11,"",cal!E68) -> 0 | F69: =IF($E$10<=$E$11,"",cal!F68) ->  | G69: =IF($K$10>=$K$11,"",cal!G68) -> 0 | H69: =IF($K$10>=$K$11,"",cal!H68) -> 0 | I69: =IF($K$10>=$K$11,"",cal!I68) -> 0 | J69: =IF($K$10>=$K$11,"",cal!J68) ->  | K69: =IF(cal!K68=-8,"",cal!K68) ->  | L69: =IF(cal!L68=0,"",cal!L68) ->  | M69: =IF(cal!M68=0,"",cal!M68) ->  | N69: =IF(cal!N68=0,"",cal!N68) -> 
B70: =cal!B69 -> 1 | C70: =cal!C69 -> 10 | D70: =IF($E$10<=$E$11,"",cal!D69) -> 0 | E70: =IF($E$10<=$E$11,"",cal!E69) -> 0 | F70: =IF($E$10<=$E$11,"",cal!F69) ->  | G70: =IF($K$10>=$K$11,"",cal!G69) -> 0 | H70: =IF($K$10>=$K$11,"",cal!H69) -> 0 | I70: =IF($K$10>=$K$11,"",cal!I69) -> 0 | J70: =IF($K$10>=$K$11,"",cal!J69) ->  | K70: =IF(cal!K69=-8,"",cal!K69) ->  | L70: =IF(cal!L69=0,"",cal!L69) ->  | M70: =IF(cal!M69=0,"",cal!M69) ->  | N70: =IF(cal!N69=0,"",cal!N69) -> 
B71: =cal!B70 -> *La potencia de enfriamiento se calcula según la norma EN 16430 con ventiladores de todas las alturas. | P71: v2021-04-19
B72: =cal!B71 -> **Potencia sonora según ISO 3741: 2010.
B73: =cal!B72 -> ***Nivel de presión acústica con una amortiguación ambiental supuesta de 8 dB (A).

Sheet cal (hidden)
G1: Nederlands | H1: English | I1: Deutsch | J1: Français | K1: Norsk | L1: Español | M1: Svenska | N1: Čeština | O1: ExtraTaal1 | P1: ExtraTaal2 | Q1: ExtraTaal3 | U1: =IF($S$7=1,NL!Q7,IF($S$7=2,EN!Q7,IF($S$7=3,DE!Q7,IF($S$7=4,FR!Q7,IF($S$7=5,NR!Q7,IF($S$7=6,SP!Q7,IF($S$7=7,SW!Q7,IF($S$7=8,TS!Q7,IF($S$7=9,ExtraTaal1!Q7,IF($S$7=10,ExtraTaal2!Q7,IF($S$7=11,ExtraTaal3!Q7,))))))))))) -> Copiar todos los datos | Z1: Clima Canal
U2: =IF($S$7=1,NL!Q8,IF($S$7=2,EN!Q8,IF($S$7=3,DE!Q8,IF($S$7=4,FR!Q8,IF($S$7=5,NR!Q8,IF($S$7=6,SP!Q8,IF($S$7=7,SW!Q8,IF($S$7=8,TS!Q8,IF($S$7=9,ExtraTaal1!Q8,IF($S$7=10,ExtraTaal2!Q8,IF($S$7=11,ExtraTaal3!Q8,))))))))))) -> Unidades-SI | Y2: Clima H8 B18 | Z2: =AE16 -> Clima H8 B18
B3: =IF($S$7=1,NL!A2,IF(cal!$S$7=2,EN!A2,IF(cal!$S$7=3,DE!A2,IF(cal!$S$7=4,FR!A2,)))) -> 0 | U3: =IF($S$7=1,NL!Q9,IF($S$7=2,EN!Q9,IF($S$7=3,DE!Q9,IF($S$7=4,FR!Q9,IF($S$7=5,NR!Q9,IF($S$7=6,SP!Q9,IF($S$7=7,SW!Q9,IF($S$7=8,TS!Q9,IF($S$7=9,ExtraTaal1!Q9,IF($S$7=10,ExtraTaal2!Q9,IF($S$7=11,ExtraTaal3!Q9,))))))))))) -> Unidades-Imperial | Y3: Clima H10 B18 | Z3: =AL16 -> Clima H10 B18 | AC3: =IF($S$7=1,NL!Q15,IF(cal!$S$7=2,EN!Q15,IF(cal!$S$7=3,DE!Q15,IF(cal!$S$7=4,FR!Q15,IF(cal!$S$7=5,NR!Q15,IF(cal!$S$7=6,SP!Q15,)))))) -> Temp.
X4: 1 | Y4: Clima H13 B27 4P | Z4: =AW16 -> Clima H13 B27 4P | AC4: =IF($S$7=1,NL!Q16,IF(cal!$S$7=2,EN!Q16,IF(cal!$S$7=3,DE!Q16,IF(cal!$S$7=4,FR!Q16,IF(cal!$S$7=5,NR!Q16,IF(cal!$S$7=6,SP!Q16,)))))) -> calefac.
B5: =IF($S$7=1,NL!A4,IF(cal!$S$7=2,EN!A4,IF(cal!$S$7=3,DE!A4,IF(cal!$S$7=4,FR!A4,)))) -> 0 | Y5: Clima H13 B32 2P | Z5: =BK16 -> Clima H13 B32 2P | AC5: =IF($S$7=1,NL!Q17,IF(cal!$S$7=2,EN!Q17,IF(cal!$S$7=3,DE!Q17,IF(cal!$S$7=4,FR!Q17,IF(cal!$S$7=5,NR!Q17,IF(cal!$S$7=6,SP!Q17,)))))) -> enfria.
Y6: Clima H13 B32 4P | Z6: =BD16 -> Clima H13 B32 4P
B7: =IF($S$7=1,NL!A6,IF(cal!$S$7=2,EN!A6,IF(cal!$S$7=3,DE!A6,IF(cal!$S$7=4,FR!A6,IF(cal!$S$7=5,NR!A6,IF(cal!$S$7=6,SP!A6,IF(cal!$S$7=7,SW!A6,IF(cal!$S$7=8,TS!A6,IF(cal!$S$7=9,ExtraTaal1!A6,IF(cal!$S$7=10,ExtraTaal2!A6,IF(cal!$S$7=11,ExtraTaal3!A6,))))))))))) -> Temperaturas | M7: =IF($S$7=1,NL!L6,IF(cal!$S$7=2,EN!L6,IF(cal!$S$7=3,DE!L6,IF(cal!$S$7=4,FR!L6,IF(cal!$S$7=5,NR!L6,IF(cal!$S$7=6,SP!L6,IF(cal!$S$7=7,SW!L6,IF(cal!$S$7=8,TS!L6,IF(cal!$S$7=9,ExtraTaal1!L6,IF(cal!$S$7=10,ExtraTaal2!L6,IF(cal!$S$7=11,ExtraTaal3!L6,))))))))))) -> Altitud | N7: =IF($S$7=1,NL!M6,IF(cal!$S$7=2,EN!M6,IF(cal!$S$7=3,DE!M6,IF(cal!$S$7=4,FR!M6,IF(cal!$S$7=5,NR!M6,IF(cal!$S$7=6,SP!M6,IF(cal!$S$7=7,SW!M6,IF(cal!$S$7=8,TS!M6,IF(cal!$S$7=9,ExtraTaal1!M6,IF(cal!$S$7=10,ExtraTaal2!M6,IF(cal!$S$7=11,ExtraTaal3!M6,))))))))))) -> 0 | S7: =IF('Clima Canal'!$K$4=cal!G1,1,IF('Clima Canal'!$K$4=cal!H1,2,IF('Clima Canal'!$K$4=cal!I1,3,IF('Clima Canal'!$K$4=cal!J1,4,IF('Clima Canal'!$K$4=cal!K1,5,IF('Clima Canal'!$K$4=cal!L1,6,IF('Clima Canal'!$K$4=cal!M1,7,IF('Clima Canal'!$K$4=cal!N1,8,IF('Clima Canal'!$K$4=cal!O1,9,IF('Clima Canal'!$K$4=cal!P1,10,IF('Clima Canal'!$K$4=cal!Q1,11,))))))))))) -> 6 | Y7: Clima H19 B34 2P | Z7: =BZ16 -> Clima H19 B34 2P
B8: =IF($S$7=1,NL!A7,IF(cal!$S$7=2,EN!A7,IF(cal!$S$7=3,DE!A7,IF(cal!$S$7=4,FR!A7,IF(cal!$S$7=5,NR!A7,IF(cal!$S$7=6,SP!A7,IF(cal!$S$7=7,SW!A7,IF(cal!$S$7=8,TS!A7,IF(cal!$S$7=9,ExtraTaal1!A7,IF(cal!$S$7=10,ExtraTaal2!A7,IF(cal!$S$7=11,ExtraTaal3!A7,))))))))))) -> Calefacción: | G8: =IF($S$7=1,NL!F7,IF(cal!$S$7=2,EN!F7,IF(cal!$S$7=3,DE!F7,IF(cal!$S$7=4,FR!F7,IF(cal!$S$7=5,NR!F7,IF(cal!$S$7=6,SP!F7,IF(cal!$S$7=7,SW!F7,IF(cal!$S$7=8,TS!F7,IF(cal!$S$7=9,ExtraTaal1!F7,IF(cal!$S$7=10,ExtraTaal2!F7,IF(cal!$S$7=11,ExtraTaal3!F7,))))))))))) -> Enfriamiento: | M8: ='Clima Canal'!M9:N9 -> 0 | N8: 0 | O8: =IF($X$4=1,"m",IF($X$4=2,"ft")) -> m | S8: Temp | X8: Temp | Y8: Clima H19 B34 4P | Z8: =BS16 -> Clima H19 B34 4P
B9: =IF($S$7=1,NL!A8,IF(cal!$S$7=2,EN!A8,IF(cal!$S$7=3,DE!A8,IF(cal!$S$7=4,FR!A8,IF(cal!$S$7=5,NR!A8,IF(cal!$S$7=6,SP!A8,IF(cal!$S$7=7,SW!A8,IF(cal!$S$7=8,TS!A8,IF(cal!$S$7=9,ExtraTaal1!A8,IF(cal!$S$7=10,ExtraTaal2!A8,IF(cal!$S$7=11,ExtraTaal3!A8,))))))))))) -> Agua impulsión | C9: =IF($S$7=1,NL!B8,IF(cal!$S$7=2,EN!B8,IF(cal!$S$7=3,DE!B8,IF(cal!$S$7=4,FR!B8,IF(cal!$S$7=5,NR!B8,IF(cal!$S$7=6,SP!B8,IF(cal!$S$7=7,SW!B8,IF(cal!$S$7=8,TS!B8,IF(cal!$S$7=9,ExtraTaal1!B8,IF(cal!$S$7=10,ExtraTaal2!B8,IF(cal!$S$7=11,ExtraTaal3!B8,))))))))))) -> 0 | D9: =IF($S$7=1,NL!C8,IF(cal!$S$7=2,EN!C8,IF(cal!$S$7=3,DE!C8,IF(cal!$S$7=4,FR!C8,IF(cal!$S$7=5,NR!C8,IF(cal!$S$7=6,SP!C8,IF(cal!$S$7=7,SW!C8,IF(cal!$S$7=8,TS!C8,IF(cal!$S$7=9,ExtraTaal1!C8,IF(cal!$S$7=10,ExtraTaal2!C8,IF(cal!$S$7=11,ExtraTaal3!C8,))))))))))) -> 0 | E9: ='Clima Canal'!E10 -> 75 | G9: =B9 -> Agua impulsión | H9: =IF($S$7=1,NL!G8,IF(cal!$S$7=2,EN!G8,IF(cal!$S$7=3,DE!G8,IF(cal!$S$7=4,FR!G8,)))) -> 0 | I9: =IF($S$7=1,NL!H8,IF(cal!$S$7=2,EN!H8,IF(cal!$S$7=3,DE!H8,IF(cal!$S$7=4,FR!H8,)))) -> 0 | J9: =IF($S$7=1,NL!I8,IF(cal!$S$7=2,EN!I8,IF(cal!$S$7=3,DE!I8,IF(cal!$S$7=4,FR!I8,)))) -> 0 | K9: ='Clima Canal'!K10 -> 16 | M9: =IF($S$7=1,NL!L8,IF(cal!$S$7=2,EN!L8,IF(cal!$S$7=3,DE!L8,IF(cal!$S$7=4,FR!L8,IF(cal!$S$7=5,NR!L8,IF(cal!$S$7=6,SP!L8,IF(cal!$S$7=7,SW!L8,IF(cal!$S$7=8,TS!L8,IF(cal!$S$7=9,ExtraTaal1!L8,IF(cal!$S$7=10,ExtraTaal2!L8,IF(cal!$S$7=11,ExtraTaal3!L8,))))))))))) -> Convers. de unidades | N9: =IF($S$7=1,NL!M8,IF(cal!$S$7=2,EN!M8,IF(cal!$S$7=3,DE!M8,IF(cal!$S$7=4,FR!M8,IF(cal!$S$7=5,NR!M8,IF(cal!$S$7=6,SP!M8,IF(cal!$S$7=7,SW!M8,IF(cal!$S$7=8,TS!M8,IF(cal!$S$7=9,ExtraTaal1!M8,IF(cal!$S$7=10,ExtraTaal2!M8,IF(cal!$S$7=11,ExtraTaal3!M8,))))))))))) -> 0 | S9: =IF($X$4=1,E9,IF($X$4=2,(E9-32)/1.8)) -> 75 | X9: =IF($X$4=1,K9,IF($X$4=2,(K9-32)/1.8)) -> 16
B10: =IF($S$7=1,NL!A9,IF(cal!$S$7=2,EN!A9,IF(cal!$S$7=3,DE!A9,IF(cal!$S$7=4,FR!A9,IF(cal!$S$7=5,NR!A9,IF(cal!$S$7=6,SP!A9,IF(cal!$S$7=7,SW!A9,IF(cal!$S$7=8,TS!A9,IF(cal!$S$7=9,ExtraTaal1!A9,IF(cal!$S$7=10,ExtraTaal2!A9,IF(cal!$S$7=11,ExtraTaal3!A9,))))))))))) -> Agua retorno | C10: =IF($S$7=1,NL!B9,IF(cal!$S$7=2,EN!B9,IF(cal!$S$7=3,DE!B9,IF(cal!$S$7=4,FR!B9,IF(cal!$S$7=5,NR!B9,IF(cal!$S$7=6,SP!B9,IF(cal!$S$7=7,SW!B9,IF(cal!$S$7=8,TS!B9,IF(cal!$S$7=9,ExtraTaal1!B9,IF(cal!$S$7=10,ExtraTaal2!B9,IF(cal!$S$7=11,ExtraTaal3!B9,))))))))))) -> 0 | D10: =IF($S$7=1,NL!C9,IF(cal!$S$7=2,EN!C9,IF(cal!$S$7=3,DE!C9,IF(cal!$S$7=4,FR!C9,IF(cal!$S$7=5,NR!C9,IF(cal!$S$7=6,SP!C9,IF(cal!$S$7=7,SW!C9,IF(cal!$S$7=8,TS!C9,IF(cal!$S$7=9,ExtraTaal1!C9,IF(cal!$S$7=10,ExtraTaal2!C9,IF(cal!$S$7=11,ExtraTaal3!C9,))))))))))) -> 0 | E10: ='Clima Canal'!E11 -> 65 | G10: =B10 -> Agua retorno | H10: =IF($S$7=1,NL!G9,IF(cal!$S$7=2,EN!G9,IF(cal!$S$7=3,DE!G9,IF(cal!$S$7=4,FR!G9,)))) -> 0 | I10: =IF($S$7=1,NL!H9,IF(cal!$S$7=2,EN!H9,IF(cal!$S$7=3,DE!H9,IF(cal!$S$7=4,FR!H9,)))) -> 0 | J10: =IF($S$7=1,NL!I9,IF(cal!$S$7=2,EN!I9,IF(cal!$S$7=3,DE!I9,IF(cal!$S$7=4,FR!I9,)))) -> 0 | K10: ='Clima Canal'!K11 -> 19 | S10: =IF($X$4=1,E10,IF($X$4=2,(E10-32)/1.8)) -> 65 | T10: CF,h | W10: CF,c | X10: =IF($X$4=1,K10,IF($X$4=2,(K10-32)/1.8)) -> 19 | Z10: p_atm | AA10: h[mm] | AB10: cf_h
B11: =IF($S$7=1,NL!A10,IF(cal!$S$7=2,EN!A10,IF(cal!$S$7=3,DE!A10,IF(cal!$S$7=4,FR!A10,IF(cal!$S$7=5,NR!A10,IF(cal!$S$7=6,SP!A10,IF(cal!$S$7=7,SW!A10,IF(cal!$S$7=8,TS!A10,IF(cal!$S$7=9,ExtraTaal1!A10,IF(cal!$S$7=10,ExtraTaal2!A10,IF(cal!$S$7=11,ExtraTaal3!A10,))))))))))) -> Ambiente (bulbo seco) | C11: =IF($S$7=1,NL!B10,IF(cal!$S$7=2,EN!B10,IF(cal!$S$7=3,DE!B10,IF(cal!$S$7=4,FR!B10,IF(cal!$S$7=5,NR!B10,IF(cal!$S$7=6,SP!B10,IF(cal!$S$7=7,SW!B10,IF(cal!$S$7=8,TS!B10,IF(cal!$S$7=9,ExtraTaal1!B10,IF(cal!$S$7=10,ExtraTaal2!B10,IF(cal!$S$7=11,ExtraTaal3!B10,))))))))))) -> 0 | D11: =IF($S$7=1,NL!C10,IF(cal!$S$7=2,EN!C10,IF(cal!$S$7=3,DE!C10,IF(cal!$S$7=4,FR!C10,IF(cal!$S$7=5,NR!C10,IF(cal!$S$7=6,SP!C10,IF(cal!$S$7=7,SW!C10,IF(cal!$S$7=8,TS!C10,IF(cal!$S$7=9,ExtraTaal1!C10,IF(cal!$S$7=10,ExtraTaal2!C10,IF(cal!$S$7=11,ExtraTaal3!C10,))))))))))) -> 0 | E11: ='Clima Canal'!E12 -> 20 | G11: =B11 -> Ambiente (bulbo seco) | H11: =IF($S$7=1,NL!G10,IF(cal!$S$7=2,EN!G10,IF(cal!$S$7=3,DE!G10,IF(cal!$S$7=4,FR!G10,)))) -> 0 | K11: ='Clima Canal'!K12 -> 26 | S11: =IF($X$4=1,E11,IF($X$4=2,(E11-32)/1.8)) -> 20 | T11: =(($S$9-$S$10)/LN(($S$9-$S$11)/($S$10-$S$11)))/((75-65)/LN((75-20)/(65-20))) -> 1 | W11: =(($X$9-$X$10)/LN(($X$9-$X$11)/($X$10-$X$11)))/((16-18)/LN((16-27)/(18-27))) -> 0.843922592 | X11: =IF($X$4=1,K11,IF($X$4=2,(K11-32)/1.8)) -> 26 | Z11: =IF($X$4=1,(101325*(1-((0.0065*M8)/(288.15)))^((9.81*0.028964)/(8.31447*0.0065))),IF($X$4=2,(101325*(1-((0.0065*(M8*0.3048))/(288.15)))^((9.81*0.028964)/(8.31447*0.0065))))) -> 101325 | AA11: =IF($X$4=1,M8/1000,IF($X$4=2,M8*0.0003048)) -> 0 | AB11: =-(0.000265264729874266*AA11^6)+(0.000957582908802335*AA11^5)+(0.00470250661483425*AA11^4)-(0.0298716926548353*AA11^3)+(0.0557086806557086*AA11^2)-(0.0484008125693582*AA11)+1 -> 1
B12: =G12 -> Humedad relativa | E12: 0.5 | G12: =IF($S$7=1,NL!F11,IF(cal!$S$7=2,EN!F11,IF(cal!$S$7=3,DE!F11,IF(cal!$S$7=4,FR!F11,IF(cal!$S$7=5,NR!F11,IF(cal!$S$7=6,SP!F11,IF(cal!$S$7=7,SW!F11,IF(cal!$S$7=8,TS!F11,IF(cal!$S$7=9,ExtraTaal1!F11,IF(cal!$S$7=10,ExtraTaal2!F11,IF(cal!$S$7=11,ExtraTaal3!F11,))))))))))) -> Humedad relativa | K12: ='Clima Canal'!K13 -> 0.5
E14: =IF($X$4=1,1,IF($X$4=2,0.004403)) -> 1 | F14: =IF($X$4=1,1,IF($X$4=2,4.0147)) -> 1 | G14: =IF($X$4=1,0.000334444444444444,IF($X$4=2,0.000568224721372)) -> 0.0003344444444 | H14: =IF($X$4=1,1,IF($X$4=2,3.4121416331)) -> 1 | I14: =IF($X$4=1,1,IF($X$4=2,0.004403)) -> 1 | J14: =IF($X$4=1,1,IF($X$4=2,4.0147)) -> 1 | N14: =IF($X$4=1,1,IF($X$4=2,0.588575)) -> 1 | O14: =IF($X$4=1,1,1.8) -> 1 | P14: =IF($X$4=1,0,32) -> 0 | S14: 8 & 10 | T14: 13/27 | U14: 13/32 | V14: 19
B15: =IF($S$7=1,NL!A14,IF(cal!$S$7=2,EN!A14,IF(cal!$S$7=3,DE!A14,IF(cal!$S$7=4,FR!A14,IF(cal!$S$7=5,NR!A14,IF(cal!$S$7=6,SP!A14,IF(cal!$S$7=7,SW!A14,IF(cal!$S$7=8,TS!A14,IF(cal!$S$7=9,ExtraTaal1!A14,IF(cal!$S$7=10,ExtraTaal2!A14,IF(cal!$S$7=11,ExtraTaal3!A14,))))))))))) -> Nivel de velocidad: | C15: =IF($S$7=1,NL!B14,IF(cal!$S$7=2,EN!B14,IF(cal!$S$7=3,DE!B14,IF(cal!$S$7=4,FR!B14,IF(cal!$S$7=5,NR!B14,IF(cal!$S$7=6,SP!B14,IF(cal!$S$7=7,SW!B14,IF(cal!$S$7=8,TS!B14,IF(cal!$S$7=9,ExtraTaal1!B14,IF(cal!$S$7=10,ExtraTaal2!B14,IF(cal!$S$7=11,ExtraTaal3!B14,))))))))))) -> Voltaje control [V] | D15: =IF($S$7=1,NL!C14,IF(cal!$S$7=2,EN!C14,IF(cal!$S$7=3,DE!C14,IF(cal!$S$7=4,FR!C14,IF(cal!$S$7=5,NR!C14,IF(cal!$S$7=6,SP!C14,IF(cal!$S$7=7,SW!C14,IF(cal!$S$7=8,TS!C14,IF(cal!$S$7=9,ExtraTaal1!C14,IF(cal!$S$7=10,ExtraTaal2!C14,IF(cal!$S$7=11,ExtraTaal3!C14,))))))))))) -> Emisión calefacción * 75/65/20 [W] | E15: =IF($S$7=1,NL!D14,IF(cal!$S$7=2,EN!D14,IF(cal!$S$7=3,DE!D14,IF(cal!$S$7=4,FR!D14,IF(cal!$S$7=5,NR!D14,IF(cal!$S$7=6,SP!D14,IF(cal!$S$7=7,SW!D14,IF(cal!$S$7=8,TS!D14,IF(cal!$S$7=9,ExtraTaal1!D14,IF(cal!$S$7=10,ExtraTaal2!D14,IF(cal!$S$7=11,ExtraTaal3!D14,))))))))))) -> Caudal de agua, calefacción [l/h] | F15: =IF($S$7=1,NL!E14,IF(cal!$S$7=2,EN!E14,IF(cal!$S$7=3,DE!E14,IF(cal!$S$7=4,FR!E14,IF(cal!$S$7=5,NR!E14,IF(cal!$S$7=6,SP!E14,IF(cal!$S$7=7,SW!E14,IF(cal!$S$7=8,TS!E14,IF(cal!$S$7=9,ExtraTaal1!E14,IF(cal!$S$7=10,ExtraTaal2!E14,IF(cal!$S$7=11,ExtraTaal3!E14,))))))))))) -> Pérdida de carga del agua [kPa] | G15: =IF($S$7=1,NL!F14,IF(cal!$S$7=2,EN!F14,IF(cal!$S$7=3,DE!F14,IF(cal!$S$7=4,FR!F14,IF(cal!$S$7=5,NR!F14,IF(cal!$S$7=6,SP!F14,IF(cal!$S$7=7,SW!F14,IF(cal!$S$7=8,TS!F14,IF(cal!$S$7=9,ExtraTaal1!F14,IF(cal!$S$7=10,ExtraTaal2!F14,IF(cal!$S$7=11,ExtraTaal3!F14,))))))))))) -> Emisión sensible Frío * 16/19/26 [W] | H15: =IF($S$7=1,NL!G14,IF(cal!$S$7=2,EN!G14,IF(cal!$S$7=3,DE!G14,IF(cal!$S$7=4,FR!G14,IF(cal!$S$7=5,NR!G14,IF(cal!$S$7=6,SP!G14,IF(cal!$S$7=7,SW!G14,IF(cal!$S$7=8,TS!G14,IF(cal!$S$7=9,ExtraTaal1!G14,IF(cal!$S$7=10,ExtraTaal2!G14,IF(cal!$S$7=11,ExtraTaal3!G14,))))))))))) -> Emisión total Frío * 16/19/26 [W] | I15: =IF($S$7=1,NL!H14,IF(cal!$S$7=2,EN!H14,IF(cal!$S$7=3,DE!H14,IF(cal!$S$7=4,FR!H14,IF(cal!$S$7=5,NR!H14,IF(cal!$S$7=6,SP!H14,IF(cal!$S$7=7,SW!H14,IF(cal!$S$7=8,TS!H14,IF(cal!$S$7=9,ExtraTaal1!H14,IF(cal!$S$7=10,ExtraTaal2!H14,IF(cal!$S$7=11,ExtraTaal3!H14,))))))))))) -> Caudal de agua, calefacción [l/h] | J15: =IF($S$7=1,NL!I14,IF(cal!$S$7=2,EN!I14,IF(cal!$S$7=3,DE!I14,IF(cal!$S$7=4,FR!I14,IF(cal!$S$7=5,NR!I14,IF(cal!$S$7=6,SP!I14,IF(cal!$S$7=7,SW!I14,IF(cal!$S$7=8,TS!I14,IF(cal!$S$7=9,ExtraTaal1!I14,IF(cal!$S$7=10,ExtraTaal2!I14,IF(cal!$S$7=11,ExtraTaal3!I14,))))))))))) -> Pérdida de carga del agua [kPa] | K15: =IF($S$7=1,NL!J14,IF(cal!$S$7=2,EN!J14,IF(cal!$S$7=3,DE!J14,IF(cal!$S$7=4,FR!J14,IF(cal!$S$7=5,NR!J14,IF(cal!$S$7=6,SP!J14,IF(cal!$S$7=7,SW!J14,IF(cal!$S$7=8,TS!J14,IF(cal!$S$7=9,ExtraTaal1!J14,IF(cal!$S$7=10,ExtraTaal2!J14,IF(cal!$S$7=11,ExtraTaal3!J14,))))))))))) -> Presión sonora *** [dB(A)] | L15: =IF($S$7=1,NL!K14,IF(cal!$S$7=2,EN!K14,IF(cal!$S$7=3,DE!K14,IF(cal!$S$7=4,FR!K14,IF(cal!$S$7=5,NR!K14,IF(cal!$S$7=6,SP!K14,IF(cal!$S$7=7,SW!K14,IF(cal!$S$7=8,TS!K14,IF(cal!$S$7=9,ExtraTaal1!K14,IF(cal!$S$7=10,ExtraTaal2!K14,IF(cal!$S$7=11,ExtraTaal3!K14,))))))))))) -> Potencia sonora ** [dB(A)] | M15: =IF($S$7=1,NL!L14,IF(cal!$S$7=2,EN!L14,IF(cal!$S$7=3,DE!L14,IF(cal!$S$7=4,FR!L14,IF(cal!$S$7=5,NR!L14,IF(cal!$S$7=6,SP!L14,IF(cal!$S$7=7,SW!L14,IF(cal!$S$7=8,TS!L14,IF(cal!$S$7=9,ExtraTaal1!L14,IF(cal!$S$7=10,ExtraTaal2!L14,IF(cal!$S$7=11,ExtraTaal3!L14,))))))))))) -> Potencia eléctrica absorbida [W] | N15: =IF($S$7=1,NL!M14,IF(cal!$S$7=2,EN!M14,IF(cal!$S$7=3,DE!M14,IF(cal!$S$7=4,FR!M14,IF(cal!$S$7=5,NR!M14,IF(cal!$S$7=6,SP!M14,IF(cal!$S$7=7,SW!M14,IF(cal!$S$7=8,TS!M14,IF(cal!$S$7=9,ExtraTaal1!M14,IF(cal!$S$7=10,ExtraTaal2!M14,IF(cal!$S$7=11,ExtraTaal3!M14,))))))))))) -> Caudal de aire [m³/h] | O15: =IF($S$7=1,NL!N14,IF(cal!$S$7=2,EN!N14,IF(cal!$S$7=3,DE!N14,IF(cal!$S$7=4,FR!N14,IF(cal!$S$7=5,NR!N14,IF(cal!$S$7=6,SP!N14,IF(cal!$S$7=7,SW!N14,IF(cal!$S$7=8,TS!N14,IF(cal!$S$7=9,ExtraTaal1!N14,IF(cal!$S$7=10,ExtraTaal2!N14,IF(cal!$S$7=11,ExtraTaal3!N14,))))))))))) -> Temperatura salida de aire calefacción [°C] | P15: =IF($S$7=1,NL!O14,IF(cal!$S$7=2,EN!O14,IF(cal!$S$7=3,DE!O14,IF(cal!$S$7=4,FR!O14,IF(cal!$S$7=5,NR!O14,IF(cal!$S$7=6,SP!O14,IF(cal!$S$7=7,SW!O14,IF(cal!$S$7=8,TS!O14,IF(cal!$S$7=9,ExtraTaal1!O14,IF(cal!$S$7=10,ExtraTaal2!O14,IF(cal!$S$7=11,ExtraTaal3!O14,))))))))))) -> Temperatura salida de aire refrigeración [°C] | Q15: n- heating | R15: n- cooling | S15: n- cooling | T15: n- cooling | U15: n- cooling | V15: n- cooling | X15: Q_verw | Y15: dP_verw | Z15: Q_voelb_c | AA15: dP_cool | AB15: Geluid_P | AC15: P_elek | AD15: V_air | AE15: Q_verw | AF15: dP_verw | AG15: Q_voelb_c | AH15: dP_cool | AI15: Geluid_P | AJ15: P_elek | AK15: V_air | AL15: Q_verw | AM15: dP_verw | AN15: Q_voelb_c | AO15: dP_cool | AP15: Geluid_P | AQ15: P_elek | AR15: V_air | AW15: Q_verw | AX15: dP_verw | AY15: Q_voelb_c | AZ15: dP_cool | BA15: Geluid_P | BB15: P_elek | BC15: V_air | BD15: Q_verw | BE15: dP_verw | BF15: Q_voelb_c | BG15: dP_cool | BH15: Geluid_P | BI15: P_elek | BJ15: V_air | BK15: Q_verw | BL15: dP_verw | BM15: Q_voelb_c | BN15: dP_cool | BO15: Geluid_P | BP15: P_elek | BQ15: V_air | BS15: Q_verw | BT15: dP_verw | BU15: Q_voelb_c | BV15: dP_cool | BW15: Geluid_P | BX15: P_elek | BY15: V_air | BZ15: Q_verw | CA15: dP_verw | CB15: Q_voelb_c | CC15: dP_cool | CD15: Geluid_P | CE15: P_elek | CF15: V_air
B16: =IF($S$7=1,NL!A15,IF(cal!$S$7=2,EN!A15,IF(cal!$S$7=3,DE!A15,IF(cal!$S$7=4,FR!A15,IF(cal!$S$7=5,NR!A15,IF(cal!$S$7=6,SP!A15,IF(cal!$S$7=7,SW!A15,IF(cal!$S$7=8,TS!A15,IF(cal!$S$7=9,ExtraTaal1!A15,IF(cal!$S$7=10,ExtraTaal2!A15,IF(cal!$S$7=11,ExtraTaal3!A15,))))))))))) -> Clima Canal altura 19 cm ancho 34 cm longitud 105 cm (Type 1) | C16: =IF($S$7=1,NL!B15,IF(cal!$S$7=2,EN!B15,IF(cal!$S$7=3,DE!B15,IF(cal!$S$7=4,FR!B15,IF(cal!$S$7=5,NR!B15,IF(cal!$S$7=6,SP!B15,IF(cal!$S$7=7,SW!B15,IF(cal!$S$7=8,TS!B15,IF(cal!$S$7=9,ExtraTaal1!B15,IF(cal!$S$7=10,ExtraTaal2!B15,IF(cal!$S$7=11,ExtraTaal3!B15,))))))))))) -> 0 | D16: =IF($S$7=1,NL!C15,IF(cal!$S$7=2,EN!C15,IF(cal!$S$7=3,DE!C15,IF(cal!$S$7=4,FR!C15,IF(cal!$S$7=5,NR!C15,IF(cal!$S$7=6,SP!C15,IF(cal!$S$7=7,SW!C15,IF(cal!$S$7=8,TS!C15,IF(cal!$S$7=9,ExtraTaal1!C15,IF(cal!$S$7=10,ExtraTaal2!C15,IF(cal!$S$7=11,ExtraTaal3!C15,))))))))))) -> 0 | E16: =IF($S$7=1,NL!D15,IF(cal!$S$7=2,EN!D15,IF(cal!$S$7=3,DE!D15,IF(cal!$S$7=4,FR!D15,IF(cal!$S$7=5,NR!D15,IF(cal!$S$7=6,SP!D15,IF(cal!$S$7=7,SW!D15,IF(cal!$S$7=8,TS!D15,IF(cal!$S$7=9,ExtraTaal1!D15,IF(cal!$S$7=10,ExtraTaal2!D15,IF(cal!$S$7=11,ExtraTaal3!D15,))))))))))) -> 0 | F16: =IF($S$7=1,NL!E15,IF(cal!$S$7=2,EN!E15,IF(cal!$S$7=3,DE!E15,IF(cal!$S$7=4,FR!E15,IF(cal!$S$7=5,NR!E15,IF(cal!$S$7=6,SP!E15,IF(cal!$S$7=7,SW!E15,IF(cal!$S$7=8,TS!E15,IF(cal!$S$7=9,ExtraTaal1!E15,IF(cal!$S$7=10,ExtraTaal2!E15,IF(cal!$S$7=11,ExtraTaal3!E15,))))))))))) -> 0 | G16: =IF($S$7=1,NL!F15,IF(cal!$S$7=2,EN!F15,IF(cal!$S$7=3,DE!F15,IF(cal!$S$7=4,FR!F15,IF(cal!$S$7=5,NR!F15,IF(cal!$S$7=6,SP!F15,IF(cal!$S$7=7,SW!F15,IF(cal!$S$7=8,TS!F15,IF(cal!$S$7=9,ExtraTaal1!F15,IF(cal!$S$7=10,ExtraTaal2!F15,IF(cal!$S$7=11,ExtraTaal3!F15,))))))))))) -> 0 | H16: =IF($S$7=1,NL!G15,IF(cal!$S$7=2,EN!G15,IF(cal!$S$7=3,DE!G15,IF(cal!$S$7=4,FR!G15,IF(cal!$S$7=5,NR!G15,IF(cal!$S$7=6,SP!G15,IF(cal!$S$7=7,SW!G15,IF(cal!$S$7=8,TS!G15,IF(cal!$S$7=9,ExtraTaal1!G15,IF(cal!$S$7=10,ExtraTaal2!G15,IF(cal!$S$7=11,ExtraTaal3!G15,))))))))))) -> 0 | I16: =IF($S$7=1,NL!H15,IF(cal!$S$7=2,EN!H15,IF(cal!$S$7=3,DE!H15,IF(cal!$S$7=4,FR!H15,IF(cal!$S$7=5,NR!H15,IF(cal!$S$7=6,SP!H15,IF(cal!$S$7=7,SW!H15,IF(cal!$S$7=8,TS!H15,IF(cal!$S$7=9,ExtraTaal1!H15,IF(cal!$S$7=10,ExtraTaal2!H15,IF(cal!$S$7=11,ExtraTaal3!H15,))))))))))) -> 0 | J16: =IF($S$7=1,NL!I15,IF(cal!$S$7=2,EN!I15,IF(cal!$S$7=3,DE!I15,IF(cal!$S$7=4,FR!I15,IF(cal!$S$7=5,NR!I15,IF(cal!$S$7=6,SP!I15,IF(cal!$S$7=7,SW!I15,IF(cal!$S$7=8,TS!I15,IF(cal!$S$7=9,ExtraTaal1!I15,IF(cal!$S$7=10,ExtraTaal2!I15,IF(cal!$S$7=11,ExtraTaal3!I15,))))))))))) -> 0 | K16: =IF($S$7=1,NL!J15,IF(cal!$S$7=2,EN!J15,IF(cal!$S$7=3,DE!J15,IF(cal!$S$7=4,FR!J15,IF(cal!$S$7=5,NR!J15,IF(cal!$S$7=6,SP!J15,IF(cal!$S$7=7,SW!J15,IF(cal!$S$7=8,TS!J15,IF(cal!$S$7=9,ExtraTaal1!J15,IF(cal!$S$7=10,ExtraTaal2!J15,IF(cal!$S$7=11,ExtraTaal3!J15,))))))))))) -> 0 | L16: =IF($S$7=1,NL!K15,IF(cal!$S$7=2,EN!K15,IF(cal!$S$7=3,DE!K15,IF(cal!$S$7=4,FR!K15,IF(cal!$S$7=5,NR!K15,IF(cal!$S$7=6,SP!K15,IF(cal!$S$7=7,SW!K15,IF(cal!$S$7=8,TS!K15,IF(cal!$S$7=9,ExtraTaal1!K15,IF(cal!$S$7=10,ExtraTaal2!K15,IF(cal!$S$7=11,ExtraTaal3!K15,))))))))))) -> 0 | M16: =IF($S$7=1,NL!L15,IF(cal!$S$7=2,EN!L15,IF(cal!$S$7=3,DE!L15,IF(cal!$S$7=4,FR!L15,IF(cal!$S$7=5,NR!L15,IF(cal!$S$7=6,SP!L15,IF(cal!$S$7=7,SW!L15,IF(cal!$S$7=8,TS!L15,IF(cal!$S$7=9,ExtraTaal1!L15,IF(cal!$S$7=10,ExtraTaal2!L15,IF(cal!$S$7=11,ExtraTaal3!L15,))))))))))) -> 0 | N16: =IF($S$7=1,NL!M15,IF(cal!$S$7=2,EN!M15,IF(cal!$S$7=3,DE!M15,IF(cal!$S$7=4,FR!M15,IF(cal!$S$7=5,NR!M15,IF(cal!$S$7=6,SP!M15,IF(cal!$S$7=7,SW!M15,IF(cal!$S$7=8,TS!M15,IF(cal!$S$7=9,ExtraTaal1!M15,IF(cal!$S$7=10,ExtraTaal2!M15,IF(cal!$S$7=11,ExtraTaal3!M15,))))))))))) -> 0 | O16: =IF($S$7=1,NL!N15,IF(cal!$S$7=2,EN!N15,IF(cal!$S$7=3,DE!N15,IF(cal!$S$7=4,FR!N15,IF(cal!$S$7=5,NR!N15,IF(cal!$S$7=6,SP!N15,IF(cal!$S$7=7,SW!N15,IF(cal!$S$7=8,TS!N15,IF(cal!$S$7=9,ExtraTaal1!N15,IF(cal!$S$7=10,ExtraTaal2!N15,IF(cal!$S$7=11,ExtraTaal3!N15,))))))))))) -> 0 | P16: =IF($S$7=1,NL!O15,IF(cal!$S$7=2,EN!O15,IF(cal!$S$7=3,DE!O15,IF(cal!$S$7=4,FR!O15,IF(cal!$S$7=5,NR!O15,IF(cal!$S$7=6,SP!O15,IF(cal!$S$7=7,SW!O15,IF(cal!$S$7=8,TS!O15,IF(cal!$S$7=9,ExtraTaal1!O15,IF(cal!$S$7=10,ExtraTaal2!O15,IF(cal!$S$7=11,ExtraTaal3!O15,))))))))))) -> 0 | Q16: n-value | R16: n-value | S16: n-value | T16: n-value | U16: n-value | V16: n-value | X16: =IF('Clima Canal'!$K$6=cal!Y2,1,IF('Clima Canal'!$K$6=cal!Y3,2,IF('Clima Canal'!$K$6=cal!Y5,3,IF('Clima Canal'!$K$6=cal!Y6,4,IF('Clima Canal'!$K$6=cal!Y7,5,IF('Clima Canal'!$K$6=cal!Y8,6,IF('Clima Canal'!$K$6=cal!Y4,7,))))))) -> 5 | AE16: =CONCATENATE("Clima H",AF22," B",AH22) -> Clima H8 B18 | AL16: =CONCATENATE("Clima H",AM22," B",AO22) -> Clima H10 B18 | AT16: voelbare koelcapaciteit | AU16: totale koelcapaciteit | AW16: =CONCATENATE("Clima H",AX22," B",AZ22," 4P") -> Clima H13 B27 4P | BD16: =CONCATENATE("Clima H",BE22," B",BG22," 4P") -> Clima H13 B32 4P | BK16: =CONCATENATE("Clima H",BL22," B",BN22," 2P") -> Clima H13 B32 2P | BS16: =CONCATENATE("Clima H",BT22," B",BV22," 4P") -> Clima H19 B34 4P | BZ16: =CONCATENATE("Clima H",CA22," B",CC22," 2P") -> Clima H19 B34 2P
B17: 0.2 | C17: 2 | D17: =(X17*($T$11^$Q17))*Watts*CF_Altit -> 1245.404776 | E17: =ROUND(((D17/Watts)/(($S$9-$S$10)*1.163))*$E$14,IF($X$4=1,0,IF($X$4=2,2))) -> 107 | F17: =($Y$18*(E17/$E$14)^$Y$20)*$F$14 -> 0.3175331641 | G17: =(Z17*($W$11^R17))*Watts*CF_Altit -> 141.3859005 | H17: =((G17/Watts)/(IF((237.3*LN((RH*EXP(17.27*(Tl_cool/(Tl_cool+237.3))))))/(17.27-LN((RH*EXP(17.27*(Tl_cool/(Tl_cool+237.3))))))<Tavg_cold,1,IF(1/(1+((2258*((0.622/(($Z$11/(1*611*EXP(17.27*(Tavg_cold/(Tavg_cold+237.3))))))-1)*1000-(0.622/(($Z$11/(RH*611*EXP(17.27*(Tl_cool/(Tl_cool+237.3))))))-1)*1000))/(1005*(Tavg_cold-Tl_cool))))*1.039+((-0.000729*$C17+0.001448)*(Tl_cool-Tavg_cold)+(0.016908*$C17-0.033574))*1.039>1,1,1/(1+((2258*((0.622/(($Z$11/(1*611*EXP(17.27*(Tavg_cold/(Tavg_cold+237.3))))))-1)*1000-(0.622/(($Z$11/(RH*611*EXP(17.27*(Tl_cool/(Tl_cool+237.3))))))-1)*1000))/(1005*(Tavg_cold-Tl_cool))))*1.039+((-0.000729*$C17+0.001448)*(Tl_cool-Tavg_cold)+(0.016908*$C17-0.033574))*1.039))))*Watts -> 141.3859005 | I17: =ROUND(((H17/Watts)/((Tr_cool-Tv_cool)*1.163))*$I$14,IF($X$4=1,0,IF($X$4=2,2))) -> 41 | J17: =($AA$18*(I17/$I$14)^$AA$20)*$J$14 -> 0.04662182277 | K17: =L17-8 -> 16.96461248 | L17: =AB17 -> 24.96461248 | M17: 1.5 | N17: =AD17*Cubics -> 97 | O17: =((($D17/Watts)/(((p_atm*0.028964)/(8.31447*(20+273.15)))*(($N17/3600)/Cubics)*(1005+1870*((0.622)/(((p_atm)/($E$12*Pvs_Heat_in))-1)))))+Tl_heat)*Celc1+Celc2 -> 57.68726148 | P17: =(Tl_cool-(($G17/Watts)/(1006*$N17*kgss)))*Celc1+Celc2 -> 21.66776107 | Q17: 1 | R17: =IF($X$16=1,S17,IF($X$16=2,S17,IF($X$16=3,U17,IF($X$16=4,U17,IF($X$16=5,V17,IF($X$16=6,V17,IF($X$16=7,T17,))))))) -> 0.8766 | S17: 0.6 | T17: 1.16 | U17: 0.7807 | V17: 0.8766 | W17: =(H17-G17)/H17 -> 0 | X17: =IF($X$16=1,AE17,IF($X$16=2,AL17,IF($X$16=3,BK17,IF($X$16=4,BD17,IF($X$16=5,BZ17,IF($X$16=6,BS17,IF($X$16=7,AW17,))))))) -> 1245.404776 | Y17: a | Z17: 164.0624646 | AA17: a | AB17: 24.96461248 | AC17: 1.5 | AD17: 97 | AE17: 276 | AF17: a | AG17: 30 | AH17: a | AI17: 22 | AJ17: 0.5 | AK17: 24 | AL17: =AE17 -> 276 | AM17: a | AN17: 30 | AO17: a | AP17: =AI17 -> 22 | AQ17: =AJ17 -> 0.5 | AR17: =AK17 -> 24 | AT17: =(AG17*((((Tv_cool-Tr_cool)/LN((Tv_cool-Tl_cool)/(Tr_cool-Tl_cool)))/((16-18)/LN((16-27)/(18-27))))^S17))*$G$14 -> 0.009062057402 | AU17: =((AT17/$G$14)/(IF((237.3*LN((RH*EXP(17.27*(Tl_cool/(Tl_cool+237.3))))))/(17.27-LN((RH*EXP(17.27*(Tl_cool/(Tl_cool+237.3))))))<((Tv_cool+Tr_cool)/2),1,1/(1+((2258*((0.622/((p_atm/(1*611*EXP(17.27*(((Tv_cool+Tr_cool)/2)/(((Tv_cool+Tr_cool)/2)+237.3))))))-1)*1000-(0.622/((p_atm/(RH*611*EXP(17.27*(Tl_cool/(Tl_cool+237.3))))))-1)*1000))/(1005*(((Tv_cool+Tr_cool)/2)-Tl_cool))))+-((-0.000625*$C17+0.00625)*(Tl_cool-(Tv_cool+Tr_cool)/2)-(-0.000625*$C17+0.00625)*10))))*$H$14 -> 27.0958527 | AW17: 362 | AX17: a | AY17: 41 | AZ17: a | BA17: 24 | BB17: 1 | BC17: 38 | BD17: 268.32763 | BE17: a | BF17: 64.62350779 | BG17: a | BH17: 24 | BI17: 0.984 | BJ17: 35 | BK17: 312.780864 | BL17: a | BM17: 67.30637192 | BN17: a | BO17: =BH17 -> 24 | BP17: =BI17 -> 0.984 | BQ17: 35 | BS17: 830.2698509 | BT17: a | BU17: 149.1476951 | BV17: a | BW17: 24.96461248 | BX17: 1.5 | BY17: 97 | BZ17: 1245.404776 | CA17: a | CB17: 164.0624646 | CC17: a | CD17: 24.96461248 | CE17: 1.5 | CF17: 97
B18: 0.4 | C18: 4 | D18: =(X18*($T$11^$Q18))*Watts*CF_Altit -> 1965.450074 | E18: =ROUND(((D18/Watts)/(($S$9-$S$10)*1.163))*$E$14,IF($X$4=1,0,IF($X$4=2,2))) -> 169 | F18: =($Y$18*(E18/$E$14)^$Y$20)*$F$14 -> 0.7921272339 | G18: =(Z18*($W$11^R18))*Watts*CF_Altit -> 276.1935247 | H18: =((G18/Watts)/(IF((237.3*LN((RH*EXP(17.27*(Tl_cool/(Tl_cool+237.3))))))/(17.27-LN((RH*EXP(17.27*(Tl_cool/(Tl_cool+237.3))))))<Tavg_cold,1,IF(1/(1+((2258*((0.622/(($Z$11/(1*611*EXP(17.27*(Tavg_cold/(Tavg_cold+237.3))))))-1)*1000-(0.622/(($Z$11/(RH*611*EXP(17.27*(Tl_cool/(Tl_cool+237.3))))))-1)*1000))/(1005*(Tavg_cold-Tl_cool))))*1.039+((-0.000729*$C18+0.001448)*(Tl_cool-Tavg_cold)+(0.016908*$C18-0.033574))*1.039>1,1,1/(1+((2258*((0.622/(($Z$11/(1*611*EXP(17.27*(Tavg_cold/(Tavg_cold+237.3))))))-1)*1000-(0.622/(($Z$11/(RH*611*EXP(17.27*(Tl_cool/(Tl_cool+237.3))))))-1)*1000))/(1005*(Tavg_cold-Tl_cool))))*1.039+((-0.000729*$C18+0.001448)*(Tl_cool-Tavg_cold)+(0.016908*$C18-0.033574))*1.039))))*Watts -> 276.1935247 | I18: =ROUND(((H18/Watts)/((Tr_cool-Tv_cool)*1.163))*$I$14,IF($X$4=1,0,IF($X$4=2,2))) -> 79 | J18: =($AA$18*(I18/$I$14)^$AA$20)*$J$14 -> 0.1730914907 | K18: =L18-8 -> 21.00836437 | L18: 29.00836437 | M18: 2.7 | N18: =AD18*Cubics -> 167 | O18: =((($D18/Watts)/(((p_atm*0.028964)/(8.31447*(20+273.15)))*(($N18/3600)/Cubics)*(1005+1870*((0.622)/(((p_atm)/($E$12*Pvs_Heat_in))-1)))))+Tl_heat)*Celc1+Celc2 -> 54.54628356 | P18: =(Tl_cool-(($G18/Watts)/(1006*$N18*kgss)))*Celc1+Celc2 -> 21.08441676 | Q18: 1 | R18: =IF($X$16=1,S18,IF($X$16=2,S18,IF($X$16=3,U18,IF($X$16=4,U18,IF($X$16=5,V18,IF($X$16=6,V18,IF($X$16=7,T18,))))))) -> 0.8775 | S18: 0.68 | T18: 1.04 | U18: 0.8587 | V18: 0.8775 | W18: =(H18-G18)/H18 -> 0 | X18: 1965.450074 | Y18: 2.773457631e-05 | Z18: 320.540529 | AA18: 2.773457631e-05 | AB18: 29.00836437 | AC18: 2.7 | AD18: 167 | AE18: 496 | AF18: 0.0002564981899 | AG18: 66 | AH18: =AF18 -> 0.0002564981899 | AI18: 23 | AJ18: 0.8 | AK18: 37 | AL18: =AE18 -> 496 | AM18: =AH18 -> 0.0002564981899 | AN18: 66 | AO18: =AM18 -> 0.0002564981899 | AP18: =AI18 -> 23 | AQ18: 0.8 | AR18: 37 | AT18: =(AG18*((((Tv_cool-Tr_cool)/LN((Tv_cool-Tl_cool)/(Tr_cool-Tl_cool)))/((16-18)/LN((16-27)/(18-27))))^S18))*$G$14 -> 0.01966770559 | AU18: =((AT18/$G$14)/(IF((237.3*LN((RH*EXP(17.27*(Tl_cool/(Tl_cool+237.3))))))/(17.27-LN((RH*EXP(17.27*(Tl_cool/(Tl_cool+237.3))))))<((Tv_cool+Tr_cool)/2),1,1/(1+((2258*((0.622/((p_atm/(1*611*EXP(17.27*(((Tv_cool+Tr_cool)/2)/(((Tv_cool+Tr_cool)/2)+237.3))))))-1)*1000-(0.622/((p_atm/(RH*611*EXP(17.27*(Tl_cool/(Tl_cool+237.3))))))-1)*1000))/(1005*(((Tv_cool+Tr_cool)/2)-Tl_cool))))+-((-0.000625*$C18+0.00625)*(Tl_cool-(Tv_cool+Tr_cool)/2)-(-0.000625*$C18+0.00625)*10))))*$H$14 -> 58.80709313 | AW18: 590 | AX18: 2.55e-05 | AY18: 84 | AZ18: 5.80812e-06 | BA18: 27 | BB18: 1.6 | BC18: 55 | BD18: 535.13637 | BE18: 2.92985e-05 | BF18: 117.358534 | BG18: 1.199687682e-05 | BH18: 27 | BI18: 1.632 | BJ18: 44 | BK18: 691.7684115 | BL18: 2.014474704e-05 | BM18: 122.2114853 | BN18: =BL18 -> 2.014474704e-05 | BO18: =BH18 -> 27 | BP18: 1.632 | BQ18: 44 | BS18: 1310.300049 | BT18: 2.203548057e-05 | BU18: 291.4004809 | BV18: 6.606631444e-05 | BW18: 29.00836437 | BX18: 2.7 | BY18: 167 | BZ18: 1965.450074 | CA18: 2.773457631e-05 | CB18: 320.540529 | CC18: 2.773457631e-05 | CD18: 29.00836437 | CE18: 2.7 | CF18: 167
B19: 0.6 | C19: 6 | D19: =(X19*($T$11^$Q19))*Watts*CF_Altit -> 2566.688751 | E19: =ROUND(((D19/Watts)/(($S$9-$S$10)*1.163))*$E$14,IF($X$4=1,0,IF($X$4=2,2))) -> 221 | F19: =($Y$18*(E19/$E$14)^$Y$20)*$F$14 -> 1.354584441 | G19: =(Z19*($W$11^R19))*Watts*CF_Altit -> 408.3495409 | H19: =((G19/Watts)/(IF((237.3*LN((RH*EXP(17.27*(Tl_cool/(Tl_cool+237.3))))))/(17.27-LN((RH*EXP(17.27*(Tl_cool/(Tl_cool+237.3))))))<Tavg_cold,1,IF(1/(1+((2258*((0.622/(($Z$11/(1*611*EXP(17.27*(Tavg_cold/(Tavg_cold+237.3))))))-1)*1000-(0.622/(($Z$11/(RH*611*EXP(17.27*(Tl_cool/(Tl_cool+237.3))))))-1)*1000))/(1005*(Tavg_cold-Tl_cool))))*1.039+((-0.000729*$C19+0.001448)*(Tl_cool-Tavg_cold)+(0.016908*$C19-0.033574))*1.039>1,1,1/(1+((2258*((0.622/(($Z$11/(1*611*EXP(17.27*(Tavg_cold/(Tavg_cold+237.3))))))-1)*1000-(0.622/(($Z$11/(RH*611*EXP(17.27*(Tl_cool/(Tl_cool+237.3))))))-1)*1000))/(1005*(Tavg_cold-Tl_cool))))*1.039+((-0.000729*$C19+0.001448)*(Tl_cool-Tavg_cold)+(0.016908*$C19-0.033574))*1.039))))*Watts -> 408.3495409 | I19: =ROUND(((H19/Watts)/((Tr_cool-Tv_cool)*1.163))*$I$14,IF($X$4=1,0,IF($X$4=2,2))) -> 117 | J19: =($AA$18*(I19/$I$14)^$AA$20)*$J$14 -> 0.3796586151 | K19: =L19-8 -> 26.99390078 | L19: 34.99390078 | M19: 4.8 | N19: =AD19*Cubics -> 236 | O19: =((($D19/Watts)/(((p_atm*0.028964)/(8.31447*(20+273.15)))*(($N19/3600)/Cubics)*(1005+1870*((0.622)/(((p_atm)/($E$12*Pvs_Heat_in))-1)))))+Tl_heat)*Celc1+Celc2 -> 51.92397724 | P19: =(Tl_cool-(($G19/Watts)/(1006*$N19*kgss)))*Celc1+Celc2 -> 20.85721816 | Q19: 1 | R19: 0.882 | S19: 0.79 | T19: 0.95 | U19: 0.8831 | V19: 0.882 | W19: =(H19-G19)/H19 -> 0 | X19: =IF($X$16=1,AE19,IF($X$16=2,AL19,IF($X$16=3,BK19,IF($X$16=4,BD19,IF($X$16=5,BZ19,IF($X$16=6,BS19,IF($X$16=7,AW19,))))))) -> 2566.688751 | Y19: b | Z19: 474.2782043 | AA19: b | AB19: 34.99390078 | AC19: 4.8 | AD19: 236 | AE19: 699 | AF19: b | AG19: 104 | AH19: b | AI19: 31 | AJ19: 1.3 | AK19: 52 | AL19: =AE19 -> 699 | AM19: b | AN19: 104 | AO19: b | AP19: 31 | AQ19: 1.3 | AR19: 52 | AT19: =(AG19*((((Tv_cool-Tr_cool)/LN((Tv_cool-Tl_cool)/(Tr_cool-Tl_cool)))/((16-18)/LN((16-27)/(18-27))))^S19))*$G$14 -> 0.03041840164 | AU19: =((AT19/$G$14)/(IF((237.3*LN((RH*EXP(17.27*(Tl_cool/(Tl_cool+237.3))))))/(17.27-LN((RH*EXP(17.27*(Tl_cool/(Tl_cool+237.3))))))<((Tv_cool+Tr_cool)/2),1,1/(1+((2258*((0.622/((p_atm/(1*611*EXP(17.27*(((Tv_cool+Tr_cool)/2)/(((Tv_cool+Tr_cool)/2)+237.3))))))-1)*1000-(0.622/((p_atm/(RH*611*EXP(17.27*(Tl_cool/(Tl_cool+237.3))))))-1)*1000))/(1005*(((Tv_cool+Tr_cool)/2)-Tl_cool))))+-((-0.000625*$C19+0.00625)*(Tl_cool-(Tv_cool+Tr_cool)/2)-(-0.000625*$C19+0.00625)*10))))*$H$14 -> 90.95203147 | AW19: 786 | AX19: b | AY19: 127 | AZ19: b | BA19: 35.1 | BB19: 2.9 | BC19: 85 | BD19: 754.79587 | BE19: b | BF19: 168.7157513 | BG19: b | BH19: 35 | BI19: 3.2 | BJ19: 85 | BK19: 1031.235904 | BL19: b | BM19: 174.536075 | BN19: b | BO19: =BH19 -> 35 | BP19: 3.2 | BQ19: 85 | BS19: 1711.125834 | BT19: b | BU19: 431.1620039 | BV19: b | BW19: 34.99390078 | BX19: 4.8 | BY19: 236 | BZ19: 2566.688751 | CA19: b | CB19: 474.2782043 | CC19: b | CD19: 34.99390078 | CE19: 4.8 | CF19: 236
B20: 0.8 | C20: 8 | D20: =(X20*($T$11^$Q20))*Watts*CF_Altit -> 3101.79796 | E20: =ROUND(((D20/Watts)/(($S$9-$S$10)*1.163))*$E$14,IF($X$4=1,0,IF($X$4=2,2))) -> 267 | F20: =($Y$18*(E20/$E$14)^$Y$20)*$F$14 -> 1.97717021 | G20: =(Z20*($W$11^R20))*Watts*CF_Altit -> 538.0188677 | H20: =((G20/Watts)/(IF((237.3*LN((RH*EXP(17.27*(Tl_cool/(Tl_cool+237.3))))))/(17.27-LN((RH*EXP(17.27*(Tl_cool/(Tl_cool+237.3))))))<Tavg_cold,1,IF(1/(1+((2258*((0.622/(($Z$11/(1*611*EXP(17.27*(Tavg_cold/(Tavg_cold+237.3))))))-1)*1000-(0.622/(($Z$11/(RH*611*EXP(17.27*(Tl_cool/(Tl_cool+237.3))))))-1)*1000))/(1005*(Tavg_cold-Tl_cool))))*1.039+((-0.000729*$C20+0.001448)*(Tl_cool-Tavg_cold)+(0.016908*$C20-0.033574))*1.039>1,1,1/(1+((2258*((0.622/(($Z$11/(1*611*EXP(17.27*(Tavg_cold/(Tavg_cold+237.3))))))-1)*1000-(0.622/(($Z$11/(RH*611*EXP(17.27*(Tl_cool/(Tl_cool+237.3))))))-1)*1000))/(1005*(Tavg_cold-Tl_cool))))*1.039+((-0.000729*$C20+0.001448)*(Tl_cool-Tavg_cold)+(0.016908*$C20-0.033574))*1.039))))*Watts -> 538.0188677 | I20: =ROUND(((H20/Watts)/((Tr_cool-Tv_cool)*1.163))*$I$14,IF($X$4=1,0,IF($X$4=2,2))) -> 154 | J20: =($AA$18*(I20/$I$14)^$AA$20)*$J$14 -> 0.6577532117 | K20: =L20-8 -> 34.99363224 | L20: 42.99363224 | M20: 9.3 | N20: =AD20*Cubics -> 309 | O20: =((($D20/Watts)/(((p_atm*0.028964)/(8.31447*(20+273.15)))*(($N20/3600)/Cubics)*(1005+1870*((0.622)/(((p_atm)/($E$12*Pvs_Heat_in))-1)))))+Tl_heat)*Celc1+Celc2 -> 49.46529644 | P20: =(Tl_cool-(($G20/Watts)/(1006*$N20*kgss)))*Celc1+Celc2 -> 20.82492009 | Q20: 1 | R20: 0.895 | S20: 0.87 | T20: 0.95 | U20: 0.8539 | V20: 0.895 | W20: =(H20-G20)/H20 -> 0 | X20: 3101.79796 | Y20: 2 | Z20: 626.2628749 | AA20: 2 | AB20: 42.99363224 | AC20: 9.3 | AD20: 309 | AE20: 891 | AF20: 1.823515585 | AG20: 144 | AH20: =AF20 -> 1.823515585 | AI20: 36 | AJ20: 2.1 | AK20: 68 | AL20: =AE20 -> 891 | AM20: =AH20 -> 1.823515585 | AN20: 144 | AO20: =AM20 -> 1.823515585 | AP20: 36 | AQ20: 2.1 | AR20: 68 | AT20: =(AG20*((((Tv_cool-Tr_cool)/LN((Tv_cool-Tl_cool)/(Tr_cool-Tl_cool)))/((16-18)/LN((16-27)/(18-27))))^S20))*$G$14 -> 0.04154987789 | AU20: =((AT20/$G$14)/(IF((237.3*LN((RH*EXP(17.27*(Tl_cool/(Tl_cool+237.3))))))/(17.27-LN((RH*EXP(17.27*(Tl_cool/(Tl_cool+237.3))))))<((Tv_cool+Tr_cool)/2),1,1/(1+((2258*((0.622/((p_atm/(1*611*EXP(17.27*(((Tv_cool+Tr_cool)/2)/(((Tv_cool+Tr_cool)/2)+237.3))))))-1)*1000-(0.622/((p_atm/(RH*611*EXP(17.27*(Tl_cool/(Tl_cool+237.3))))))-1)*1000))/(1005*(((Tv_cool+Tr_cool)/2)-Tl_cool))))+-((-0.000625*$C20+0.00625)*(Tl_cool-(Tv_cool+Tr_cool)/2)-(-0.000625*$C20+0.00625)*10))))*$H$14 -> 124.2355153 | AW20: 962 | AX20: 1.8 | AY20: 170 | AZ20: 2 | BA20: 43 | BB20: 5 | BC20: 117 | BD20: 927.30613 | BE20: 1.91852 | BF20: 218.6951595 | BG20: 1.95207237 | BH20: 43 | BI20: 5.9 | BJ20: 117 | BK20: 1331.183342 | BL20: 1.921304905 | BM20: 224.2801411 | BN20: =BL20 -> 1.921304905 | BO20: =BH20 -> 43 | BP20: 5.9 | BQ20: 117 | BS20: 2067.865306 | BT20: 2 | BU20: 569.3298863 | BV20: 2 | BW20: 42.99363224 | BX20: 9.3 | BY20: 309 | BZ20: 3101.79796 | CA20: 2 | CB20: 626.2628749 | CC20: 2 | CD20: 42.99363224 | CE20: 9.3 | CF20: 309
B21: 1 | C21: 10 | D21: =(X21*($T$11^$Q21))*Watts*CF_Altit -> 3592.560061 | E21: =ROUND(((D21/Watts)/(($S$9-$S$10)*1.163))*$E$14,IF($X$4=1,0,IF($X$4=2,2))) -> 309 | F21: =($Y$18*(E21/$E$14)^$Y$20)*$F$14 -> 2.64812508 | G21: =(Z21*($W$11^R21))*Watts*CF_Altit -> 665.6583745 | H21: =((G21/Watts)/(IF((237.3*LN((RH*EXP(17.27*(Tl_cool/(Tl_cool+237.3))))))/(17.27-LN((RH*EXP(17.27*(Tl_cool/(Tl_cool+237.3))))))<Tavg_cold,1,IF(1/(1+((2258*((0.622/(($Z$11/(1*611*EXP(17.27*(Tavg_cold/(Tavg_cold+237.3))))))-1)*1000-(0.622/(($Z$11/(RH*611*EXP(17.27*(Tl_cool/(Tl_cool+237.3))))))-1)*1000))/(1005*(Tavg_cold-Tl_cool))))*1.039+((-0.000729*$C21+0.001448)*(Tl_cool-Tavg_cold)+(0.016908*$C21-0.033574))*1.039>1,1,1/(1+((2258*((0.622/(($Z$11/(1*611*EXP(17.27*(Tavg_cold/(Tavg_cold+237.3))))))-1)*1000-(0.622/(($Z$11/(RH*611*EXP(17.27*(Tl_cool/(Tl_cool+237.3))))))-1)*1000))/(1005*(Tavg_cold-Tl_cool))))*1.039+((-0.000729*$C21+0.001448)*(Tl_cool-Tavg_cold)+(0.016908*$C21-0.033574))*1.039))))*Watts -> 665.6583745 | I21: =ROUND(((H21/Watts)/((Tr_cool-Tv_cool)*1.163))*$I$14,IF($X$4=1,0,IF($X$4=2,2))) -> 191 | J21: =($AA$18*(I21/$I$14)^$AA$20)*$J$14 -> 1.011785078 | K21: =L21-8 -> 39.99930704 | L21: 47.99930704 | M21: 15 | N21: =AD21*Cubics -> 351 | O21: =((($D21/Watts)/(((p_atm*0.028964)/(8.31447*(20+273.15)))*(($N21/3600)/Cubics)*(1005+1870*((0.622)/(((p_atm)/($E$12*Pvs_Heat_in))-1)))))+Tl_heat)*Celc1+Celc2 -> 50.04365105 | P21: =(Tl_cool-(($G21/Watts)/(1006*$N21*kgss)))*Celc1+Celc2 -> 20.3633338 | Q21: 1 | R21: 0.9111 | S21: 0.91 | T21: 0.98 | U21: 0.7711 | V21: 0.9111 | W21: =(H21-G21)/H21 -> 0 | X21: 3592.560061 | Y21: 0 | Z21: 776.9571886 | AA21: 0 | AB21: 47.99930704 | AC21: 15 | AD21: 351 | AE21: 1075 | AG21: 185 | AI21: 42 | AJ21: 3 | AK21: 79 | AL21: =AE21 -> 1075 | AN21: 185 | AP21: 42 | AQ21: 3 | AR21: 79 | AT21: =(AG21*((((Tv_cool-Tr_cool)/LN((Tv_cool-Tl_cool)/(Tr_cool-Tl_cool)))/((16-18)/LN((16-27)/(18-27))))^S21))*$G$14 -> 0.05301894633 | AU21: =((AT21/$G$14)/(IF((237.3*LN((RH*EXP(17.27*(Tl_cool/(Tl_cool+237.3))))))/(17.27-LN((RH*EXP(17.27*(Tl_cool/(Tl_cool+237.3))))))<((Tv_cool+Tr_cool)/2),1,1/(1+((2258*((0.622/((p_atm/(1*611*EXP(17.27*(((Tv_cool+Tr_cool)/2)/(((Tv_cool+Tr_cool)/2)+237.3))))))-1)*1000-(0.622/((p_atm/(RH*611*EXP(17.27*(Tl_cool/(Tl_cool+237.3))))))-1)*1000))/(1005*(((Tv_cool+Tr_cool)/2)-Tl_cool))))+-((-0.000625*$C21+0.00625)*(Tl_cool-(Tv_cool+Tr_cool)/2)-(-0.000625*$C21+0.00625)*10))))*$H$14 -> 158.528411 | AW21: 1126 | AY21: 214 | BA21: 46 | BB21: 7.7 | BC21: 147 | BD21: 1052.66715 | BF21: 267.2967588 | BH21: 46 | BI21: 8.8 | BJ21: 137 | BK21: 1591.610726 | BM21: 271.4436836 | BO21: =BH21 -> 46 | BP21: 8.8 | BQ21: 137 | BS21: 2395.040041 | BU21: 706.3247169 | BW21: 47.99930704 | BX21: 15 | BY21: 351 | BZ21: 3592.560061 | CB21: 776.9571886 | CD21: 47.99930704 | CE21: 15 | CF21: 351
B22: =IF($S$7=1,NL!A21,IF(cal!$S$7=2,EN!A21,IF(cal!$S$7=3,DE!A21,IF(cal!$S$7=4,FR!A21,IF(cal!$S$7=5,NR!A21,IF(cal!$S$7=6,SP!A21,IF(cal!$S$7=7,SW!A21,IF(cal!$S$7=8,TS!A21,IF(cal!$S$7=9,ExtraTaal1!A21,IF(cal!$S$7=10,ExtraTaal2!A21,IF(cal!$S$7=11,ExtraTaal3!A21,))))))))))) -> Clima Canal altura 19 cm ancho 34 cm longitud 120 cm (Type 2) | C22: =IF($S$7=1,NL!B21,IF(cal!$S$7=2,EN!B21,IF(cal!$S$7=3,DE!B21,IF(cal!$S$7=4,FR!B21,IF(cal!$S$7=5,NR!B21,IF(cal!$S$7=6,SP!B21,IF(cal!$S$7=7,SW!B21,IF(cal!$S$7=8,TS!B21,IF(cal!$S$7=9,ExtraTaal1!B21,IF(cal!$S$7=10,ExtraTaal2!B21,IF(cal!$S$7=11,ExtraTaal3!B21,))))))))))) -> 0 | D22: =IF($S$7=1,NL!C21,IF(cal!$S$7=2,EN!C21,IF(cal!$S$7=3,DE!C21,IF(cal!$S$7=4,FR!C21,IF(cal!$S$7=5,NR!C21,IF(cal!$S$7=6,SP!C21,IF(cal!$S$7=7,SW!C21,IF(cal!$S$7=8,TS!C21,IF(cal!$S$7=9,ExtraTaal1!C21,IF(cal!$S$7=10,ExtraTaal2!C21,IF(cal!$S$7=11,ExtraTaal3!C21,))))))))))) -> 0 | E22: =IF($S$7=1,NL!D21,IF(cal!$S$7=2,EN!D21,IF(cal!$S$7=3,DE!D21,IF(cal!$S$7=4,FR!D21,IF(cal!$S$7=5,NR!D21,IF(cal!$S$7=6,SP!D21,IF(cal!$S$7=7,SW!D21,IF(cal!$S$7=8,TS!D21,IF(cal!$S$7=9,ExtraTaal1!D21,IF(cal!$S$7=10,ExtraTaal2!D21,IF(cal!$S$7=11,ExtraTaal3!D21,))))))))))) -> 0 | F22: =IF($S$7=1,NL!E21,IF(cal!$S$7=2,EN!E21,IF(cal!$S$7=3,DE!E21,IF(cal!$S$7=4,FR!E21,IF(cal!$S$7=5,NR!E21,IF(cal!$S$7=6,SP!E21,IF(cal!$S$7=7,SW!E21,IF(cal!$S$7=8,TS!E21,IF(cal!$S$7=9,ExtraTaal1!E21,IF(cal!$S$7=10,ExtraTaal2!E21,IF(cal!$S$7=11,ExtraTaal3!E21,))))))))))) -> 0 | G22: =IF($S$7=1,NL!F21,IF(cal!$S$7=2,EN!F21,IF(cal!$S$7=3,DE!F21,IF(cal!$S$7=4,FR!F21,IF(cal!$S$7=5,NR!F21,IF(cal!$S$7=6,SP!F21,IF(cal!$S$7=7,SW!F21,IF(cal!$S$7=8,TS!F21,IF(cal!$S$7=9,ExtraTaal1!F21,IF(cal!$S$7=10,ExtraTaal2!F21,IF(cal!$S$7=11,ExtraTaal3!F21,))))))))))) -> 0 | H22: =IF($S$7=1,NL!G21,IF(cal!$S$7=2,EN!G21,IF(cal!$S$7=3,DE!G21,IF(cal!$S$7=4,FR!G21,IF(cal!$S$7=5,NR!G21,IF(cal!$S$7=6,SP!G21,IF(cal!$S$7=7,SW!G21,IF(cal!$S$7=8,TS!G21,IF(cal!$S$7=9,ExtraTaal1!G21,IF(cal!$S$7=10,ExtraTaal2!G21,IF(cal!$S$7=11,ExtraTaal3!G21,))))))))))) -> 0 | I22: =IF($S$7=1,NL!H21,IF(cal!$S$7=2,EN!H21,IF(cal!$S$7=3,DE!H21,IF(cal!$S$7=4,FR!H21,IF(cal!$S$7=5,NR!H21,IF(cal!$S$7=6,SP!H21,IF(cal!$S$7=7,SW!H21,IF(cal!$S$7=8,TS!H21,IF(cal!$S$7=9,ExtraTaal1!H21,IF(cal!$S$7=10,ExtraTaal2!H21,IF(cal!$S$7=11,ExtraTaal3!H21,))))))))))) -> 0 | J22: =IF($S$7=1,NL!I21,IF(cal!$S$7=2,EN!I21,IF(cal!$S$7=3,DE!I21,IF(cal!$S$7=4,FR!I21,IF(cal!$S$7=5,NR!I21,IF(cal!$S$7=6,SP!I21,IF(cal!$S$7=7,SW!I21,IF(cal!$S$7=8,TS!I21,IF(cal!$S$7=9,ExtraTaal1!I21,IF(cal!$S$7=10,ExtraTaal2!I21,IF(cal!$S$7=11,ExtraTaal3!I21,))))))))))) -> 0 | K22: =IF($S$7=1,NL!J21,IF(cal!$S$7=2,EN!J21,IF(cal!$S$7=3,DE!J21,IF(cal!$S$7=4,FR!J21,IF(cal!$S$7=5,NR!J21,IF(cal!$S$7=6,SP!J21,IF(cal!$S$7=7,SW!J21,IF(cal!$S$7=8,TS!J21,IF(cal!$S$7=9,ExtraTaal1!J21,IF(cal!$S$7=10,ExtraTaal2!J21,IF(cal!$S$7=11,ExtraTaal3!J21,))))))))))) -> 0 | L22: =IF($S$7=1,NL!K21,IF(cal!$S$7=2,EN!K21,IF(cal!$S$7=3,DE!K21,IF(cal!$S$7=4,FR!K21,IF(cal!$S$7=5,NR!K21,IF(cal!$S$7=6,SP!K21,IF(cal!$S$7=7,SW!K21,IF(cal!$S$7=8,TS!K21,IF(cal!$S$7=9,ExtraTaal1!K21,IF(cal!$S$7=10,ExtraTaal2!K21,IF(cal!$S$7=11,ExtraTaal3!K21,))))))))))) -> 0 | M22: =IF($S$7=1,NL!L21,IF(cal!$S$7=2,EN!L21,IF(cal!$S$7=3,DE!L21,IF(cal!$S$7=4,FR!L21,IF(cal!$S$7=5,NR!L21,IF(cal!$S$7=6,SP!L21,IF(cal!$S$7=7,SW!L21,IF(cal!$S$7=8,TS!L21,IF(cal!$S$7=9,ExtraTaal1!L21,IF(cal!$S$7=10,ExtraTaal2!L21,IF(cal!$S$7=11,ExtraTaal3!L21,))))))))))) -> 0 | N22: =IF($S$7=1,NL!M21,IF(cal!$S$7=2,EN!M21,IF(cal!$S$7=3,DE!M21,IF(cal!$S$7=4,FR!M21,IF(cal!$S$7=5,NR!M21,IF(cal!$S$7=6,SP!M21,IF(cal!$S$7=7,SW!M21,IF(cal!$S$7=8,TS!M21,IF(cal!$S$7=9,ExtraTaal1!M21,IF(cal!$S$7=10,ExtraTaal2!M21,IF(cal!$S$7=11,ExtraTaal3!M21,))))))))))) -> 0 | O22: =IF($S$7=1,NL!N21,IF(cal!$S$7=2,EN!N21,IF(cal!$S$7=3,DE!N21,IF(cal!$S$7=4,FR!N21,IF(cal!$S$7=5,NR!N21,IF(cal!$S$7=6,SP!N21,IF(cal!$S$7=7,SW!N21,IF(cal!$S$7=8,TS!N21,IF(cal!$S$7=9,ExtraTaal1!N21,IF(cal!$S$7=10,ExtraTaal2!N21,IF(cal!$S$7=11,ExtraTaal3!N21,))))))))))) -> 0 | P22: =IF($S$7=1,NL!O21,IF(cal!$S$7=2,EN!O21,IF(cal!$S$7=3,DE!O21,IF(cal!$S$7=4,FR!O21,IF(cal!$S$7=5,NR!O21,IF(cal!$S$7=6,SP!O21,IF(cal!$S$7=7,SW!O21,IF(cal!$S$7=8,TS!O21,IF(cal!$S$7=9,ExtraTaal1!O21,IF(cal!$S$7=10,ExtraTaal2!O21,IF(cal!$S$7=11,ExtraTaal3!O21,))))))))))) -> 0 | Q22: n-value | R22: n-value | S22: n-value | T22: n-value | U22: n-value | V22: n-value | X22: H | Y22: 19 | Z22: B | AA22: 34 | AB22: L | AC22: 105 | AD22: 0 | AE22: H | AF22: =ROUND(8*IF($X$4=1,1,IF($X$4=2,1/2.54)),1) -> 8 | AG22: B | AH22: =ROUND(18*IF($X$4=1,1,IF($X$4=2,1/2.54)),1) -> 18 | AI22: L | AJ22: =72*IF($X$4=1,1,IF($X$4=2,1/2.54)) -> 72 | AL22: H | AM22: =ROUND(10*IF($X$4=1,1,IF($X$4=2,1/2.54)),1) -> 10 | AN22: B | AO22: =AH22 -> 18 | AP22: L | AQ22: =AJ22 -> 72 | AW22: H | AX22: =ROUND(IF($X$4=1,13,13/2.54),1) -> 13 | AY22: B | AZ22: =ROUND(IF($X$4=1,27,27/2.54),1) -> 27 | BA22: L | BB22: =IF($X$4=1,79.8,79.8/2.54) -> 79.8 | BD22: H | BE22: =ROUND(IF($X$4=1,13,13/2.54),1) -> 13 | BF22: B | BG22: =ROUND(IF($X$4=1,32,32/2.54),1) -> 32 | BH22: L | BI22: =IF($X$4=1,70,70/2.54) -> 70 | BK22: H | BL22: =ROUND(IF($X$4=1,13,13/2.54),1) -> 13 | BM22: B | BN22: =ROUND(IF($X$4=1,32,32/2.54),1) -> 32 | BO22: L | BP22: =IF($X$4=1,70,70/2.54) -> 70 | BS22: H | BT22: =ROUND(19*IF($X$4=1,1,IF($X$4=2,1/2.54)),1) -> 19 | BU22: B | BV22: =ROUND(34*IF($X$4=1,1,IF($X$4=2,1/2.54)),1) -> 34 | BW22: L | BX22: =105*IF($X$4=1,1,IF($X$4=2,1/2.54)) -> 105 | BZ22: H | CA22: =BT22 -> 19 | CB22: B | CC22: =BV22 -> 34 | CD22: L | CE22: =BX22 -> 105
B23: 0.2 | C23: 2 | D23: =(X23*($T$11^$Q23))*Watts*CF_Altit -> 1547.544397 | E23: =ROUND(((D23/Watts)/(($S$9-$S$10)*1.163))*$E$14,IF($X$4=1,0,IF($X$4=2,2))) -> 133 | F23: =($Y$24*(E23/$E$14)^$Y$26)*$F$14 -> 0.5090389185 | G23: =(Z23*($W$11^R23))*Watts*CF_Altit -> 175.6866219 | H23: =((G23/Watts)/(IF((237.3*LN((RH*EXP(17.27*(Tl_cool/(Tl_cool+237.3))))))/(17.27-LN((RH*EXP(17.27*(Tl_cool/(Tl_cool+237.3))))))<Tavg_cold,1,IF(1/(1+((2258*((0.622/(($Z$11/(1*611*EXP(17.27*(Tavg_cold/(Tavg_cold+237.3))))))-1)*1000-(0.622/(($Z$11/(RH*611*EXP(17.27*(Tl_cool/(Tl_cool+237.3))))))-1)*1000))/(1005*(Tavg_cold-Tl_cool))))*1.039+((-0.000729*$C23+0.001448)*(Tl_cool-Tavg_cold)+(0.016908*$C23-0.033574))*1.039>1,1,1/(1+((2258*((0.622/(($Z$11/(1*611*EXP(17.27*(Tavg_cold/(Tavg_cold+237.3))))))-1)*1000-(0.622/(($Z$11/(RH*611*EXP(17.27*(Tl_cool/(Tl_cool+237.3))))))-1)*1000))/(1005*(Tavg_cold-Tl_cool))))*1.039+((-0.000729*$C23+0.001448)*(Tl_cool-Tavg_cold)+(0.016908*$C23-0.033574))*1.039))))*Watts -> 175.6866219 | I23: =ROUND(((H23/Watts)/((Tr_cool-Tv_cool)*1.163))*$I$14,IF($X$4=1,0,IF($X$4=2,2))) -> 50 | J23: =($AA$24*(I23/$I$14)^$AA$26)*$J$14 -> 0.07194286258 | K23: =L23-8 -> 18.98962805 | L23: =AB23 -> 26.98962805 | M23: 3.2 | N23: =AD23*Cubics -> 82 | O23: =((($D23/Watts)/(((p_atm*0.028964)/(8.31447*(20+273.15)))*(($N23/3600)/Cubics)*(1005+1870*((0.622)/(((p_atm)/($E$12*Pvs_Heat_in))-1)))))+Tl_heat)*Celc1+Celc2 -> 75.39684777 | P23: =(Tl_cool-(($G23/Watts)/(1006*$N23*kgss)))*Celc1+Celc2 -> 19.63200266 | Q23: 1 | R23: 0.8766 | S23: 0.6 | T23: 1.16 | U23: 0.7807 | V23: 0.8766 | W23: =(H23-G23)/H23 -> 0 | X23: =IF($X$16=1,AE23,IF($X$16=2,AL23,IF($X$16=3,BK23,IF($X$16=4,BD23,IF($X$16=5,BZ23,IF($X$16=6,BS23,IF($X$16=7,AW23,))))))) -> 1547.544397 | Y23: a | Z23: 203.864601 | AA23: a | AB23: 26.98962805 | AC23: 3.2 | AD23: 82 | AE23: 569 | AF23: a | AG23: 62 | AH23: a | AI23: 23 | AJ23: 0.6 | AK23: 42 | AL23: =AE23 -> 569 | AM23: a | AN23: 62 | AO23: a | AP23: =AI23 -> 23 | AQ23: 0.6 | AR23: 42 | AT23: =(AG23*((((Tv_cool-Tr_cool)/LN((Tv_cool-Tl_cool)/(Tr_cool-Tl_cool)))/((16-18)/LN((16-27)/(18-27))))^S23))*$G$14 -> 0.01872825196 | AU23: =((AT23/$G$14)/(IF((237.3*LN((RH*EXP(17.27*(Tl_cool/(Tl_cool+237.3))))))/(17.27-LN((RH*EXP(17.27*(Tl_cool/(Tl_cool+237.3))))))<((Tv_cool+Tr_cool)/2),1,1/(1+((2258*((0.622/((p_atm/(1*611*EXP(17.27*(((Tv_cool+Tr_cool)/2)/(((Tv_cool+Tr_cool)/2)+237.3))))))-1)*1000-(0.622/((p_atm/(RH*611*EXP(17.27*(Tl_cool/(Tl_cool+237.3))))))-1)*1000))/(1005*(((Tv_cool+Tr_cool)/2)-Tl_cool))))+-((-0.000625*$C23+0.00625)*(Tl_cool-(Tv_cool+Tr_cool)/2)-(-0.000625*$C23+0.00625)*10))))*$H$14 -> 55.99809557 | AW23: 622 | AX23: a | AY23: 71 | AZ23: a | BA23: 27 | BB23: 1 | BC23: 52 | BD23: 508.62103 | BE23: a | BF23: 122.4953058 | BG23: a | BH23: 28 | BI23: 1.008 | BJ23: 44 | BK23: 592.8831302 | BL23: a | BM23: 127.5807348 | BN23: a | BO23: =BH23 -> 28 | BP23: 1.008 | BQ23: 44 | BS23: 1031.696264 | BT23: a | BU23: 185.3314555 | BV23: a | BW23: 26.98962805 | BX23: 3.2 | BY23: 82 | BZ23: 1547.544397 | CA23: a | CB23: 203.864601 | CC23: a | CD23: 26.98962805 | CE23: 3.2 | CF23: 82
B24: 0.4 | C24: 4 | D24: =(X24*($T$11^$Q24))*Watts*CF_Altit -> 2442.27524 | E24: =ROUND(((D24/Watts)/(($S$9-$S$10)*1.163))*$E$14,IF($X$4=1,0,IF($X$4=2,2))) -> 210 | F24: =($Y$24*(E24/$E$14)^$Y$26)*$F$14 -> 1.269072096 | G24: =(Z24*($W$11^R24))*Watts*CF_Altit -> 343.1990544 | H24: =((G24/Watts)/(IF((237.3*LN((RH*EXP(17.27*(Tl_cool/(Tl_cool+237.3))))))/(17.27-LN((RH*EXP(17.27*(Tl_cool/(Tl_cool+237.3))))))<Tavg_cold,1,IF(1/(1+((2258*((0.622/(($Z$11/(1*611*EXP(17.27*(Tavg_cold/(Tavg_cold+237.3))))))-1)*1000-(0.622/(($Z$11/(RH*611*EXP(17.27*(Tl_cool/(Tl_cool+237.3))))))-1)*1000))/(1005*(Tavg_cold-Tl_cool))))*1.039+((-0.000729*$C24+0.001448)*(Tl_cool-Tavg_cold)+(0.016908*$C24-0.033574))*1.039>1,1,1/(1+((2258*((0.622/(($Z$11/(1*611*EXP(17.27*(Tavg_cold/(Tavg_cold+237.3))))))-1)*1000-(0.622/(($Z$11/(RH*611*EXP(17.27*(Tl_cool/(Tl_cool+237.3))))))-1)*1000))/(1005*(Tavg_cold-Tl_cool))))*1.039+((-0.000729*$C24+0.001448)*(Tl_cool-Tavg_cold)+(0.016908*$C24-0.033574))*1.039))))*Watts -> 343.1990544 | I24: =ROUND(((H24/Watts)/((Tr_cool-Tv_cool)*1.163))*$I$14,IF($X$4=1,0,IF($X$4=2,2))) -> 98 | J24: =($AA$24*(I24/$I$14)^$AA$26)*$J$14 -> 0.2763757009 | K24: =L24-8 -> 22.0192768 | L24: 30.0192768 | M24: 6.7 | N24: =AD24*Cubics -> 179 | O24: =((($D24/Watts)/(((p_atm*0.028964)/(8.31447*(20+273.15)))*(($N24/3600)/Cubics)*(1005+1870*((0.622)/(((p_atm)/($E$12*Pvs_Heat_in))-1)))))+Tl_heat)*Celc1+Celc2 -> 60.04952446 | P24: =(Tl_cool-(($G24/Watts)/(1006*$N24*kgss)))*Celc1+Celc2 -> 20.3013618 | Q24: 1 | R24: 0.8775 | S24: 0.68 | T24: 1.04 | U24: 0.8587 | V24: 0.8775 | W24: =(H24-G24)/H24 -> 0 | X24: 2442.27524 | Y24: 2.877714503e-05 | Z24: 398.3047994 | AA24: 2.877714503e-05 | AB24: 30.0192768 | AC24: 6.7 | AD24: 179 | AE24: 1021 | AF24: 0.0004020200901 | AG24: 135 | AH24: =AF24 -> 0.0004020200901 | AI24: 27 | AJ24: 1.3 | AK24: 75 | AL24: =AE24 -> 1021 | AM24: =AH24 -> 0.0004020200901 | AN24: 135 | AO24: =AM24 -> 0.0004020200901 | AP24: 27 | AQ24: 1.3 | AR24: 75 | AT24: =(AG24*((((Tv_cool-Tr_cool)/LN((Tv_cool-Tl_cool)/(Tr_cool-Tl_cool)))/((16-18)/LN((16-27)/(18-27))))^S24))*$G$14 -> 0.0402293978 | AU24: =((AT24/$G$14)/(IF((237.3*LN((RH*EXP(17.27*(Tl_cool/(Tl_cool+237.3))))))/(17.27-LN((RH*EXP(17.27*(Tl_cool/(Tl_cool+237.3))))))<((Tv_cool+Tr_cool)/2),1,1/(1+((2258*((0.622/((p_atm/(1*611*EXP(17.27*(((Tv_cool+Tr_cool)/2)/(((Tv_cool+Tr_cool)/2)+237.3))))))-1)*1000-(0.622/((p_atm/(RH*611*EXP(17.27*(Tl_cool/(Tl_cool+237.3))))))-1)*1000))/(1005*(((Tv_cool+Tr_cool)/2)-Tl_cool))))+-((-0.000625*$C24+0.00625)*(Tl_cool-(Tv_cool+Tr_cool)/2)-(-0.000625*$C24+0.00625)*10))))*$H$14 -> 120.287236 | AW24: 1015 | AX24: 4.5e-05 | AY24: 144 | AZ24: 6.08413e-06 | BA24: 31.9 | BB24: 1.8 | BC24: 78 | BD24: 1014.36297 | BE24: 4.01952e-05 | BF24: 222.4557287 | BG24: 1.330251087e-05 | BH24: 33 | BI24: 1.8 | BJ24: 85 | BK24: 1311.262511 | BL24: 2.943963778e-05 | BM24: 231.6546064 | BN24: =BL24 -> 2.943963778e-05 | BO24: 33 | BP24: 1.8 | BQ24: 85 | BS24: 1628.183493 | BT24: 2.397886107e-05 | BU24: 362.0952722 | BV24: 7.174325797e-05 | BW24: 30.0192768 | BX24: 6.7 | BY24: 179 | BZ24: 2442.27524 | CA24: 2.877714503e-05 | CB24: 398.3047994 | CC24: 2.877714503e-05 | CD24: 30.0192768 | CE24: 6.7 | CF24: 179
B25: 0.6 | C25: 6 | D25: =(X25*($T$11^$Q25))*Watts*CF_Altit -> 3189.376555 | E25: =ROUND(((D25/Watts)/(($S$9-$S$10)*1.163))*$E$14,IF($X$4=1,0,IF($X$4=2,2))) -> 274 | F25: =($Y$24*(E25/$E$14)^$Y$26)*$F$14 -> 2.16047294 | G25: =(Z25*($W$11^R25))*Watts*CF_Altit -> 507.4165893 | H25: =((G25/Watts)/(IF((237.3*LN((RH*EXP(17.27*(Tl_cool/(Tl_cool+237.3))))))/(17.27-LN((RH*EXP(17.27*(Tl_cool/(Tl_cool+237.3))))))<Tavg_cold,1,IF(1/(1+((2258*((0.622/(($Z$11/(1*611*EXP(17.27*(Tavg_cold/(Tavg_cold+237.3))))))-1)*1000-(0.622/(($Z$11/(RH*611*EXP(17.27*(Tl_cool/(Tl_cool+237.3))))))-1)*1000))/(1005*(Tavg_cold-Tl_cool))))*1.039+((-0.000729*$C25+0.001448)*(Tl_cool-Tavg_cold)+(0.016908*$C25-0.033574))*1.039>1,1,1/(1+((2258*((0.622/(($Z$11/(1*611*EXP(17.27*(Tavg_cold/(Tavg_cold+237.3))))))-1)*1000-(0.622/(($Z$11/(RH*611*EXP(17.27*(Tl_cool/(Tl_cool+237.3))))))-1)*1000))/(1005*(Tavg_cold-Tl_cool))))*1.039+((-0.000729*$C25+0.001448)*(Tl_cool-Tavg_cold)+(0.016908*$C25-0.033574))*1.039))))*Watts -> 507.4165893 | I25: =ROUND(((H25/Watts)/((Tr_cool-Tv_cool)*1.163))*$I$14,IF($X$4=1,0,IF($X$4=2,2))) -> 145 | J25: =($AA$24*(I25/$I$14)^$AA$26)*$J$14 -> 0.6050394743 | K25: =L25-8 -> 27.99082011 | L25: 35.99082011 | M25: 12.1 | N25: =AD25*Cubics -> 260 | O25: =((($D25/Watts)/(((p_atm*0.028964)/(8.31447*(20+273.15)))*(($N25/3600)/Cubics)*(1005+1870*((0.622)/(((p_atm)/($E$12*Pvs_Heat_in))-1)))))+Tl_heat)*Celc1+Celc2 -> 56.00710769 | P25: =(Tl_cool-(($G25/Watts)/(1006*$N25*kgss)))*Celc1+Celc2 -> 20.1994477 | Q25: 1 | R25: 0.882 | S25: 0.79 | T25: 0.95 | U25: 0.8831 | V25: 0.882 | W25: =(H25-G25)/H25 -> 0 | X25: =IF($X$16=1,AE25,IF($X$16=2,AL25,IF($X$16=3,BK25,IF($X$16=4,BD25,IF($X$16=5,BZ25,IF($X$16=6,BS25,IF($X$16=7,AW25,))))))) -> 3189.376555 | Y25: b | Z25: 589.3397804 | AA25: b | AB25: 35.99082011 | AC25: 12.1 | AD25: 260 | AE25: 1438 | AF25: b | AG25: 214 | AH25: b | AI25: 37 | AJ25: 2.7 | AK25: 98 | AL25: =AE25 -> 1438 | AM25: b | AN25: 214 | AO25: b | AP25: 37 | AQ25: 2.7 | AR25: 98 | AT25: =(AG25*((((Tv_cool-Tr_cool)/LN((Tv_cool-Tl_cool)/(Tr_cool-Tl_cool)))/((16-18)/LN((16-27)/(18-27))))^S25))*$G$14 -> 0.06259171106 | AU25: =((AT25/$G$14)/(IF((237.3*LN((RH*EXP(17.27*(Tl_cool/(Tl_cool+237.3))))))/(17.27-LN((RH*EXP(17.27*(Tl_cool/(Tl_cool+237.3))))))<((Tv_cool+Tr_cool)/2),1,1/(1+((2258*((0.622/((p_atm/(1*611*EXP(17.27*(((Tv_cool+Tr_cool)/2)/(((Tv_cool+Tr_cool)/2)+237.3))))))-1)*1000-(0.622/((p_atm/(RH*611*EXP(17.27*(Tl_cool/(Tl_cool+237.3))))))-1)*1000))/(1005*(((Tv_cool+Tr_cool)/2)-Tl_cool))))+-((-0.000625*$C25+0.00625)*(Tl_cool-(Tv_cool+Tr_cool)/2)-(-0.000625*$C25+0.00625)*10))))*$H$14 -> 187.1512955 | AW25: 1351 | AX25: b | AY25: 218 | AZ25: b | BA25: 37 | BB25: 3.6 | BC25: 123 | BD25: 1430.73247 | BE25: b | BF25: 319.8044838 | BG25: b | BH25: 37 | BI25: 3.2 | BJ25: 133 | BK25: 1954.730744 | BL25: b | BM25: 330.8370376 | BN25: b | BO25: 37 | BP25: 3.2 | BQ25: 133 | BS25: 2126.251037 | BT25: b | BU25: 535.7634368 | BV25: b | BW25: 35.99082011 | BX25: 12.1 | BY25: 260 | BZ25: 3189.376555 | CA25: b | CB25: 589.3397804 | CC25: b | CD25: 35.99082011 | CE25: 12.1 | CF25: 260
B26: 0.8 | C26: 8 | D26: =(X26*($T$11^$Q26))*Watts*CF_Altit -> 3854.305157 | E26: =ROUND(((D26/Watts)/(($S$9-$S$10)*1.163))*$E$14,IF($X$4=1,0,IF($X$4=2,2))) -> 331 | F26: =($Y$24*(E26/$E$14)^$Y$26)*$F$14 -> 3.152852787 | G26: =(Z26*($W$11^R26))*Watts*CF_Altit -> 668.5441552 | H26: =((G26/Watts)/(IF((237.3*LN((RH*EXP(17.27*(Tl_cool/(Tl_cool+237.3))))))/(17.27-LN((RH*EXP(17.27*(Tl_cool/(Tl_cool+237.3))))))<Tavg_cold,1,IF(1/(1+((2258*((0.622/(($Z$11/(1*611*EXP(17.27*(Tavg_cold/(Tavg_cold+237.3))))))-1)*1000-(0.622/(($Z$11/(RH*611*EXP(17.27*(Tl_cool/(Tl_cool+237.3))))))-1)*1000))/(1005*(Tavg_cold-Tl_cool))))*1.039+((-0.000729*$C26+0.001448)*(Tl_cool-Tavg_cold)+(0.016908*$C26-0.033574))*1.039>1,1,1/(1+((2258*((0.622/(($Z$11/(1*611*EXP(17.27*(Tavg_cold/(Tavg_cold+237.3))))))-1)*1000-(0.622/(($Z$11/(RH*611*EXP(17.27*(Tl_cool/(Tl_cool+237.3))))))-1)*1000))/(1005*(Tavg_cold-Tl_cool))))*1.039+((-0.000729*$C26+0.001448)*(Tl_cool-Tavg_cold)+(0.016908*$C26-0.033574))*1.039))))*Watts -> 668.5441552 | I26: =ROUND(((H26/Watts)/((Tr_cool-Tv_cool)*1.163))*$I$14,IF($X$4=1,0,IF($X$4=2,2))) -> 192 | J26: =($AA$24*(I26/$I$14)^$AA$26)*$J$14 -> 1.060840674 | K26: =L26-8 -> 36.01549795 | L26: 44.01549795 | M26: 18.4 | N26: =AD26*Cubics -> 351 | O26: =((($D26/Watts)/(((p_atm*0.028964)/(8.31447*(20+273.15)))*(($N26/3600)/Cubics)*(1005+1870*((0.622)/(((p_atm)/($E$12*Pvs_Heat_in))-1)))))+Tl_heat)*Celc1+Celc2 -> 52.23255763 | P26: =(Tl_cool-(($G26/Watts)/(1006*$N26*kgss)))*Celc1+Celc2 -> 20.33889757 | Q26: 1 | R26: 0.895 | S26: 0.87 | T26: 0.95 | U26: 0.8539 | V26: 0.895 | W26: =(H26-G26)/H26 -> 0 | X26: 3854.305157 | Y26: 2 | Z26: 778.1964718 | AA26: 2 | AB26: 44.01549795 | AC26: 18.4 | AD26: 351 | AE26: 1834 | AF26: 1.823515585 | AG26: 296 | AH26: =AF26 -> 1.823515585 | AI26: 40 | AJ26: 4.6 | AK26: 125 | AL26: =AE26 -> 1834 | AM26: =AH26 -> 1.823515585 | AN26: 296 | AO26: =AM26 -> 1.823515585 | AP26: 40 | AQ26: 4.6 | AR26: 125 | AT26: =(AG26*((((Tv_cool-Tr_cool)/LN((Tv_cool-Tl_cool)/(Tr_cool-Tl_cool)))/((16-18)/LN((16-27)/(18-27))))^S26))*$G$14 -> 0.08540808232 | AU26: =((AT26/$G$14)/(IF((237.3*LN((RH*EXP(17.27*(Tl_cool/(Tl_cool+237.3))))))/(17.27-LN((RH*EXP(17.27*(Tl_cool/(Tl_cool+237.3))))))<((Tv_cool+Tr_cool)/2),1,1/(1+((2258*((0.622/((p_atm/(1*611*EXP(17.27*(((Tv_cool+Tr_cool)/2)/(((Tv_cool+Tr_cool)/2)+237.3))))))-1)*1000-(0.622/((p_atm/(RH*611*EXP(17.27*(Tl_cool/(Tl_cool+237.3))))))-1)*1000))/(1005*(((Tv_cool+Tr_cool)/2)-Tl_cool))))+-((-0.000625*$C26+0.00625)*(Tl_cool-(Tv_cool+Tr_cool)/2)-(-0.000625*$C26+0.00625)*10))))*$H$14 -> 255.3730036 | AW26: 1654 | AX26: 1.8 | AY26: 293 | AZ26: 2 | BA26: 44 | BB26: 6.5 | BC26: 168 | BD26: 1757.72953 | BE26: 1.89443 | BF26: 414.541571 | BG26: 1.943563381 | BH26: 44 | BI26: 6.4 | BJ26: 168 | BK26: 2523.287828 | BL26: 1.890318987 | BM26: 425.1280286 | BN26: =BL26 -> 1.890318987 | BO26: 44 | BP26: 6.4 | BQ26: 168 | BS26: 2569.536771 | BT26: 2 | BU26: 707.451338 | BV26: 2 | BW26: 44.01549795 | BX26: 18.4 | BY26: 351 | BZ26: 3854.305157 | CA26: 2 | CB26: 778.1964718 | CC26: 2 | CD26: 44.01549795 | CE26: 18.4 | CF26: 351
B27: 1 | C27: 10 | D27: =(X27*($T$11^$Q27))*Watts*CF_Altit -> 4464.127887 | E27: =ROUND(((D27/Watts)/(($S$9-$S$10)*1.163))*$E$14,IF($X$4=1,0,IF($X$4=2,2))) -> 384 | F27: =($Y$24*(E27/$E$14)^$Y$26)*$F$14 -> 4.243362698 | G27: =(Z27*($W$11^R27))*Watts*CF_Altit -> 827.1494594 | H27: =((G27/Watts)/(IF((237.3*LN((RH*EXP(17.27*(Tl_cool/(Tl_cool+237.3))))))/(17.27-LN((RH*EXP(17.27*(Tl_cool/(Tl_cool+237.3))))))<Tavg_cold,1,IF(1/(1+((2258*((0.622/(($Z$11/(1*611*EXP(17.27*(Tavg_cold/(Tavg_cold+237.3))))))-1)*1000-(0.622/(($Z$11/(RH*611*EXP(17.27*(Tl_cool/(Tl_cool+237.3))))))-1)*1000))/(1005*(Tavg_cold-Tl_cool))))*1.039+((-0.000729*$C27+0.001448)*(Tl_cool-Tavg_cold)+(0.016908*$C27-0.033574))*1.039>1,1,1/(1+((2258*((0.622/(($Z$11/(1*611*EXP(17.27*(Tavg_cold/(Tavg_cold+237.3))))))-1)*1000-(0.622/(($Z$11/(RH*611*EXP(17.27*(Tl_cool/(Tl_cool+237.3))))))-1)*1000))/(1005*(Tavg_cold-Tl_cool))))*1.039+((-0.000729*$C27+0.001448)*(Tl_cool-Tavg_cold)+(0.016908*$C27-0.033574))*1.039))))*Watts -> 827.1494594 | I27: =ROUND(((H27/Watts)/((Tr_cool-Tv_cool)*1.163))*$I$14,IF($X$4=1,0,IF($X$4=2,2))) -> 237 | J27: =($AA$24*(I27/$I$14)^$AA$26)*$J$14 -> 1.616383459 | K27: =L27-8 -> 41.00333602 | L27: 49.00333602 | M27: 24 | N27: =AD27*Cubics -> 401 | O27: =((($D27/Watts)/(((p_atm*0.028964)/(8.31447*(20+273.15)))*(($N27/3600)/Cubics)*(1005+1870*((0.622)/(((p_atm)/($E$12*Pvs_Heat_in))-1)))))+Tl_heat)*Celc1+Celc2 -> 52.6774413 | P27: =(Tl_cool-(($G27/Watts)/(1006*$N27*kgss)))*Celc1+Celc2 -> 19.86919291 | Q27: 1 | R27: 0.9111 | S27: 0.91 | T27: 0.98 | U27: 0.7711 | V27: 0.9111 | W27: =(H27-G27)/H27 -> 0 | X27: 4464.127887 | Y27: 0 | Z27: 965.449761 | AA27: 0 | AB27: 49.00333602 | AC27: 24 | AD27: 401 | AE27: 2214 | AG27: 381 | AI27: 45 | AJ27: 7.1 | AK27: 160 | AL27: =AE27 -> 2214 | AN27: 381 | AP27: 45 | AQ27: 7.1 | AR27: 160 | AT27: =(AG27*((((Tv_cool-Tr_cool)/LN((Tv_cool-Tl_cool)/(Tr_cool-Tl_cool)))/((16-18)/LN((16-27)/(18-27))))^S27))*$G$14 -> 0.1091903706 | AU27: =((AT27/$G$14)/(IF((237.3*LN((RH*EXP(17.27*(Tl_cool/(Tl_cool+237.3))))))/(17.27-LN((RH*EXP(17.27*(Tl_cool/(Tl_cool+237.3))))))<((Tv_cool+Tr_cool)/2),1,1/(1+((2258*((0.622/((p_atm/(1*611*EXP(17.27*(((Tv_cool+Tr_cool)/2)/(((Tv_cool+Tr_cool)/2)+237.3))))))-1)*1000-(0.622/((p_atm/(RH*611*EXP(17.27*(Tl_cool/(Tl_cool+237.3))))))-1)*1000))/(1005*(((Tv_cool+Tr_cool)/2)-Tl_cool))))+-((-0.000625*$C27+0.00625)*(Tl_cool-(Tv_cool+Tr_cool)/2)-(-0.000625*$C27+0.00625)*10))))*$H$14 -> 326.4828356 | AW27: 1936 | AY27: 368 | BA27: 47.1 | BB27: 9.8 | BC27: 202 | BD27: 1995.35415 | BF27: 506.6669905 | BH27: 47 | BI27: 10.3 | BJ27: 202 | BK27: 3016.933764 | BM27: 514.5275794 | BO27: 47 | BP27: 10.3 | BQ27: 202 | BS27: 2976.085258 | BU27: 877.6816009 | BW27: 49.00333602 | BX27: 24 | BY27: 401 | BZ27: 4464.127887 | CB27: 965.449761 | CD27: 49.00333602 | CE27: 24 | CF27: 401
B28: =IF($S$7=1,NL!A27,IF(cal!$S$7=2,EN!A27,IF(cal!$S$7=3,DE!A27,IF(cal!$S$7=4,FR!A27,IF(cal!$S$7=5,NR!A27,IF(cal!$S$7=6,SP!A27,IF(cal!$S$7=7,SW!A27,IF(cal!$S$7=8,TS!A27,IF(cal!$S$7=9,ExtraTaal1!A27,IF(cal!$S$7=10,ExtraTaal2!A27,IF(cal!$S$7=11,ExtraTaal3!A27,))))))))))) -> Clima Canal altura 19 cm ancho 34 cm longitud 200 cm (Type 3) | C28: =IF($S$7=1,NL!B27,IF(cal!$S$7=2,EN!B27,IF(cal!$S$7=3,DE!B27,IF(cal!$S$7=4,FR!B27,IF(cal!$S$7=5,NR!B27,IF(cal!$S$7=6,SP!B27,IF(cal!$S$7=7,SW!B27,IF(cal!$S$7=8,TS!B27,IF(cal!$S$7=9,ExtraTaal1!B27,IF(cal!$S$7=10,ExtraTaal2!B27,IF(cal!$S$7=11,ExtraTaal3!B27,))))))))))) -> 0 | D28: =IF($S$7=1,NL!C27,IF(cal!$S$7=2,EN!C27,IF(cal!$S$7=3,DE!C27,IF(cal!$S$7=4,FR!C27,IF(cal!$S$7=5,NR!C27,IF(cal!$S$7=6,SP!C27,IF(cal!$S$7=7,SW!C27,IF(cal!$S$7=8,TS!C27,IF(cal!$S$7=9,ExtraTaal1!C27,IF(cal!$S$7=10,ExtraTaal2!C27,IF(cal!$S$7=11,ExtraTaal3!C27,))))))))))) -> 0 | E28: =IF($S$7=1,NL!D27,IF(cal!$S$7=2,EN!D27,IF(cal!$S$7=3,DE!D27,IF(cal!$S$7=4,FR!D27,IF(cal!$S$7=5,NR!D27,IF(cal!$S$7=6,SP!D27,IF(cal!$S$7=7,SW!D27,IF(cal!$S$7=8,TS!D27,IF(cal!$S$7=9,ExtraTaal1!D27,IF(cal!$S$7=10,ExtraTaal2!D27,IF(cal!$S$7=11,ExtraTaal3!D27,))))))))))) -> 0 | F28: =IF($S$7=1,NL!E27,IF(cal!$S$7=2,EN!E27,IF(cal!$S$7=3,DE!E27,IF(cal!$S$7=4,FR!E27,IF(cal!$S$7=5,NR!E27,IF(cal!$S$7=6,SP!E27,IF(cal!$S$7=7,SW!E27,IF(cal!$S$7=8,TS!E27,IF(cal!$S$7=9,ExtraTaal1!E27,IF(cal!$S$7=10,ExtraTaal2!E27,IF(cal!$S$7=11,ExtraTaal3!E27,))))))))))) -> 0 | G28: =IF($S$7=1,NL!F27,IF(cal!$S$7=2,EN!F27,IF(cal!$S$7=3,DE!F27,IF(cal!$S$7=4,FR!F27,IF(cal!$S$7=5,NR!F27,IF(cal!$S$7=6,SP!F27,IF(cal!$S$7=7,SW!F27,IF(cal!$S$7=8,TS!F27,IF(cal!$S$7=9,ExtraTaal1!F27,IF(cal!$S$7=10,ExtraTaal2!F27,IF(cal!$S$7=11,ExtraTaal3!F27,))))))))))) -> 0 | H28: =IF($S$7=1,NL!G27,IF(cal!$S$7=2,EN!G27,IF(cal!$S$7=3,DE!G27,IF(cal!$S$7=4,FR!G27,IF(cal!$S$7=5,NR!G27,IF(cal!$S$7=6,SP!G27,IF(cal!$S$7=7,SW!G27,IF(cal!$S$7=8,TS!G27,IF(cal!$S$7=9,ExtraTaal1!G27,IF(cal!$S$7=10,ExtraTaal2!G27,IF(cal!$S$7=11,ExtraTaal3!G27,))))))))))) -> 0 | I28: =IF($S$7=1,NL!H27,IF(cal!$S$7=2,EN!H27,IF(cal!$S$7=3,DE!H27,IF(cal!$S$7=4,FR!H27,IF(cal!$S$7=5,NR!H27,IF(cal!$S$7=6,SP!H27,IF(cal!$S$7=7,SW!H27,IF(cal!$S$7=8,TS!H27,IF(cal!$S$7=9,ExtraTaal1!H27,IF(cal!$S$7=10,ExtraTaal2!H27,IF(cal!$S$7=11,ExtraTaal3!H27,))))))))))) -> 0 | J28: =IF($S$7=1,NL!I27,IF(cal!$S$7=2,EN!I27,IF(cal!$S$7=3,DE!I27,IF(cal!$S$7=4,FR!I27,IF(cal!$S$7=5,NR!I27,IF(cal!$S$7=6,SP!I27,IF(cal!$S$7=7,SW!I27,IF(cal!$S$7=8,TS!I27,IF(cal!$S$7=9,ExtraTaal1!I27,IF(cal!$S$7=10,ExtraTaal2!I27,IF(cal!$S$7=11,ExtraTaal3!I27,))))))))))) -> 0 | K28: =IF($S$7=1,NL!J27,IF(cal!$S$7=2,EN!J27,IF(cal!$S$7=3,DE!J27,IF(cal!$S$7=4,FR!J27,IF(cal!$S$7=5,NR!J27,IF(cal!$S$7=6,SP!J27,IF(cal!$S$7=7,SW!J27,IF(cal!$S$7=8,TS!J27,IF(cal!$S$7=9,ExtraTaal1!J27,IF(cal!$S$7=10,ExtraTaal2!J27,IF(cal!$S$7=11,ExtraTaal3!J27,))))))))))) -> 0 | L28: =IF($S$7=1,NL!K27,IF(cal!$S$7=2,EN!K27,IF(cal!$S$7=3,DE!K27,IF(cal!$S$7=4,FR!K27,IF(cal!$S$7=5,NR!K27,IF(cal!$S$7=6,SP!K27,IF(cal!$S$7=7,SW!K27,IF(cal!$S$7=8,TS!K27,IF(cal!$S$7=9,ExtraTaal1!K27,IF(cal!$S$7=10,ExtraTaal2!K27,IF(cal!$S$7=11,ExtraTaal3!K27,))))))))))) -> 0 | M28: =IF($S$7=1,NL!L27,IF(cal!$S$7=2,EN!L27,IF(cal!$S$7=3,DE!L27,IF(cal!$S$7=4,FR!L27,IF(cal!$S$7=5,NR!L27,IF(cal!$S$7=6,SP!L27,IF(cal!$S$7=7,SW!L27,IF(cal!$S$7=8,TS!L27,IF(cal!$S$7=9,ExtraTaal1!L27,IF(cal!$S$7=10,ExtraTaal2!L27,IF(cal!$S$7=11,ExtraTaal3!L27,))))))))))) -> 0 | N28: =IF($S$7=1,NL!M27,IF(cal!$S$7=2,EN!M27,IF(cal!$S$7=3,DE!M27,IF(cal!$S$7=4,FR!M27,IF(cal!$S$7=5,NR!M27,IF(cal!$S$7=6,SP!M27,IF(cal!$S$7=7,SW!M27,IF(cal!$S$7=8,TS!M27,IF(cal!$S$7=9,ExtraTaal1!M27,IF(cal!$S$7=10,ExtraTaal2!M27,IF(cal!$S$7=11,ExtraTaal3!M27,))))))))))) -> 0 | O28: =IF($S$7=1,NL!N27,IF(cal!$S$7=2,EN!N27,IF(cal!$S$7=3,DE!N27,IF(cal!$S$7=4,FR!N27,IF(cal!$S$7=5,NR!N27,IF(cal!$S$7=6,SP!N27,IF(cal!$S$7=7,SW!N27,IF(cal!$S$7=8,TS!N27,IF(cal!$S$7=9,ExtraTaal1!N27,IF(cal!$S$7=10,ExtraTaal2!N27,IF(cal!$S$7=11,ExtraTaal3!N27,))))))))))) -> 0 | P28: =IF($S$7=1,NL!O27,IF(cal!$S$7=2,EN!O27,IF(cal!$S$7=3,DE!O27,IF(cal!$S$7=4,FR!O27,IF(cal!$S$7=5,NR!O27,IF(cal!$S$7=6,SP!O27,IF(cal!$S$7=7,SW!O27,IF(cal!$S$7=8,TS!O27,IF(cal!$S$7=9,ExtraTaal1!O27,IF(cal!$S$7=10,ExtraTaal2!O27,IF(cal!$S$7=11,ExtraTaal3!O27,))))))))))) -> 0 | Q28: n-value | R28: n-value | S28: n-value | T28: n-value | U28: n-value | V28: n-value | X28: H | Y28: 19 | Z28: B | AA28: 34 | AB28: L | AC28: 120 | AD28: 0 | AE28: H | AF28: =AF22 -> 8 | AG28: B | AH28: =AH22 -> 18 | AI28: L | AJ28: =108*IF($X$4=1,1,IF($X$4=2,1/2.54)) -> 108 | AL28: H | AM28: =AM22 -> 10 | AN28: B | AO28: =AO22 -> 18 | AP28: L | AQ28: =AJ28 -> 108 | AW28: H | AX28: =AX22 -> 13 | AY28: B | AZ28: =AZ22 -> 27 | BA28: L | BB28: =IF($X$4=1,108.3,108.3/2.54) -> 108.3 | BD28: H | BE28: =BE22 -> 13 | BF28: B | BG28: =BG22 -> 32 | BH28: L | BI28: =IF($X$4=1,100,100/2.54) -> 100 | BK28: H | BL28: =BL22 -> 13 | BM28: B | BN28: =BN22 -> 32 | BO28: L | BP28: =IF($X$4=1,100,100/2.54) -> 100 | BS28: H | BT28: =BT22 -> 19 | BU28: B | BV28: =BV22 -> 34 | BW28: L | BX28: =120*IF($X$4=1,1,IF($X$4=2,1/2.54)) -> 120 | BZ28: H | CA28: =CA22 -> 19 | CB28: B | CC28: =CC22 -> 34 | CD28: L | CE28: =BX28 -> 120
B29: 0.2 | C29: 2 | D29: =(X29*($T$11^$Q29))*Watts*CF_Altit -> 3021.396203 | E29: =ROUND(((D29/Watts)/(($S$9-$S$10)*1.163))*$E$14,IF($X$4=1,0,IF($X$4=2,2))) -> 260 | F29: =($Y$30*(E29/$E$14)^$Y$32)*$F$14 -> 2.272890769 | G29: =(Z29*($W$11^R29))*Watts*CF_Altit -> 343.0072142 | H29: =((G29/Watts)/(IF((237.3*LN((RH*EXP(17.27*(Tl_cool/(Tl_cool+237.3))))))/(17.27-LN((RH*EXP(17.27*(Tl_cool/(Tl_cool+237.3))))))<Tavg_cold,1,IF(1/(1+((2258*((0.622/(($Z$11/(1*611*EXP(17.27*(Tavg_cold/(Tavg_cold+237.3))))))-1)*1000-(0.622/(($Z$11/(RH*611*EXP(17.27*(Tl_cool/(Tl_cool+237.3))))))-1)*1000))/(1005*(Tavg_cold-Tl_cool))))*1.039+((-0.000729*$C29+0.001448)*(Tl_cool-Tavg_cold)+(0.016908*$C29-0.033574))*1.039>1,1,1/(1+((2258*((0.622/(($Z$11/(1*611*EXP(17.27*(Tavg_cold/(Tavg_cold+237.3))))))-1)*1000-(0.622/(($Z$11/(RH*611*EXP(17.27*(Tl_cool/(Tl_cool+237.3))))))-1)*1000))/(1005*(Tavg_cold-Tl_cool))))*1.039+((-0.000729*$C29+0.001448)*(Tl_cool-Tavg_cold)+(0.016908*$C29-0.033574))*1.039))))*Watts -> 343.0072142 | I29: =ROUND(((H29/Watts)/((Tr_cool-Tv_cool)*1.163))*$I$14,IF($X$4=1,0,IF($X$4=2,2))) -> 98 | J29: =($AA$30*(I29/$I$14)^$AA$32)*$J$14 -> 0.3229118779 | K29: =L29-8 -> 21.10439356 | L29: =AB29 -> 29.10439356 | M29: 4.6 | N29: =AD29*Cubics -> 179 | O29: =((($D29/Watts)/(((p_atm*0.028964)/(8.31447*(20+273.15)))*(($N29/3600)/Cubics)*(1005+1870*((0.622)/(((p_atm)/($E$12*Pvs_Heat_in))-1)))))+Tl_heat)*Celc1+Celc2 -> 69.54620968 | P29: =(Tl_cool-(($G29/Watts)/(1006*$N29*kgss)))*Celc1+Celc2 -> 20.30454721 | Q29: 1 | R29: 0.8766 | S29: 0.6 | T29: 1.16 | U29: 0.7807 | V29: 0.8766 | W29: =(H29-G29)/H29 -> 0 | X29: =IF($X$16=1,AE29,IF($X$16=2,AL29,IF($X$16=3,BK29,IF($X$16=4,BD29,IF($X$16=5,BZ29,IF($X$16=6,BS29,IF($X$16=7,AW29,))))))) -> 3021.396203 | Y29: a | Z29: 398.0213639 | AA29: a | AB29: 29.10439356 | AC29: 4.6 | AD29: 179 | AE29: 894 | AF29: a | AG29: 97 | AH29: a | AI29: 24 | AJ29: 1.1 | AK29: 66 | AL29: =AE29 -> 894 | AM29: a | AN29: 97 | AO29: a | AP29: =AI29 -> 24 | AQ29: 1.1 | AR29: 66 | AT29: =(AG29*((((Tv_cool-Tr_cool)/LN((Tv_cool-Tl_cool)/(Tr_cool-Tl_cool)))/((16-18)/LN((16-27)/(18-27))))^S29))*$G$14 -> 0.02930065227 | AU29: =((AT29/$G$14)/(IF((237.3*LN((RH*EXP(17.27*(Tl_cool/(Tl_cool+237.3))))))/(17.27-LN((RH*EXP(17.27*(Tl_cool/(Tl_cool+237.3))))))<((Tv_cool+Tr_cool)/2),1,1/(1+((2258*((0.622/((p_atm/(1*611*EXP(17.27*(((Tv_cool+Tr_cool)/2)/(((Tv_cool+Tr_cool)/2)+237.3))))))-1)*1000-(0.622/((p_atm/(RH*611*EXP(17.27*(Tl_cool/(Tl_cool+237.3))))))-1)*1000))/(1005*(((Tv_cool+Tr_cool)/2)-Tl_cool))))+-((-0.000625*$C29+0.00625)*(Tl_cool-(Tv_cool+Tr_cool)/2)-(-0.000625*$C29+0.00625)*10))))*$H$14 -> 87.60992372 | AW29: 1091 | AX29: a | AY29: 125 | AZ29: a | BA29: 28.8 | BB29: 2 | BC29: 90 | BD29: 668.81663 | BE29: a | BF29: 161.0765045 | BG29: a | BH29: 28 | BI29: 1.4 | BJ29: 49 | BK29: 779.6179744 | BL29: a | BM29: 167.7636434 | BN29: a | BO29: =BH29 -> 28 | BP29: 1.4 | BQ29: 49 | BS29: 2014.264135 | BT29: a | BU29: 361.8376035 | BV29: a | BW29: 29.10439356 | BX29: 4.6 | BY29: 179 | BZ29: 3021.396203 | CA29: a | CB29: 398.0213639 | CC29: a | CD29: 29.10439356 | CE29: 4.6 | CF29: 179
B30: 0.4 | C30: 4 | D30: =(X30*($T$11^$Q30))*Watts*CF_Altit -> 4768.251659 | E30: =ROUND(((D30/Watts)/(($S$9-$S$10)*1.163))*$E$14,IF($X$4=1,0,IF($X$4=2,2))) -> 410 | F30: =($Y$30*(E30/$E$14)^$Y$32)*$F$14 -> 5.651966543 | G30: =(Z30*($W$11^R30))*Watts*CF_Altit -> 670.0552967 | H30: =((G30/Watts)/(IF((237.3*LN((RH*EXP(17.27*(Tl_cool/(Tl_cool+237.3))))))/(17.27-LN((RH*EXP(17.27*(Tl_cool/(Tl_cool+237.3))))))<Tavg_cold,1,IF(1/(1+((2258*((0.622/(($Z$11/(1*611*EXP(17.27*(Tavg_cold/(Tavg_cold+237.3))))))-1)*1000-(0.622/(($Z$11/(RH*611*EXP(17.27*(Tl_cool/(Tl_cool+237.3))))))-1)*1000))/(1005*(Tavg_cold-Tl_cool))))*1.039+((-0.000729*$C30+0.001448)*(Tl_cool-Tavg_cold)+(0.016908*$C30-0.033574))*1.039>1,1,1/(1+((2258*((0.622/(($Z$11/(1*611*EXP(17.27*(Tavg_cold/(Tavg_cold+237.3))))))-1)*1000-(0.622/(($Z$11/(RH*611*EXP(17.27*(Tl_cool/(Tl_cool+237.3))))))-1)*1000))/(1005*(Tavg_cold-Tl_cool))))*1.039+((-0.000729*$C30+0.001448)*(Tl_cool-Tavg_cold)+(0.016908*$C30-0.033574))*1.039))))*Watts -> 670.0552967 | I30: =ROUND(((H30/Watts)/((Tr_cool-Tv_cool)*1.163))*$I$14,IF($X$4=1,0,IF($X$4=2,2))) -> 192 | J30: =($AA$30*(I30/$I$14)^$AA$32)*$J$14 -> 1.239465167 | K30: =L30-8 -> 24.55346829 | L30: 32.55346829 | M30: 9.4 | N30: =AD30*Cubics -> 346 | O30: =((($D30/Watts)/(((p_atm*0.028964)/(8.31447*(20+273.15)))*(($N30/3600)/Cubics)*(1005+1870*((0.622)/(((p_atm)/($E$12*Pvs_Heat_in))-1)))))+Tl_heat)*Celc1+Celc2 -> 60.45189376 | P30: =(Tl_cool-(($G30/Watts)/(1006*$N30*kgss)))*Celc1+Celc2 -> 20.24410876 | Q30: 1 | R30: 0.8775 | S30: 0.68 | T30: 1.04 | U30: 0.8587 | V30: 0.8775 | W30: =(H30-G30)/H30 -> 0 | X30: 4768.251659 | Y30: 3.362264451e-05 | Z30: 777.6427036 | AA30: 3.362264451e-05 | AB30: 32.55346829 | AC30: 9.4 | AD30: 346 | AE30: 1605 | AF30: 0.0005605474778 | AG30: 212 | AH30: =AF30 -> 0.0005605474778 | AI30: 28 | AJ30: 2.1 | AK30: 112 | AL30: =AE30 -> 1605 | AM30: =AH30 -> 0.0005605474778 | AN30: 212 | AO30: =AM30 -> 0.0005605474778 | AP30: 28 | AQ30: 2.1 | AR30: 112 | AT30: =(AG30*((((Tv_cool-Tr_cool)/LN((Tv_cool-Tl_cool)/(Tr_cool-Tl_cool)))/((16-18)/LN((16-27)/(18-27))))^S30))*$G$14 -> 0.06317505433 | AU30: =((AT30/$G$14)/(IF((237.3*LN((RH*EXP(17.27*(Tl_cool/(Tl_cool+237.3))))))/(17.27-LN((RH*EXP(17.27*(Tl_cool/(Tl_cool+237.3))))))<((Tv_cool+Tr_cool)/2),1,1/(1+((2258*((0.622/((p_atm/(1*611*EXP(17.27*(((Tv_cool+Tr_cool)/2)/(((Tv_cool+Tr_cool)/2)+237.3))))))-1)*1000-(0.622/((p_atm/(RH*611*EXP(17.27*(Tl_cool/(Tl_cool+237.3))))))-1)*1000))/(1005*(((Tv_cool+Tr_cool)/2)-Tl_cool))))+-((-0.000625*$C30+0.00625)*(Tl_cool-(Tv_cool+Tr_cool)/2)-(-0.000625*$C30+0.00625)*10))))*$H$14 -> 188.8955113 | AW30: 1779 | AX30: 6.85e-05 | AY30: 253 | AZ30: 6.4513e-06 | BA30: 33.1 | BB30: 3.5 | BC30: 133 | BD30: 1333.84737 | BE30: 4.82908e-05 | BF30: 292.5205251 | BG30: 1.411968325e-05 | BH30: 34 | BI30: 2.4 | BJ30: 114 | BK30: 1724.258578 | BL30: 3.605212283e-05 | BM30: 304.6166871 | BN30: =BL30 -> 3.605212283e-05 | BO30: 34 | BP30: 2.4 | BQ30: 114 | BS30: 3178.83444 | BT30: 3.302632322e-05 | BU30: 706.9479124 | BV30: 9.854279118e-05 | BW30: 32.55346829 | BX30: 9.4 | BY30: 346 | BZ30: 4768.251659 | CA30: 3.362264451e-05 | CB30: 777.6427036 | CC30: 3.362264451e-05 | CD30: 32.55346829 | CE30: 9.4 | CF30: 346
B31: 0.6 | C31: 6 | D31: =(X31*($T$11^$Q31))*Watts*CF_Altit -> 6226.878036 | E31: =ROUND(((D31/Watts)/(($S$9-$S$10)*1.163))*$E$14,IF($X$4=1,0,IF($X$4=2,2))) -> 535 | F31: =($Y$30*(E31/$E$14)^$Y$32)*$F$14 -> 9.623641426 | G31: =(Z31*($W$11^R31))*Watts*CF_Altit -> 990.6704839 | H31: =((G31/Watts)/(IF((237.3*LN((RH*EXP(17.27*(Tl_cool/(Tl_cool+237.3))))))/(17.27-LN((RH*EXP(17.27*(Tl_cool/(Tl_cool+237.3))))))<Tavg_cold,1,IF(1/(1+((2258*((0.622/(($Z$11/(1*611*EXP(17.27*(Tavg_cold/(Tavg_cold+237.3))))))-1)*1000-(0.622/(($Z$11/(RH*611*EXP(17.27*(Tl_cool/(Tl_cool+237.3))))))-1)*1000))/(1005*(Tavg_cold-Tl_cool))))*1.039+((-0.000729*$C31+0.001448)*(Tl_cool-Tavg_cold)+(0.016908*$C31-0.033574))*1.039>1,1,1/(1+((2258*((0.622/(($Z$11/(1*611*EXP(17.27*(Tavg_cold/(Tavg_cold+237.3))))))-1)*1000-(0.622/(($Z$11/(RH*611*EXP(17.27*(Tl_cool/(Tl_cool+237.3))))))-1)*1000))/(1005*(Tavg_cold-Tl_cool))))*1.039+((-0.000729*$C31+0.001448)*(Tl_cool-Tavg_cold)+(0.016908*$C31-0.033574))*1.039))))*Watts -> 990.6704839 | I31: =ROUND(((H31/Watts)/((Tr_cool-Tv_cool)*1.163))*$I$14,IF($X$4=1,0,IF($X$4=2,2))) -> 284 | J31: =($AA$30*(I31/$I$14)^$AA$32)*$J$14 -> 2.711868016 | K31: =L31-8 -> 30.53120307 | L31: 38.53120307 | M31: 16.9 | N31: =AD31*Cubics -> 496 | O31: =((($D31/Watts)/(((p_atm*0.028964)/(8.31447*(20+273.15)))*(($N31/3600)/Cubics)*(1005+1870*((0.622)/(((p_atm)/($E$12*Pvs_Heat_in))-1)))))+Tl_heat)*Celc1+Celc2 -> 56.85059216 | P31: =(Tl_cool-(($G31/Watts)/(1006*$N31*kgss)))*Celc1+Celc2 -> 20.06356687 | Q31: 1 | R31: 0.882 | S31: 0.79 | T31: 0.95 | U31: 0.8831 | V31: 0.882 | W31: =(H31-G31)/H31 -> 0 | X31: =IF($X$16=1,AE31,IF($X$16=2,AL31,IF($X$16=3,BK31,IF($X$16=4,BD31,IF($X$16=5,BZ31,IF($X$16=6,BS31,IF($X$16=7,AW31,))))))) -> 6226.878036 | Y31: b | Z31: 1150.615762 | AA31: b | AB31: 38.53120307 | AC31: 16.9 | AD31: 496 | AE31: 2260 | AF31: b | AG31: 336 | AH31: b | AI31: 38 | AJ31: 4 | AK31: 150 | AL31: =AE31 -> 2260 | AM31: b | AN31: 336 | AO31: b | AP31: 38 | AQ31: 4 | AR31: 150 | AT31: =(AG31*((((Tv_cool-Tr_cool)/LN((Tv_cool-Tl_cool)/(Tr_cool-Tl_cool)))/((16-18)/LN((16-27)/(18-27))))^S31))*$G$14 -> 0.09827483605 | AU31: =((AT31/$G$14)/(IF((237.3*LN((RH*EXP(17.27*(Tl_cool/(Tl_cool+237.3))))))/(17.27-LN((RH*EXP(17.27*(Tl_cool/(Tl_cool+237.3))))))<((Tv_cool+Tr_cool)/2),1,1/(1+((2258*((0.622/((p_atm/(1*611*EXP(17.27*(((Tv_cool+Tr_cool)/2)/(((Tv_cool+Tr_cool)/2)+237.3))))))-1)*1000-(0.622/((p_atm/(RH*611*EXP(17.27*(Tl_cool/(Tl_cool+237.3))))))-1)*1000))/(1005*(((Tv_cool+Tr_cool)/2)-Tl_cool))))+-((-0.000625*$C31+0.00625)*(Tl_cool-(Tv_cool+Tr_cool)/2)-(-0.000625*$C31+0.00625)*10))))*$H$14 -> 293.8450247 | AW31: 2367 | AX31: b | AY31: 383 | AZ31: b | BA31: 39.2 | BB31: 6.5 | BC31: 208 | BD31: 1881.35687 | BE31: b | BF31: 420.5303054 | BG31: b | BH31: 38 | BI31: 4.2 | BJ31: 174 | BK31: 2570.39397 | BL31: b | BM31: 435.0376794 | BN31: b | BO31: 38 | BP31: 4.2 | BQ31: 174 | BS31: 4151.252024 | BT31: b | BU31: 1046.014329 | BV31: b | BW31: 38.53120307 | BX31: 16.9 | BY31: 496 | BZ31: 6226.878036 | CA31: b | CB31: 1150.615762 | CC31: b | CD31: 38.53120307 | CE31: 16.9 | CF31: 496
B32: 0.8 | C32: 8 | D32: =(X32*($T$11^$Q32))*Watts*CF_Altit -> 7525.071973 | E32: =ROUND(((D32/Watts)/(($S$9-$S$10)*1.163))*$E$14,IF($X$4=1,0,IF($X$4=2,2))) -> 647 | F32: =($Y$30*(E32/$E$14)^$Y$32)*$F$14 -> 14.0747416 | G32: =(Z32*($W$11^R32))*Watts*CF_Altit -> 1305.252874 | H32: =((G32/Watts)/(IF((237.3*LN((RH*EXP(17.27*(Tl_cool/(Tl_cool+237.3))))))/(17.27-LN((RH*EXP(17.27*(Tl_cool/(Tl_cool+237.3))))))<Tavg_cold,1,IF(1/(1+((2258*((0.622/(($Z$11/(1*611*EXP(17.27*(Tavg_cold/(Tavg_cold+237.3))))))-1)*1000-(0.622/(($Z$11/(RH*611*EXP(17.27*(Tl_cool/(Tl_cool+237.3))))))-1)*1000))/(1005*(Tavg_cold-Tl_cool))))*1.039+((-0.000729*$C32+0.001448)*(Tl_cool-Tavg_cold)+(0.016908*$C32-0.033574))*1.039>1,1,1/(1+((2258*((0.622/(($Z$11/(1*611*EXP(17.27*(Tavg_cold/(Tavg_cold+237.3))))))-1)*1000-(0.622/(($Z$11/(RH*611*EXP(17.27*(Tl_cool/(Tl_cool+237.3))))))-1)*1000))/(1005*(Tavg_cold-Tl_cool))))*1.039+((-0.000729*$C32+0.001448)*(Tl_cool-Tavg_cold)+(0.016908*$C32-0.033574))*1.039))))*Watts -> 1305.252874 | I32: =ROUND(((H32/Watts)/((Tr_cool-Tv_cool)*1.163))*$I$14,IF($X$4=1,0,IF($X$4=2,2))) -> 374 | J32: =($AA$30*(I32/$I$14)^$AA$32)*$J$14 -> 4.703001024 | K32: =L32-8 -> 38.54485074 | L32: 46.54485074 | M32: 27.7 | N32: =AD32*Cubics -> 660 | O32: =((($D32/Watts)/(((p_atm*0.028964)/(8.31447*(20+273.15)))*(($N32/3600)/Cubics)*(1005+1870*((0.622)/(((p_atm)/($E$12*Pvs_Heat_in))-1)))))+Tl_heat)*Celc1+Celc2 -> 53.46744133 | P32: =(Tl_cool-(($G32/Watts)/(1006*$N32*kgss)))*Celc1+Celc2 -> 20.12201118 | Q32: 1 | R32: 0.895 | S32: 0.87 | T32: 0.95 | U32: 0.8539 | V32: 0.895 | W32: =(H32-G32)/H32 -> 0 | X32: 7525.071973 | Y32: 2 | Z32: 1519.335969 | AA32: 2 | AB32: 46.54485074 | AC32: 27.7 | AD32: 660 | AE32: 2881 | AF32: 1.823515585 | AG32: 465 | AH32: =AF32 -> 1.823515585 | AI32: 43 | AJ32: 6.6 | AK32: 193 | AL32: =AE32 -> 2881 | AM32: =AH32 -> 1.823515585 | AN32: 465 | AO32: =AM32 -> 1.823515585 | AP32: 43 | AQ32: 6.6 | AR32: 193 | AT32: =(AG32*((((Tv_cool-Tr_cool)/LN((Tv_cool-Tl_cool)/(Tr_cool-Tl_cool)))/((16-18)/LN((16-27)/(18-27))))^S32))*$G$14 -> 0.1341714807 | AU32: =((AT32/$G$14)/(IF((237.3*LN((RH*EXP(17.27*(Tl_cool/(Tl_cool+237.3))))))/(17.27-LN((RH*EXP(17.27*(Tl_cool/(Tl_cool+237.3))))))<((Tv_cool+Tr_cool)/2),1,1/(1+((2258*((0.622/((p_atm/(1*611*EXP(17.27*(((Tv_cool+Tr_cool)/2)/(((Tv_cool+Tr_cool)/2)+237.3))))))-1)*1000-(0.622/((p_atm/(RH*611*EXP(17.27*(Tl_cool/(Tl_cool+237.3))))))-1)*1000))/(1005*(((Tv_cool+Tr_cool)/2)-Tl_cool))))+-((-0.000625*$C32+0.00625)*(Tl_cool-(Tv_cool+Tr_cool)/2)-(-0.000625*$C32+0.00625)*10))))*$H$14 -> 401.1771847 | AW32: 2900 | AX32: 1.8 | AY32: 513 | AZ32: 2 | BA32: 46.5 | BB32: 11.5 | BC32: 285 | BD32: 2311.34513 | BE32: 1.88069 | BF32: 545.1058454 | BG32: 1.939087556 | BH32: 45 | BI32: 7.2 | BJ32: 235 | BK32: 3318.024152 | BL32: 1.875000958 | BM32: 559.0266203 | BN32: =BL32 -> 1.875000958 | BO32: 45 | BP32: 7.2 | BQ32: 235 | BS32: 5016.714649 | BT32: 2 | BU32: 1381.214517 | BV32: 2 | BW32: 46.54485074 | BX32: 27.7 | BY32: 660 | BZ32: 7525.071973 | CA32: 2 | CB32: 1519.335969 | CC32: 2 | CD32: 46.54485074 | CE32: 27.7 | CF32: 660
B33: 1 | C33: 10 | D33: =(X33*($T$11^$Q33))*Watts*CF_Altit -> 8715.678255 | E33: =ROUND(((D33/Watts)/(($S$9-$S$10)*1.163))*$E$14,IF($X$4=1,0,IF($X$4=2,2))) -> 749 | F33: =($Y$30*(E33/$E$14)^$Y$32)*$F$14 -> 18.86233719 | G33: =(Z33*($W$11^R33))*Watts*CF_Altit -> 1614.910849 | H33: =((G33/Watts)/(IF((237.3*LN((RH*EXP(17.27*(Tl_cool/(Tl_cool+237.3))))))/(17.27-LN((RH*EXP(17.27*(Tl_cool/(Tl_cool+237.3))))))<Tavg_cold,1,IF(1/(1+((2258*((0.622/(($Z$11/(1*611*EXP(17.27*(Tavg_cold/(Tavg_cold+237.3))))))-1)*1000-(0.622/(($Z$11/(RH*611*EXP(17.27*(Tl_cool/(Tl_cool+237.3))))))-1)*1000))/(1005*(Tavg_cold-Tl_cool))))*1.039+((-0.000729*$C33+0.001448)*(Tl_cool-Tavg_cold)+(0.016908*$C33-0.033574))*1.039>1,1,1/(1+((2258*((0.622/(($Z$11/(1*611*EXP(17.27*(Tavg_cold/(Tavg_cold+237.3))))))-1)*1000-(0.622/(($Z$11/(RH*611*EXP(17.27*(Tl_cool/(Tl_cool+237.3))))))-1)*1000))/(1005*(Tavg_cold-Tl_cool))))*1.039+((-0.000729*$C33+0.001448)*(Tl_cool-Tavg_cold)+(0.016908*$C33-0.033574))*1.039))))*Watts -> 1614.910849 | I33: =ROUND(((H33/Watts)/((Tr_cool-Tv_cool)*1.163))*$I$14,IF($X$4=1,0,IF($X$4=2,2))) -> 463 | J33: =($AA$30*(I33/$I$14)^$AA$32)*$J$14 -> 7.207652682 | K33: =L33-8 -> 43.54057181 | L33: 51.54057181 | M33: 38.9 | N33: =AD33*Cubics -> 752 | O33: =((($D33/Watts)/(((p_atm*0.028964)/(8.31447*(20+273.15)))*(($N33/3600)/Cubics)*(1005+1870*((0.622)/(((p_atm)/($E$12*Pvs_Heat_in))-1)))))+Tl_heat)*Celc1+Celc2 -> 54.02037819 | P33: =(Tl_cool-(($G33/Watts)/(1006*$N33*kgss)))*Celc1+Celc2 -> 19.61723662 | Q33: 1 | R33: 0.9111 | S33: 0.91 | T33: 0.98 | U33: 0.7711 | V33: 0.9111 | W33: =(H33-G33)/H33 -> 0 | X33: 8715.678255 | Y33: 0 | Z33: 1884.925724 | AA33: 0 | AB33: 51.54057181 | AC33: 38.9 | AD33: 752 | AE33: 3479 | AG33: 598 | AI33: 47 | AJ33: 10.1 | AK33: 239 | AL33: =AE33 -> 3479 | AN33: 598 | AP33: 47 | AQ33: 10.1 | AR33: 239 | AT33: =(AG33*((((Tv_cool-Tr_cool)/LN((Tv_cool-Tl_cool)/(Tr_cool-Tl_cool)))/((16-18)/LN((16-27)/(18-27))))^S33))*$G$14 -> 0.1713801617 | AU33: =((AT33/$G$14)/(IF((237.3*LN((RH*EXP(17.27*(Tl_cool/(Tl_cool+237.3))))))/(17.27-LN((RH*EXP(17.27*(Tl_cool/(Tl_cool+237.3))))))<((Tv_cool+Tr_cool)/2),1,1/(1+((2258*((0.622/((p_atm/(1*611*EXP(17.27*(((Tv_cool+Tr_cool)/2)/(((Tv_cool+Tr_cool)/2)+237.3))))))-1)*1000-(0.622/((p_atm/(RH*611*EXP(17.27*(Tl_cool/(Tl_cool+237.3))))))-1)*1000))/(1005*(((Tv_cool+Tr_cool)/2)-Tl_cool))))+-((-0.000625*$C33+0.00625)*(Tl_cool-(Tv_cool+Tr_cool)/2)-(-0.000625*$C33+0.00625)*10))))*$H$14 -> 512.4323771 | AW33: 3394 | AY33: 645 | BA33: 49.6 | BB33: 17.5 | BC33: 349 | BD33: 2623.81215 | BF33: 666.247145 | BH33: 48 | BI33: 10.6 | BJ33: 273 | BK33: 3967.149123 | BM33: 676.5835099 | BO33: 48 | BP33: 10.6 | BQ33: 273 | BS33: 5810.45217 | BU33: 1713.56884 | BW33: 51.54057181 | BX33: 38.9 | BY33: 752 | BZ33: 8715.678255 | CB33: 1884.925724 | CD33: 51.54057181 | CE33: 38.9 | CF33: 752
B34: =IF($S$7=1,NL!A33,IF(cal!$S$7=2,EN!A33,IF(cal!$S$7=3,DE!A33,IF(cal!$S$7=4,FR!A33,IF(cal!$S$7=5,NR!A33,IF(cal!$S$7=6,SP!A33,IF(cal!$S$7=7,SW!A33,IF(cal!$S$7=8,TS!A33,IF(cal!$S$7=9,ExtraTaal1!A33,IF(cal!$S$7=10,ExtraTaal2!A33,IF(cal!$S$7=11,ExtraTaal3!A33,))))))))))) -> Clima Canal altura 19 cm ancho 34 cm longitud 280 cm (Type 4) | C34: =IF($S$7=1,NL!B33,IF(cal!$S$7=2,EN!B33,IF(cal!$S$7=3,DE!B33,IF(cal!$S$7=4,FR!B33,IF(cal!$S$7=5,NR!B33,IF(cal!$S$7=6,SP!B33,IF(cal!$S$7=7,SW!B33,IF(cal!$S$7=8,TS!B33,IF(cal!$S$7=9,ExtraTaal1!B33,IF(cal!$S$7=10,ExtraTaal2!B33,IF(cal!$S$7=11,ExtraTaal3!B33,))))))))))) -> 0 | D34: =IF($S$7=1,NL!C33,IF(cal!$S$7=2,EN!C33,IF(cal!$S$7=3,DE!C33,IF(cal!$S$7=4,FR!C33,IF(cal!$S$7=5,NR!C33,IF(cal!$S$7=6,SP!C33,IF(cal!$S$7=7,SW!C33,IF(cal!$S$7=8,TS!C33,IF(cal!$S$7=9,ExtraTaal1!C33,IF(cal!$S$7=10,ExtraTaal2!C33,IF(cal!$S$7=11,ExtraTaal3!C33,))))))))))) -> 0 | E34: =IF($S$7=1,NL!D33,IF(cal!$S$7=2,EN!D33,IF(cal!$S$7=3,DE!D33,IF(cal!$S$7=4,FR!D33,IF(cal!$S$7=5,NR!D33,IF(cal!$S$7=6,SP!D33,IF(cal!$S$7=7,SW!D33,IF(cal!$S$7=8,TS!D33,IF(cal!$S$7=9,ExtraTaal1!D33,IF(cal!$S$7=10,ExtraTaal2!D33,IF(cal!$S$7=11,ExtraTaal3!D33,))))))))))) -> 0 | F34: =IF($S$7=1,NL!E33,IF(cal!$S$7=2,EN!E33,IF(cal!$S$7=3,DE!E33,IF(cal!$S$7=4,FR!E33,IF(cal!$S$7=5,NR!E33,IF(cal!$S$7=6,SP!E33,IF(cal!$S$7=7,SW!E33,IF(cal!$S$7=8,TS!E33,IF(cal!$S$7=9,ExtraTaal1!E33,IF(cal!$S$7=10,ExtraTaal2!E33,IF(cal!$S$7=11,ExtraTaal3!E33,))))))))))) -> 0 | G34: =IF($S$7=1,NL!F33,IF(cal!$S$7=2,EN!F33,IF(cal!$S$7=3,DE!F33,IF(cal!$S$7=4,FR!F33,IF(cal!$S$7=5,NR!F33,IF(cal!$S$7=6,SP!F33,IF(cal!$S$7=7,SW!F33,IF(cal!$S$7=8,TS!F33,IF(cal!$S$7=9,ExtraTaal1!F33,IF(cal!$S$7=10,ExtraTaal2!F33,IF(cal!$S$7=11,ExtraTaal3!F33,))))))))))) -> 0 | H34: =IF($S$7=1,NL!G33,IF(cal!$S$7=2,EN!G33,IF(cal!$S$7=3,DE!G33,IF(cal!$S$7=4,FR!G33,IF(cal!$S$7=5,NR!G33,IF(cal!$S$7=6,SP!G33,IF(cal!$S$7=7,SW!G33,IF(cal!$S$7=8,TS!G33,IF(cal!$S$7=9,ExtraTaal1!G33,IF(cal!$S$7=10,ExtraTaal2!G33,IF(cal!$S$7=11,ExtraTaal3!G33,))))))))))) -> 0 | I34: =IF($S$7=1,NL!H33,IF(cal!$S$7=2,EN!H33,IF(cal!$S$7=3,DE!H33,IF(cal!$S$7=4,FR!H33,IF(cal!$S$7=5,NR!H33,IF(cal!$S$7=6,SP!H33,IF(cal!$S$7=7,SW!H33,IF(cal!$S$7=8,TS!H33,IF(cal!$S$7=9,ExtraTaal1!H33,IF(cal!$S$7=10,ExtraTaal2!H33,IF(cal!$S$7=11,ExtraTaal3!H33,))))))))))) -> 0 | J34: =IF($S$7=1,NL!I33,IF(cal!$S$7=2,EN!I33,IF(cal!$S$7=3,DE!I33,IF(cal!$S$7=4,FR!I33,IF(cal!$S$7=5,NR!I33,IF(cal!$S$7=6,SP!I33,IF(cal!$S$7=7,SW!I33,IF(cal!$S$7=8,TS!I33,IF(cal!$S$7=9,ExtraTaal1!I33,IF(cal!$S$7=10,ExtraTaal2!I33,IF(cal!$S$7=11,ExtraTaal3!I33,))))))))))) -> 0 | K34: =IF($S$7=1,NL!J33,IF(cal!$S$7=2,EN!J33,IF(cal!$S$7=3,DE!J33,IF(cal!$S$7=4,FR!J33,IF(cal!$S$7=5,NR!J33,IF(cal!$S$7=6,SP!J33,IF(cal!$S$7=7,SW!J33,IF(cal!$S$7=8,TS!J33,IF(cal!$S$7=9,ExtraTaal1!J33,IF(cal!$S$7=10,ExtraTaal2!J33,IF(cal!$S$7=11,ExtraTaal3!J33,))))))))))) -> 0 | L34: =IF($S$7=1,NL!K33,IF(cal!$S$7=2,EN!K33,IF(cal!$S$7=3,DE!K33,IF(cal!$S$7=4,FR!K33,IF(cal!$S$7=5,NR!K33,IF(cal!$S$7=6,SP!K33,IF(cal!$S$7=7,SW!K33,IF(cal!$S$7=8,TS!K33,IF(cal!$S$7=9,ExtraTaal1!K33,IF(cal!$S$7=10,ExtraTaal2!K33,IF(cal!$S$7=11,ExtraTaal3!K33,))))))))))) -> 0 | M34: =IF($S$7=1,NL!L33,IF(cal!$S$7=2,EN!L33,IF(cal!$S$7=3,DE!L33,IF(cal!$S$7=4,FR!L33,IF(cal!$S$7=5,NR!L33,IF(cal!$S$7=6,SP!L33,IF(cal!$S$7=7,SW!L33,IF(cal!$S$7=8,TS!L33,IF(cal!$S$7=9,ExtraTaal1!L33,IF(cal!$S$7=10,ExtraTaal2!L33,IF(cal!$S$7=11,ExtraTaal3!L33,))))))))))) -> 0 | N34: =IF($S$7=1,NL!M33,IF(cal!$S$7=2,EN!M33,IF(cal!$S$7=3,DE!M33,IF(cal!$S$7=4,FR!M33,IF(cal!$S$7=5,NR!M33,IF(cal!$S$7=6,SP!M33,IF(cal!$S$7=7,SW!M33,IF(cal!$S$7=8,TS!M33,IF(cal!$S$7=9,ExtraTaal1!M33,IF(cal!$S$7=10,ExtraTaal2!M33,IF(cal!$S$7=11,ExtraTaal3!M33,))))))))))) -> 0 | O34: =IF($S$7=1,NL!N33,IF(cal!$S$7=2,EN!N33,IF(cal!$S$7=3,DE!N33,IF(cal!$S$7=4,FR!N33,IF(cal!$S$7=5,NR!N33,IF(cal!$S$7=6,SP!N33,IF(cal!$S$7=7,SW!N33,IF(cal!$S$7=8,TS!N33,IF(cal!$S$7=9,ExtraTaal1!N33,IF(cal!$S$7=10,ExtraTaal2!N33,IF(cal!$S$7=11,ExtraTaal3!N33,))))))))))) -> 0 | P34: =IF($S$7=1,NL!O33,IF(cal!$S$7=2,EN!O33,IF(cal!$S$7=3,DE!O33,IF(cal!$S$7=4,FR!O33,IF(cal!$S$7=5,NR!O33,IF(cal!$S$7=6,SP!O33,IF(cal!$S$7=7,SW!O33,IF(cal!$S$7=8,TS!O33,IF(cal!$S$7=9,ExtraTaal1!O33,IF(cal!$S$7=10,ExtraTaal2!O33,IF(cal!$S$7=11,ExtraTaal3!O33,))))))))))) -> 0 | Q34: n-value | R34: n-value | S34: n-value | T34: n-value | U34: n-value | V34: n-value | X34: H | Y34: 19 | Z34: B | AA34: 34 | AB34: L | AC34: 200 | AD34: 0 | AE34: H | AF34: =AF28 -> 8 | AG34: B | AH34: =AH28 -> 18 | AI34: L | AJ34: =144*IF($X$4=1,1,IF($X$4=2,1/2.54)) -> 144 | AL34: H | AM34: =AM28 -> 10 | AN34: B | AO34: =AO28 -> 18 | AP34: L | AQ34: =AJ34 -> 144 | AW34: H | AX34: =AX22 -> 13 | AY34: B | AZ34: =AZ22 -> 27 | BA34: L | BB34: =IF($X$4=1,160.8,160.8/2.54) -> 160.8 | BD34: H | BE34: =BE22 -> 13 | BF34: B | BG34: =BG22 -> 32 | BH34: L | BI34: =IF($X$4=1,120,120/2.54) -> 120 | BK34: H | BL34: =BL22 -> 13 | BM34: B | BN34: =BN22 -> 32 | BO34: L | BP34: =IF($X$4=1,120,120/2.54) -> 120 | BS34: H | BT34: =BT28 -> 19 | BU34: B | BV34: =BV28 -> 34 | BW34: L | BX34: =200*IF($X$4=1,1,IF($X$4=2,1/2.54)) -> 200 | BZ34: H | CA34: =CA28 -> 19 | CB34: B | CC34: =CC28 -> 34 | CD34: L | CE34: =BX34 -> 200
B35: 0.2 | C35: 2 | D35: =(X35*($T$11^$Q35))*Watts*CF_Altit -> 4495.248009 | E35: =ROUND(((D35/Watts)/(($S$9-$S$10)*1.163))*$E$14,IF($X$4=1,0,IF($X$4=2,2))) -> 387 | F35: =($Y$36*(E35/$E$14)^$Y$38)*$F$14 -> 5.663532183 | G35: =(Z35*($W$11^R35))*Watts*CF_Altit -> 510.3278064 | H35: =((G35/Watts)/(IF((237.3*LN((RH*EXP(17.27*(Tl_cool/(Tl_cool+237.3))))))/(17.27-LN((RH*EXP(17.27*(Tl_cool/(Tl_cool+237.3))))))<Tavg_cold,1,IF(1/(1+((2258*((0.622/(($Z$11/(1*611*EXP(17.27*(Tavg_cold/(Tavg_cold+237.3))))))-1)*1000-(0.622/(($Z$11/(RH*611*EXP(17.27*(Tl_cool/(Tl_cool+237.3))))))-1)*1000))/(1005*(Tavg_cold-Tl_cool))))*1.039+((-0.000729*$C35+0.001448)*(Tl_cool-Tavg_cold)+(0.016908*$C35-0.033574))*1.039>1,1,1/(1+((2258*((0.622/(($Z$11/(1*611*EXP(17.27*(Tavg_cold/(Tavg_cold+237.3))))))-1)*1000-(0.622/(($Z$11/(RH*611*EXP(17.27*(Tl_cool/(Tl_cool+237.3))))))-1)*1000))/(1005*(Tavg_cold-Tl_cool))))*1.039+((-0.000729*$C35+0.001448)*(Tl_cool-Tavg_cold)+(0.016908*$C35-0.033574))*1.039))))*Watts -> 510.3278064 | I35: =ROUND(((H35/Watts)/((Tr_cool-Tv_cool)*1.163))*$I$14,IF($X$4=1,0,IF($X$4=2,2))) -> 146 | J35: =($AA$36*(I35/$I$14)^$AA$38)*$J$14 -> 0.8060670233 | K35: =L35-8 -> 22.52045193 | L35: =AB35 -> 30.52045193 | M35: 6.1 | N35: =AD35*Cubics -> 276 | O35: =((($D35/Watts)/(((p_atm*0.028964)/(8.31447*(20+273.15)))*(($N35/3600)/Cubics)*(1005+1870*((0.622)/(((p_atm)/($E$12*Pvs_Heat_in))-1)))))+Tl_heat)*Celc1+Celc2 -> 67.80797663 | P35: =(Tl_cool-(($G35/Watts)/(1006*$N35*kgss)))*Celc1+Celc2 -> 20.50436117 | Q35: 1 | R35: 0.8766 | S35: 0.6 | T35: 1.16 | U35: 0.7807 | V35: 0.8766 | W35: =(H35-G35)/H35 -> 0 | X35: =IF($X$16=1,AE35,IF($X$16=2,AL35,IF($X$16=3,BK35,IF($X$16=4,BD35,IF($X$16=5,BZ35,IF($X$16=6,BS35,IF($X$16=7,AW35,))))))) -> 4495.248009 | Y35: a | Z35: 592.1781267 | AA35: a | AB35: 30.52045193 | AC35: 6.1 | AD35: 276 | AE35: 1219 | AF35: a | AG35: 132 | AH35: a | AI35: 26 | AJ35: 1.2 | AK35: 84 | AL35: =AE35 -> 1219 | AM35: a | AN35: 132 | AO35: a | AP35: =AI35 -> 26 | AQ35: 1.2 | AR35: 84 | AT35: =(AG35*((((Tv_cool-Tr_cool)/LN((Tv_cool-Tl_cool)/(Tr_cool-Tl_cool)))/((16-18)/LN((16-27)/(18-27))))^S35))*$G$14 -> 0.03987305257 | AU35: =((AT35/$G$14)/(IF((237.3*LN((RH*EXP(17.27*(Tl_cool/(Tl_cool+237.3))))))/(17.27-LN((RH*EXP(17.27*(Tl_cool/(Tl_cool+237.3))))))<((Tv_cool+Tr_cool)/2),1,1/(1+((2258*((0.622/((p_atm/(1*611*EXP(17.27*(((Tv_cool+Tr_cool)/2)/(((Tv_cool+Tr_cool)/2)+237.3))))))-1)*1000-(0.622/((p_atm/(RH*611*EXP(17.27*(Tl_cool/(Tl_cool+237.3))))))-1)*1000))/(1005*(((Tv_cool+Tr_cool)/2)-Tl_cool))))+-((-0.000625*$C35+0.00625)*(Tl_cool-(Tv_cool+Tr_cool)/2)-(-0.000625*$C35+0.00625)*10))))*$H$14 -> 119.2217519 | AW35: 1367 | AX35: a | AY35: 156 | AZ35: a | BA35: 30.1 | BB35: 2 | BC35: 104 | BD35: 829.01223 | BE35: a | BF35: 199.6577032 | BG35: a | BH35: 29.5 | BI35: 1.992 | BJ35: 79 | BK35: 966.3528186 | BL35: a | BM35: 207.946552 | BN35: a | BO35: =BH35 -> 29.5 | BP35: 1.992 | BQ35: 79 | BS35: 2996.832006 | BT35: a | BU35: 538.3437516 | BV35: a | BW35: 30.52045193 | BX35: 6.1 | BY35: 276 | BZ35: 4495.248009 | CA35: a | CB35: 592.1781267 | CC35: a | CD35: 30.52045193 | CE35: 6.1 | CF35: 276
B36: 0.4 | C36: 4 | D36: =(X36*($T$11^$Q36))*Watts*CF_Altit -> 7094.228079 | E36: =ROUND(((D36/Watts)/(($S$9-$S$10)*1.163))*$E$14,IF($X$4=1,0,IF($X$4=2,2))) -> 610 | F36: =($Y$36*(E36/$E$14)^$Y$38)*$F$14 -> 14.07100485 | G36: =(Z36*($W$11^R36))*Watts*CF_Altit -> 996.911539 | H36: =((G36/Watts)/(IF((237.3*LN((RH*EXP(17.27*(Tl_cool/(Tl_cool+237.3))))))/(17.27-LN((RH*EXP(17.27*(Tl_cool/(Tl_cool+237.3))))))<Tavg_cold,1,IF(1/(1+((2258*((0.622/(($Z$11/(1*611*EXP(17.27*(Tavg_cold/(Tavg_cold+237.3))))))-1)*1000-(0.622/(($Z$11/(RH*611*EXP(17.27*(Tl_cool/(Tl_cool+237.3))))))-1)*1000))/(1005*(Tavg_cold-Tl_cool))))*1.039+((-0.000729*$C36+0.001448)*(Tl_cool-Tavg_cold)+(0.016908*$C36-0.033574))*1.039>1,1,1/(1+((2258*((0.622/(($Z$11/(1*611*EXP(17.27*(Tavg_cold/(Tavg_cold+237.3))))))-1)*1000-(0.622/(($Z$11/(RH*611*EXP(17.27*(Tl_cool/(Tl_cool+237.3))))))-1)*1000))/(1005*(Tavg_cold-Tl_cool))))*1.039+((-0.000729*$C36+0.001448)*(Tl_cool-Tavg_cold)+(0.016908*$C36-0.033574))*1.039))))*Watts -> 996.911539 | I36: =ROUND(((H36/Watts)/((Tr_cool-Tv_cool)*1.163))*$I$14,IF($X$4=1,0,IF($X$4=2,2))) -> 286 | J36: =($AA$36*(I36/$I$14)^$AA$38)*$J$14 -> 3.093125269 | K36: =L36-8 -> 26.14332731 | L36: 34.14332731 | M36: 12.1 | N36: =AD36*Cubics -> 513 | O36: =((($D36/Watts)/(((p_atm*0.028964)/(8.31447*(20+273.15)))*(($N36/3600)/Cubics)*(1005+1870*((0.622)/(((p_atm)/($E$12*Pvs_Heat_in))-1)))))+Tl_heat)*Celc1+Celc2 -> 60.59229162 | P36: =(Tl_cool-(($G36/Watts)/(1006*$N36*kgss)))*Celc1+Celc2 -> 20.22413158 | Q36: 1 | R36: 0.8775 | S36: 0.68 | T36: 1.04 | U36: 0.8587 | V36: 0.8775 | W36: =(H36-G36)/H36 -> 0 | X36: 7094.228079 | Y36: 3.78151165e-05 | Z36: 1156.980608 | AA36: 3.78151165e-05 | AB36: 34.14332731 | AC36: 12.1 | AD36: 513 | AE36: 2188 | AF36: 0.0007398952517 | AG36: 290 | AH36: =AF36 -> 0.0007398952517 | AI36: 30 | AJ36: 2.5 | AK36: 150 | AL36: =AE36 -> 2188 | AM36: =AH36 -> 0.0007398952517 | AN36: 290 | AO36: =AM36 -> 0.0007398952517 | AP36: 30 | AQ36: 2.5 | AR36: 150 | AT36: =(AG36*((((Tv_cool-Tr_cool)/LN((Tv_cool-Tl_cool)/(Tr_cool-Tl_cool)))/((16-18)/LN((16-27)/(18-27))))^S36))*$G$14 -> 0.08641870639 | AU36: =((AT36/$G$14)/(IF((237.3*LN((RH*EXP(17.27*(Tl_cool/(Tl_cool+237.3))))))/(17.27-LN((RH*EXP(17.27*(Tl_cool/(Tl_cool+237.3))))))<((Tv_cool+Tr_cool)/2),1,1/(1+((2258*((0.622/((p_atm/(1*611*EXP(17.27*(((Tv_cool+Tr_cool)/2)/(((Tv_cool+Tr_cool)/2)+237.3))))))-1)*1000-(0.622/((p_atm/(RH*611*EXP(17.27*(Tl_cool/(Tl_cool+237.3))))))-1)*1000))/(1005*(((Tv_cool+Tr_cool)/2)-Tl_cool))))+-((-0.000625*$C36+0.00625)*(Tl_cool-(Tv_cool+Tr_cool)/2)-(-0.000625*$C36+0.00625)*10))))*$H$14 -> 258.3948032 | AW36: 2229 | AX36: 8.8e-05 | AY36: 317 | AZ36: 6.72689e-06 | BA36: 34.9 | BB36: 3.6 | BC36: 156 | BD36: 1653.33177 | BE36: 5.62805e-05 | BF36: 362.5853216 | BG36: 1.502272831e-05 | BH36: 34 | BI36: 3.432 | BJ36: 129 | BK36: 2137.254644 | BL36: 4.307344432e-05 | BM36: 377.5787679 | BN36: =BL36 -> 4.307344432e-05 | BO36: 34 | BP36: 3.432 | BQ36: 129 | BS36: 4729.485386 | BT36: 4.150874885e-05 | BU36: 1051.800553 | BV36: 0.0001230293899 | BW36: 34.14332731 | BX36: 12.1 | BY36: 513 | BZ36: 7094.228079 | CA36: 3.78151165e-05 | CB36: 1156.980608 | CC36: 3.78151165e-05 | CD36: 34.14332731 | CE36: 12.1 | CF36: 513
B37: 0.6 | C37: 6 | D37: =(X37*($T$11^$Q37))*Watts*CF_Altit -> 9264.379517 | E37: =ROUND(((D37/Watts)/(($S$9-$S$10)*1.163))*$E$14,IF($X$4=1,0,IF($X$4=2,2))) -> 797 | F37: =($Y$36*(E37/$E$14)^$Y$38)*$F$14 -> 24.02050234 | G37: =(Z37*($W$11^R37))*Watts*CF_Altit -> 1473.924379 | H37: =((G37/Watts)/(IF((237.3*LN((RH*EXP(17.27*(Tl_cool/(Tl_cool+237.3))))))/(17.27-LN((RH*EXP(17.27*(Tl_cool/(Tl_cool+237.3))))))<Tavg_cold,1,IF(1/(1+((2258*((0.622/(($Z$11/(1*611*EXP(17.27*(Tavg_cold/(Tavg_cold+237.3))))))-1)*1000-(0.622/(($Z$11/(RH*611*EXP(17.27*(Tl_cool/(Tl_cool+237.3))))))-1)*1000))/(1005*(Tavg_cold-Tl_cool))))*1.039+((-0.000729*$C37+0.001448)*(Tl_cool-Tavg_cold)+(0.016908*$C37-0.033574))*1.039>1,1,1/(1+((2258*((0.622/(($Z$11/(1*611*EXP(17.27*(Tavg_cold/(Tavg_cold+237.3))))))-1)*1000-(0.622/(($Z$11/(RH*611*EXP(17.27*(Tl_cool/(Tl_cool+237.3))))))-1)*1000))/(1005*(Tavg_cold-Tl_cool))))*1.039+((-0.000729*$C37+0.001448)*(Tl_cool-Tavg_cold)+(0.016908*$C37-0.033574))*1.039))))*Watts -> 1473.924379 | I37: =ROUND(((H37/Watts)/((Tr_cool-Tv_cool)*1.163))*$I$14,IF($X$4=1,0,IF($X$4=2,2))) -> 422 | J37: =($AA$36*(I37/$I$14)^$AA$38)*$J$14 -> 6.734267207 | K37: =L37-8 -> 32.12345518 | L37: 40.12345518 | M37: 21.7 | N37: =AD37*Cubics -> 732 | O37: =((($D37/Watts)/(((p_atm*0.028964)/(8.31447*(20+273.15)))*(($N37/3600)/Cubics)*(1005+1870*((0.622)/(((p_atm)/($E$12*Pvs_Heat_in))-1)))))+Tl_heat)*Celc1+Celc2 -> 57.15019047 | P37: =(Tl_cool-(($G37/Watts)/(1006*$N37*kgss)))*Celc1+Celc2 -> 20.01530318 | Q37: 1 | R37: 0.882 | S37: 0.79 | T37: 0.95 | U37: 0.8831 | V37: 0.882 | W37: =(H37-G37)/H37 -> 0 | X37: =IF($X$16=1,AE37,IF($X$16=2,AL37,IF($X$16=3,BK37,IF($X$16=4,BD37,IF($X$16=5,BZ37,IF($X$16=6,BS37,IF($X$16=7,AW37,))))))) -> 9264.379517 | Y37: b | Z37: 1711.891743 | AA37: b | AB37: 40.12345518 | AC37: 21.7 | AD37: 732 | AE37: 3082 | AF37: b | AG37: 458 | AH37: b | AI37: 40 | AJ37: 5.4 | AK37: 196 | AL37: =AE37 -> 3082 | AM37: b | AN37: 458 | AO37: b | AP37: 40 | AQ37: 5.4 | AR37: 196 | AT37: =(AG37*((((Tv_cool-Tr_cool)/LN((Tv_cool-Tl_cool)/(Tr_cool-Tl_cool)))/((16-18)/LN((16-27)/(18-27))))^S37))*$G$14 -> 0.133957961 | AU37: =((AT37/$G$14)/(IF((237.3*LN((RH*EXP(17.27*(Tl_cool/(Tl_cool+237.3))))))/(17.27-LN((RH*EXP(17.27*(Tl_cool/(Tl_cool+237.3))))))<((Tv_cool+Tr_cool)/2),1,1/(1+((2258*((0.622/((p_atm/(1*611*EXP(17.27*(((Tv_cool+Tr_cool)/2)/(((Tv_cool+Tr_cool)/2)+237.3))))))-1)*1000-(0.622/((p_atm/(RH*611*EXP(17.27*(Tl_cool/(Tl_cool+237.3))))))-1)*1000))/(1005*(((Tv_cool+Tr_cool)/2)-Tl_cool))))+-((-0.000625*$C37+0.00625)*(Tl_cool-(Tv_cool+Tr_cool)/2)-(-0.000625*$C37+0.00625)*10))))*$H$14 -> 400.538754 | AW37: 2967 | AX37: b | AY37: 480 | AZ37: b | BA37: 40 | BB37: 7.2 | BC37: 246 | BD37: 2331.98127 | BE37: b | BF37: 521.2561271 | BG37: b | BH37: 39 | BI37: 6.4 | BJ37: 218 | BK37: 3186.057197 | BL37: b | BM37: 539.2383212 | BN37: b | BO37: 39 | BP37: 6.4 | BQ37: 218 | BS37: 6176.253011 | BT37: b | BU37: 1556.265221 | BV37: b | BW37: 40.12345518 | BX37: 21.7 | BY37: 732 | BZ37: 9264.379517 | CA37: b | CB37: 1711.891743 | CC37: b | CD37: 40.12345518 | CE37: 21.7 | CF37: 732
B38: 0.8 | C38: 8 | D38: =(X38*($T$11^$Q38))*Watts*CF_Altit -> 11195.83879 | E38: =ROUND(((D38/Watts)/(($S$9-$S$10)*1.163))*$E$14,IF($X$4=1,0,IF($X$4=2,2))) -> 963 | F38: =($Y$36*(E38/$E$14)^$Y$38)*$F$14 -> 35.06856677 | G38: =(Z38*($W$11^R38))*Watts*CF_Altit -> 1941.961594 | H38: =((G38/Watts)/(IF((237.3*LN((RH*EXP(17.27*(Tl_cool/(Tl_cool+237.3))))))/(17.27-LN((RH*EXP(17.27*(Tl_cool/(Tl_cool+237.3))))))<Tavg_cold,1,IF(1/(1+((2258*((0.622/(($Z$11/(1*611*EXP(17.27*(Tavg_cold/(Tavg_cold+237.3))))))-1)*1000-(0.622/(($Z$11/(RH*611*EXP(17.27*(Tl_cool/(Tl_cool+237.3))))))-1)*1000))/(1005*(Tavg_cold-Tl_cool))))*1.039+((-0.000729*$C38+0.001448)*(Tl_cool-Tavg_cold)+(0.016908*$C38-0.033574))*1.039>1,1,1/(1+((2258*((0.622/(($Z$11/(1*611*EXP(17.27*(Tavg_cold/(Tavg_cold+237.3))))))-1)*1000-(0.622/(($Z$11/(RH*611*EXP(17.27*(Tl_cool/(Tl_cool+237.3))))))-1)*1000))/(1005*(Tavg_cold-Tl_cool))))*1.039+((-0.000729*$C38+0.001448)*(Tl_cool-Tavg_cold)+(0.016908*$C38-0.033574))*1.039))))*Watts -> 1941.961594 | I38: =ROUND(((H38/Watts)/((Tr_cool-Tv_cool)*1.163))*$I$14,IF($X$4=1,0,IF($X$4=2,2))) -> 557 | J38: =($AA$36*(I38/$I$14)^$AA$38)*$J$14 -> 11.73210208 | K38: =L38-8 -> 40.13283624 | L38: 48.13283624 | M38: 37 | N38: =AD38*Cubics -> 969 | O38: =((($D38/Watts)/(((p_atm*0.028964)/(8.31447*(20+273.15)))*(($N38/3600)/Cubics)*(1005+1870*((0.622)/(((p_atm)/($E$12*Pvs_Heat_in))-1)))))+Tl_heat)*Celc1+Celc2 -> 53.91475214 | P38: =(Tl_cool-(($G38/Watts)/(1006*$N38*kgss)))*Celc1+Celc2 -> 20.04344861 | Q38: 1 | R38: 0.895 | S38: 0.87 | T38: 0.95 | U38: 0.8539 | V38: 0.895 | W38: =(H38-G38)/H38 -> 0 | X38: 11195.83879 | Y38: 2 | Z38: 2260.475466 | AA38: 2 | AB38: 48.13283624 | AC38: 37 | AD38: 969 | AE38: 3929 | AF38: 1.823515585 | AG38: 634 | AH38: =AF38 -> 1.823515585 | AI38: 45 | AJ38: 9.1 | AK38: 250 | AL38: =AE38 -> 3929 | AM38: =AH38 -> 1.823515585 | AN38: 634 | AO38: =AM38 -> 1.823515585 | AP38: 45 | AQ38: 9.1 | AR38: 250 | AT38: =(AG38*((((Tv_cool-Tr_cool)/LN((Tv_cool-Tl_cool)/(Tr_cool-Tl_cool)))/((16-18)/LN((16-27)/(18-27))))^S38))*$G$14 -> 0.182934879 | AU38: =((AT38/$G$14)/(IF((237.3*LN((RH*EXP(17.27*(Tl_cool/(Tl_cool+237.3))))))/(17.27-LN((RH*EXP(17.27*(Tl_cool/(Tl_cool+237.3))))))<((Tv_cool+Tr_cool)/2),1,1/(1+((2258*((0.622/((p_atm/(1*611*EXP(17.27*(((Tv_cool+Tr_cool)/2)/(((Tv_cool+Tr_cool)/2)+237.3))))))-1)*1000-(0.622/((p_atm/(RH*611*EXP(17.27*(Tl_cool/(Tl_cool+237.3))))))-1)*1000))/(1005*(((Tv_cool+Tr_cool)/2)-Tl_cool))))+-((-0.000625*$C38+0.00625)*(Tl_cool-(Tv_cool+Tr_cool)/2)-(-0.000625*$C38+0.00625)*10))))*$H$14 -> 546.9813659 | AW38: 3635 | AX38: 1.8 | AY38: 643 | AZ38: 2 | BA38: 47 | BB38: 13 | BC38: 336 | BD38: 2864.96073 | BE38: 1.87032 | BF38: 675.6701197 | BG38: 1.934141163 | BH38: 46.5 | BI38: 12.3 | BJ38: 285 | BK38: 4112.760476 | BL38: 1.862013137 | BM38: 692.925212 | BN38: =BL38 -> 1.862013137 | BO38: 46.5 | BP38: 12.3 | BQ38: 285 | BS38: 7463.892526 | BT38: 2 | BU38: 2054.977696 | BV38: 2 | BW38: 48.13283624 | BX38: 37 | BY38: 969 | BZ38: 11195.83879 | CA38: 2 | CB38: 2260.475466 | CC38: 2 | CD38: 48.13283624 | CE38: 37 | CF38: 969
B39: 1 | C39: 10 | D39: =(X39*($T$11^$Q39))*Watts*CF_Altit -> 12967.22862 | E39: =ROUND(((D39/Watts)/(($S$9-$S$10)*1.163))*$E$14,IF($X$4=1,0,IF($X$4=2,2))) -> 1115 | F39: =($Y$36*(E39/$E$14)^$Y$38)*$F$14 -> 47.01269821 | G39: =(Z39*($W$11^R39))*Watts*CF_Altit -> 2402.672239 | H39: =((G39/Watts)/(IF((237.3*LN((RH*EXP(17.27*(Tl_cool/(Tl_cool+237.3))))))/(17.27-LN((RH*EXP(17.27*(Tl_cool/(Tl_cool+237.3))))))<Tavg_cold,1,IF(1/(1+((2258*((0.622/(($Z$11/(1*611*EXP(17.27*(Tavg_cold/(Tavg_cold+237.3))))))-1)*1000-(0.622/(($Z$11/(RH*611*EXP(17.27*(Tl_cool/(Tl_cool+237.3))))))-1)*1000))/(1005*(Tavg_cold-Tl_cool))))*1.039+((-0.000729*$C39+0.001448)*(Tl_cool-Tavg_cold)+(0.016908*$C39-0.033574))*1.039>1,1,1/(1+((2258*((0.622/(($Z$11/(1*611*EXP(17.27*(Tavg_cold/(Tavg_cold+237.3))))))-1)*1000-(0.622/(($Z$11/(RH*611*EXP(17.27*(Tl_cool/(Tl_cool+237.3))))))-1)*1000))/(1005*(Tavg_cold-Tl_cool))))*1.039+((-0.000729*$C39+0.001448)*(Tl_cool-Tavg_cold)+(0.016908*$C39-0.033574))*1.039))))*Watts -> 2402.672239 | I39: =ROUND(((H39/Watts)/((Tr_cool-Tv_cool)*1.163))*$I$14,IF($X$4=1,0,IF($X$4=2,2))) -> 689 | J39: =($AA$36*(I39/$I$14)^$AA$38)*$J$14 -> 17.95162992 | K39: =L39-8 -> 45.13160809 | L39: 53.13160809 | M39: 53.8 | N39: =AD39*Cubics -> 1103 | O39: =((($D39/Watts)/(((p_atm*0.028964)/(8.31447*(20+273.15)))*(($N39/3600)/Cubics)*(1005+1870*((0.622)/(((p_atm)/($E$12*Pvs_Heat_in))-1)))))+Tl_heat)*Celc1+Celc2 -> 54.50860819 | P39: =(Tl_cool-(($G39/Watts)/(1006*$N39*kgss)))*Celc1+Celc2 -> 19.52563691 | Q39: 1 | R39: 0.9111 | S39: 0.91 | T39: 0.98 | U39: 0.7711 | V39: 0.9111 | W39: =(H39-G39)/H39 -> 0 | X39: 12967.22862 | Y39: 0 | Z39: 2804.401687 | AA39: 0 | AB39: 53.13160809 | AC39: 53.8 | AD39: 1103 | AE39: 4744 | AG39: 816 | AI39: 49 | AJ39: 14.1 | AK39: 320 | AL39: =AE39 -> 4744 | AN39: 816 | AP39: 49 | AQ39: 14.1 | AR39: 320 | AT39: =(AG39*((((Tv_cool-Tr_cool)/LN((Tv_cool-Tl_cool)/(Tr_cool-Tl_cool)))/((16-18)/LN((16-27)/(18-27))))^S39))*$G$14 -> 0.2338565417 | AU39: =((AT39/$G$14)/(IF((237.3*LN((RH*EXP(17.27*(Tl_cool/(Tl_cool+237.3))))))/(17.27-LN((RH*EXP(17.27*(Tl_cool/(Tl_cool+237.3))))))<((Tv_cool+Tr_cool)/2),1,1/(1+((2258*((0.622/((p_atm/(1*611*EXP(17.27*(((Tv_cool+Tr_cool)/2)/(((Tv_cool+Tr_cool)/2)+237.3))))))-1)*1000-(0.622/((p_atm/(RH*611*EXP(17.27*(Tl_cool/(Tl_cool+237.3))))))-1)*1000))/(1005*(((Tv_cool+Tr_cool)/2)-Tl_cool))))+-((-0.000625*$C39+0.00625)*(Tl_cool-(Tv_cool+Tr_cool)/2)-(-0.000625*$C39+0.00625)*10))))*$H$14 -> 699.2388289 | AW39: 4255 | AY39: 808 | BA39: 50.1 | BB39: 19.7 | BC39: 404 | BD39: 3252.27015 | BF39: 825.8272995 | BH39: 49.5 | BI39: 19.1 | BJ39: 339 | BK39: 4917.364482 | BM39: 838.6394404 | BO39: 49.5 | BP39: 19.1 | BQ39: 339 | BS39: 8644.819082 | BU39: 2549.456079 | BW39: 53.13160809 | BX39: 53.8 | BY39: 1103 | BZ39: 12967.22862 | CB39: 2804.401687 | CD39: 53.13160809 | CE39: 53.8 | CF39: 1103
B40: =IF($S$7=1,NL!A39,IF(cal!$S$7=2,EN!A39,IF(cal!$S$7=3,DE!A39,IF(cal!$S$7=4,FR!A39,IF(cal!$S$7=5,NR!A39,IF(cal!$S$7=6,SP!A39,IF(cal!$S$7=7,SW!A39,IF(cal!$S$7=8,TS!A39,IF(cal!$S$7=9,ExtraTaal1!A39,IF(cal!$S$7=10,ExtraTaal2!A39,IF(cal!$S$7=11,ExtraTaal3!A39,))))))))))) -> Clima Canal altura 0 cm ancho 0 cm longitud 0 cm (Type 5) | C40: =IF($S$7=1,NL!B39,IF(cal!$S$7=2,EN!B39,IF(cal!$S$7=3,DE!B39,IF(cal!$S$7=4,FR!B39,IF(cal!$S$7=5,NR!B39,IF(cal!$S$7=6,SP!B39,IF(cal!$S$7=7,SW!B39,IF(cal!$S$7=8,TS!B39,IF(cal!$S$7=9,ExtraTaal1!B39,IF(cal!$S$7=10,ExtraTaal2!B39,IF(cal!$S$7=11,ExtraTaal3!B39,))))))))))) -> 0 | D40: =IF($S$7=1,NL!C39,IF(cal!$S$7=2,EN!C39,IF(cal!$S$7=3,DE!C39,IF(cal!$S$7=4,FR!C39,IF(cal!$S$7=5,NR!C39,IF(cal!$S$7=6,SP!C39,IF(cal!$S$7=7,SW!C39,IF(cal!$S$7=8,TS!C39,IF(cal!$S$7=9,ExtraTaal1!C39,IF(cal!$S$7=10,ExtraTaal2!C39,IF(cal!$S$7=11,ExtraTaal3!C39,))))))))))) -> 0 | E40: =IF($S$7=1,NL!D39,IF(cal!$S$7=2,EN!D39,IF(cal!$S$7=3,DE!D39,IF(cal!$S$7=4,FR!D39,IF(cal!$S$7=5,NR!D39,IF(cal!$S$7=6,SP!D39,IF(cal!$S$7=7,SW!D39,IF(cal!$S$7=8,TS!D39,IF(cal!$S$7=9,ExtraTaal1!D39,IF(cal!$S$7=10,ExtraTaal2!D39,IF(cal!$S$7=11,ExtraTaal3!D39,))))))))))) -> 0 | F40: =IF($S$7=1,NL!E39,IF(cal!$S$7=2,EN!E39,IF(cal!$S$7=3,DE!E39,IF(cal!$S$7=4,FR!E39,IF(cal!$S$7=5,NR!E39,IF(cal!$S$7=6,SP!E39,IF(cal!$S$7=7,SW!E39,IF(cal!$S$7=8,TS!E39,IF(cal!$S$7=9,ExtraTaal1!E39,IF(cal!$S$7=10,ExtraTaal2!E39,IF(cal!$S$7=11,ExtraTaal3!E39,))))))))))) -> 0 | G40: =IF($S$7=1,NL!F39,IF(cal!$S$7=2,EN!F39,IF(cal!$S$7=3,DE!F39,IF(cal!$S$7=4,FR!F39,IF(cal!$S$7=5,NR!F39,IF(cal!$S$7=6,SP!F39,IF(cal!$S$7=7,SW!F39,IF(cal!$S$7=8,TS!F39,IF(cal!$S$7=9,ExtraTaal1!F39,IF(cal!$S$7=10,ExtraTaal2!F39,IF(cal!$S$7=11,ExtraTaal3!F39,))))))))))) -> 0 | H40: =IF($S$7=1,NL!G39,IF(cal!$S$7=2,EN!G39,IF(cal!$S$7=3,DE!G39,IF(cal!$S$7=4,FR!G39,IF(cal!$S$7=5,NR!G39,IF(cal!$S$7=6,SP!G39,IF(cal!$S$7=7,SW!G39,IF(cal!$S$7=8,TS!G39,IF(cal!$S$7=9,ExtraTaal1!G39,IF(cal!$S$7=10,ExtraTaal2!G39,IF(cal!$S$7=11,ExtraTaal3!G39,))))))))))) -> 0 | I40: =IF($S$7=1,NL!H39,IF(cal!$S$7=2,EN!H39,IF(cal!$S$7=3,DE!H39,IF(cal!$S$7=4,FR!H39,IF(cal!$S$7=5,NR!H39,IF(cal!$S$7=6,SP!H39,IF(cal!$S$7=7,SW!H39,IF(cal!$S$7=8,TS!H39,IF(cal!$S$7=9,ExtraTaal1!H39,IF(cal!$S$7=10,ExtraTaal2!H39,IF(cal!$S$7=11,ExtraTaal3!H39,))))))))))) -> 0 | J40: =IF($S$7=1,NL!I39,IF(cal!$S$7=2,EN!I39,IF(cal!$S$7=3,DE!I39,IF(cal!$S$7=4,FR!I39,IF(cal!$S$7=5,NR!I39,IF(cal!$S$7=6,SP!I39,IF(cal!$S$7=7,SW!I39,IF(cal!$S$7=8,TS!I39,IF(cal!$S$7=9,ExtraTaal1!I39,IF(cal!$S$7=10,ExtraTaal2!I39,IF(cal!$S$7=11,ExtraTaal3!I39,))))))))))) -> 0 | K40: =IF($S$7=1,NL!J39,IF(cal!$S$7=2,EN!J39,IF(cal!$S$7=3,DE!J39,IF(cal!$S$7=4,FR!J39,IF(cal!$S$7=5,NR!J39,IF(cal!$S$7=6,SP!J39,IF(cal!$S$7=7,SW!J39,IF(cal!$S$7=8,TS!J39,IF(cal!$S$7=9,ExtraTaal1!J39,IF(cal!$S$7=10,ExtraTaal2!J39,IF(cal!$S$7=11,ExtraTaal3!J39,))))))))))) -> 0 | L40: =IF($S$7=1,NL!K39,IF(cal!$S$7=2,EN!K39,IF(cal!$S$7=3,DE!K39,IF(cal!$S$7=4,FR!K39,IF(cal!$S$7=5,NR!K39,IF(cal!$S$7=6,SP!K39,IF(cal!$S$7=7,SW!K39,IF(cal!$S$7=8,TS!K39,IF(cal!$S$7=9,ExtraTaal1!K39,IF(cal!$S$7=10,ExtraTaal2!K39,IF(cal!$S$7=11,ExtraTaal3!K39,))))))))))) -> 0 | M40: =IF($S$7=1,NL!L39,IF(cal!$S$7=2,EN!L39,IF(cal!$S$7=3,DE!L39,IF(cal!$S$7=4,FR!L39,IF(cal!$S$7=5,NR!L39,IF(cal!$S$7=6,SP!L39,IF(cal!$S$7=7,SW!L39,IF(cal!$S$7=8,TS!L39,IF(cal!$S$7=9,ExtraTaal1!L39,IF(cal!$S$7=10,ExtraTaal2!L39,IF(cal!$S$7=11,ExtraTaal3!L39,))))))))))) -> 0 | N40: =IF($S$7=1,NL!M39,IF(cal!$S$7=2,EN!M39,IF(cal!$S$7=3,DE!M39,IF(cal!$S$7=4,FR!M39,IF(cal!$S$7=5,NR!M39,IF(cal!$S$7=6,SP!M39,IF(cal!$S$7=7,SW!M39,IF(cal!$S$7=8,TS!M39,IF(cal!$S$7=9,ExtraTaal1!M39,IF(cal!$S$7=10,ExtraTaal2!M39,IF(cal!$S$7=11,ExtraTaal3!M39,))))))))))) -> 0 | O40: =IF($S$7=1,NL!N39,IF(cal!$S$7=2,EN!N39,IF(cal!$S$7=3,DE!N39,IF(cal!$S$7=4,FR!N39,IF(cal!$S$7=5,NR!N39,IF(cal!$S$7=6,SP!N39,IF(cal!$S$7=7,SW!N39,IF(cal!$S$7=8,TS!N39,IF(cal!$S$7=9,ExtraTaal1!N39,IF(cal!$S$7=10,ExtraTaal2!N39,IF(cal!$S$7=11,ExtraTaal3!N39,))))))))))) -> 0 | P40: =IF($S$7=1,NL!O39,IF(cal!$S$7=2,EN!O39,IF(cal!$S$7=3,DE!O39,IF(cal!$S$7=4,FR!O39,IF(cal!$S$7=5,NR!O39,IF(cal!$S$7=6,SP!O39,IF(cal!$S$7=7,SW!O39,IF(cal!$S$7=8,TS!O39,IF(cal!$S$7=9,ExtraTaal1!O39,IF(cal!$S$7=10,ExtraTaal2!O39,IF(cal!$S$7=11,ExtraTaal3!O39,))))))))))) -> 0 | Q40: n-value | R40: n-value | S40: n-value | T40: n-value | U40: n-value | V40: n-value | X40: H | Y40: 19 | Z40: B | AA40: 34 | AB40: L | AC40: 280 | AD40: 0 | AE40: H | AF40: =AF34 -> 8 | AG40: B | AH40: =AH34 -> 18 | AI40: L | AJ40: =180*IF($X$4=1,1,IF($X$4=2,1/2.54)) -> 180 | AL40: H | AM40: =AM34 -> 10 | AN40: B | AO40: =AO34 -> 18 | AP40: L | AQ40: =AJ40 -> 180 | AW40: H | AX40: =AX22 -> 13 | AY40: B | AZ40: =AZ22 -> 27 | BA40: L | BB40: =IF($X$4=1,180.3,180.3/2.54) -> 180.3 | BD40: H | BE40: =BE22 -> 13 | BF40: B | BG40: =BG22 -> 32 | BH40: L | BI40: =IF($X$4=1,140,140/2.54) -> 140 | BK40: H | BL40: =BL22 -> 13 | BM40: B | BN40: =BN22 -> 32 | BO40: L | BP40: =IF($X$4=1,140,140/2.54) -> 140 | BS40: H | BT40: =BT34 -> 19 | BU40: B | BV40: =BV34 -> 34 | BW40: L | BX40: =280*IF($X$4=1,1,IF($X$4=2,1/2.54)) -> 280 | BZ40: H | CA40: =CA34 -> 19 | CB40: B | CC40: =CC34 -> 34 | CD40: L | CE40: =BX40 -> 280
B41: 0.2 | C41: 2 | D41: =(X41*($T$11^$Q41))*Watts*CF_Altit -> 0 | E41: =ROUND(((D41/Watts)/(($S$9-$S$10)*1.163))*$E$14,IF($X$4=1,0,IF($X$4=2,2))) -> 0 | F41: =($Y$42*(E41/$E$14)^$Y$44)*$F$14 ->  | G41: =(Z41*($W$11^R41))*Watts*CF_Altit -> 0 | H41: =((G41/Watts)/(IF((237.3*LN((RH*EXP(17.27*(Tl_cool/(Tl_cool+237.3))))))/(17.27-LN((RH*EXP(17.27*(Tl_cool/(Tl_cool+237.3))))))<Tavg_cold,1,IF(1/(1+((2258*((0.622/(($Z$11/(1*611*EXP(17.27*(Tavg_cold/(Tavg_cold+237.3))))))-1)*1000-(0.622/(($Z$11/(RH*611*EXP(17.27*(Tl_cool/(Tl_cool+237.3))))))-1)*1000))/(1005*(Tavg_cold-Tl_cool))))*1.039+((-0.000729*$C41+0.001448)*(Tl_cool-Tavg_cold)+(0.016908*$C41-0.033574))*1.039>1,1,1/(1+((2258*((0.622/(($Z$11/(1*611*EXP(17.27*(Tavg_cold/(Tavg_cold+237.3))))))-1)*1000-(0.622/(($Z$11/(RH*611*EXP(17.27*(Tl_cool/(Tl_cool+237.3))))))-1)*1000))/(1005*(Tavg_cold-Tl_cool))))*1.039+((-0.000729*$C41+0.001448)*(Tl_cool-Tavg_cold)+(0.016908*$C41-0.033574))*1.039))))*Watts -> 0 | I41: =ROUND(((H41/Watts)/((Tr_cool-Tv_cool)*1.163))*$I$14,IF($X$4=1,0,IF($X$4=2,2))) -> 0 | J41: =($AA$42*(I41/$I$14)^$AA$44)*$J$14 ->  | K41: =L41-8 -> -8 | L41: =AB41 -> 0 | M41: 0 | N41: =AD41*Cubics -> 0 | O41: =((($D41/Watts)/(((p_atm*0.028964)/(8.31447*(20+273.15)))*(($N41/3600)/Cubics)*(1005+1870*((0.622)/(((p_atm)/($E$12*Pvs_Heat_in))-1)))))+Tl_heat)*Celc1+Celc2 ->  | P41: =(Tl_cool-(($G41/Watts)/(1006*$N41*kgss)))*Celc1+Celc2 ->  | Q41: 1 | R41: 0 | S41: 0 | T41: 0 | U41: 0.7807 | V41: 0 | W41: =(H41-G41)/H41 ->  | X41: =IF($X$16=1,AE41,IF($X$16=2,AL41,IF($X$16=3,BK41,IF($X$16=4,BD41,IF($X$16=5,BZ41,IF($X$16=6,BS41,IF($X$16=7,AW41,))))))) -> 0 | Y41: 0 | Z41: 0 | AA41: 0 | AB41: 0 | AC41: 0 | AD41: 0 | BD41: 1069.30563 | BE41: a | BF41: 257.5295012 | BG41: a | BH41: 30 | BI41: 2.384 | BJ41: 84 | BK41: 1246.455085 | BL41: a | BM41: 268.220915 | BN41: a | BO41: =BH41 -> 30 | BP41: 2.384 | BQ41: 84
B42: 0.4 | C42: 4 | D42: =(X42*($T$11^$Q42))*Watts*CF_Altit -> 0 | E42: =ROUND(((D42/Watts)/(($S$9-$S$10)*1.163))*$E$14,IF($X$4=1,0,IF($X$4=2,2))) -> 0 | F42: =($Y$42*(E42/$E$14)^$Y$44)*$F$14 ->  | G42: =(Z42*($W$11^R42))*Watts*CF_Altit -> 0 | H42: =((G42/Watts)/(IF((237.3*LN((RH*EXP(17.27*(Tl_cool/(Tl_cool+237.3))))))/(17.27-LN((RH*EXP(17.27*(Tl_cool/(Tl_cool+237.3))))))<Tavg_cold,1,IF(1/(1+((2258*((0.622/(($Z$11/(1*611*EXP(17.27*(Tavg_cold/(Tavg_cold+237.3))))))-1)*1000-(0.622/(($Z$11/(RH*611*EXP(17.27*(Tl_cool/(Tl_cool+237.3))))))-1)*1000))/(1005*(Tavg_cold-Tl_cool))))*1.039+((-0.000729*$C42+0.001448)*(Tl_cool-Tavg_cold)+(0.016908*$C42-0.033574))*1.039>1,1,1/(1+((2258*((0.622/(($Z$11/(1*611*EXP(17.27*(Tavg_cold/(Tavg_cold+237.3))))))-1)*1000-(0.622/(($Z$11/(RH*611*EXP(17.27*(Tl_cool/(Tl_cool+237.3))))))-1)*1000))/(1005*(Tavg_cold-Tl_cool))))*1.039+((-0.000729*$C42+0.001448)*(Tl_cool-Tavg_cold)+(0.016908*$C42-0.033574))*1.039))))*Watts -> 0 | I42: =ROUND(((H42/Watts)/((Tr_cool-Tv_cool)*1.163))*$I$14,IF($X$4=1,0,IF($X$4=2,2))) -> 0 | J42: =($AA$42*(I42/$I$14)^$AA$44)*$J$14 ->  | K42: =L42-8 -> -8 | L42: 0 | M42: 0 | N42: =AD42*Cubics -> 0 | O42: =((($D42/Watts)/(((p_atm*0.028964)/(8.31447*(20+273.15)))*(($N42/3600)/Cubics)*(1005+1870*((0.622)/(((p_atm)/($E$12*Pvs_Heat_in))-1)))))+Tl_heat)*Celc1+Celc2 ->  | P42: =(Tl_cool-(($G42/Watts)/(1006*$N42*kgss)))*Celc1+Celc2 ->  | Q42: 1 | R42: 0 | S42: 0 | T42: 0 | U42: 0.8587 | V42: 0 | W42: =(H42-G42)/H42 ->  | X42: 0 | Y42: 0 | Z42: 0 | AA42: 0 | AB42: 0 | AC42: 0 | AD42: 0 | BD42: 2132.55837 | BE42: 6.89335e-05 | BF42: 467.6825162 | BG42: 1.639678788e-05 | BH42: 35 | BI42: 4.032 | BJ42: 158 | BK42: 2756.748744 | BL42: 5.397374607e-05 | BM42: 487.021889 | BN42: =BL42 -> 5.397374607e-05 | BO42: 35 | BP42: 4.032 | BQ42: 158
B43: 0.6 | C43: 6 | D43: =(X43*($T$11^$Q43))*Watts*CF_Altit -> 0 | E43: =ROUND(((D43/Watts)/(($S$9-$S$10)*1.163))*$E$14,IF($X$4=1,0,IF($X$4=2,2))) -> 0 | F43: =($Y$42*(E43/$E$14)^$Y$44)*$F$14 ->  | G43: =(Z43*($W$11^R43))*Watts*CF_Altit -> 0 | H43: =((G43/Watts)/(IF((237.3*LN((RH*EXP(17.27*(Tl_cool/(Tl_cool+237.3))))))/(17.27-LN((RH*EXP(17.27*(Tl_cool/(Tl_cool+237.3))))))<Tavg_cold,1,IF(1/(1+((2258*((0.622/(($Z$11/(1*611*EXP(17.27*(Tavg_cold/(Tavg_cold+237.3))))))-1)*1000-(0.622/(($Z$11/(RH*611*EXP(17.27*(Tl_cool/(Tl_cool+237.3))))))-1)*1000))/(1005*(Tavg_cold-Tl_cool))))*1.039+((-0.000729*$C43+0.001448)*(Tl_cool-Tavg_cold)+(0.016908*$C43-0.033574))*1.039>1,1,1/(1+((2258*((0.622/(($Z$11/(1*611*EXP(17.27*(Tavg_cold/(Tavg_cold+237.3))))))-1)*1000-(0.622/(($Z$11/(RH*611*EXP(17.27*(Tl_cool/(Tl_cool+237.3))))))-1)*1000))/(1005*(Tavg_cold-Tl_cool))))*1.039+((-0.000729*$C43+0.001448)*(Tl_cool-Tavg_cold)+(0.016908*$C43-0.033574))*1.039))))*Watts -> 0 | I43: =ROUND(((H43/Watts)/((Tr_cool-Tv_cool)*1.163))*$I$14,IF($X$4=1,0,IF($X$4=2,2))) -> 0 | J43: =($AA$42*(I43/$I$14)^$AA$44)*$J$14 ->  | K43: =L43-8 -> -8 | L43: 0 | M43: 0 | N43: =AD43*Cubics -> 0 | O43: =((($D43/Watts)/(((p_atm*0.028964)/(8.31447*(20+273.15)))*(($N43/3600)/Cubics)*(1005+1870*((0.622)/(((p_atm)/($E$12*Pvs_Heat_in))-1)))))+Tl_heat)*Celc1+Celc2 ->  | P43: =(Tl_cool-(($G43/Watts)/(1006*$N43*kgss)))*Celc1+Celc2 ->  | Q43: 1 | R43: 0 | S43: 0 | T43: 0 | U43: 0.8831 | V43: 0 | W43: =(H43-G43)/H43 ->  | X43: =IF($X$16=1,AE43,IF($X$16=2,AL43,IF($X$16=3,BK43,IF($X$16=4,BD43,IF($X$16=5,BZ43,IF($X$16=6,BS43,IF($X$16=7,AW43,))))))) -> 0 | Y43: 0 | Z43: 0 | AA43: 0 | AB43: 0 | AC43: 0 | AD43: 0 | BD43: 3007.91787 | BE43: b | BF43: 672.3448596 | BG43: b | BH43: 40 | BI43: 7.4 | BJ43: 259 | BK43: 4109.552037 | BL43: b | BM43: 695.5392839 | BN43: b | BO43: 40 | BP43: 7.4 | BQ43: 259
B44: 0.8 | C44: 8 | D44: =(X44*($T$11^$Q44))*Watts*CF_Altit -> 0 | E44: =ROUND(((D44/Watts)/(($S$9-$S$10)*1.163))*$E$14,IF($X$4=1,0,IF($X$4=2,2))) -> 0 | F44: =($Y$42*(E44/$E$14)^$Y$44)*$F$14 ->  | G44: =(Z44*($W$11^R44))*Watts*CF_Altit -> 0 | H44: =((G44/Watts)/(IF((237.3*LN((RH*EXP(17.27*(Tl_cool/(Tl_cool+237.3))))))/(17.27-LN((RH*EXP(17.27*(Tl_cool/(Tl_cool+237.3))))))<Tavg_cold,1,IF(1/(1+((2258*((0.622/(($Z$11/(1*611*EXP(17.27*(Tavg_cold/(Tavg_cold+237.3))))))-1)*1000-(0.622/(($Z$11/(RH*611*EXP(17.27*(Tl_cool/(Tl_cool+237.3))))))-1)*1000))/(1005*(Tavg_cold-Tl_cool))))*1.039+((-0.000729*$C44+0.001448)*(Tl_cool-Tavg_cold)+(0.016908*$C44-0.033574))*1.039>1,1,1/(1+((2258*((0.622/(($Z$11/(1*611*EXP(17.27*(Tavg_cold/(Tavg_cold+237.3))))))-1)*1000-(0.622/(($Z$11/(RH*611*EXP(17.27*(Tl_cool/(Tl_cool+237.3))))))-1)*1000))/(1005*(Tavg_cold-Tl_cool))))*1.039+((-0.000729*$C44+0.001448)*(Tl_cool-Tavg_cold)+(0.016908*$C44-0.033574))*1.039))))*Watts -> 0 | I44: =ROUND(((H44/Watts)/((Tr_cool-Tv_cool)*1.163))*$I$14,IF($X$4=1,0,IF($X$4=2,2))) -> 0 | J44: =($AA$42*(I44/$I$14)^$AA$44)*$J$14 ->  | K44: =L44-8 -> -8 | L44: 0 | M44: 0 | N44: =AD44*Cubics -> 0 | O44: =((($D44/Watts)/(((p_atm*0.028964)/(8.31447*(20+273.15)))*(($N44/3600)/Cubics)*(1005+1870*((0.622)/(((p_atm)/($E$12*Pvs_Heat_in))-1)))))+Tl_heat)*Celc1+Celc2 ->  | P44: =(Tl_cool-(($G44/Watts)/(1006*$N44*kgss)))*Celc1+Celc2 ->  | Q44: 1 | R44: 0 | S44: 0 | T44: 0 | U44: 0.8539 | V44: 0 | W44: =(H44-G44)/H44 ->  | X44: 0 | Y44: 0 | Z44: 0 | AA44: 0 | AB44: 0 | AC44: 0 | AD44: 0 | BD44: 3695.38413 | BE44: 1.85702 | BF44: 871.5165312 | BG44: 1.927312081 | BH44: 47 | BI44: 13.1 | BJ44: 352 | BK44: 5304.864962 | BL44: 1.846625854 | BM44: 893.7730996 | BN44: =BL44 -> 1.846625854 | BO44: 47 | BP44: 13.1 | BQ44: 352
B45: 1 | C45: 10 | D45: =(X45*($T$11^$Q45))*Watts*CF_Altit -> 0 | E45: =ROUND(((D45/Watts)/(($S$9-$S$10)*1.163))*$E$14,IF($X$4=1,0,IF($X$4=2,2))) -> 0 | F45: =($Y$42*(E45/$E$14)^$Y$44)*$F$14 ->  | G45: =(Z45*($W$11^R45))*Watts*CF_Altit -> 0 | H45: =((G45/Watts)/(IF((237.3*LN((RH*EXP(17.27*(Tl_cool/(Tl_cool+237.3))))))/(17.27-LN((RH*EXP(17.27*(Tl_cool/(Tl_cool+237.3))))))<Tavg_cold,1,IF(1/(1+((2258*((0.622/(($Z$11/(1*611*EXP(17.27*(Tavg_cold/(Tavg_cold+237.3))))))-1)*1000-(0.622/(($Z$11/(RH*611*EXP(17.27*(Tl_cool/(Tl_cool+237.3))))))-1)*1000))/(1005*(Tavg_cold-Tl_cool))))*1.039+((-0.000729*$C45+0.001448)*(Tl_cool-Tavg_cold)+(0.016908*$C45-0.033574))*1.039>1,1,1/(1+((2258*((0.622/(($Z$11/(1*611*EXP(17.27*(Tavg_cold/(Tavg_cold+237.3))))))-1)*1000-(0.622/(($Z$11/(RH*611*EXP(17.27*(Tl_cool/(Tl_cool+237.3))))))-1)*1000))/(1005*(Tavg_cold-Tl_cool))))*1.039+((-0.000729*$C45+0.001448)*(Tl_cool-Tavg_cold)+(0.016908*$C45-0.033574))*1.039))))*Watts -> 0 | I45: =ROUND(((H45/Watts)/((Tr_cool-Tv_cool)*1.163))*$I$14,IF($X$4=1,0,IF($X$4=2,2))) -> 0 | J45: =($AA$42*(I45/$I$14)^$AA$44)*$J$14 ->  | K45: =L45-8 -> -8 | L45: 0 | M45: 0 | N45: =AD45*Cubics -> 0 | O45: =((($D45/Watts)/(((p_atm*0.028964)/(8.31447*(20+273.15)))*(($N45/3600)/Cubics)*(1005+1870*((0.622)/(((p_atm)/($E$12*Pvs_Heat_in))-1)))))+Tl_heat)*Celc1+Celc2 ->  | P45: =(Tl_cool-(($G45/Watts)/(1006*$N45*kgss)))*Celc1+Celc2 ->  | Q45: 1 | R45: 0 | S45: 0 | T45: 0 | U45: 0.7711 | V45: 0 | W45: =(H45-G45)/H45 ->  | X45: 0 | Y45: 0 | Z45: 0 | AA45: 0 | AB45: 0 | AC45: 0 | AD45: 0 | BD45: 4194.95715 | BF45: 1065.197531 | BH45: 50 | BI45: 19.4 | BJ45: 410 | BK45: 6342.68752 | BM45: 1081.723336 | BO45: 50 | BP45: 19.4 | BQ45: 410
B46: =IF($S$7=1,NL!A45,IF(cal!$S$7=2,EN!A45,IF(cal!$S$7=3,DE!A45,IF(cal!$S$7=4,FR!A45,IF(cal!$S$7=5,NR!A45,IF(cal!$S$7=6,SP!A45,IF(cal!$S$7=7,SW!A45,IF(cal!$S$7=8,TS!A45,IF(cal!$S$7=9,ExtraTaal1!A45,IF(cal!$S$7=10,ExtraTaal2!A45,IF(cal!$S$7=11,ExtraTaal3!A45,))))))))))) -> Clima Canal altura 0 cm ancho 0 cm longitud 0 cm (Type 6) | C46: =IF($S$7=1,NL!B45,IF(cal!$S$7=2,EN!B45,IF(cal!$S$7=3,DE!B45,IF(cal!$S$7=4,FR!B45,IF(cal!$S$7=5,NR!B45,IF(cal!$S$7=6,SP!B45,IF(cal!$S$7=7,SW!B45,IF(cal!$S$7=8,TS!B45,IF(cal!$S$7=9,ExtraTaal1!B45,IF(cal!$S$7=10,ExtraTaal2!B45,IF(cal!$S$7=11,ExtraTaal3!B45,))))))))))) -> 0 | D46: =IF($S$7=1,NL!C45,IF(cal!$S$7=2,EN!C45,IF(cal!$S$7=3,DE!C45,IF(cal!$S$7=4,FR!C45,IF(cal!$S$7=5,NR!C45,IF(cal!$S$7=6,SP!C45,IF(cal!$S$7=7,SW!C45,IF(cal!$S$7=8,TS!C45,IF(cal!$S$7=9,ExtraTaal1!C45,IF(cal!$S$7=10,ExtraTaal2!C45,IF(cal!$S$7=11,ExtraTaal3!C45,))))))))))) -> 0 | E46: =IF($S$7=1,NL!D45,IF(cal!$S$7=2,EN!D45,IF(cal!$S$7=3,DE!D45,IF(cal!$S$7=4,FR!D45,IF(cal!$S$7=5,NR!D45,IF(cal!$S$7=6,SP!D45,IF(cal!$S$7=7,SW!D45,IF(cal!$S$7=8,TS!D45,IF(cal!$S$7=9,ExtraTaal1!D45,IF(cal!$S$7=10,ExtraTaal2!D45,IF(cal!$S$7=11,ExtraTaal3!D45,))))))))))) -> 0 | F46: =IF($S$7=1,NL!E45,IF(cal!$S$7=2,EN!E45,IF(cal!$S$7=3,DE!E45,IF(cal!$S$7=4,FR!E45,IF(cal!$S$7=5,NR!E45,IF(cal!$S$7=6,SP!E45,IF(cal!$S$7=7,SW!E45,IF(cal!$S$7=8,TS!E45,IF(cal!$S$7=9,ExtraTaal1!E45,IF(cal!$S$7=10,ExtraTaal2!E45,IF(cal!$S$7=11,ExtraTaal3!E45,))))))))))) -> 0 | G46: =IF($S$7=1,NL!F45,IF(cal!$S$7=2,EN!F45,IF(cal!$S$7=3,DE!F45,IF(cal!$S$7=4,FR!F45,IF(cal!$S$7=5,NR!F45,IF(cal!$S$7=6,SP!F45,IF(cal!$S$7=7,SW!F45,IF(cal!$S$7=8,TS!F45,IF(cal!$S$7=9,ExtraTaal1!F45,IF(cal!$S$7=10,ExtraTaal2!F45,IF(cal!$S$7=11,ExtraTaal3!F45,))))))))))) -> 0 | H46: =IF($S$7=1,NL!G45,IF(cal!$S$7=2,EN!G45,IF(cal!$S$7=3,DE!G45,IF(cal!$S$7=4,FR!G45,IF(cal!$S$7=5,NR!G45,IF(cal!$S$7=6,SP!G45,IF(cal!$S$7=7,SW!G45,IF(cal!$S$7=8,TS!G45,IF(cal!$S$7=9,ExtraTaal1!G45,IF(cal!$S$7=10,ExtraTaal2!G45,IF(cal!$S$7=11,ExtraTaal3!G45,))))))))))) -> 0 | I46: =IF($S$7=1,NL!H45,IF(cal!$S$7=2,EN!H45,IF(cal!$S$7=3,DE!H45,IF(cal!$S$7=4,FR!H45,IF(cal!$S$7=5,NR!H45,IF(cal!$S$7=6,SP!H45,IF(cal!$S$7=7,SW!H45,IF(cal!$S$7=8,TS!H45,IF(cal!$S$7=9,ExtraTaal1!H45,IF(cal!$S$7=10,ExtraTaal2!H45,IF(cal!$S$7=11,ExtraTaal3!H45,))))))))))) -> 0 | J46: =IF($S$7=1,NL!I45,IF(cal!$S$7=2,EN!I45,IF(cal!$S$7=3,DE!I45,IF(cal!$S$7=4,FR!I45,IF(cal!$S$7=5,NR!I45,IF(cal!$S$7=6,SP!I45,IF(cal!$S$7=7,SW!I45,IF(cal!$S$7=8,TS!I45,IF(cal!$S$7=9,ExtraTaal1!I45,IF(cal!$S$7=10,ExtraTaal2!I45,IF(cal!$S$7=11,ExtraTaal3!I45,))))))))))) -> 0 | K46: =IF($S$7=1,NL!J45,IF(cal!$S$7=2,EN!J45,IF(cal!$S$7=3,DE!J45,IF(cal!$S$7=4,FR!J45,IF(cal!$S$7=5,NR!J45,IF(cal!$S$7=6,SP!J45,IF(cal!$S$7=7,SW!J45,IF(cal!$S$7=8,TS!J45,IF(cal!$S$7=9,ExtraTaal1!J45,IF(cal!$S$7=10,ExtraTaal2!J45,IF(cal!$S$7=11,ExtraTaal3!J45,))))))))))) -> 0 | L46: =IF($S$7=1,NL!K45,IF(cal!$S$7=2,EN!K45,IF(cal!$S$7=3,DE!K45,IF(cal!$S$7=4,FR!K45,IF(cal!$S$7=5,NR!K45,IF(cal!$S$7=6,SP!K45,IF(cal!$S$7=7,SW!K45,IF(cal!$S$7=8,TS!K45,IF(cal!$S$7=9,ExtraTaal1!K45,IF(cal!$S$7=10,ExtraTaal2!K45,IF(cal!$S$7=11,ExtraTaal3!K45,))))))))))) -> 0 | M46: =IF($S$7=1,NL!L45,IF(cal!$S$7=2,EN!L45,IF(cal!$S$7=3,DE!L45,IF(cal!$S$7=4,FR!L45,IF(cal!$S$7=5,NR!L45,IF(cal!$S$7=6,SP!L45,IF(cal!$S$7=7,SW!L45,IF(cal!$S$7=8,TS!L45,IF(cal!$S$7=9,ExtraTaal1!L45,IF(cal!$S$7=10,ExtraTaal2!L45,IF(cal!$S$7=11,ExtraTaal3!L45,))))))))))) -> 0 | N46: =IF($S$7=1,NL!M45,IF(cal!$S$7=2,EN!M45,IF(cal!$S$7=3,DE!M45,IF(cal!$S$7=4,FR!M45,IF(cal!$S$7=5,NR!M45,IF(cal!$S$7=6,SP!M45,IF(cal!$S$7=7,SW!M45,IF(cal!$S$7=8,TS!M45,IF(cal!$S$7=9,ExtraTaal1!M45,IF(cal!$S$7=10,ExtraTaal2!M45,IF(cal!$S$7=11,ExtraTaal3!M45,))))))))))) -> 0 | O46: =IF($S$7=1,NL!N45,IF(cal!$S$7=2,EN!N45,IF(cal!$S$7=3,DE!N45,IF(cal!$S$7=4,FR!N45,IF(cal!$S$7=5,NR!N45,IF(cal!$S$7=6,SP!N45,IF(cal!$S$7=7,SW!N45,IF(cal!$S$7=8,TS!N45,IF(cal!$S$7=9,ExtraTaal1!N45,IF(cal!$S$7=10,ExtraTaal2!N45,IF(cal!$S$7=11,ExtraTaal3!N45,))))))))))) -> 0 | P46: =IF($S$7=1,NL!O45,IF(cal!$S$7=2,EN!O45,IF(cal!$S$7=3,DE!O45,IF(cal!$S$7=4,FR!O45,IF(cal!$S$7=5,NR!O45,IF(cal!$S$7=6,SP!O45,IF(cal!$S$7=7,SW!O45,IF(cal!$S$7=8,TS!O45,IF(cal!$S$7=9,ExtraTaal1!O45,IF(cal!$S$7=10,ExtraTaal2!O45,IF(cal!$S$7=11,ExtraTaal3!O45,))))))))))) -> 0 | Q46: n-value | R46: n-value | S46: n-value | T46: n-value | U46: n-value | V46: n-value | X46: 0 | Y46: 0 | Z46: 0 | AA46: 0 | AB46: 0 | AC46: 0 | AD46: 0 | BD46: H | BE46: =BE22 -> 13 | BF46: B | BG46: =BG22 -> 32 | BH46: L | BI46: =IF($X$4=1,170,170/2.54) -> 170 | BK46: H | BL46: =BL22 -> 13 | BM46: B | BN46: =BN22 -> 32 | BO46: L | BP46: =IF($X$4=1,170,170/2.54) -> 170
B47: 0.2 | C47: 2 | D47: =(X47*($T$11^$Q47))*Watts*CF_Altit -> 0 | E47: =ROUND(((D47/Watts)/(($S$9-$S$10)*1.163))*$E$14,IF($X$4=1,0,IF($X$4=2,2))) -> 0 | F47: =($Y$48*(E47/$E$14)^$Y$50)*$F$14 ->  | G47: =(Z47*($W$11^R47))*Watts*CF_Altit -> 0 | H47: =((G47/Watts)/(IF((237.3*LN((RH*EXP(17.27*(Tl_cool/(Tl_cool+237.3))))))/(17.27-LN((RH*EXP(17.27*(Tl_cool/(Tl_cool+237.3))))))<Tavg_cold,1,IF(1/(1+((2258*((0.622/(($Z$11/(1*611*EXP(17.27*(Tavg_cold/(Tavg_cold+237.3))))))-1)*1000-(0.622/(($Z$11/(RH*611*EXP(17.27*(Tl_cool/(Tl_cool+237.3))))))-1)*1000))/(1005*(Tavg_cold-Tl_cool))))*1.039+((-0.000729*$C47+0.001448)*(Tl_cool-Tavg_cold)+(0.016908*$C47-0.033574))*1.039>1,1,1/(1+((2258*((0.622/(($Z$11/(1*611*EXP(17.27*(Tavg_cold/(Tavg_cold+237.3))))))-1)*1000-(0.622/(($Z$11/(RH*611*EXP(17.27*(Tl_cool/(Tl_cool+237.3))))))-1)*1000))/(1005*(Tavg_cold-Tl_cool))))*1.039+((-0.000729*$C47+0.001448)*(Tl_cool-Tavg_cold)+(0.016908*$C47-0.033574))*1.039))))*Watts -> 0 | I47: =ROUND(((H47/Watts)/((Tr_cool-Tv_cool)*1.163))*$I$14,IF($X$4=1,0,IF($X$4=2,2))) -> 0 | J47: =($AA$48*(I47/$I$14)^$AA$50)*$J$14 ->  | K47: =L47-8 -> -8 | L47: =AB47 -> 0 | M47: 0 | N47: =AD47*Cubics -> 0 | O47: =((($D47/Watts)/(((p_atm*0.028964)/(8.31447*(20+273.15)))*(($N47/3600)/Cubics)*(1005+1870*((0.622)/(((p_atm)/($E$12*Pvs_Heat_in))-1)))))+Tl_heat)*Celc1+Celc2 ->  | P47: =(Tl_cool-(($G47/Watts)/(1006*$N47*kgss)))*Celc1+Celc2 ->  | Q47: 1 | R47: 0 | S47: 0 | T47: 0 | U47: 0.7807 | V47: 0 | W47: =(H47-G47)/H47 ->  | X47: =IF($X$16=1,AE47,IF($X$16=2,AL47,IF($X$16=3,BK47,IF($X$16=4,BD47,IF($X$16=5,BZ47,IF($X$16=6,BS47,IF($X$16=7,AW47,))))))) -> 0 | Y47: 0 | Z47: 0 | AA47: 0 | AB47: 0 | AC47: 0 | AD47: 0 | BD47: 1309.59903 | BE47: a | BF47: 315.4012992 | BG47: a | BH47: 31 | BI47: 2.408 | BJ47: 93 | BK47: 1526.557351 | BL47: a | BM47: 328.4952779 | BN47: a | BO47: =BH47 -> 31 | BP47: 2.408 | BQ47: 93
B48: 0.4 | C48: 4 | D48: =(X48*($T$11^$Q48))*Watts*CF_Altit -> 0 | E48: =ROUND(((D48/Watts)/(($S$9-$S$10)*1.163))*$E$14,IF($X$4=1,0,IF($X$4=2,2))) -> 0 | F48: =($Y$48*(E48/$E$14)^$Y$50)*$F$14 ->  | G48: =(Z48*($W$11^R48))*Watts*CF_Altit -> 0 | H48: =((G48/Watts)/(IF((237.3*LN((RH*EXP(17.27*(Tl_cool/(Tl_cool+237.3))))))/(17.27-LN((RH*EXP(17.27*(Tl_cool/(Tl_cool+237.3))))))<Tavg_cold,1,IF(1/(1+((2258*((0.622/(($Z$11/(1*611*EXP(17.27*(Tavg_cold/(Tavg_cold+237.3))))))-1)*1000-(0.622/(($Z$11/(RH*611*EXP(17.27*(Tl_cool/(Tl_cool+237.3))))))-1)*1000))/(1005*(Tavg_cold-Tl_cool))))*1.039+((-0.000729*$C48+0.001448)*(Tl_cool-Tavg_cold)+(0.016908*$C48-0.033574))*1.039>1,1,1/(1+((2258*((0.622/(($Z$11/(1*611*EXP(17.27*(Tavg_cold/(Tavg_cold+237.3))))))-1)*1000-(0.622/(($Z$11/(RH*611*EXP(17.27*(Tl_cool/(Tl_cool+237.3))))))-1)*1000))/(1005*(Tavg_cold-Tl_cool))))*1.039+((-0.000729*$C48+0.001448)*(Tl_cool-Tavg_cold)+(0.016908*$C48-0.033574))*1.039))))*Watts -> 0 | I48: =ROUND(((H48/Watts)/((Tr_cool-Tv_cool)*1.163))*$I$14,IF($X$4=1,0,IF($X$4=2,2))) -> 0 | J48: =($AA$48*(I48/$I$14)^$AA$50)*$J$14 ->  | K48: =L48-8 -> -8 | L48: 0 | M48: 0 | N48: =AD48*Cubics -> 0 | O48: =((($D48/Watts)/(((p_atm*0.028964)/(8.31447*(20+273.15)))*(($N48/3600)/Cubics)*(1005+1870*((0.622)/(((p_atm)/($E$12*Pvs_Heat_in))-1)))))+Tl_heat)*Celc1+Celc2 ->  | P48: =(Tl_cool-(($G48/Watts)/(1006*$N48*kgss)))*Celc1+Celc2 ->  | Q48: 1 | R48: 0 | S48: 0 | T48: 0 | U48: 0.8587 | V48: 0 | W48: =(H48-G48)/H48 ->  | X48: 0 | Y48: 0 | Z48: 0 | AA48: 0 | AB48: 0 | AC48: 0 | AD48: 0 | BD48: 2611.78497 | BE48: =0.0000825244 -> 8.25244e-05 | BF48: 572.7797109 | BG48: 1.782133045e-05 | BH48: 36.5 | BI48: 4.2 | BJ48: 199 | BK48: 3376.242844 | BL48: 6.501910454e-05 | BM48: 596.4650101 | BN48: =BL48 -> 6.501910454e-05 | BO48: 36.5 | BP48: 4.2 | BQ48: 199
B49: 0.6 | C49: 6 | D49: =(X49*($T$11^$Q49))*Watts*CF_Altit -> 0 | E49: =ROUND(((D49/Watts)/(($S$9-$S$10)*1.163))*$E$14,IF($X$4=1,0,IF($X$4=2,2))) -> 0 | F49: =($Y$48*(E49/$E$14)^$Y$50)*$F$14 ->  | G49: =(Z49*($W$11^R49))*Watts*CF_Altit -> 0 | H49: =((G49/Watts)/(IF((237.3*LN((RH*EXP(17.27*(Tl_cool/(Tl_cool+237.3))))))/(17.27-LN((RH*EXP(17.27*(Tl_cool/(Tl_cool+237.3))))))<Tavg_cold,1,IF(1/(1+((2258*((0.622/(($Z$11/(1*611*EXP(17.27*(Tavg_cold/(Tavg_cold+237.3))))))-1)*1000-(0.622/(($Z$11/(RH*611*EXP(17.27*(Tl_cool/(Tl_cool+237.3))))))-1)*1000))/(1005*(Tavg_cold-Tl_cool))))*1.039+((-0.000729*$C49+0.001448)*(Tl_cool-Tavg_cold)+(0.016908*$C49-0.033574))*1.039>1,1,1/(1+((2258*((0.622/(($Z$11/(1*611*EXP(17.27*(Tavg_cold/(Tavg_cold+237.3))))))-1)*1000-(0.622/(($Z$11/(RH*611*EXP(17.27*(Tl_cool/(Tl_cool+237.3))))))-1)*1000))/(1005*(Tavg_cold-Tl_cool))))*1.039+((-0.000729*$C49+0.001448)*(Tl_cool-Tavg_cold)+(0.016908*$C49-0.033574))*1.039))))*Watts -> 0 | I49: =ROUND(((H49/Watts)/((Tr_cool-Tv_cool)*1.163))*$I$14,IF($X$4=1,0,IF($X$4=2,2))) -> 0 | J49: =($AA$48*(I49/$I$14)^$AA$50)*$J$14 ->  | K49: =L49-8 -> -8 | L49: 0 | M49: 0 | N49: =AD49*Cubics -> 0 | O49: =((($D49/Watts)/(((p_atm*0.028964)/(8.31447*(20+273.15)))*(($N49/3600)/Cubics)*(1005+1870*((0.622)/(((p_atm)/($E$12*Pvs_Heat_in))-1)))))+Tl_heat)*Celc1+Celc2 ->  | P49: =(Tl_cool-(($G49/Watts)/(1006*$N49*kgss)))*Celc1+Celc2 ->  | Q49: 1 | R49: 0 | S49: 0 | T49: 0 | U49: 0.8831 | V49: 0 | W49: =(H49-G49)/H49 ->  | X49: =IF($X$16=1,AE49,IF($X$16=2,AL49,IF($X$16=3,BK49,IF($X$16=4,BD49,IF($X$16=5,BZ49,IF($X$16=6,BS49,IF($X$16=7,AW49,))))))) -> 0 | Y49: 0 | Z49: 0 | AA49: 0 | AB49: 0 | AC49: 0 | AD49: 0 | BD49: 3683.85447 | BE49: b | BF49: 823.4335921 | BG49: b | BH49: 40.5 | BI49: 7.4 | BJ49: 307 | BK49: 5033.046876 | BL49: b | BM49: 851.8402465 | BN49: b | BO49: 40.5 | BP49: 7.4 | BQ49: 307
B50: 0.8 | C50: 8 | D50: =(X50*($T$11^$Q50))*Watts*CF_Altit -> 0 | E50: =ROUND(((D50/Watts)/(($S$9-$S$10)*1.163))*$E$14,IF($X$4=1,0,IF($X$4=2,2))) -> 0 | F50: =($Y$48*(E50/$E$14)^$Y$50)*$F$14 ->  | G50: =(Z50*($W$11^R50))*Watts*CF_Altit -> 0 | H50: =((G50/Watts)/(IF((237.3*LN((RH*EXP(17.27*(Tl_cool/(Tl_cool+237.3))))))/(17.27-LN((RH*EXP(17.27*(Tl_cool/(Tl_cool+237.3))))))<Tavg_cold,1,IF(1/(1+((2258*((0.622/(($Z$11/(1*611*EXP(17.27*(Tavg_cold/(Tavg_cold+237.3))))))-1)*1000-(0.622/(($Z$11/(RH*611*EXP(17.27*(Tl_cool/(Tl_cool+237.3))))))-1)*1000))/(1005*(Tavg_cold-Tl_cool))))*1.039+((-0.000729*$C50+0.001448)*(Tl_cool-Tavg_cold)+(0.016908*$C50-0.033574))*1.039>1,1,1/(1+((2258*((0.622/(($Z$11/(1*611*EXP(17.27*(Tavg_cold/(Tavg_cold+237.3))))))-1)*1000-(0.622/(($Z$11/(RH*611*EXP(17.27*(Tl_cool/(Tl_cool+237.3))))))-1)*1000))/(1005*(Tavg_cold-Tl_cool))))*1.039+((-0.000729*$C50+0.001448)*(Tl_cool-Tavg_cold)+(0.016908*$C50-0.033574))*1.039))))*Watts -> 0 | I50: =ROUND(((H50/Watts)/((Tr_cool-Tv_cool)*1.163))*$I$14,IF($X$4=1,0,IF($X$4=2,2))) -> 0 | J50: =($AA$48*(I50/$I$14)^$AA$50)*$J$14 ->  | K50: =L50-8 -> -8 | L50: 0 | M50: 0 | N50: =AD50*Cubics -> 0 | O50: =((($D50/Watts)/(((p_atm*0.028964)/(8.31447*(20+273.15)))*(($N50/3600)/Cubics)*(1005+1870*((0.622)/(((p_atm)/($E$12*Pvs_Heat_in))-1)))))+Tl_heat)*Celc1+Celc2 ->  | P50: =(Tl_cool-(($G50/Watts)/(1006*$N50*kgss)))*Celc1+Celc2 ->  | Q50: 1 | R50: 0 | S50: 0 | T50: 0 | U50: 0.8539 | V50: 0 | W50: =(H50-G50)/H50 ->  | X50: 0 | Y50: 0 | Z50: 0 | AA50: 0 | AB50: 0 | AC50: 0 | AD50: 0 | BD50: 4525.80753 | BE50: 1.84541 | BF50: 1067.362943 | BG50: 1.92086369 | BH50: 47.5 | BI50: 13.6 | BJ50: 403 | BK50: 6496.969447 | BL50: 1.835111579 | BM50: 1094.620987 | BN50: =BL50 -> 1.835111579 | BO50: 47.5 | BP50: 13.6 | BQ50: 403
B51: 1 | C51: 10 | D51: =(X51*($T$11^$Q51))*Watts*CF_Altit -> 0 | E51: =ROUND(((D51/Watts)/(($S$9-$S$10)*1.163))*$E$14,IF($X$4=1,0,IF($X$4=2,2))) -> 0 | F51: =($Y$48*(E51/$E$14)^$Y$50)*$F$14 ->  | G51: =(Z51*($W$11^R51))*Watts*CF_Altit -> 0 | H51: =((G51/Watts)/(IF((237.3*LN((RH*EXP(17.27*(Tl_cool/(Tl_cool+237.3))))))/(17.27-LN((RH*EXP(17.27*(Tl_cool/(Tl_cool+237.3))))))<Tavg_cold,1,IF(1/(1+((2258*((0.622/(($Z$11/(1*611*EXP(17.27*(Tavg_cold/(Tavg_cold+237.3))))))-1)*1000-(0.622/(($Z$11/(RH*611*EXP(17.27*(Tl_cool/(Tl_cool+237.3))))))-1)*1000))/(1005*(Tavg_cold-Tl_cool))))*1.039+((-0.000729*$C51+0.001448)*(Tl_cool-Tavg_cold)+(0.016908*$C51-0.033574))*1.039>1,1,1/(1+((2258*((0.622/(($Z$11/(1*611*EXP(17.27*(Tavg_cold/(Tavg_cold+237.3))))))-1)*1000-(0.622/(($Z$11/(RH*611*EXP(17.27*(Tl_cool/(Tl_cool+237.3))))))-1)*1000))/(1005*(Tavg_cold-Tl_cool))))*1.039+((-0.000729*$C51+0.001448)*(Tl_cool-Tavg_cold)+(0.016908*$C51-0.033574))*1.039))))*Watts -> 0 | I51: =ROUND(((H51/Watts)/((Tr_cool-Tv_cool)*1.163))*$I$14,IF($X$4=1,0,IF($X$4=2,2))) -> 0 | J51: =($AA$48*(I51/$I$14)^$AA$50)*$J$14 ->  | K51: =L51-8 -> -8 | L51: 0 | M51: 0 | N51: =AD51*Cubics -> 0 | O51: =((($D51/Watts)/(((p_atm*0.028964)/(8.31447*(20+273.15)))*(($N51/3600)/Cubics)*(1005+1870*((0.622)/(((p_atm)/($E$12*Pvs_Heat_in))-1)))))+Tl_heat)*Celc1+Celc2 ->  | P51: =(Tl_cool-(($G51/Watts)/(1006*$N51*kgss)))*Celc1+Celc2 ->  | Q51: 1 | R51: 0 | S51: 0 | T51: 0 | U51: 0.7711 | V51: 0 | W51: =(H51-G51)/H51 ->  | X51: 0 | Y51: 0 | Z51: 0 | AA51: 0 | AB51: 0 | AC51: 0 | AD51: 0 | BD51: 5137.64415 | BF51: 1304.567763 | BH51: 50.5 | BI51: 20.9 | BJ51: 475 | BK51: 7768.010558 | BM51: 1324.807232 | BO51: 50.5 | BP51: 20.9 | BQ51: 475
B52: =IF($S$7=1,NL!A51,IF(cal!$S$7=2,EN!A51,IF(cal!$S$7=3,DE!A51,IF(cal!$S$7=4,FR!A51,IF(cal!$S$7=5,NR!A51,IF(cal!$S$7=6,SP!A51,IF(cal!$S$7=7,SW!A51,IF(cal!$S$7=8,TS!A51,IF(cal!$S$7=9,ExtraTaal1!A51,IF(cal!$S$7=10,ExtraTaal2!A51,IF(cal!$S$7=11,ExtraTaal3!A51,))))))))))) -> Clima Canal altura 0 cm ancho 0 cm longitud 0 cm (Type 7) | C52: =IF($S$7=1,NL!B51,IF(cal!$S$7=2,EN!B51,IF(cal!$S$7=3,DE!B51,IF(cal!$S$7=4,FR!B51,IF(cal!$S$7=5,NR!B51,IF(cal!$S$7=6,SP!B51,IF(cal!$S$7=7,SW!B51,IF(cal!$S$7=8,TS!B51,IF(cal!$S$7=9,ExtraTaal1!B51,IF(cal!$S$7=10,ExtraTaal2!B51,IF(cal!$S$7=11,ExtraTaal3!B51,))))))))))) -> 0 | D52: =IF($S$7=1,NL!C51,IF(cal!$S$7=2,EN!C51,IF(cal!$S$7=3,DE!C51,IF(cal!$S$7=4,FR!C51,IF(cal!$S$7=5,NR!C51,IF(cal!$S$7=6,SP!C51,IF(cal!$S$7=7,SW!C51,IF(cal!$S$7=8,TS!C51,IF(cal!$S$7=9,ExtraTaal1!C51,IF(cal!$S$7=10,ExtraTaal2!C51,IF(cal!$S$7=11,ExtraTaal3!C51,))))))))))) -> 0 | E52: =IF($S$7=1,NL!D51,IF(cal!$S$7=2,EN!D51,IF(cal!$S$7=3,DE!D51,IF(cal!$S$7=4,FR!D51,IF(cal!$S$7=5,NR!D51,IF(cal!$S$7=6,SP!D51,IF(cal!$S$7=7,SW!D51,IF(cal!$S$7=8,TS!D51,IF(cal!$S$7=9,ExtraTaal1!D51,IF(cal!$S$7=10,ExtraTaal2!D51,IF(cal!$S$7=11,ExtraTaal3!D51,))))))))))) -> 0 | F52: =IF($S$7=1,NL!E51,IF(cal!$S$7=2,EN!E51,IF(cal!$S$7=3,DE!E51,IF(cal!$S$7=4,FR!E51,IF(cal!$S$7=5,NR!E51,IF(cal!$S$7=6,SP!E51,IF(cal!$S$7=7,SW!E51,IF(cal!$S$7=8,TS!E51,IF(cal!$S$7=9,ExtraTaal1!E51,IF(cal!$S$7=10,ExtraTaal2!E51,IF(cal!$S$7=11,ExtraTaal3!E51,))))))))))) -> 0 | G52: =IF($S$7=1,NL!F51,IF(cal!$S$7=2,EN!F51,IF(cal!$S$7=3,DE!F51,IF(cal!$S$7=4,FR!F51,IF(cal!$S$7=5,NR!F51,IF(cal!$S$7=6,SP!F51,IF(cal!$S$7=7,SW!F51,IF(cal!$S$7=8,TS!F51,IF(cal!$S$7=9,ExtraTaal1!F51,IF(cal!$S$7=10,ExtraTaal2!F51,IF(cal!$S$7=11,ExtraTaal3!F51,))))))))))) -> 0 | H52: =IF($S$7=1,NL!G51,IF(cal!$S$7=2,EN!G51,IF(cal!$S$7=3,DE!G51,IF(cal!$S$7=4,FR!G51,IF(cal!$S$7=5,NR!G51,IF(cal!$S$7=6,SP!G51,IF(cal!$S$7=7,SW!G51,IF(cal!$S$7=8,TS!G51,IF(cal!$S$7=9,ExtraTaal1!G51,IF(cal!$S$7=10,ExtraTaal2!G51,IF(cal!$S$7=11,ExtraTaal3!G51,))))))))))) -> 0 | I52: =IF($S$7=1,NL!H51,IF(cal!$S$7=2,EN!H51,IF(cal!$S$7=3,DE!H51,IF(cal!$S$7=4,FR!H51,IF(cal!$S$7=5,NR!H51,IF(cal!$S$7=6,SP!H51,IF(cal!$S$7=7,SW!H51,IF(cal!$S$7=8,TS!H51,IF(cal!$S$7=9,ExtraTaal1!H51,IF(cal!$S$7=10,ExtraTaal2!H51,IF(cal!$S$7=11,ExtraTaal3!H51,))))))))))) -> 0 | J52: =IF($S$7=1,NL!I51,IF(cal!$S$7=2,EN!I51,IF(cal!$S$7=3,DE!I51,IF(cal!$S$7=4,FR!I51,IF(cal!$S$7=5,NR!I51,IF(cal!$S$7=6,SP!I51,IF(cal!$S$7=7,SW!I51,IF(cal!$S$7=8,TS!I51,IF(cal!$S$7=9,ExtraTaal1!I51,IF(cal!$S$7=10,ExtraTaal2!I51,IF(cal!$S$7=11,ExtraTaal3!I51,))))))))))) -> 0 | K52: =IF($S$7=1,NL!J51,IF(cal!$S$7=2,EN!J51,IF(cal!$S$7=3,DE!J51,IF(cal!$S$7=4,FR!J51,IF(cal!$S$7=5,NR!J51,IF(cal!$S$7=6,SP!J51,IF(cal!$S$7=7,SW!J51,IF(cal!$S$7=8,TS!J51,IF(cal!$S$7=9,ExtraTaal1!J51,IF(cal!$S$7=10,ExtraTaal2!J51,IF(cal!$S$7=11,ExtraTaal3!J51,))))))))))) -> 0 | L52: =IF($S$7=1,NL!K51,IF(cal!$S$7=2,EN!K51,IF(cal!$S$7=3,DE!K51,IF(cal!$S$7=4,FR!K51,IF(cal!$S$7=5,NR!K51,IF(cal!$S$7=6,SP!K51,IF(cal!$S$7=7,SW!K51,IF(cal!$S$7=8,TS!K51,IF(cal!$S$7=9,ExtraTaal1!K51,IF(cal!$S$7=10,ExtraTaal2!K51,IF(cal!$S$7=11,ExtraTaal3!K51,))))))))))) -> 0 | M52: =IF($S$7=1,NL!L51,IF(cal!$S$7=2,EN!L51,IF(cal!$S$7=3,DE!L51,IF(cal!$S$7=4,FR!L51,IF(cal!$S$7=5,NR!L51,IF(cal!$S$7=6,SP!L51,IF(cal!$S$7=7,SW!L51,IF(cal!$S$7=8,TS!L51,IF(cal!$S$7=9,ExtraTaal1!L51,IF(cal!$S$7=10,ExtraTaal2!L51,IF(cal!$S$7=11,ExtraTaal3!L51,))))))))))) -> 0 | N52: =IF($S$7=1,NL!M51,IF(cal!$S$7=2,EN!M51,IF(cal!$S$7=3,DE!M51,IF(cal!$S$7=4,FR!M51,IF(cal!$S$7=5,NR!M51,IF(cal!$S$7=6,SP!M51,IF(cal!$S$7=7,SW!M51,IF(cal!$S$7=8,TS!M51,IF(cal!$S$7=9,ExtraTaal1!M51,IF(cal!$S$7=10,ExtraTaal2!M51,IF(cal!$S$7=11,ExtraTaal3!M51,))))))))))) -> 0 | O52: =IF($S$7=1,NL!N51,IF(cal!$S$7=2,EN!N51,IF(cal!$S$7=3,DE!N51,IF(cal!$S$7=4,FR!N51,IF(cal!$S$7=5,NR!N51,IF(cal!$S$7=6,SP!N51,IF(cal!$S$7=7,SW!N51,IF(cal!$S$7=8,TS!N51,IF(cal!$S$7=9,ExtraTaal1!N51,IF(cal!$S$7=10,ExtraTaal2!N51,IF(cal!$S$7=11,ExtraTaal3!N51,))))))))))) -> 0 | P52: =IF($S$7=1,NL!O51,IF(cal!$S$7=2,EN!O51,IF(cal!$S$7=3,DE!O51,IF(cal!$S$7=4,FR!O51,IF(cal!$S$7=5,NR!O51,IF(cal!$S$7=6,SP!O51,IF(cal!$S$7=7,SW!O51,IF(cal!$S$7=8,TS!O51,IF(cal!$S$7=9,ExtraTaal1!O51,IF(cal!$S$7=10,ExtraTaal2!O51,IF(cal!$S$7=11,ExtraTaal3!O51,))))))))))) -> 0 | Q52: n-value | R52: n-value | S52: n-value | T52: n-value | U52: n-value | V52: n-value | X52: 0 | Y52: 0 | Z52: 0 | AA52: 0 | AB52: 0 | AC52: 0 | AD52: 0 | BD52: H | BE52: =BE22 -> 13 | BF52: B | BG52: =BG22 -> 32 | BH52: L | BI52: =IF($X$4=1,200,200/2.54) -> 200 | BK52: H | BL52: =BL22 -> 13 | BM52: B | BN52: =BN22 -> 32 | BO52: L | BP52: =IF($X$4=1,200,200/2.54) -> 200
B53: 0.2 | C53: 2 | D53: =(X53*($T$11^$Q53))*Watts*CF_Altit -> 0 | E53: =ROUND(((D53/Watts)/(($S$9-$S$10)*1.163))*$E$14,IF($X$4=1,0,IF($X$4=2,2))) -> 0 | F53: =($Y$54*(E53/$E$14)^$Y$56)*$F$14 ->  | G53: =(Z53*($W$11^R53))*Watts*CF_Altit -> 0 | H53: =((G53/Watts)/(IF((237.3*LN((RH*EXP(17.27*(Tl_cool/(Tl_cool+237.3))))))/(17.27-LN((RH*EXP(17.27*(Tl_cool/(Tl_cool+237.3))))))<Tavg_cold,1,IF(1/(1+((2258*((0.622/(($Z$11/(1*611*EXP(17.27*(Tavg_cold/(Tavg_cold+237.3))))))-1)*1000-(0.622/(($Z$11/(RH*611*EXP(17.27*(Tl_cool/(Tl_cool+237.3))))))-1)*1000))/(1005*(Tavg_cold-Tl_cool))))*1.039+((-0.000729*$C53+0.001448)*(Tl_cool-Tavg_cold)+(0.016908*$C53-0.033574))*1.039>1,1,1/(1+((2258*((0.622/(($Z$11/(1*611*EXP(17.27*(Tavg_cold/(Tavg_cold+237.3))))))-1)*1000-(0.622/(($Z$11/(RH*611*EXP(17.27*(Tl_cool/(Tl_cool+237.3))))))-1)*1000))/(1005*(Tavg_cold-Tl_cool))))*1.039+((-0.000729*$C53+0.001448)*(Tl_cool-Tavg_cold)+(0.016908*$C53-0.033574))*1.039))))*Watts -> 0 | I53: =ROUND(((H53/Watts)/((Tr_cool-Tv_cool)*1.163))*$I$14,IF($X$4=1,0,IF($X$4=2,2))) -> 0 | J53: =($AA$54*(I53/$I$14)^$AA$56)*$J$14 ->  | K53: =L53-8 -> -8 | L53: =AB53 -> 0 | M53: 0 | N53: =AD53*Cubics -> 0 | O53: =((($D53/Watts)/(((p_atm*0.028964)/(8.31447*(20+273.15)))*(($N53/3600)/Cubics)*(1005+1870*((0.622)/(((p_atm)/($E$12*Pvs_Heat_in))-1)))))+Tl_heat)*Celc1+Celc2 ->  | P53: =(Tl_cool-(($G53/Watts)/(1006*$N53*kgss)))*Celc1+Celc2 ->  | Q53: 1 | R53: 0 | S53: 0 | T53: 0 | U53: 0.7807 | V53: 0 | W53: =(H53-G53)/H53 ->  | X53: =IF($X$16=1,AE53,IF($X$16=2,AL53,IF($X$16=3,BK53,IF($X$16=4,BD53,IF($X$16=5,BZ53,IF($X$16=6,BS53,IF($X$16=7,AW53,))))))) -> 0 | Y53: 0 | Z53: 0 | AA53: 0 | AB53: 0 | AC53: 0 | AD53: 0 | BD53: 1549.89243 | BE53: a | BF53: 373.2730972 | BG53: a | BH53: 31 | BI53: 2.8 | BJ53: 98 | BK53: 1806.659617 | BL53: a | BM53: 388.7696408 | BN53: a | BO53: =BH53 -> 31 | BP53: 2.8 | BQ53: 98
B54: 0.4 | C54: 4 | D54: =(X54*($T$11^$Q54))*Watts*CF_Altit -> 0 | E54: =ROUND(((D54/Watts)/(($S$9-$S$10)*1.163))*$E$14,IF($X$4=1,0,IF($X$4=2,2))) -> 0 | F54: =($Y$54*(E54/$E$14)^$Y$56)*$F$14 ->  | G54: =(Z54*($W$11^R54))*Watts*CF_Altit -> 0 | H54: =((G54/Watts)/(IF((237.3*LN((RH*EXP(17.27*(Tl_cool/(Tl_cool+237.3))))))/(17.27-LN((RH*EXP(17.27*(Tl_cool/(Tl_cool+237.3))))))<Tavg_cold,1,IF(1/(1+((2258*((0.622/(($Z$11/(1*611*EXP(17.27*(Tavg_cold/(Tavg_cold+237.3))))))-1)*1000-(0.622/(($Z$11/(RH*611*EXP(17.27*(Tl_cool/(Tl_cool+237.3))))))-1)*1000))/(1005*(Tavg_cold-Tl_cool))))*1.039+((-0.000729*$C54+0.001448)*(Tl_cool-Tavg_cold)+(0.016908*$C54-0.033574))*1.039>1,1,1/(1+((2258*((0.622/(($Z$11/(1*611*EXP(17.27*(Tavg_cold/(Tavg_cold+237.3))))))-1)*1000-(0.622/(($Z$11/(RH*611*EXP(17.27*(Tl_cool/(Tl_cool+237.3))))))-1)*1000))/(1005*(Tavg_cold-Tl_cool))))*1.039+((-0.000729*$C54+0.001448)*(Tl_cool-Tavg_cold)+(0.016908*$C54-0.033574))*1.039))))*Watts -> 0 | I54: =ROUND(((H54/Watts)/((Tr_cool-Tv_cool)*1.163))*$I$14,IF($X$4=1,0,IF($X$4=2,2))) -> 0 | J54: =($AA$54*(I54/$I$14)^$AA$56)*$J$14 ->  | K54: =L54-8 -> -8 | L54: 0 | M54: 0 | N54: =AD54*Cubics -> 0 | O54: =((($D54/Watts)/(((p_atm*0.028964)/(8.31447*(20+273.15)))*(($N54/3600)/Cubics)*(1005+1870*((0.622)/(((p_atm)/($E$12*Pvs_Heat_in))-1)))))+Tl_heat)*Celc1+Celc2 ->  | P54: =(Tl_cool-(($G54/Watts)/(1006*$N54*kgss)))*Celc1+Celc2 ->  | Q54: 1 | R54: 0 | S54: 0 | T54: 0 | U54: 0.8587 | V54: 0 | W54: =(H54-G54)/H54 ->  | X54: 0 | Y54: 0 | Z54: 0 | AA54: 0 | AB54: 0 | AC54: 0 | AD54: 0 | BD54: 3091.01157 | BE54: 9.55869e-05 | BF54: 677.8769055 | BG54: 1.926963463e-05 | BH54: 37 | BI54: 4.8 | BJ54: 228 | BK54: 3995.736944 | BL54: 7.658368822e-05 | BM54: 705.9081312 | BN54: =BL54 -> 7.658368822e-05 | BO54: 37 | BP54: 4.8 | BQ54: 228
B55: 0.6 | C55: 6 | D55: =(X55*($T$11^$Q55))*Watts*CF_Altit -> 0 | E55: =ROUND(((D55/Watts)/(($S$9-$S$10)*1.163))*$E$14,IF($X$4=1,0,IF($X$4=2,2))) -> 0 | F55: =($Y$54*(E55/$E$14)^$Y$56)*$F$14 ->  | G55: =(Z55*($W$11^R55))*Watts*CF_Altit -> 0 | H55: =((G55/Watts)/(IF((237.3*LN((RH*EXP(17.27*(Tl_cool/(Tl_cool+237.3))))))/(17.27-LN((RH*EXP(17.27*(Tl_cool/(Tl_cool+237.3))))))<Tavg_cold,1,IF(1/(1+((2258*((0.622/(($Z$11/(1*611*EXP(17.27*(Tavg_cold/(Tavg_cold+237.3))))))-1)*1000-(0.622/(($Z$11/(RH*611*EXP(17.27*(Tl_cool/(Tl_cool+237.3))))))-1)*1000))/(1005*(Tavg_cold-Tl_cool))))*1.039+((-0.000729*$C55+0.001448)*(Tl_cool-Tavg_cold)+(0.016908*$C55-0.033574))*1.039>1,1,1/(1+((2258*((0.622/(($Z$11/(1*611*EXP(17.27*(Tavg_cold/(Tavg_cold+237.3))))))-1)*1000-(0.622/(($Z$11/(RH*611*EXP(17.27*(Tl_cool/(Tl_cool+237.3))))))-1)*1000))/(1005*(Tavg_cold-Tl_cool))))*1.039+((-0.000729*$C55+0.001448)*(Tl_cool-Tavg_cold)+(0.016908*$C55-0.033574))*1.039))))*Watts -> 0 | I55: =ROUND(((H55/Watts)/((Tr_cool-Tv_cool)*1.163))*$I$14,IF($X$4=1,0,IF($X$4=2,2))) -> 0 | J55: =($AA$54*(I55/$I$14)^$AA$56)*$J$14 ->  | K55: =L55-8 -> -8 | L55: 0 | M55: 0 | N55: =AD55*Cubics -> 0 | O55: =((($D55/Watts)/(((p_atm*0.028964)/(8.31447*(20+273.15)))*(($N55/3600)/Cubics)*(1005+1870*((0.622)/(((p_atm)/($E$12*Pvs_Heat_in))-1)))))+Tl_heat)*Celc1+Celc2 ->  | P55: =(Tl_cool-(($G55/Watts)/(1006*$N55*kgss)))*Celc1+Celc2 ->  | Q55: 1 | R55: 0 | S55: 0 | T55: 0 | U55: 0.8831 | V55: 0 | W55: =(H55-G55)/H55 ->  | X55: =IF($X$16=1,AE55,IF($X$16=2,AL55,IF($X$16=3,BK55,IF($X$16=4,BD55,IF($X$16=5,BZ55,IF($X$16=6,BS55,IF($X$16=7,AW55,))))))) -> 0 | Y55: 0 | Z55: 0 | AA55: 0 | AB55: 0 | AC55: 0 | AD55: 0 | BD55: 4359.79107 | BE55: b | BF55: 974.5223246 | BG55: b | BH55: 41 | BI55: 8.4 | BJ55: 348 | BK55: 5956.541716 | BL55: b | BM55: 1008.141209 | BN55: b | BO55: 41 | BP55: 8.4 | BQ55: 348
B56: 0.8 | C56: 8 | D56: =(X56*($T$11^$Q56))*Watts*CF_Altit -> 0 | E56: =ROUND(((D56/Watts)/(($S$9-$S$10)*1.163))*$E$14,IF($X$4=1,0,IF($X$4=2,2))) -> 0 | F56: =($Y$54*(E56/$E$14)^$Y$56)*$F$14 ->  | G56: =(Z56*($W$11^R56))*Watts*CF_Altit -> 0 | H56: =((G56/Watts)/(IF((237.3*LN((RH*EXP(17.27*(Tl_cool/(Tl_cool+237.3))))))/(17.27-LN((RH*EXP(17.27*(Tl_cool/(Tl_cool+237.3))))))<Tavg_cold,1,IF(1/(1+((2258*((0.622/(($Z$11/(1*611*EXP(17.27*(Tavg_cold/(Tavg_cold+237.3))))))-1)*1000-(0.622/(($Z$11/(RH*611*EXP(17.27*(Tl_cool/(Tl_cool+237.3))))))-1)*1000))/(1005*(Tavg_cold-Tl_cool))))*1.039+((-0.000729*$C56+0.001448)*(Tl_cool-Tavg_cold)+(0.016908*$C56-0.033574))*1.039>1,1,1/(1+((2258*((0.622/(($Z$11/(1*611*EXP(17.27*(Tavg_cold/(Tavg_cold+237.3))))))-1)*1000-(0.622/(($Z$11/(RH*611*EXP(17.27*(Tl_cool/(Tl_cool+237.3))))))-1)*1000))/(1005*(Tavg_cold-Tl_cool))))*1.039+((-0.000729*$C56+0.001448)*(Tl_cool-Tavg_cold)+(0.016908*$C56-0.033574))*1.039))))*Watts -> 0 | I56: =ROUND(((H56/Watts)/((Tr_cool-Tv_cool)*1.163))*$I$14,IF($X$4=1,0,IF($X$4=2,2))) -> 0 | J56: =($AA$54*(I56/$I$14)^$AA$56)*$J$14 ->  | K56: =L56-8 -> -8 | L56: 0 | M56: 0 | N56: =AD56*Cubics -> 0 | O56: =((($D56/Watts)/(((p_atm*0.028964)/(8.31447*(20+273.15)))*(($N56/3600)/Cubics)*(1005+1870*((0.622)/(((p_atm)/($E$12*Pvs_Heat_in))-1)))))+Tl_heat)*Celc1+Celc2 ->  | P56: =(Tl_cool-(($G56/Watts)/(1006*$N56*kgss)))*Celc1+Celc2 ->  | Q56: 1 | R56: 0 | S56: 0 | T56: 0 | U56: 0.8539 | V56: 0 | W56: =(H56-G56)/H56 ->  | X56: 0 | Y56: 0 | Z56: 0 | AA56: 0 | AB56: 0 | AC56: 0 | AD56: 0 | BD56: 5356.23093 | BE56: 1.83729 | BF56: 1263.209354 | BG56: 1.914955939 | BH56: 48 | BI56: 14.4 | BJ56: 470 | BK56: 7689.073933 | BL56: 1.825356496 | BM56: 1295.468875 | BN56: =BL56 -> 1.825356496 | BO56: 48 | BP56: 14.4 | BQ56: 470
B57: 1 | C57: 10 | D57: =(X57*($T$11^$Q57))*Watts*CF_Altit -> 0 | E57: =ROUND(((D57/Watts)/(($S$9-$S$10)*1.163))*$E$14,IF($X$4=1,0,IF($X$4=2,2))) -> 0 | F57: =($Y$54*(E57/$E$14)^$Y$56)*$F$14 ->  | G57: =(Z57*($W$11^R57))*Watts*CF_Altit -> 0 | H57: =((G57/Watts)/(IF((237.3*LN((RH*EXP(17.27*(Tl_cool/(Tl_cool+237.3))))))/(17.27-LN((RH*EXP(17.27*(Tl_cool/(Tl_cool+237.3))))))<Tavg_cold,1,IF(1/(1+((2258*((0.622/(($Z$11/(1*611*EXP(17.27*(Tavg_cold/(Tavg_cold+237.3))))))-1)*1000-(0.622/(($Z$11/(RH*611*EXP(17.27*(Tl_cool/(Tl_cool+237.3))))))-1)*1000))/(1005*(Tavg_cold-Tl_cool))))*1.039+((-0.000729*$C57+0.001448)*(Tl_cool-Tavg_cold)+(0.016908*$C57-0.033574))*1.039>1,1,1/(1+((2258*((0.622/(($Z$11/(1*611*EXP(17.27*(Tavg_cold/(Tavg_cold+237.3))))))-1)*1000-(0.622/(($Z$11/(RH*611*EXP(17.27*(Tl_cool/(Tl_cool+237.3))))))-1)*1000))/(1005*(Tavg_cold-Tl_cool))))*1.039+((-0.000729*$C57+0.001448)*(Tl_cool-Tavg_cold)+(0.016908*$C57-0.033574))*1.039))))*Watts -> 0 | I57: =ROUND(((H57/Watts)/((Tr_cool-Tv_cool)*1.163))*$I$14,IF($X$4=1,0,IF($X$4=2,2))) -> 0 | J57: =($AA$54*(I57/$I$14)^$AA$56)*$J$14 ->  | K57: =L57-8 -> -8 | L57: 0 | M57: 0 | N57: =AD57*Cubics -> 0 | O57: =((($D57/Watts)/(((p_atm*0.028964)/(8.31447*(20+273.15)))*(($N57/3600)/Cubics)*(1005+1870*((0.622)/(((p_atm)/($E$12*Pvs_Heat_in))-1)))))+Tl_heat)*Celc1+Celc2 ->  | P57: =(Tl_cool-(($G57/Watts)/(1006*$N57*kgss)))*Celc1+Celc2 ->  | Q57: 1 | R57: 0 | S57: 0 | T57: 0 | U57: 0.7711 | V57: 0 | W57: =(H57-G57)/H57 ->  | X57: 0 | Y57: 0 | Z57: 0 | AA57: 0 | AB57: 0 | AC57: 0 | AD57: 0 | BD57: 6080.33115 | BF57: 1543.937995 | BH57: 51 | BI57: 21.2 | BJ57: 546 | BK57: 9193.333596 | BM57: 1567.891128 | BO57: 51 | BP57: 21.2 | BQ57: 546
B58: =IF($S$7=1,NL!A57,IF(cal!$S$7=2,EN!A57,IF(cal!$S$7=3,DE!A57,IF(cal!$S$7=4,FR!A57,IF(cal!$S$7=5,NR!A57,IF(cal!$S$7=6,SP!A57,IF(cal!$S$7=7,SW!A57,IF(cal!$S$7=8,TS!A57,IF(cal!$S$7=9,ExtraTaal1!A57,IF(cal!$S$7=10,ExtraTaal2!A57,IF(cal!$S$7=11,ExtraTaal3!A57,))))))))))) -> Clima Canal altura 0 cm ancho 0 cm longitud 0 cm (Type 8) | C58: =IF($S$7=1,NL!B57,IF(cal!$S$7=2,EN!B57,IF(cal!$S$7=3,DE!B57,IF(cal!$S$7=4,FR!B57,IF(cal!$S$7=5,NR!B57,IF(cal!$S$7=6,SP!B57,IF(cal!$S$7=7,SW!B57,IF(cal!$S$7=8,TS!B57,IF(cal!$S$7=9,ExtraTaal1!B57,IF(cal!$S$7=10,ExtraTaal2!B57,IF(cal!$S$7=11,ExtraTaal3!B57,))))))))))) -> 0 | D58: =IF($S$7=1,NL!C57,IF(cal!$S$7=2,EN!C57,IF(cal!$S$7=3,DE!C57,IF(cal!$S$7=4,FR!C57,IF(cal!$S$7=5,NR!C57,IF(cal!$S$7=6,SP!C57,IF(cal!$S$7=7,SW!C57,IF(cal!$S$7=8,TS!C57,IF(cal!$S$7=9,ExtraTaal1!C57,IF(cal!$S$7=10,ExtraTaal2!C57,IF(cal!$S$7=11,ExtraTaal3!C57,))))))))))) -> 0 | E58: =IF($S$7=1,NL!D57,IF(cal!$S$7=2,EN!D57,IF(cal!$S$7=3,DE!D57,IF(cal!$S$7=4,FR!D57,IF(cal!$S$7=5,NR!D57,IF(cal!$S$7=6,SP!D57,IF(cal!$S$7=7,SW!D57,IF(cal!$S$7=8,TS!D57,IF(cal!$S$7=9,ExtraTaal1!D57,IF(cal!$S$7=10,ExtraTaal2!D57,IF(cal!$S$7=11,ExtraTaal3!D57,))))))))))) -> 0 | F58: =IF($S$7=1,NL!E57,IF(cal!$S$7=2,EN!E57,IF(cal!$S$7=3,DE!E57,IF(cal!$S$7=4,FR!E57,IF(cal!$S$7=5,NR!E57,IF(cal!$S$7=6,SP!E57,IF(cal!$S$7=7,SW!E57,IF(cal!$S$7=8,TS!E57,IF(cal!$S$7=9,ExtraTaal1!E57,IF(cal!$S$7=10,ExtraTaal2!E57,IF(cal!$S$7=11,ExtraTaal3!E57,))))))))))) -> 0 | G58: =IF($S$7=1,NL!F57,IF(cal!$S$7=2,EN!F57,IF(cal!$S$7=3,DE!F57,IF(cal!$S$7=4,FR!F57,IF(cal!$S$7=5,NR!F57,IF(cal!$S$7=6,SP!F57,IF(cal!$S$7=7,SW!F57,IF(cal!$S$7=8,TS!F57,IF(cal!$S$7=9,ExtraTaal1!F57,IF(cal!$S$7=10,ExtraTaal2!F57,IF(cal!$S$7=11,ExtraTaal3!F57,))))))))))) -> 0 | H58: =IF($S$7=1,NL!G57,IF(cal!$S$7=2,EN!G57,IF(cal!$S$7=3,DE!G57,IF(cal!$S$7=4,FR!G57,IF(cal!$S$7=5,NR!G57,IF(cal!$S$7=6,SP!G57,IF(cal!$S$7=7,SW!G57,IF(cal!$S$7=8,TS!G57,IF(cal!$S$7=9,ExtraTaal1!G57,IF(cal!$S$7=10,ExtraTaal2!G57,IF(cal!$S$7=11,ExtraTaal3!G57,))))))))))) -> 0 | I58: =IF($S$7=1,NL!H57,IF(cal!$S$7=2,EN!H57,IF(cal!$S$7=3,DE!H57,IF(cal!$S$7=4,FR!H57,IF(cal!$S$7=5,NR!H57,IF(cal!$S$7=6,SP!H57,IF(cal!$S$7=7,SW!H57,IF(cal!$S$7=8,TS!H57,IF(cal!$S$7=9,ExtraTaal1!H57,IF(cal!$S$7=10,ExtraTaal2!H57,IF(cal!$S$7=11,ExtraTaal3!H57,))))))))))) -> 0 | J58: =IF($S$7=1,NL!I57,IF(cal!$S$7=2,EN!I57,IF(cal!$S$7=3,DE!I57,IF(cal!$S$7=4,FR!I57,IF(cal!$S$7=5,NR!I57,IF(cal!$S$7=6,SP!I57,IF(cal!$S$7=7,SW!I57,IF(cal!$S$7=8,TS!I57,IF(cal!$S$7=9,ExtraTaal1!I57,IF(cal!$S$7=10,ExtraTaal2!I57,IF(cal!$S$7=11,ExtraTaal3!I57,))))))))))) -> 0 | K58: =IF($S$7=1,NL!J57,IF(cal!$S$7=2,EN!J57,IF(cal!$S$7=3,DE!J57,IF(cal!$S$7=4,FR!J57,IF(cal!$S$7=5,NR!J57,IF(cal!$S$7=6,SP!J57,IF(cal!$S$7=7,SW!J57,IF(cal!$S$7=8,TS!J57,IF(cal!$S$7=9,ExtraTaal1!J57,IF(cal!$S$7=10,ExtraTaal2!J57,IF(cal!$S$7=11,ExtraTaal3!J57,))))))))))) -> 0 | L58: =IF($S$7=1,NL!K57,IF(cal!$S$7=2,EN!K57,IF(cal!$S$7=3,DE!K57,IF(cal!$S$7=4,FR!K57,IF(cal!$S$7=5,NR!K57,IF(cal!$S$7=6,SP!K57,IF(cal!$S$7=7,SW!K57,IF(cal!$S$7=8,TS!K57,IF(cal!$S$7=9,ExtraTaal1!K57,IF(cal!$S$7=10,ExtraTaal2!K57,IF(cal!$S$7=11,ExtraTaal3!K57,))))))))))) -> 0 | M58: =IF($S$7=1,NL!L57,IF(cal!$S$7=2,EN!L57,IF(cal!$S$7=3,DE!L57,IF(cal!$S$7=4,FR!L57,IF(cal!$S$7=5,NR!L57,IF(cal!$S$7=6,SP!L57,IF(cal!$S$7=7,SW!L57,IF(cal!$S$7=8,TS!L57,IF(cal!$S$7=9,ExtraTaal1!L57,IF(cal!$S$7=10,ExtraTaal2!L57,IF(cal!$S$7=11,ExtraTaal3!L57,))))))))))) -> 0 | N58: =IF($S$7=1,NL!M57,IF(cal!$S$7=2,EN!M57,IF(cal!$S$7=3,DE!M57,IF(cal!$S$7=4,FR!M57,IF(cal!$S$7=5,NR!M57,IF(cal!$S$7=6,SP!M57,IF(cal!$S$7=7,SW!M57,IF(cal!$S$7=8,TS!M57,IF(cal!$S$7=9,ExtraTaal1!M57,IF(cal!$S$7=10,ExtraTaal2!M57,IF(cal!$S$7=11,ExtraTaal3!M57,))))))))))) -> 0 | O58: =IF($S$7=1,NL!N57,IF(cal!$S$7=2,EN!N57,IF(cal!$S$7=3,DE!N57,IF(cal!$S$7=4,FR!N57,IF(cal!$S$7=5,NR!N57,IF(cal!$S$7=6,SP!N57,IF(cal!$S$7=7,SW!N57,IF(cal!$S$7=8,TS!N57,IF(cal!$S$7=9,ExtraTaal1!N57,IF(cal!$S$7=10,ExtraTaal2!N57,IF(cal!$S$7=11,ExtraTaal3!N57,))))))))))) -> 0 | P58: =IF($S$7=1,NL!O57,IF(cal!$S$7=2,EN!O57,IF(cal!$S$7=3,DE!O57,IF(cal!$S$7=4,FR!O57,IF(cal!$S$7=5,NR!O57,IF(cal!$S$7=6,SP!O57,IF(cal!$S$7=7,SW!O57,IF(cal!$S$7=8,TS!O57,IF(cal!$S$7=9,ExtraTaal1!O57,IF(cal!$S$7=10,ExtraTaal2!O57,IF(cal!$S$7=11,ExtraTaal3!O57,))))))))))) -> 0 | Q58: n-value | R58: n-value | S58: n-value | T58: n-value | U58: n-value | V58: n-value | X58: 0 | Y58: 0 | Z58: 0 | AA58: 0 | AB58: 0 | AC58: 0 | AD58: 0 | BD58: H | BE58: =BE22 -> 13 | BF58: B | BG58: =BG22 -> 32 | BH58: L | BI58: =IF($X$4=1,230,230/2.54) -> 230 | BK58: H | BL58: =BL22 -> 13 | BM58: B | BN58: =BN22 -> 32 | BO58: L | BP58: =IF($X$4=1,230,230/2.54) -> 230
B59: 0.2 | C59: 2 | D59: =(X59*($T$11^$Q59))*Watts*CF_Altit -> 0 | E59: =ROUND(((D59/Watts)/(($S$9-$S$10)*1.163))*$E$14,IF($X$4=1,0,IF($X$4=2,2))) -> 0 | F59: =($Y$66*(E59/$E$14)^$Y$68)*$F$14 ->  | G59: =(Z59*($W$11^R59))*Watts*CF_Altit -> 0 | H59: =((G59/Watts)/(IF((237.3*LN((RH*EXP(17.27*(Tl_cool/(Tl_cool+237.3))))))/(17.27-LN((RH*EXP(17.27*(Tl_cool/(Tl_cool+237.3))))))<Tavg_cold,1,IF(1/(1+((2258*((0.622/(($Z$11/(1*611*EXP(17.27*(Tavg_cold/(Tavg_cold+237.3))))))-1)*1000-(0.622/(($Z$11/(RH*611*EXP(17.27*(Tl_cool/(Tl_cool+237.3))))))-1)*1000))/(1005*(Tavg_cold-Tl_cool))))*1.039+((-0.000729*$C59+0.001448)*(Tl_cool-Tavg_cold)+(0.016908*$C59-0.033574))*1.039>1,1,1/(1+((2258*((0.622/(($Z$11/(1*611*EXP(17.27*(Tavg_cold/(Tavg_cold+237.3))))))-1)*1000-(0.622/(($Z$11/(RH*611*EXP(17.27*(Tl_cool/(Tl_cool+237.3))))))-1)*1000))/(1005*(Tavg_cold-Tl_cool))))*1.039+((-0.000729*$C59+0.001448)*(Tl_cool-Tavg_cold)+(0.016908*$C59-0.033574))*1.039))))*Watts -> 0 | I59: =ROUND(((H59/Watts)/((Tr_cool-Tv_cool)*1.163))*$I$14,IF($X$4=1,0,IF($X$4=2,2))) -> 0 | J59: =($AA$60*(I59/$I$14)^$AA$62)*$J$14 ->  | K59: =L59-8 -> -8 | L59: =AB59 -> 0 | M59: 0 | N59: =AD59*Cubics -> 0 | O59: =((($D59/Watts)/(((p_atm*0.028964)/(8.31447*(20+273.15)))*(($N59/3600)/Cubics)*(1005+1870*((0.622)/(((p_atm)/($E$12*Pvs_Heat_in))-1)))))+Tl_heat)*Celc1+Celc2 ->  | P59: =(Tl_cool-(($G59/Watts)/(1006*$N59*kgss)))*Celc1+Celc2 ->  | Q59: 1 | R59: 0 | S59: 0 | T59: 0 | U59: 0.7807 | V59: 0 | W59: =(H59-G59)/H59 ->  | X59: =IF($X$16=1,AE59,IF($X$16=2,AL59,IF($X$16=3,BK59,IF($X$16=4,BD59,IF($X$16=5,BZ59,IF($X$16=6,BS59,IF($X$16=7,AW59,))))))) -> 0 | Y59: 0 | Z59: 0 | AA59: 0 | AB59: 0 | AC59: 0 | AD59: 0 | BD59: 1950.38143 | BE59: a | BF59: 469.7260939 | BG59: a | BH59: 32 | BI59: 3.784 | BJ59: 133 | BK59: 2273.496728 | BL59: a | BM59: 489.2269123 | BN59: a | BO59: =BH59 -> 32 | BP59: 3.784 | BQ59: 133
B60: 0.4 | C60: 4 | D60: =(X60*($T$11^$Q60))*Watts*CF_Altit -> 0 | E60: =ROUND(((D60/Watts)/(($S$9-$S$10)*1.163))*$E$14,IF($X$4=1,0,IF($X$4=2,2))) -> 0 | F60: =($Y$66*(E60/$E$14)^$Y$68)*$F$14 ->  | G60: =(Z60*($W$11^R60))*Watts*CF_Altit -> 0 | H60: =((G60/Watts)/(IF((237.3*LN((RH*EXP(17.27*(Tl_cool/(Tl_cool+237.3))))))/(17.27-LN((RH*EXP(17.27*(Tl_cool/(Tl_cool+237.3))))))<Tavg_cold,1,IF(1/(1+((2258*((0.622/(($Z$11/(1*611*EXP(17.27*(Tavg_cold/(Tavg_cold+237.3))))))-1)*1000-(0.622/(($Z$11/(RH*611*EXP(17.27*(Tl_cool/(Tl_cool+237.3))))))-1)*1000))/(1005*(Tavg_cold-Tl_cool))))*1.039+((-0.000729*$C60+0.001448)*(Tl_cool-Tavg_cold)+(0.016908*$C60-0.033574))*1.039>1,1,1/(1+((2258*((0.622/(($Z$11/(1*611*EXP(17.27*(Tavg_cold/(Tavg_cold+237.3))))))-1)*1000-(0.622/(($Z$11/(RH*611*EXP(17.27*(Tl_cool/(Tl_cool+237.3))))))-1)*1000))/(1005*(Tavg_cold-Tl_cool))))*1.039+((-0.000729*$C60+0.001448)*(Tl_cool-Tavg_cold)+(0.016908*$C60-0.033574))*1.039))))*Watts -> 0 | I60: =ROUND(((H60/Watts)/((Tr_cool-Tv_cool)*1.163))*$I$14,IF($X$4=1,0,IF($X$4=2,2))) -> 0 | J60: =($AA$60*(I60/$I$14)^$AA$62)*$J$14 ->  | K60: =L60-8 -> -8 | L60: 0 | M60: 0 | N60: =AD60*Cubics -> 0 | O60: =((($D60/Watts)/(((p_atm*0.028964)/(8.31447*(20+273.15)))*(($N60/3600)/Cubics)*(1005+1870*((0.622)/(((p_atm)/($E$12*Pvs_Heat_in))-1)))))+Tl_heat)*Celc1+Celc2 ->  | P60: =(Tl_cool-(($G60/Watts)/(1006*$N60*kgss)))*Celc1+Celc2 ->  | Q60: 1 | R60: 0 | S60: 0 | T60: 0 | U60: 0.8587 | V60: 0 | W60: =(H60-G60)/H60 ->  | X60: 0 | Y60: 0 | Z60: 0 | AA60: 0 | AB60: 0 | AC60: 0 | AD60: 0 | BD60: 3889.72257 | BE60: 0.000118103 | BF60: 853.0388966 | BG60: 2.181142852e-05 | BH60: 37.5 | BI60: 6.432 | BJ60: 272 | BK60: 5028.22711 | BL60: 9.691093922e-05 | BM60: 888.3133331 | BN60: =BL60 -> 9.691093922e-05 | BO60: 37.5 | BP60: 6.432 | BQ60: 272
B61: 0.6 | C61: 6 | D61: =(X61*($T$11^$Q61))*Watts*CF_Altit -> 0 | E61: =ROUND(((D61/Watts)/(($S$9-$S$10)*1.163))*$E$14,IF($X$4=1,0,IF($X$4=2,2))) -> 0 | F61: =($Y$66*(E61/$E$14)^$Y$68)*$F$14 ->  | G61: =(Z61*($W$11^R61))*Watts*CF_Altit -> 0 | H61: =((G61/Watts)/(IF((237.3*LN((RH*EXP(17.27*(Tl_cool/(Tl_cool+237.3))))))/(17.27-LN((RH*EXP(17.27*(Tl_cool/(Tl_cool+237.3))))))<Tavg_cold,1,IF(1/(1+((2258*((0.622/(($Z$11/(1*611*EXP(17.27*(Tavg_cold/(Tavg_cold+237.3))))))-1)*1000-(0.622/(($Z$11/(RH*611*EXP(17.27*(Tl_cool/(Tl_cool+237.3))))))-1)*1000))/(1005*(Tavg_cold-Tl_cool))))*1.039+((-0.000729*$C61+0.001448)*(Tl_cool-Tavg_cold)+(0.016908*$C61-0.033574))*1.039>1,1,1/(1+((2258*((0.622/(($Z$11/(1*611*EXP(17.27*(Tavg_cold/(Tavg_cold+237.3))))))-1)*1000-(0.622/(($Z$11/(RH*611*EXP(17.27*(Tl_cool/(Tl_cool+237.3))))))-1)*1000))/(1005*(Tavg_cold-Tl_cool))))*1.039+((-0.000729*$C61+0.001448)*(Tl_cool-Tavg_cold)+(0.016908*$C61-0.033574))*1.039))))*Watts -> 0 | I61: =ROUND(((H61/Watts)/((Tr_cool-Tv_cool)*1.163))*$I$14,IF($X$4=1,0,IF($X$4=2,2))) -> 0 | J61: =($AA$60*(I61/$I$14)^$AA$62)*$J$14 ->  | K61: =L61-8 -> -8 | L61: 0 | M61: 0 | N61: =AD61*Cubics -> 0 | O61: =((($D61/Watts)/(((p_atm*0.028964)/(8.31447*(20+273.15)))*(($N61/3600)/Cubics)*(1005+1870*((0.622)/(((p_atm)/($E$12*Pvs_Heat_in))-1)))))+Tl_heat)*Celc1+Celc2 ->  | P61: =(Tl_cool-(($G61/Watts)/(1006*$N61*kgss)))*Celc1+Celc2 ->  | Q61: 1 | R61: 0 | S61: 0 | T61: 0 | U61: 0.8831 | V61: 0 | W61: =(H61-G61)/H61 ->  | X61: =IF($X$16=1,AE61,IF($X$16=2,AL61,IF($X$16=3,BK61,IF($X$16=4,BD61,IF($X$16=5,BZ61,IF($X$16=6,BS61,IF($X$16=7,AW61,))))))) -> 0 | Y61: 0 | Z61: 0 | AA61: 0 | AB61: 0 | AC61: 0 | AD61: 0 | BD61: 5486.35207 | BE61: b | BF61: 1226.336879 | BG61: b | BH61: 42 | BI61: 11.6 | BJ61: 433 | BK61: 7495.699782 | BL61: b | BM61: 1268.642814 | BN61: b | BO61: 42 | BP61: 11.6 | BQ61: 433
B62: 0.8 | C62: 8 | D62: =(X62*($T$11^$Q62))*Watts*CF_Altit -> 0 | E62: =ROUND(((D62/Watts)/(($S$9-$S$10)*1.163))*$E$14,IF($X$4=1,0,IF($X$4=2,2))) -> 0 | F62: =($Y$66*(E62/$E$14)^$Y$68)*$F$14 ->  | G62: =(Z62*($W$11^R62))*Watts*CF_Altit -> 0 | H62: =((G62/Watts)/(IF((237.3*LN((RH*EXP(17.27*(Tl_cool/(Tl_cool+237.3))))))/(17.27-LN((RH*EXP(17.27*(Tl_cool/(Tl_cool+237.3))))))<Tavg_cold,1,IF(1/(1+((2258*((0.622/(($Z$11/(1*611*EXP(17.27*(Tavg_cold/(Tavg_cold+237.3))))))-1)*1000-(0.622/(($Z$11/(RH*611*EXP(17.27*(Tl_cool/(Tl_cool+237.3))))))-1)*1000))/(1005*(Tavg_cold-Tl_cool))))*1.039+((-0.000729*$C62+0.001448)*(Tl_cool-Tavg_cold)+(0.016908*$C62-0.033574))*1.039>1,1,1/(1+((2258*((0.622/(($Z$11/(1*611*EXP(17.27*(Tavg_cold/(Tavg_cold+237.3))))))-1)*1000-(0.622/(($Z$11/(RH*611*EXP(17.27*(Tl_cool/(Tl_cool+237.3))))))-1)*1000))/(1005*(Tavg_cold-Tl_cool))))*1.039+((-0.000729*$C62+0.001448)*(Tl_cool-Tavg_cold)+(0.016908*$C62-0.033574))*1.039))))*Watts -> 0 | I62: =ROUND(((H62/Watts)/((Tr_cool-Tv_cool)*1.163))*$I$14,IF($X$4=1,0,IF($X$4=2,2))) -> 0 | J62: =($AA$60*(I62/$I$14)^$AA$62)*$J$14 ->  | K62: =L62-8 -> -8 | L62: 0 | M62: 0 | N62: =AD62*Cubics -> 0 | O62: =((($D62/Watts)/(((p_atm*0.028964)/(8.31447*(20+273.15)))*(($N62/3600)/Cubics)*(1005+1870*((0.622)/(((p_atm)/($E$12*Pvs_Heat_in))-1)))))+Tl_heat)*Celc1+Celc2 ->  | P62: =(Tl_cool-(($G62/Watts)/(1006*$N62*kgss)))*Celc1+Celc2 ->  | Q62: 1 | R62: 0 | S62: 0 | T62: 0 | U62: 0.8539 | V62: 0 | W62: =(H62-G62)/H62 ->  | X62: 0 | Y62: 0 | Z62: 0 | AA62: 0 | AB62: 0 | AC62: 0 | AD62: 0 | BD62: 6740.26993 | BE62: 1.82623 | BF62: 1589.62004 | BG62: 1.905592616 | BH62: 49 | BI62: 20.3 | BJ62: 587 | BK62: 9675.914743 | BL62: 1.811880807 | BM62: 1630.215354 | BN62: =BL62 -> 1.811880807 | BO62: 49 | BP62: 20.3 | BQ62: 587
B63: 1 | C63: 10 | D63: =(X63*($T$11^$Q63))*Watts*CF_Altit -> 0 | E63: =ROUND(((D63/Watts)/(($S$9-$S$10)*1.163))*$E$14,IF($X$4=1,0,IF($X$4=2,2))) -> 0 | F63: =($Y$66*(E63/$E$14)^$Y$68)*$F$14 ->  | G63: =(Z63*($W$11^R63))*Watts*CF_Altit -> 0 | H63: =((G63/Watts)/(IF((237.3*LN((RH*EXP(17.27*(Tl_cool/(Tl_cool+237.3))))))/(17.27-LN((RH*EXP(17.27*(Tl_cool/(Tl_cool+237.3))))))<Tavg_cold,1,IF(1/(1+((2258*((0.622/(($Z$11/(1*611*EXP(17.27*(Tavg_cold/(Tavg_cold+237.3))))))-1)*1000-(0.622/(($Z$11/(RH*611*EXP(17.27*(Tl_cool/(Tl_cool+237.3))))))-1)*1000))/(1005*(Tavg_cold-Tl_cool))))*1.039+((-0.000729*$C63+0.001448)*(Tl_cool-Tavg_cold)+(0.016908*$C63-0.033574))*1.039>1,1,1/(1+((2258*((0.622/(($Z$11/(1*611*EXP(17.27*(Tavg_cold/(Tavg_cold+237.3))))))-1)*1000-(0.622/(($Z$11/(RH*611*EXP(17.27*(Tl_cool/(Tl_cool+237.3))))))-1)*1000))/(1005*(Tavg_cold-Tl_cool))))*1.039+((-0.000729*$C63+0.001448)*(Tl_cool-Tavg_cold)+(0.016908*$C63-0.033574))*1.039))))*Watts -> 0 | I63: =ROUND(((H63/Watts)/((Tr_cool-Tv_cool)*1.163))*$I$14,IF($X$4=1,0,IF($X$4=2,2))) -> 0 | J63: =($AA$60*(I63/$I$14)^$AA$62)*$J$14 ->  | K63: =L63-8 -> -8 | L63: 0 | M63: 0 | N63: =AD63*Cubics -> 0 | O63: =((($D63/Watts)/(((p_atm*0.028964)/(8.31447*(20+273.15)))*(($N63/3600)/Cubics)*(1005+1870*((0.622)/(((p_atm)/($E$12*Pvs_Heat_in))-1)))))+Tl_heat)*Celc1+Celc2 ->  | P63: =(Tl_cool-(($G63/Watts)/(1006*$N63*kgss)))*Celc1+Celc2 ->  | Q63: 1 | R63: 0 | S63: 0 | T63: 0 | U63: 0.7711 | V63: 0 | W63: =(H63-G63)/H63 ->  | X63: 0 | Y63: 0 | Z63: 0 | AA63: 0 | AB63: 0 | AC63: 0 | AD63: 0 | BD63: 7651.47615 | BF63: 1942.888381 | BH63: 52 | BI63: 30 | BJ63: 683 | BK63: 11568.87199 | BM63: 1973.030954 | BO63: 52 | BP63: 30 | BQ63: 683
B64: =IF($S$7=1,NL!A63,IF(cal!$S$7=2,EN!A63,IF(cal!$S$7=3,DE!A63,IF(cal!$S$7=4,FR!A63,IF(cal!$S$7=5,NR!A63,IF(cal!$S$7=6,SP!A63,IF(cal!$S$7=7,SW!A63,IF(cal!$S$7=8,TS!A63,IF(cal!$S$7=9,ExtraTaal1!A63,IF(cal!$S$7=10,ExtraTaal2!A63,IF(cal!$S$7=11,ExtraTaal3!A63,))))))))))) -> Clima Canal altura 0 cm ancho 0 cm longitud 0 cm (Type 9) | C64: =IF($S$7=1,NL!B63,IF(cal!$S$7=2,EN!B63,IF(cal!$S$7=3,DE!B63,IF(cal!$S$7=4,FR!B63,IF(cal!$S$7=5,NR!B63,IF(cal!$S$7=6,SP!B63,IF(cal!$S$7=7,SW!B63,IF(cal!$S$7=8,TS!B63,IF(cal!$S$7=9,ExtraTaal1!B63,IF(cal!$S$7=10,ExtraTaal2!B63,IF(cal!$S$7=11,ExtraTaal3!B63,))))))))))) -> 0 | D64: =IF($S$7=1,NL!C63,IF(cal!$S$7=2,EN!C63,IF(cal!$S$7=3,DE!C63,IF(cal!$S$7=4,FR!C63,IF(cal!$S$7=5,NR!C63,IF(cal!$S$7=6,SP!C63,IF(cal!$S$7=7,SW!C63,IF(cal!$S$7=8,TS!C63,IF(cal!$S$7=9,ExtraTaal1!C63,IF(cal!$S$7=10,ExtraTaal2!C63,IF(cal!$S$7=11,ExtraTaal3!C63,))))))))))) -> 0 | E64: =IF($S$7=1,NL!D63,IF(cal!$S$7=2,EN!D63,IF(cal!$S$7=3,DE!D63,IF(cal!$S$7=4,FR!D63,IF(cal!$S$7=5,NR!D63,IF(cal!$S$7=6,SP!D63,IF(cal!$S$7=7,SW!D63,IF(cal!$S$7=8,TS!D63,IF(cal!$S$7=9,ExtraTaal1!D63,IF(cal!$S$7=10,ExtraTaal2!D63,IF(cal!$S$7=11,ExtraTaal3!D63,))))))))))) -> 0 | F64: =IF($S$7=1,NL!E63,IF(cal!$S$7=2,EN!E63,IF(cal!$S$7=3,DE!E63,IF(cal!$S$7=4,FR!E63,IF(cal!$S$7=5,NR!E63,IF(cal!$S$7=6,SP!E63,IF(cal!$S$7=7,SW!E63,IF(cal!$S$7=8,TS!E63,IF(cal!$S$7=9,ExtraTaal1!E63,IF(cal!$S$7=10,ExtraTaal2!E63,IF(cal!$S$7=11,ExtraTaal3!E63,))))))))))) -> 0 | G64: =IF($S$7=1,NL!F63,IF(cal!$S$7=2,EN!F63,IF(cal!$S$7=3,DE!F63,IF(cal!$S$7=4,FR!F63,IF(cal!$S$7=5,NR!F63,IF(cal!$S$7=6,SP!F63,IF(cal!$S$7=7,SW!F63,IF(cal!$S$7=8,TS!F63,IF(cal!$S$7=9,ExtraTaal1!F63,IF(cal!$S$7=10,ExtraTaal2!F63,IF(cal!$S$7=11,ExtraTaal3!F63,))))))))))) -> 0 | H64: =IF($S$7=1,NL!G63,IF(cal!$S$7=2,EN!G63,IF(cal!$S$7=3,DE!G63,IF(cal!$S$7=4,FR!G63,IF(cal!$S$7=5,NR!G63,IF(cal!$S$7=6,SP!G63,IF(cal!$S$7=7,SW!G63,IF(cal!$S$7=8,TS!G63,IF(cal!$S$7=9,ExtraTaal1!G63,IF(cal!$S$7=10,ExtraTaal2!G63,IF(cal!$S$7=11,ExtraTaal3!G63,))))))))))) -> 0 | I64: =IF($S$7=1,NL!H63,IF(cal!$S$7=2,EN!H63,IF(cal!$S$7=3,DE!H63,IF(cal!$S$7=4,FR!H63,IF(cal!$S$7=5,NR!H63,IF(cal!$S$7=6,SP!H63,IF(cal!$S$7=7,SW!H63,IF(cal!$S$7=8,TS!H63,IF(cal!$S$7=9,ExtraTaal1!H63,IF(cal!$S$7=10,ExtraTaal2!H63,IF(cal!$S$7=11,ExtraTaal3!H63,))))))))))) -> 0 | J64: =IF($S$7=1,NL!I63,IF(cal!$S$7=2,EN!I63,IF(cal!$S$7=3,DE!I63,IF(cal!$S$7=4,FR!I63,IF(cal!$S$7=5,NR!I63,IF(cal!$S$7=6,SP!I63,IF(cal!$S$7=7,SW!I63,IF(cal!$S$7=8,TS!I63,IF(cal!$S$7=9,ExtraTaal1!I63,IF(cal!$S$7=10,ExtraTaal2!I63,IF(cal!$S$7=11,ExtraTaal3!I63,))))))))))) -> 0 | K64: =IF($S$7=1,NL!J63,IF(cal!$S$7=2,EN!J63,IF(cal!$S$7=3,DE!J63,IF(cal!$S$7=4,FR!J63,IF(cal!$S$7=5,NR!J63,IF(cal!$S$7=6,SP!J63,IF(cal!$S$7=7,SW!J63,IF(cal!$S$7=8,TS!J63,IF(cal!$S$7=9,ExtraTaal1!J63,IF(cal!$S$7=10,ExtraTaal2!J63,IF(cal!$S$7=11,ExtraTaal3!J63,))))))))))) -> 0 | L64: =IF($S$7=1,NL!K63,IF(cal!$S$7=2,EN!K63,IF(cal!$S$7=3,DE!K63,IF(cal!$S$7=4,FR!K63,IF(cal!$S$7=5,NR!K63,IF(cal!$S$7=6,SP!K63,IF(cal!$S$7=7,SW!K63,IF(cal!$S$7=8,TS!K63,IF(cal!$S$7=9,ExtraTaal1!K63,IF(cal!$S$7=10,ExtraTaal2!K63,IF(cal!$S$7=11,ExtraTaal3!K63,))))))))))) -> 0 | M64: =IF($S$7=1,NL!L63,IF(cal!$S$7=2,EN!L63,IF(cal!$S$7=3,DE!L63,IF(cal!$S$7=4,FR!L63,IF(cal!$S$7=5,NR!L63,IF(cal!$S$7=6,SP!L63,IF(cal!$S$7=7,SW!L63,IF(cal!$S$7=8,TS!L63,IF(cal!$S$7=9,ExtraTaal1!L63,IF(cal!$S$7=10,ExtraTaal2!L63,IF(cal!$S$7=11,ExtraTaal3!L63,))))))))))) -> 0 | N64: =IF($S$7=1,NL!M63,IF(cal!$S$7=2,EN!M63,IF(cal!$S$7=3,DE!M63,IF(cal!$S$7=4,FR!M63,IF(cal!$S$7=5,NR!M63,IF(cal!$S$7=6,SP!M63,IF(cal!$S$7=7,SW!M63,IF(cal!$S$7=8,TS!M63,IF(cal!$S$7=9,ExtraTaal1!M63,IF(cal!$S$7=10,ExtraTaal2!M63,IF(cal!$S$7=11,ExtraTaal3!M63,))))))))))) -> 0 | O64: =IF($S$7=1,NL!N63,IF(cal!$S$7=2,EN!N63,IF(cal!$S$7=3,DE!N63,IF(cal!$S$7=4,FR!N63,IF(cal!$S$7=5,NR!N63,IF(cal!$S$7=6,SP!N63,IF(cal!$S$7=7,SW!N63,IF(cal!$S$7=8,TS!N63,IF(cal!$S$7=9,ExtraTaal1!N63,IF(cal!$S$7=10,ExtraTaal2!N63,IF(cal!$S$7=11,ExtraTaal3!N63,))))))))))) -> 0 | P64: =IF($S$7=1,NL!O63,IF(cal!$S$7=2,EN!O63,IF(cal!$S$7=3,DE!O63,IF(cal!$S$7=4,FR!O63,IF(cal!$S$7=5,NR!O63,IF(cal!$S$7=6,SP!O63,IF(cal!$S$7=7,SW!O63,IF(cal!$S$7=8,TS!O63,IF(cal!$S$7=9,ExtraTaal1!O63,IF(cal!$S$7=10,ExtraTaal2!O63,IF(cal!$S$7=11,ExtraTaal3!O63,))))))))))) -> 0 | Q64: n-value | R64: n-value | S64: n-value | T64: n-value | U64: n-value | V64: n-value | X64: 0 | Y64: 0 | Z64: 0 | AA64: 0 | AB64: 0 | AC64: 0 | AD64: 0 | BD64: H | BE64: =BE22 -> 13 | BF64: B | BG64: =BG22 -> 32 | BH64: L | BI64: =IF($X$4=1,280,280/2.54) -> 280 | BK64: H | BL64: =BL22 -> 13 | BM64: B | BN64: =BN22 -> 32 | BO64: L | BP64: =IF($X$4=1,280,280/2.54) -> 280
B65: 0.2 | C65: 2 | D65: =(X65*($T$11^$Q65))*Watts*CF_Altit -> 0 | E65: =ROUND(((D65/Watts)/(($S$9-$S$10)*1.163))*$E$14,IF($X$4=1,0,IF($X$4=2,2))) -> 0 | F65: =($Y$66*(E65/$E$14)^$Y$68)*$F$14 ->  | G65: =(Z65*($W$11^R65))*Watts*CF_Altit -> 0 | H65: =((G65/Watts)/(IF((237.3*LN((RH*EXP(17.27*(Tl_cool/(Tl_cool+237.3))))))/(17.27-LN((RH*EXP(17.27*(Tl_cool/(Tl_cool+237.3))))))<Tavg_cold,1,IF(1/(1+((2258*((0.622/(($Z$11/(1*611*EXP(17.27*(Tavg_cold/(Tavg_cold+237.3))))))-1)*1000-(0.622/(($Z$11/(RH*611*EXP(17.27*(Tl_cool/(Tl_cool+237.3))))))-1)*1000))/(1005*(Tavg_cold-Tl_cool))))*1.039+((-0.000729*$C65+0.001448)*(Tl_cool-Tavg_cold)+(0.016908*$C65-0.033574))*1.039>1,1,1/(1+((2258*((0.622/(($Z$11/(1*611*EXP(17.27*(Tavg_cold/(Tavg_cold+237.3))))))-1)*1000-(0.622/(($Z$11/(RH*611*EXP(17.27*(Tl_cool/(Tl_cool+237.3))))))-1)*1000))/(1005*(Tavg_cold-Tl_cool))))*1.039+((-0.000729*$C65+0.001448)*(Tl_cool-Tavg_cold)+(0.016908*$C65-0.033574))*1.039))))*Watts -> 0 | I65: =ROUND(((H65/Watts)/((Tr_cool-Tv_cool)*1.163))*$I$14,IF($X$4=1,0,IF($X$4=2,2))) -> 0 | J65: =($AA$66*(I65/$I$14)^$AA$68)*$J$14 ->  | K65: =L65-8 -> -8 | L65: =AB65 -> 0 | M65: 0 | N65: =AD65*Cubics -> 0 | O65: =((($D65/Watts)/(((p_atm*0.028964)/(8.31447*(20+273.15)))*(($N65/3600)/Cubics)*(1005+1870*((0.622)/(((p_atm)/($E$12*Pvs_Heat_in))-1)))))+Tl_heat)*Celc1+Celc2 ->  | P65: =(Tl_cool-(($G65/Watts)/(1006*$N65*kgss)))*Celc1+Celc2 ->  | Q65: 1 | R65: 0 | S65: 0 | T65: 0 | U65: 0.7807 | V65: 0 | W65: =(H65-G65)/H65 ->  | X65: =IF($X$16=1,AE65,IF($X$16=2,AL65,IF($X$16=3,BK65,IF($X$16=4,BD65,IF($X$16=5,BZ65,IF($X$16=6,BS65,IF($X$16=7,AW65,))))))) -> 0 | Y65: 0 | Z65: 0 | AA65: 0 | AB65: 0 | AC65: 0 | AD65: 0 | BD65: 2110.58 | BE65: a | BF65: 508.319 | BG65: a | BH65: 33 | BI65: 4.8 | BJ65: 142 | BK65: 2460.22 | BL65: a | BM65: 529.396 | BN65: a | BO65: =BH65 -> 33 | BP65: 4.8 | BQ65: 142
B66: 0.4 | C66: 4 | D66: =(X66*($T$11^$Q66))*Watts*CF_Altit -> 0 | E66: =ROUND(((D66/Watts)/(($S$9-$S$10)*1.163))*$E$14,IF($X$4=1,0,IF($X$4=2,2))) -> 0 | F66: =($Y$66*(E66/$E$14)^$Y$68)*$F$14 ->  | G66: =(Z66*($W$11^R66))*Watts*CF_Altit -> 0 | H66: =((G66/Watts)/(IF((237.3*LN((RH*EXP(17.27*(Tl_cool/(Tl_cool+237.3))))))/(17.27-LN((RH*EXP(17.27*(Tl_cool/(Tl_cool+237.3))))))<Tavg_cold,1,IF(1/(1+((2258*((0.622/(($Z$11/(1*611*EXP(17.27*(Tavg_cold/(Tavg_cold+237.3))))))-1)*1000-(0.622/(($Z$11/(RH*611*EXP(17.27*(Tl_cool/(Tl_cool+237.3))))))-1)*1000))/(1005*(Tavg_cold-Tl_cool))))*1.039+((-0.000729*$C66+0.001448)*(Tl_cool-Tavg_cold)+(0.016908*$C66-0.033574))*1.039>1,1,1/(1+((2258*((0.622/(($Z$11/(1*611*EXP(17.27*(Tavg_cold/(Tavg_cold+237.3))))))-1)*1000-(0.622/(($Z$11/(RH*611*EXP(17.27*(Tl_cool/(Tl_cool+237.3))))))-1)*1000))/(1005*(Tavg_cold-Tl_cool))))*1.039+((-0.000729*$C66+0.001448)*(Tl_cool-Tavg_cold)+(0.016908*$C66-0.033574))*1.039))))*Watts -> 0 | I66: =ROUND(((H66/Watts)/((Tr_cool-Tv_cool)*1.163))*$I$14,IF($X$4=1,0,IF($X$4=2,2))) -> 0 | J66: =($AA$66*(I66/$I$14)^$AA$68)*$J$14 ->  | K66: =L66-8 -> -8 | L66: 0 | M66: 0 | N66: =AD66*Cubics -> 0 | O66: =((($D66/Watts)/(((p_atm*0.028964)/(8.31447*(20+273.15)))*(($N66/3600)/Cubics)*(1005+1870*((0.622)/(((p_atm)/($E$12*Pvs_Heat_in))-1)))))+Tl_heat)*Celc1+Celc2 ->  | P66: =(Tl_cool-(($G66/Watts)/(1006*$N66*kgss)))*Celc1+Celc2 ->  | Q66: 1 | R66: 0 | S66: 0 | T66: 0 | U66: 0.8587 | V66: 0 | W66: =(H66-G66)/H66 ->  | X66: 0 | Y66: 0 | Z66: 0 | AA66: 0 | AB66: 0 | AC66: 0 | AD66: 0 | BD66: 4209.14 | BE66: 0.000123339 | BF66: 923.09 | BG66: 2.462816134e-05 | BH66: 39 | BI66: 8 | BJ66: 313 | BK66: 5441.28 | BL66: 0.000101039 | BM66: 961.27 | BN66: =BL66 -> 0.000101039 | BO66: 39 | BP66: 8 | BQ66: 313
B67: 0.6 | C67: 6 | D67: =(X67*($T$11^$Q67))*Watts*CF_Altit -> 0 | E67: =ROUND(((D67/Watts)/(($S$9-$S$10)*1.163))*$E$14,IF($X$4=1,0,IF($X$4=2,2))) -> 0 | F67: =($Y$66*(E67/$E$14)^$Y$68)*$F$14 ->  | G67: =(Z67*($W$11^R67))*Watts*CF_Altit -> 0 | H67: =((G67/Watts)/(IF((237.3*LN((RH*EXP(17.27*(Tl_cool/(Tl_cool+237.3))))))/(17.27-LN((RH*EXP(17.27*(Tl_cool/(Tl_cool+237.3))))))<Tavg_cold,1,IF(1/(1+((2258*((0.622/(($Z$11/(1*611*EXP(17.27*(Tavg_cold/(Tavg_cold+237.3))))))-1)*1000-(0.622/(($Z$11/(RH*611*EXP(17.27*(Tl_cool/(Tl_cool+237.3))))))-1)*1000))/(1005*(Tavg_cold-Tl_cool))))*1.039+((-0.000729*$C67+0.001448)*(Tl_cool-Tavg_cold)+(0.016908*$C67-0.033574))*1.039>1,1,1/(1+((2258*((0.622/(($Z$11/(1*611*EXP(17.27*(Tavg_cold/(Tavg_cold+237.3))))))-1)*1000-(0.622/(($Z$11/(RH*611*EXP(17.27*(Tl_cool/(Tl_cool+237.3))))))-1)*1000))/(1005*(Tavg_cold-Tl_cool))))*1.039+((-0.000729*$C67+0.001448)*(Tl_cool-Tavg_cold)+(0.016908*$C67-0.033574))*1.039))))*Watts -> 0 | I67: =ROUND(((H67/Watts)/((Tr_cool-Tv_cool)*1.163))*$I$14,IF($X$4=1,0,IF($X$4=2,2))) -> 0 | J67: =($AA$66*(I67/$I$14)^$AA$68)*$J$14 ->  | K67: =L67-8 -> -8 | L67: 0 | M67: 0 | N67: =AD67*Cubics -> 0 | O67: =((($D67/Watts)/(((p_atm*0.028964)/(8.31447*(20+273.15)))*(($N67/3600)/Cubics)*(1005+1870*((0.622)/(((p_atm)/($E$12*Pvs_Heat_in))-1)))))+Tl_heat)*Celc1+Celc2 ->  | P67: =(Tl_cool-(($G67/Watts)/(1006*$N67*kgss)))*Celc1+Celc2 ->  | Q67: 1 | R67: 0 | S67: 0 | T67: 0 | U67: 0.8831 | V67: 0 | W67: =(H67-G67)/H67 ->  | X67: =IF($X$16=1,AE67,IF($X$16=2,AL67,IF($X$16=3,BK67,IF($X$16=4,BD67,IF($X$16=5,BZ67,IF($X$16=6,BS67,IF($X$16=7,AW67,))))))) -> 0 | Y67: 0 | Z67: 0 | AA67: 0 | AB67: 0 | AC67: 0 | AD67: 0 | BD67: 5936.91 | BE67: b | BF67: 1327.07 | BG67: b | BH67: 43 | BI67: 14.8 | BJ67: 481 | BK67: 8111.3 | BL67: b | BM67: 1372.83 | BN67: b | BO67: 43 | BP67: 14.8 | BQ67: 481
B68: 0.8 | C68: 8 | D68: =(X68*($T$11^$Q68))*Watts*CF_Altit -> 0 | E68: =ROUND(((D68/Watts)/(($S$9-$S$10)*1.163))*$E$14,IF($X$4=1,0,IF($X$4=2,2))) -> 0 | F68: =($Y$66*(E68/$E$14)^$Y$68)*$F$14 ->  | G68: =(Z68*($W$11^R68))*Watts*CF_Altit -> 0 | H68: =((G68/Watts)/(IF((237.3*LN((RH*EXP(17.27*(Tl_cool/(Tl_cool+237.3))))))/(17.27-LN((RH*EXP(17.27*(Tl_cool/(Tl_cool+237.3))))))<Tavg_cold,1,IF(1/(1+((2258*((0.622/(($Z$11/(1*611*EXP(17.27*(Tavg_cold/(Tavg_cold+237.3))))))-1)*1000-(0.622/(($Z$11/(RH*611*EXP(17.27*(Tl_cool/(Tl_cool+237.3))))))-1)*1000))/(1005*(Tavg_cold-Tl_cool))))*1.039+((-0.000729*$C68+0.001448)*(Tl_cool-Tavg_cold)+(0.016908*$C68-0.033574))*1.039>1,1,1/(1+((2258*((0.622/(($Z$11/(1*611*EXP(17.27*(Tavg_cold/(Tavg_cold+237.3))))))-1)*1000-(0.622/(($Z$11/(RH*611*EXP(17.27*(Tl_cool/(Tl_cool+237.3))))))-1)*1000))/(1005*(Tavg_cold-Tl_cool))))*1.039+((-0.000729*$C68+0.001448)*(Tl_cool-Tavg_cold)+(0.016908*$C68-0.033574))*1.039))))*Watts -> 0 | I68: =ROUND(((H68/Watts)/((Tr_cool-Tv_cool)*1.163))*$I$14,IF($X$4=1,0,IF($X$4=2,2))) -> 0 | J68: =($AA$66*(I68/$I$14)^$AA$68)*$J$14 ->  | K68: =L68-8 -> -8 | L68: 0 | M68: 0 | N68: =AD68*Cubics -> 0 | O68: =((($D68/Watts)/(((p_atm*0.028964)/(8.31447*(20+273.15)))*(($N68/3600)/Cubics)*(1005+1870*((0.622)/(((p_atm)/($E$12*Pvs_Heat_in))-1)))))+Tl_heat)*Celc1+Celc2 ->  | P68: =(Tl_cool-(($G68/Watts)/(1006*$N68*kgss)))*Celc1+Celc2 ->  | Q68: 1 | R68: 0 | S68: 0 | T68: 0 | U68: 0.8539 | V68: 0 | W68: =(H68-G68)/H68 ->  | X68: 0 | Y68: 0 | Z68: 0 | AA68: 0 | AB68: 0 | AC68: 0 | AD68: 0 | BD68: 7294 | BE68: 1.82411 | BF68: 1720.18 | BG68: 1.89113341 | BH68: 50 | BI68: 26.2 | BJ68: 638 | BK68: 10470.7 | BL68: 1.81037 | BM68: 1764.11 | BN68: =BL68 -> 1.81037 | BO68: 50 | BP68: 26.2 | BQ68: 638
B69: 1 | C69: 10 | D69: =(X69*($T$11^$Q69))*Watts*CF_Altit -> 0 | E69: =ROUND(((D69/Watts)/(($S$9-$S$10)*1.163))*$E$14,IF($X$4=1,0,IF($X$4=2,2))) -> 0 | F69: =($Y$66*(E69/$E$14)^$Y$68)*$F$14 ->  | G69: =(Z69*($W$11^R69))*Watts*CF_Altit -> 0 | H69: =((G69/Watts)/(IF((237.3*LN((RH*EXP(17.27*(Tl_cool/(Tl_cool+237.3))))))/(17.27-LN((RH*EXP(17.27*(Tl_cool/(Tl_cool+237.3))))))<Tavg_cold,1,IF(1/(1+((2258*((0.622/(($Z$11/(1*611*EXP(17.27*(Tavg_cold/(Tavg_cold+237.3))))))-1)*1000-(0.622/(($Z$11/(RH*611*EXP(17.27*(Tl_cool/(Tl_cool+237.3))))))-1)*1000))/(1005*(Tavg_cold-Tl_cool))))*1.039+((-0.000729*$C69+0.001448)*(Tl_cool-Tavg_cold)+(0.016908*$C69-0.033574))*1.039>1,1,1/(1+((2258*((0.622/(($Z$11/(1*611*EXP(17.27*(Tavg_cold/(Tavg_cold+237.3))))))-1)*1000-(0.622/(($Z$11/(RH*611*EXP(17.27*(Tl_cool/(Tl_cool+237.3))))))-1)*1000))/(1005*(Tavg_cold-Tl_cool))))*1.039+((-0.000729*$C69+0.001448)*(Tl_cool-Tavg_cold)+(0.016908*$C69-0.033574))*1.039))))*Watts -> 0 | I69: =ROUND(((H69/Watts)/((Tr_cool-Tv_cool)*1.163))*$I$14,IF($X$4=1,0,IF($X$4=2,2))) -> 0 | J69: =($AA$66*(I69/$I$14)^$AA$68)*$J$14 ->  | K69: =L69-8 -> -8 | L69: 0 | M69: 0 | N69: =AD69*Cubics -> 0 | O69: =((($D69/Watts)/(((p_atm*0.028964)/(8.31447*(20+273.15)))*(($N69/3600)/Cubics)*(1005+1870*((0.622)/(((p_atm)/($E$12*Pvs_Heat_in))-1)))))+Tl_heat)*Celc1+Celc2 ->  | P69: =(Tl_cool-(($G69/Watts)/(1006*$N69*kgss)))*Celc1+Celc2 ->  | Q69: 1 | R69: 0 | S69: 0 | T69: 0 | U69: 0.7711 | V69: 0 | W69: =(H69-G69)/H69 ->  | X69: 0 | Y69: 0 | Z69: 0 | AA69: 0 | AB69: 0 | AC69: 0 | AD69: 0 | BD69: 8280 | BF69: 2102.47 | BH69: 53 | BI69: 38.8 | BJ69: 748 | BK69: 12519.2 | BM69: 2135.09 | BO69: 53 | BP69: 38.8 | BQ69: 748
B70: =IF($S$7=1,NL!A69,IF(cal!$S$7=2,EN!A69,IF(cal!$S$7=3,DE!A69,IF(cal!$S$7=4,FR!A69,IF(cal!$S$7=5,NR!A69,IF(cal!$S$7=6,SP!A69,IF(cal!$S$7=7,SW!A69,IF(cal!$S$7=8,TS!A69,IF(cal!$S$7=9,ExtraTaal1!A69,IF(cal!$S$7=10,ExtraTaal2!A69,IF(cal!$S$7=11,ExtraTaal3!A69,))))))))))) -> *La potencia de enfriamiento se calcula según la norma EN 16430 con ventiladores de todas las alturas. | N70: ='Clima Canal'!P71 -> v2021-04-19 | X70: 0 | Y70: 0 | Z70: 0 | AA70: 0 | AB70: 0 | AC70: 0 | AD70: 0 | BD70: H | BE70: =BE22 -> 13 | BF70: B | BG70: =BG22 -> 32 | BH70: L | BI70: =IF($X$4=1,300,300/2.54) -> 300 | BK70: H | BL70: =BL22 -> 13 | BM70: B | BN70: =BN22 -> 32 | BO70: L | BP70: =IF($X$4=1,300,300/2.54) -> 300
B71: =IF($S$7=1,NL!A70,IF(cal!$S$7=2,EN!A70,IF(cal!$S$7=3,DE!A70,IF(cal!$S$7=4,FR!A70,IF(cal!$S$7=5,NR!A70,IF(cal!$S$7=6,SP!A70,IF(cal!$S$7=7,SW!A70,IF(cal!$S$7=8,TS!A70,IF(cal!$S$7=9,ExtraTaal1!A70,IF(cal!$S$7=10,ExtraTaal2!A70,IF(cal!$S$7=11,ExtraTaal3!A70,))))))))))) -> **Potencia sonora según ISO 3741: 2010.
B72: =IF($S$7=1,NL!A71,IF(cal!$S$7=2,EN!A71,IF(cal!$S$7=3,DE!A71,IF(cal!$S$7=4,FR!A71,IF(cal!$S$7=5,NR!A71,IF(cal!$S$7=6,SP!A71,IF(cal!$S$7=7,SW!A71,IF(cal!$S$7=8,TS!A71,IF(cal!$S$7=9,ExtraTaal1!A71,IF(cal!$S$7=10,ExtraTaal2!A71,IF(cal!$S$7=11,ExtraTaal3!A71,))))))))))) -> ***Nivel de presión acústica con una amortiguación ambiental supuesta de 8 dB (A).

Sheet NL (hidden)
A2: Invulformulier
A4: Randvoorwaarden
A6: Temperaturen | L6: Geplaatste hoogte
A7: Verwarmen: | F7: Koelen: | Q7: Kopieer alle data
A8: ="Aanvoertemp." -> Aanvoertemp. | D8: =cal!E9 -> 75 | E8: =IF(cal!$X$4=1,"°C",IF(cal!$X$4=2,"°F")) -> °C | F8: =A8 -> Aanvoertemp. | J8: =cal!K9 -> 16 | K8: =E8 -> °C | L8: Eenheidsstelsel | Q8: SI-eenheden
A9: ="Retourtemp." -> Retourtemp. | D9: =cal!E10 -> 65 | E9: =E8 -> °C | F9: =A9 -> Retourtemp. | J9: =cal!K10 -> 19 | K9: =E8 -> °C | Q9: Imperiale-eenheden
A10: ="Ruimtetemp." -> Ruimtetemp. | D10: =cal!E11 -> 20 | E10: =E8 -> °C | F10: =A10 -> Ruimtetemp. | J10: =cal!K11 -> 26 | K10: =E8 -> °C
F11: Relatieve vochtigheid | J11: =cal!K12 -> 0.5
A14: Snelheidsniveau: | B14: Stuurspanning: [V] | C14: =CONCATENATE("Warmteafgifte * ",ROUND(D8,0),"/",ROUND(D9,0),"/",ROUND(D10,0)," ["&IF(cal!$X$4=1,"W",IF(cal!$X$4=2,"Btu/h"))&"]") -> Warmteafgifte * 75/65/20 [W] | D14: ="Waterdebiet, verwarming ["&IF(cal!$X$4=1,"l/h",IF(cal!$X$4=2,"GPM"))&"]" -> Waterdebiet, verwarming [l/h] | E14: ="Waterzijdig drukverlies ["&IF(cal!$X$4=1,"kPa",IF(cal!$X$4=2,"inH2O"))&"]" -> Waterzijdig drukverlies [kPa] | F14: =CONCATENATE("Voelb. Koelcapaciteit * ",ROUND(J8,0),"/",,ROUND(J9,0),"/",,ROUND(J10,0)," ["&IF(cal!$X$4=1,"W",IF(cal!$X$4=2,"Btu/h"))&"]") -> Voelb. Koelcapaciteit * 16/19/26 [W] | G14: =CONCATENATE("Tot. koelcapaciteit ",,ROUND(J8,0),"/",,ROUND(J9,0),"/",,ROUND(J10,0)," ["&IF(cal!$X$4=1,"W",IF(cal!$X$4=2,"Btu/h"))&"]") -> Tot. koelcapaciteit 16/19/26 [W] | H14: ="Waterdebiet, koeling ["&IF(cal!$X$4=1,"l/h",IF(cal!$X$4=2,"GPM"))&"]" -> Waterdebiet, koeling [l/h] | I14: ="Waterzijdig drukverlies ["&IF(cal!$X$4=1,"kPa",IF(cal!$X$4=2,"inH2O"))&"]" -> Waterzijdig drukverlies [kPa] | J14: Geluidsdruk *** [dB(A)] | K14: Geluidsvermogen ** [dB(A)] | L14: Opgenomen elektr. vermogen [W] | M14: ="Luchtdebiet ["&IF(cal!$X$4=1,"m³/h",IF(cal!$X$4=2,"CFM"))&"]" -> Luchtdebiet [m³/h] | N14: ="Uitblaastemp. verwarming ["&IF(cal!$X$4=1,"°C",IF(cal!$X$4=2,"°F"))&"]" -> Uitblaastemp. verwarming [°C] | O14: ="Uitblaastemp. koeling ["&IF(cal!$X$4=1,"°C",IF(cal!$X$4=2,"°F"))&"]" -> Uitblaastemp. koeling [°C]
A15: =cal!$Z$1&" "&$R$15&" "&ROUND(cal!Y22,1)&IF(cal!$X$4=1," cm",IF(cal!$X$4=2," in"))&" "&$R$16&" "&ROUND(cal!AA22,1)&IF(cal!$X$4=1," cm",IF(cal!$X$4=2," in"))&" "&$R$17&" "&ROUND(cal!AC22,1)&IF(cal!$X$4=1," cm",IF(cal!$X$4=2," in"))&" (Type 1)" -> Clima Canal hoogte 19 cm breedte 34 cm lengte 105 cm (Type 1) | Q15: Temp. | R15: hoogte
Q16: verw.! | R16: breedte
Q17: koelen! | R17: lengte
A21: =cal!$Z$1&" "&$R$15&" "&ROUND(cal!Y28,1)&IF(cal!$X$4=1," cm",IF(cal!$X$4=2," in"))&" "&$R$16&" "&ROUND(cal!AA28,1)&IF(cal!$X$4=1," cm",IF(cal!$X$4=2," in"))&" "&$R$17&" "&ROUND(cal!AC28,1)&IF(cal!$X$4=1," cm",IF(cal!$X$4=2," in"))&" (Type 2)" -> Clima Canal hoogte 19 cm breedte 34 cm lengte 120 cm (Type 2)
A27: =cal!$Z$1&" "&$R$15&" "&ROUND(cal!Y34,1)&IF(cal!$X$4=1," cm",IF(cal!$X$4=2," in"))&" "&$R$16&" "&ROUND(cal!AA34,1)&IF(cal!$X$4=1," cm",IF(cal!$X$4=2," in"))&" "&$R$17&" "&ROUND(cal!AC34,1)&IF(cal!$X$4=1," cm",IF(cal!$X$4=2," in"))&" (Type 3)" -> Clima Canal hoogte 19 cm breedte 34 cm lengte 200 cm (Type 3)
A33: =cal!$Z$1&" "&$R$15&" "&ROUND(cal!Y40,1)&IF(cal!$X$4=1," cm",IF(cal!$X$4=2," in"))&" "&$R$16&" "&ROUND(cal!AA40,1)&IF(cal!$X$4=1," cm",IF(cal!$X$4=2," in"))&" "&$R$17&" "&ROUND(cal!AC40,1)&IF(cal!$X$4=1," cm",IF(cal!$X$4=2," in"))&" (Type 4)" -> Clima Canal hoogte 19 cm breedte 34 cm lengte 280 cm (Type 4)
A39: =cal!$Z$1&" "&$R$15&" "&ROUND(cal!Y46,1)&IF(cal!$X$4=1," cm",IF(cal!$X$4=2," in"))&" "&$R$16&" "&ROUND(cal!AA46,1)&IF(cal!$X$4=1," cm",IF(cal!$X$4=2," in"))&" "&$R$17&" "&ROUND(cal!AC46,1)&IF(cal!$X$4=1," cm",IF(cal!$X$4=2," in"))&" (Type 5)" -> Clima Canal hoogte 0 cm breedte 0 cm lengte 0 cm (Type 5)
A45: =cal!$Z$1&" "&$R$15&" "&ROUND(cal!Y52,1)&IF(cal!$X$4=1," cm",IF(cal!$X$4=2," in"))&" "&$R$16&" "&ROUND(cal!AA52,1)&IF(cal!$X$4=1," cm",IF(cal!$X$4=2," in"))&" "&$R$17&" "&ROUND(cal!AC52,1)&IF(cal!$X$4=1," cm",IF(cal!$X$4=2," in"))&" (Type 6)" -> Clima Canal hoogte 0 cm breedte 0 cm lengte 0 cm (Type 6)
A51: =cal!$Z$1&" "&$R$15&" "&ROUND(cal!Y58,1)&IF(cal!$X$4=1," cm",IF(cal!$X$4=2," in"))&" "&$R$16&" "&ROUND(cal!AA58,1)&IF(cal!$X$4=1," cm",IF(cal!$X$4=2," in"))&" "&$R$17&" "&ROUND(cal!AC58,1)&IF(cal!$X$4=1," cm",IF(cal!$X$4=2," in"))&" (Type 7)" -> Clima Canal hoogte 0 cm breedte 0 cm lengte 0 cm (Type 7)
A57: =cal!$Z$1&" "&$R$15&" "&ROUND(cal!Y64,1)&IF(cal!$X$4=1," cm",IF(cal!$X$4=2," in"))&" "&$R$16&" "&ROUND(cal!AA64,1)&IF(cal!$X$4=1," cm",IF(cal!$X$4=2," in"))&" "&$R$17&" "&ROUND(cal!AC64,1)&IF(cal!$X$4=1," cm",IF(cal!$X$4=2," in"))&" (Type 8)" -> Clima Canal hoogte 0 cm breedte 0 cm lengte 0 cm (Type 8)
A63: =cal!$Z$1&" "&$R$15&" "&ROUND(cal!Y70,1)&IF(cal!$X$4=1," cm",IF(cal!$X$4=2," in"))&" "&$R$16&" "&ROUND(cal!AA70,1)&IF(cal!$X$4=1," cm",IF(cal!$X$4=2," in"))&" "&$R$17&" "&ROUND(cal!AC70,1)&IF(cal!$X$4=1," cm",IF(cal!$X$4=2," in"))&" (Type 9)" -> Clima Canal hoogte 0 cm breedte 0 cm lengte 0 cm (Type 9)
A69: *Waardes gemeten volgens EN 16430 | M69: =cal!N70 -> v2021-04-19
A70: **Geluidsvermogen gemeten volgens ISO 3741:2010
A71: ***Geluidsdruk bij een aangenomen ruimtedemping van 8 dB(A)

Sheet EN (hidden)
A2: Formulary
A4: Conditions
A6: Temperatures | L6: Altitude
A7: Heating: | F7: Cooling: | Q7: Copy all data
A8: ="Inlet temp." -> Inlet temp. | D8: =cal!E9 -> 75 | E8: =IF(cal!$X$4=1,"°C",IF(cal!$X$4=2,"°F")) -> °C | F8: =A8 -> Inlet temp. | J8: =cal!K9 -> 16 | K8: =E8 -> °C | L8: Unit conversion | Q8: SI-units
A9: ="Return temp." -> Return temp. | D9: =cal!E10 -> 65 | E9: =E8 -> °C | F9: =A9 -> Return temp. | J9: =cal!K10 -> 19 | K9: =E8 -> °C | Q9: Imperial-units
A10: ="Room temp." -> Room temp. | D10: =cal!E11 -> 20 | E10: =E8 -> °C | F10: =A10 -> Room temp. | J10: =cal!K11 -> 26 | K10: =E8 -> °C
F11: Relative humidity | J11: =cal!K12 -> 0.5
A14: Speed level: | B14: Control voltage [V] | C14: =CONCATENATE("Heat output * ",ROUND(D8,0),"/",ROUND(D9,0),"/",ROUND(D10,0)," ["&IF(cal!$X$4=1,"W",IF(cal!$X$4=2,"Btu/h"))&"]") -> Heat output * 75/65/20 [W] | D14: ="Water flowrate, heating ["&IF(cal!$X$4=1,"l/h",IF(cal!$X$4=2,"GPM"))&"]" -> Water flowrate, heating [l/h] | E14: ="Watersided pressure loss ["&IF(cal!$X$4=1,"kPa",IF(cal!$X$4=2,"inH2O"))&"]" -> Watersided pressure loss [kPa] | F14: =CONCATENATE("Sens. cooling capacity * ",ROUND(J8,0),"/",ROUND(J9,0),"/",ROUND(J10,0)," ["&IF(cal!$X$4=1,"W",IF(cal!$X$4=2,"Btu/h"))&"]") -> Sens. cooling capacity * 16/19/26 [W] | G14: =CONCATENATE("Tot. cooling capacity ",ROUND(J8,0),"/",ROUND(J9,0),"/",ROUND(J10,0)," ["&IF(cal!$X$4=1,"W",IF(cal!$X$4=2,"Btu/h"))&"]") -> Tot. cooling capacity 16/19/26 [W] | H14: ="Water flowrate, cooling ["&IF(cal!$X$4=1,"l/h",IF(cal!$X$4=2,"GPM"))&"]" -> Water flowrate, cooling [l/h] | I14: ="Watersided pressure loss ["&IF(cal!$X$4=1,"kPa",IF(cal!$X$4=2,"inH2O"))&"]" -> Watersided pressure loss [kPa] | J14: Sound pressure *** [dB(A)] | K14: Sound power ** [dB(A)] | L14: Electrical power [W] | M14: ="Air flowrate ["&IF(cal!$X$4=1,"m³/h",IF(cal!$X$4=2,"CFM"))&"]" -> Air flowrate [m³/h] | N14: ="Air exhaust temp. heating ["&IF(cal!$X$4=1,"°C",IF(cal!$X$4=2,"°F"))&"]" -> Air exhaust temp. heating [°C] | O14: ="Air exhaust temp. cooling ["&IF(cal!$X$4=1,"°C",IF(cal!$X$4=2,"°F"))&"]" -> Air exhaust temp. cooling [°C]
A15: =cal!$Z$1&" "&$R$15&" "&ROUND(cal!Y22,1)&IF(cal!$X$4=1," cm",IF(cal!$X$4=2," in"))&" "&$R$16&" "&ROUND(cal!AA22,1)&IF(cal!$X$4=1," cm",IF(cal!$X$4=2," in"))&" "&$R$17&" "&ROUND(cal!AC22,1)&IF(cal!$X$4=1," cm",IF(cal!$X$4=2," in"))&" (Type 1)" -> Clima Canal height 19 cm width 34 cm length 105 cm (Type 1) | Q15: Temp. | R15: height
Q16: heating! | R16: width
Q17: cooling! | R17: length
A21: =cal!$Z$1&" "&$R$15&" "&ROUND(cal!Y28,1)&IF(cal!$X$4=1," cm",IF(cal!$X$4=2," in"))&" "&$R$16&" "&ROUND(cal!AA28,1)&IF(cal!$X$4=1," cm",IF(cal!$X$4=2," in"))&" "&$R$17&" "&ROUND(cal!AC28,1)&IF(cal!$X$4=1," cm",IF(cal!$X$4=2," in"))&" (Type 2)" -> Clima Canal height 19 cm width 34 cm length 120 cm (Type 2)
A27: =cal!$Z$1&" "&$R$15&" "&ROUND(cal!Y34,1)&IF(cal!$X$4=1," cm",IF(cal!$X$4=2," in"))&" "&$R$16&" "&ROUND(cal!AA34,1)&IF(cal!$X$4=1," cm",IF(cal!$X$4=2," in"))&" "&$R$17&" "&ROUND(cal!AC34,1)&IF(cal!$X$4=1," cm",IF(cal!$X$4=2," in"))&" (Type 3)" -> Clima Canal height 19 cm width 34 cm length 200 cm (Type 3)
A33: =cal!$Z$1&" "&$R$15&" "&ROUND(cal!Y40,1)&IF(cal!$X$4=1," cm",IF(cal!$X$4=2," in"))&" "&$R$16&" "&ROUND(cal!AA40,1)&IF(cal!$X$4=1," cm",IF(cal!$X$4=2," in"))&" "&$R$17&" "&ROUND(cal!AC40,1)&IF(cal!$X$4=1," cm",IF(cal!$X$4=2," in"))&" (Type 4)" -> Clima Canal height 19 cm width 34 cm length 280 cm (Type 4)
A39: =cal!$Z$1&" "&$R$15&" "&ROUND(cal!Y46,1)&IF(cal!$X$4=1," cm",IF(cal!$X$4=2," in"))&" "&$R$16&" "&ROUND(cal!AA46,1)&IF(cal!$X$4=1," cm",IF(cal!$X$4=2," in"))&" "&$R$17&" "&ROUND(cal!AC46,1)&IF(cal!$X$4=1," cm",IF(cal!$X$4=2," in"))&" (Type 5)" -> Clima Canal height 0 cm width 0 cm length 0 cm (Type 5)
A45: =cal!$Z$1&" "&$R$15&" "&ROUND(cal!Y52,1)&IF(cal!$X$4=1," cm",IF(cal!$X$4=2," in"))&" "&$R$16&" "&ROUND(cal!AA52,1)&IF(cal!$X$4=1," cm",IF(cal!$X$4=2," in"))&" "&$R$17&" "&ROUND(cal!AC52,1)&IF(cal!$X$4=1," cm",IF(cal!$X$4=2," in"))&" (Type 6)" -> Clima Canal height 0 cm width 0 cm length 0 cm (Type 6)
A51: =cal!$Z$1&" "&$R$15&" "&ROUND(cal!Y58,1)&IF(cal!$X$4=1," cm",IF(cal!$X$4=2," in"))&" "&$R$16&" "&ROUND(cal!AA58,1)&IF(cal!$X$4=1," cm",IF(cal!$X$4=2," in"))&" "&$R$17&" "&ROUND(cal!AC58,1)&IF(cal!$X$4=1," cm",IF(cal!$X$4=2," in"))&" (Type 7)" -> Clima Canal height 0 cm width 0 cm length 0 cm (Type 7)
A57: =cal!$Z$1&" "&$R$15&" "&ROUND(cal!Y64,1)&IF(cal!$X$4=1," cm",IF(cal!$X$4=2," in"))&" "&$R$16&" "&ROUND(cal!AA64,1)&IF(cal!$X$4=1," cm",IF(cal!$X$4=2," in"))&" "&$R$17&" "&ROUND(cal!AC64,1)&IF(cal!$X$4=1," cm",IF(cal!$X$4=2," in"))&" (Type 8)" -> Clima Canal height 0 cm width 0 cm length 0 cm (Type 8)
A63: =cal!$Z$1&" "&$R$15&" "&ROUND(cal!Y70,1)&IF(cal!$X$4=1," cm",IF(cal!$X$4=2," in"))&" "&$R$16&" "&ROUND(cal!AA70,1)&IF(cal!$X$4=1," cm",IF(cal!$X$4=2," in"))&" "&$R$17&" "&ROUND(cal!AC70,1)&IF(cal!$X$4=1," cm",IF(cal!$X$4=2," in"))&" (Type 9)" -> Clima Canal height 0 cm width 0 cm length 0 cm (Type 9)
A69: *Values according to EN 16430 | M69: =cal!N70 -> v2021-04-19
A70: **Sound power according to ISO 3741:2010
A71: ***Sound pressure with an assumed room damping of 8dB(A)

Sheet DE (hidden)
A2: Eingabefelder
A4: Auslegungsrandbedingungen
A6: Temperaturen | L6: Platzierte Höhe
A7: Heizen: | F7: Kühlen: | Q7: Kopieren Sie alle daten
A8: ="Vorlauftemp." -> Vorlauftemp. | D8: =cal!E9 -> 75 | E8: =IF(cal!$X$4=1,"°C",IF(cal!$X$4=2,"°F")) -> °C | F8: =A8 -> Vorlauftemp. | J8: =cal!K9 -> 16 | K8: =E8 -> °C | L8: Einheiten | Q8: SI-einheiten
A9: ="Rücklauftemp." -> Rücklauftemp. | D9: =cal!E10 -> 65 | E9: =E8 -> °C | F9: =A9 -> Rücklauftemp. | J9: =cal!K10 -> 19 | K9: =E8 -> °C | Q9: Imperiale-einheiten
A10: ="Raumtemp." -> Raumtemp. | D10: =cal!E11 -> 20 | E10: =E8 -> °C | F10: =A10 -> Raumtemp. | J10: =cal!K11 -> 26 | K10: =E8 -> °C
F11: Relative Luftfeuchtigkeit | J11: =cal!K12 -> 0.5
A14: Drehzahlstufe: | B14: Regelspannung: [V] | C14: =CONCATENATE("Wärmeleistung * ",ROUND(D8,0),"/",ROUND(D9,0),"/",ROUND(D10,0)," ["&IF(cal!$X$4=1,"W",IF(cal!$X$4=2,"Btu/h"))&"]") -> Wärmeleistung * 75/65/20 [W] | D14: ="Heizmittelstrom ["&IF(cal!$X$4=1,"l/h",IF(cal!$X$4=2,"GPM"))&"]" -> Heizmittelstrom [l/h] | E14: ="zug. wassers. Druckverlust ["&IF(cal!$X$4=1,"kPa",IF(cal!$X$4=2,"inH2O"))&"]" -> zug. wassers. Druckverlust [kPa] | F14: =CONCATENATE("Sens. Kälteleistung * ",ROUND(J8,0),"/",ROUND(J9,0),"/",ROUND(J10,0)," ["&IF(cal!$X$4=1,"W",IF(cal!$X$4=2,"Btu/h"))&"]") -> Sens. Kälteleistung * 16/19/26 [W] | G14: =CONCATENATE("Tot. Kälteleistung ",ROUND(J8,0),"/",ROUND(J9,0),"/",ROUND(J10,0)," ["&IF(cal!$X$4=1,"W",IF(cal!$X$4=2,"Btu/h"))&"]") -> Tot. Kälteleistung 16/19/26 [W] | H14: ="Kühlmittelstrom ["&IF(cal!$X$4=1,"l/h",IF(cal!$X$4=2,"GPM"))&"]" -> Kühlmittelstrom [l/h] | I14: ="zug. wassers. Druckverlust ["&IF(cal!$X$4=1,"kPa",IF(cal!$X$4=2,"inH2O"))&"]" -> zug. wassers. Druckverlust [kPa] | J14: Schalldruckpegel *** [dB(A)] | K14: Schallleistungspegel ** [dB(A)] | L14: Leistungsaufnahme [W] | M14: ="Luftvolumenstrom ["&IF(cal!$X$4=1,"m³/h",IF(cal!$X$4=2,"CFM"))&"]" -> Luftvolumenstrom [m³/h] | N14: ="Luftaustrittstemp. Heizung ["&IF(cal!$X$4=1,"°C",IF(cal!$X$4=2,"°F"))&"]" -> Luftaustrittstemp. Heizung [°C] | O14: ="Luftaustrittstemp. kühlung ["&IF(cal!$X$4=1,"°C",IF(cal!$X$4=2,"°F"))&"]" -> Luftaustrittstemp. kühlung [°C]
A15: =cal!$Z$1&" "&$R$15&" "&ROUND(cal!Y22,1)&IF(cal!$X$4=1," cm",IF(cal!$X$4=2," in"))&" "&$R$16&" "&ROUND(cal!AA22,1)&IF(cal!$X$4=1," cm",IF(cal!$X$4=2," in"))&" "&$R$17&" "&ROUND(cal!AC22,1)&IF(cal!$X$4=1," cm",IF(cal!$X$4=2," in"))&" (Type 1)" -> Clima Canal höhe 19 cm breite 34 cm länge 105 cm (Type 1) | Q15: Temp. | R15: höhe
Q16: heizen! | R16: breite
Q17: kühlen! | R17: länge
A21: =cal!$Z$1&" "&$R$15&" "&ROUND(cal!Y28,1)&IF(cal!$X$4=1," cm",IF(cal!$X$4=2," in"))&" "&$R$16&" "&ROUND(cal!AA28,1)&IF(cal!$X$4=1," cm",IF(cal!$X$4=2," in"))&" "&$R$17&" "&ROUND(cal!AC28,1)&IF(cal!$X$4=1," cm",IF(cal!$X$4=2," in"))&" (Type 2)" -> Clima Canal höhe 19 cm breite 34 cm länge 120 cm (Type 2)
A27: =cal!$Z$1&" "&$R$15&" "&ROUND(cal!Y34,1)&IF(cal!$X$4=1," cm",IF(cal!$X$4=2," in"))&" "&$R$16&" "&ROUND(cal!AA34,1)&IF(cal!$X$4=1," cm",IF(cal!$X$4=2," in"))&" "&$R$17&" "&ROUND(cal!AC34,1)&IF(cal!$X$4=1," cm",IF(cal!$X$4=2," in"))&" (Type 3)" -> Clima Canal höhe 19 cm breite 34 cm länge 200 cm (Type 3)
A33: =cal!$Z$1&" "&$R$15&" "&ROUND(cal!Y40,1)&IF(cal!$X$4=1," cm",IF(cal!$X$4=2," in"))&" "&$R$16&" "&ROUND(cal!AA40,1)&IF(cal!$X$4=1," cm",IF(cal!$X$4=2," in"))&" "&$R$17&" "&ROUND(cal!AC40,1)&IF(cal!$X$4=1," cm",IF(cal!$X$4=2," in"))&" (Type 4)" -> Clima Canal höhe 19 cm breite 34 cm länge 280 cm (Type 4)
A39: =cal!$Z$1&" "&$R$15&" "&ROUND(cal!Y46,1)&IF(cal!$X$4=1," cm",IF(cal!$X$4=2," in"))&" "&$R$16&" "&ROUND(cal!AA46,1)&IF(cal!$X$4=1," cm",IF(cal!$X$4=2," in"))&" "&$R$17&" "&ROUND(cal!AC46,1)&IF(cal!$X$4=1," cm",IF(cal!$X$4=2," in"))&" (Type 5)" -> Clima Canal höhe 0 cm breite 0 cm länge 0 cm (Type 5)
A45: =cal!$Z$1&" "&$R$15&" "&ROUND(cal!Y52,1)&IF(cal!$X$4=1," cm",IF(cal!$X$4=2," in"))&" "&$R$16&" "&ROUND(cal!AA52,1)&IF(cal!$X$4=1," cm",IF(cal!$X$4=2," in"))&" "&$R$17&" "&ROUND(cal!AC52,1)&IF(cal!$X$4=1," cm",IF(cal!$X$4=2," in"))&" (Type 6)" -> Clima Canal höhe 0 cm breite 0 cm länge 0 cm (Type 6)
A51: =cal!$Z$1&" "&$R$15&" "&ROUND(cal!Y58,1)&IF(cal!$X$4=1," cm",IF(cal!$X$4=2," in"))&" "&$R$16&" "&ROUND(cal!AA58,1)&IF(cal!$X$4=1," cm",IF(cal!$X$4=2," in"))&" "&$R$17&" "&ROUND(cal!AC58,1)&IF(cal!$X$4=1," cm",IF(cal!$X$4=2," in"))&" (Type 7)" -> Clima Canal höhe 0 cm breite 0 cm länge 0 cm (Type 7)
A57: =cal!$Z$1&" "&$R$15&" "&ROUND(cal!Y64,1)&IF(cal!$X$4=1," cm",IF(cal!$X$4=2," in"))&" "&$R$16&" "&ROUND(cal!AA64,1)&IF(cal!$X$4=1," cm",IF(cal!$X$4=2," in"))&" "&$R$17&" "&ROUND(cal!AC64,1)&IF(cal!$X$4=1," cm",IF(cal!$X$4=2," in"))&" (Type 8)" -> Clima Canal höhe 0 cm breite 0 cm länge 0 cm (Type 8)
A63: =cal!$Z$1&" "&$R$15&" "&ROUND(cal!Y70,1)&IF(cal!$X$4=1," cm",IF(cal!$X$4=2," in"))&" "&$R$16&" "&ROUND(cal!AA70,1)&IF(cal!$X$4=1," cm",IF(cal!$X$4=2," in"))&" "&$R$17&" "&ROUND(cal!AC70,1)&IF(cal!$X$4=1," cm",IF(cal!$X$4=2," in"))&" (Type 9)" -> Clima Canal höhe 0 cm breite 0 cm länge 0 cm (Type 9)
A69: *Leistungsangaben nach EN 16430 | M69: =cal!N70 -> v2021-04-19
A70: **Schallleistungspegel nach ISO 3741:2010
A71: ***Schalldruckpegel bei angenommener Raumdämpfung von 8dB(A)

Sheet FR (hidden)
A2: Formulaire
A4: Conditions
A6: Températures | L6: Hauteur placée
A7: Chauffer: | F7: Refroidir: | Q7: Copier toutes des données
A8: ="Temp. entrée" -> Temp. entrée | D8: =cal!E9 -> 75 | E8: =IF(cal!$X$4=1,"°C",IF(cal!$X$4=2,"°F")) -> °C | F8: =A8 -> Temp. entrée | J8: =cal!K9 -> 16 | K8: =E8 -> °C | L8: Système unitaire | Q8: Unités-SI
A9: ="Temp. retour" -> Temp. retour | D9: =cal!E10 -> 65 | E9: =E8 -> °C | F9: =A9 -> Temp. retour | J9: =cal!K10 -> 19 | K9: =E8 -> °C | Q9: Unités-Impériales
A10: ="Temp. ambiante" -> Temp. ambiante | D10: =cal!E11 -> 20 | E10: =E8 -> °C | F10: =A10 -> Temp. ambiante | J10: =cal!K11 -> 26 | K10: =E8 -> °C
F11: Humidité relative | J11: =cal!K12 -> 0.5
A14: Niveau de vitesse | B14: Voltage [V] | C14: =CONCATENATE("Puissance de cha. * ",ROUND(D8,0),"/",ROUND(D9,0),"/",ROUND(D10,0)," ["&IF(cal!$X$4=1,"W",IF(cal!$X$4=2,"Btu/h"))&"]") -> Puissance de cha. * 75/65/20 [W] | D14: ="Débit d'eau, chauffer ["&IF(cal!$X$4=1,"l/h",IF(cal!$X$4=2,"GPM"))&"]" -> Débit d'eau, chauffer [l/h] | E14: ="Perte de charge ["&IF(cal!$X$4=1,"kPa",IF(cal!$X$4=2,"inH2O"))&"]" -> Perte de charge [kPa] | F14: =CONCATENATE("Puissance sens. de refr. * ",ROUND(J8,0),"/",ROUND(J9,0),"/",ROUND(J10,0)," ["&IF(cal!$X$4=1,"W",IF(cal!$X$4=2,"Btu/h"))&"]") -> Puissance sens. de refr. * 16/19/26 [W] | G14: =CONCATENATE("Puissance tot. de refr. ",ROUND(J8,0),"/",ROUND(J9,0),"/",ROUND(J10,0)," ["&IF(cal!$X$4=1,"W",IF(cal!$X$4=2,"Btu/h"))&"]") -> Puissance tot. de refr. 16/19/26 [W] | H14: ="Débit d'eau, refroidir ["&IF(cal!$X$4=1,"l/h",IF(cal!$X$4=2,"GPM"))&"]" -> Débit d'eau, refroidir [l/h] | I14: ="Perte de charge ["&IF(cal!$X$4=1,"kPa",IF(cal!$X$4=2,"inH2O"))&"]" -> Perte de charge [kPa] | J14: Pression sonore *** [dB(A)] | K14: Puissance sonore ** [dB(A)] | L14: Puissance absorbée [W] | M14: ="Débit d'air ["&IF(cal!$X$4=1,"m³/h",IF(cal!$X$4=2,"CFM"))&"]" -> Débit d'air [m³/h] | N14: ="Temp. de la sortie d'air cha. ["&IF(cal!$X$4=1,"°C",IF(cal!$X$4=2,"°F"))&"]" -> Temp. de la sortie d'air cha. [°C] | O14: ="Temp. de la sortie d'air refr. ["&IF(cal!$X$4=1,"°C",IF(cal!$X$4=2,"°F"))&"]" -> Temp. de la sortie d'air refr. [°C]
A15: =cal!$Z$1&" "&$R$15&" "&ROUND(cal!Y22,1)&IF(cal!$X$4=1," cm",IF(cal!$X$4=2," in"))&" "&$R$16&" "&ROUND(cal!AA22,1)&IF(cal!$X$4=1," cm",IF(cal!$X$4=2," in"))&" "&$R$17&" "&ROUND(cal!AC22,1)&IF(cal!$X$4=1," cm",IF(cal!$X$4=2," in"))&" (Type 1)" -> Clima Canal hauteur 19 cm largeur 34 cm longueur 105 cm (Type 1) | Q15: Temp. | R15: hauteur
Q16: chauf.! | R16: largeur
Q17: refr.! | R17: longueur
A21: =cal!$Z$1&" "&$R$15&" "&ROUND(cal!Y28,1)&IF(cal!$X$4=1," cm",IF(cal!$X$4=2," in"))&" "&$R$16&" "&ROUND(cal!AA28,1)&IF(cal!$X$4=1," cm",IF(cal!$X$4=2," in"))&" "&$R$17&" "&ROUND(cal!AC28,1)&IF(cal!$X$4=1," cm",IF(cal!$X$4=2," in"))&" (Type 2)" -> Clima Canal hauteur 19 cm largeur 34 cm longueur 120 cm (Type 2)
A27: =cal!$Z$1&" "&$R$15&" "&ROUND(cal!Y34,1)&IF(cal!$X$4=1," cm",IF(cal!$X$4=2," in"))&" "&$R$16&" "&ROUND(cal!AA34,1)&IF(cal!$X$4=1," cm",IF(cal!$X$4=2," in"))&" "&$R$17&" "&ROUND(cal!AC34,1)&IF(cal!$X$4=1," cm",IF(cal!$X$4=2," in"))&" (Type 3)" -> Clima Canal hauteur 19 cm largeur 34 cm longueur 200 cm (Type 3)
A33: =cal!$Z$1&" "&$R$15&" "&ROUND(cal!Y40,1)&IF(cal!$X$4=1," cm",IF(cal!$X$4=2," in"))&" "&$R$16&" "&ROUND(cal!AA40,1)&IF(cal!$X$4=1," cm",IF(cal!$X$4=2," in"))&" "&$R$17&" "&ROUND(cal!AC40,1)&IF(cal!$X$4=1," cm",IF(cal!$X$4=2," in"))&" (Type 4)" -> Clima Canal hauteur 19 cm largeur 34 cm longueur 280 cm (Type 4)
A39: =cal!$Z$1&" "&$R$15&" "&ROUND(cal!Y46,1)&IF(cal!$X$4=1," cm",IF(cal!$X$4=2," in"))&" "&$R$16&" "&ROUND(cal!AA46,1)&IF(cal!$X$4=1," cm",IF(cal!$X$4=2," in"))&" "&$R$17&" "&ROUND(cal!AC46,1)&IF(cal!$X$4=1," cm",IF(cal!$X$4=2," in"))&" (Type 5)" -> Clima Canal hauteur 0 cm largeur 0 cm longueur 0 cm (Type 5)
A45: =cal!$Z$1&" "&$R$15&" "&ROUND(cal!Y52,1)&IF(cal!$X$4=1," cm",IF(cal!$X$4=2," in"))&" "&$R$16&" "&ROUND(cal!AA52,1)&IF(cal!$X$4=1," cm",IF(cal!$X$4=2," in"))&" "&$R$17&" "&ROUND(cal!AC52,1)&IF(cal!$X$4=1," cm",IF(cal!$X$4=2," in"))&" (Type 6)" -> Clima Canal hauteur 0 cm largeur 0 cm longueur 0 cm (Type 6)
A51: =cal!$Z$1&" "&$R$15&" "&ROUND(cal!Y58,1)&IF(cal!$X$4=1," cm",IF(cal!$X$4=2," in"))&" "&$R$16&" "&ROUND(cal!AA58,1)&IF(cal!$X$4=1," cm",IF(cal!$X$4=2," in"))&" "&$R$17&" "&ROUND(cal!AC58,1)&IF(cal!$X$4=1," cm",IF(cal!$X$4=2," in"))&" (Type 7)" -> Clima Canal hauteur 0 cm largeur 0 cm longueur 0 cm (Type 7)
A57: =cal!$Z$1&" "&$R$15&" "&ROUND(cal!Y64,1)&IF(cal!$X$4=1," cm",IF(cal!$X$4=2," in"))&" "&$R$16&" "&ROUND(cal!AA64,1)&IF(cal!$X$4=1," cm",IF(cal!$X$4=2," in"))&" "&$R$17&" "&ROUND(cal!AC64,1)&IF(cal!$X$4=1," cm",IF(cal!$X$4=2," in"))&" (Type 8)" -> Clima Canal hauteur 0 cm largeur 0 cm longueur 0 cm (Type 8)
A63: =cal!$Z$1&" "&$R$15&" "&ROUND(cal!Y70,1)&IF(cal!$X$4=1," cm",IF(cal!$X$4=2," in"))&" "&$R$16&" "&ROUND(cal!AA70,1)&IF(cal!$X$4=1," cm",IF(cal!$X$4=2," in"))&" "&$R$17&" "&ROUND(cal!AC70,1)&IF(cal!$X$4=1," cm",IF(cal!$X$4=2," in"))&" (Type 9)" -> Clima Canal hauteur 0 cm largeur 0 cm longueur 0 cm (Type 9)
A69: *Testé selon EN 16430 | M69: =cal!N70 -> v2021-04-19
A70: **Puissance sonore testé selon ISO 3741:2010
A71: ***Pression sonore avec une atténuation ambiante du 8dB(A)

Sheet NR (hidden)
A2: Modell
A4: Conditions
A6: Temperaturer | L6: Plassert høyde
A7: Varme: | F7: Kjøling: | Q7: Kopier alle data
A8: Tur vanntemp. | B8: 0 | C8: 0 | D8: =cal!E9 -> 75 | E8: =IF(cal!$X$4=1,"°C",IF(cal!$X$4=2,"°F")) -> °C | F8: =A8 -> Tur vanntemp. | J8: =cal!K9 -> 16 | K8: =E8 -> °C | L8: Enhetssystem | Q8: SI-enheter
A9: Retur vanntemp. | B9: 0 | C9: 0 | D9: =cal!E10 -> 65 | E9: =E8 -> °C | F9: =A9 -> Retur vanntemp. | J9: =cal!K10 -> 19 | K9: =E8 -> °C | Q9: Imperiale-enheter
A10: Rom temp. | B10: 0 | C10: 0 | D10: =cal!E11 -> 20 | E10: =E8 -> °C | F10: =A10 -> Rom temp. | J10: =cal!K11 -> 26 | K10: =E8 -> °C
F11: Relativ fuktighet | J11: =cal!K12 -> 0.5
A14: Hastighet: | B14: Styresignal[V] | C14: =CONCATENATE("Varme effekt * ",ROUND(D8,0),"/",ROUND(D9,0),"/",ROUND(D10,0)," ["&IF(cal!$X$4=1,"W",IF(cal!$X$4=2,"Btu/h"))&"]") -> Varme effekt * 75/65/20 [W] | D14: ="Vannmengde, varme ["&IF(cal!$X$4=1,"l/h",IF(cal!$X$4=2,"GPM"))&"]" -> Vannmengde, varme [l/h] | E14: ="Trykktap ["&IF(cal!$X$4=1,"kPa",IF(cal!$X$4=2,"ftH2O"))&"]" -> Trykktap [kPa] | F14: =CONCATENATE("Sens. Kjøling effekt * ",ROUND(J8,0),"/",ROUND(J9,0),"/",ROUND(J10,0)," ["&IF(cal!$X$4=1,"W",IF(cal!$X$4=2,"Btu/h"))&"]") -> Sens. Kjøling effekt * 16/19/26 [W] | G14: =CONCATENATE("Tot. Kjøle effekt * ",ROUND(J8,0),"/",ROUND(J9,0),"/",ROUND(J10,0)," ["&IF(cal!$X$4=1,"W",IF(cal!$X$4=2,"Btu/h"))&"]") -> Tot. Kjøle effekt * 16/19/26 [W] | H14: ="Vannmengde, kjøling ["&IF(cal!$X$4=1,"l/h",IF(cal!$X$4=2,"GPM"))&"]" -> Vannmengde, kjøling [l/h] | I14: =E14 -> Trykktap [kPa] | J14: Lydtrykk *** [dB(A)] | K14: Lydeffekt ** [dB(A)] | L14: Elektrisk effekt [W] | M14: ="Luftmengde ["&IF(cal!$X$4=1,"m³/h",IF(cal!$X$4=2,"CFM"))&"]" -> Luftmengde [m³/h] | N14: ="Utluft temperatur, Varme ["&IF(cal!$X$4=1,"°C",IF(cal!$X$4=2,"°F"))&"]" -> Utluft temperatur, Varme [°C] | O14: ="Utluft temperatur, Kjøling ["&IF(cal!$X$4=1,"°C",IF(cal!$X$4=2,"°F"))&"]" -> Utluft temperatur, Kjøling [°C]
A15: =cal!$Z$1&" "&$R$15&" "&ROUND(cal!Y22,1)&IF(cal!$X$4=1," cm",IF(cal!$X$4=2," in"))&" "&$R$16&" "&ROUND(cal!AA22,1)&IF(cal!$X$4=1," cm",IF(cal!$X$4=2," in"))&" "&$R$17&" "&ROUND(cal!AC22,1)&IF(cal!$X$4=1," cm",IF(cal!$X$4=2," in"))&" (Type 1)" -> Clima Canal høyde 19 cm bredde 34 cm lengde 105 cm (Type 1) | Q15: Temp. | R15: høyde
Q16: varme! | R16: bredde
Q17: kjøling! | R17: lengde
A21: =cal!$Z$1&" "&$R$15&" "&ROUND(cal!Y28,1)&IF(cal!$X$4=1," cm",IF(cal!$X$4=2," in"))&" "&$R$16&" "&ROUND(cal!AA28,1)&IF(cal!$X$4=1," cm",IF(cal!$X$4=2," in"))&" "&$R$17&" "&ROUND(cal!AC28,1)&IF(cal!$X$4=1," cm",IF(cal!$X$4=2," in"))&" (Type 2)" -> Clima Canal høyde 19 cm bredde 34 cm lengde 120 cm (Type 2)
A27: =cal!$Z$1&" "&$R$15&" "&ROUND(cal!Y34,1)&IF(cal!$X$4=1," cm",IF(cal!$X$4=2," in"))&" "&$R$16&" "&ROUND(cal!AA34,1)&IF(cal!$X$4=1," cm",IF(cal!$X$4=2," in"))&" "&$R$17&" "&ROUND(cal!AC34,1)&IF(cal!$X$4=1," cm",IF(cal!$X$4=2," in"))&" (Type 3)" -> Clima Canal høyde 19 cm bredde 34 cm lengde 200 cm (Type 3)
A33: =cal!$Z$1&" "&$R$15&" "&ROUND(cal!Y40,1)&IF(cal!$X$4=1," cm",IF(cal!$X$4=2," in"))&" "&$R$16&" "&ROUND(cal!AA40,1)&IF(cal!$X$4=1," cm",IF(cal!$X$4=2," in"))&" "&$R$17&" "&ROUND(cal!AC40,1)&IF(cal!$X$4=1," cm",IF(cal!$X$4=2," in"))&" (Type 4)" -> Clima Canal høyde 19 cm bredde 34 cm lengde 280 cm (Type 4)
A39: =cal!$Z$1&" "&$R$15&" "&ROUND(cal!Y46,1)&IF(cal!$X$4=1," cm",IF(cal!$X$4=2," in"))&" "&$R$16&" "&ROUND(cal!AA46,1)&IF(cal!$X$4=1," cm",IF(cal!$X$4=2," in"))&" "&$R$17&" "&ROUND(cal!AC46,1)&IF(cal!$X$4=1," cm",IF(cal!$X$4=2," in"))&" (Type 5)" -> Clima Canal høyde 0 cm bredde 0 cm lengde 0 cm (Type 5)
A45: =cal!$Z$1&" "&$R$15&" "&ROUND(cal!Y52,1)&IF(cal!$X$4=1," cm",IF(cal!$X$4=2," in"))&" "&$R$16&" "&ROUND(cal!AA52,1)&IF(cal!$X$4=1," cm",IF(cal!$X$4=2," in"))&" "&$R$17&" "&ROUND(cal!AC52,1)&IF(cal!$X$4=1," cm",IF(cal!$X$4=2," in"))&" (Type 6)" -> Clima Canal høyde 0 cm bredde 0 cm lengde 0 cm (Type 6)
A51: =cal!$Z$1&" "&$R$15&" "&ROUND(cal!Y58,1)&IF(cal!$X$4=1," cm",IF(cal!$X$4=2," in"))&" "&$R$16&" "&ROUND(cal!AA58,1)&IF(cal!$X$4=1," cm",IF(cal!$X$4=2," in"))&" "&$R$17&" "&ROUND(cal!AC58,1)&IF(cal!$X$4=1," cm",IF(cal!$X$4=2," in"))&" (Type 7)" -> Clima Canal høyde 0 cm bredde 0 cm lengde 0 cm (Type 7)
A57: =cal!$Z$1&" "&$R$15&" "&ROUND(cal!Y64,1)&IF(cal!$X$4=1," cm",IF(cal!$X$4=2," in"))&" "&$R$16&" "&ROUND(cal!AA64,1)&IF(cal!$X$4=1," cm",IF(cal!$X$4=2," in"))&" "&$R$17&" "&ROUND(cal!AC64,1)&IF(cal!$X$4=1," cm",IF(cal!$X$4=2," in"))&" (Type 8)" -> Clima Canal høyde 0 cm bredde 0 cm lengde 0 cm (Type 8)
A63: =cal!$Z$1&" "&$R$15&" "&ROUND(cal!Y70,1)&IF(cal!$X$4=1," cm",IF(cal!$X$4=2," in"))&" "&$R$16&" "&ROUND(cal!AA70,1)&IF(cal!$X$4=1," cm",IF(cal!$X$4=2," in"))&" "&$R$17&" "&ROUND(cal!AC70,1)&IF(cal!$X$4=1," cm",IF(cal!$X$4=2," in"))&" (Type 9)" -> Clima Canal høyde 0 cm bredde 0 cm lengde 0 cm (Type 9)
A69: *Testé selon EN 16430 | M69: =cal!N70 -> v2021-04-19
A70: **Puissance sonore testé selon ISO 3741:2010
A71: ***Pression sonore avec une atténuation ambiante du 8dB(A)

Sheet SP (hidden)
A2: Model
A4: Conditions
A6: Temperaturas | L6: Altitud
A7: Calefacción: | F7: Enfriamiento: | Q7: Copiar todos los datos
A8: Agua impulsión | B8: 0 | C8: 0 | D8: =cal!E9 -> 75 | E8: =IF(cal!$X$4=1,"°C",IF(cal!$X$4=2,"°F")) -> °C | F8: =A8 -> Agua impulsión | J8: =cal!K9 -> 16 | K8: =E8 -> °C | L8: Convers. de unidades | Q8: Unidades-SI
A9: Agua retorno | B9: 0 | C9: 0 | D9: =cal!E10 -> 65 | E9: =E8 -> °C | F9: =A9 -> Agua retorno | J9: =cal!K10 -> 19 | K9: =E8 -> °C | Q9: Unidades-Imperial
A10: Ambiente (bulbo seco) | B10: 0 | C10: 0 | D10: =cal!E11 -> 20 | E10: =E8 -> °C | F10: =A10 -> Ambiente (bulbo seco) | J10: =cal!K11 -> 26 | K10: =E8 -> °C
F11: Humedad relativa | J11: =cal!K12 -> 0.5
A14: Nivel de velocidad: | B14: Voltaje control [V] | C14: =CONCATENATE("Emisión calefacción * ",ROUND(D8,0),"/",ROUND(D9,0),"/",ROUND(D10,0)," ["&IF(cal!$X$4=1,"W",IF(cal!$X$4=2,"Btu/h"))&"]") -> Emisión calefacción * 75/65/20 [W] | D14: ="Caudal de agua, calefacción ["&IF(cal!$X$4=1,"l/h",IF(cal!$X$4=2,"GPM"))&"]" -> Caudal de agua, calefacción [l/h] | E14: ="Pérdida de carga del agua ["&IF(cal!$X$4=1,"kPa",IF(cal!$X$4=2,"ftH2O"))&"]" -> Pérdida de carga del agua [kPa] | F14: =CONCATENATE("Emisión sensible Frío * ",ROUND(J8,0),"/",ROUND(J9,0),"/",ROUND(J10,0)," ["&IF(cal!$X$4=1,"W",IF(cal!$X$4=2,"Btu/h"))&"]") -> Emisión sensible Frío * 16/19/26 [W] | G14: =CONCATENATE("Emisión total Frío * ",ROUND(J8,0),"/",ROUND(J9,0),"/",ROUND(J10,0)," ["&IF(cal!$X$4=1,"W",IF(cal!$X$4=2,"Btu/h"))&"]") -> Emisión total Frío * 16/19/26 [W] | H14: ="Caudal de agua, calefacción ["&IF(cal!$X$4=1,"l/h",IF(cal!$X$4=2,"GPM"))&"]" -> Caudal de agua, calefacción [l/h] | I14: =E14 -> Pérdida de carga del agua [kPa] | J14: Presión sonora *** [dB(A)] | K14: Potencia sonora ** [dB(A)] | L14: Potencia eléctrica absorbida [W] | M14: ="Caudal de aire ["&IF(cal!$X$4=1,"m³/h",IF(cal!$X$4=2,"CFM"))&"]" -> Caudal de aire [m³/h] | N14: ="Temperatura salida de aire calefacción ["&IF(cal!$X$4=1,"°C",IF(cal!$X$4=2,"°F"))&"]" -> Temperatura salida de aire calefacción [°C] | O14: ="Temperatura salida de aire refrigeración ["&IF(cal!$X$4=1,"°C",IF(cal!$X$4=2,"°F"))&"]" -> Temperatura salida de aire refrigeración [°C]
A15: =cal!$Z$1&" "&$R$15&" "&ROUND(cal!Y22,1)&IF(cal!$X$4=1," cm",IF(cal!$X$4=2," in"))&" "&$R$16&" "&ROUND(cal!AA22,1)&IF(cal!$X$4=1," cm",IF(cal!$X$4=2," in"))&" "&$R$17&" "&ROUND(cal!AC22,1)&IF(cal!$X$4=1," cm",IF(cal!$X$4=2," in"))&" (Type 1)" -> Clima Canal altura 19 cm ancho 34 cm longitud 105 cm (Type 1) | Q15: Temp. | R15: altura
Q16: calefac. | R16: ancho
Q17: enfria. | R17: longitud
A21: =cal!$Z$1&" "&$R$15&" "&ROUND(cal!Y28,1)&IF(cal!$X$4=1," cm",IF(cal!$X$4=2," in"))&" "&$R$16&" "&ROUND(cal!AA28,1)&IF(cal!$X$4=1," cm",IF(cal!$X$4=2," in"))&" "&$R$17&" "&ROUND(cal!AC28,1)&IF(cal!$X$4=1," cm",IF(cal!$X$4=2," in"))&" (Type 2)" -> Clima Canal altura 19 cm ancho 34 cm longitud 120 cm (Type 2)
A27: =cal!$Z$1&" "&$R$15&" "&ROUND(cal!Y34,1)&IF(cal!$X$4=1," cm",IF(cal!$X$4=2," in"))&" "&$R$16&" "&ROUND(cal!AA34,1)&IF(cal!$X$4=1," cm",IF(cal!$X$4=2," in"))&" "&$R$17&" "&ROUND(cal!AC34,1)&IF(cal!$X$4=1," cm",IF(cal!$X$4=2," in"))&" (Type 3)" -> Clima Canal altura 19 cm ancho 34 cm longitud 200 cm (Type 3)
A33: =cal!$Z$1&" "&$R$15&" "&ROUND(cal!Y40,1)&IF(cal!$X$4=1," cm",IF(cal!$X$4=2," in"))&" "&$R$16&" "&ROUND(cal!AA40,1)&IF(cal!$X$4=1," cm",IF(cal!$X$4=2," in"))&" "&$R$17&" "&ROUND(cal!AC40,1)&IF(cal!$X$4=1," cm",IF(cal!$X$4=2," in"))&" (Type 4)" -> Clima Canal altura 19 cm ancho 34 cm longitud 280 cm (Type 4)
A39: =cal!$Z$1&" "&$R$15&" "&ROUND(cal!Y46,1)&IF(cal!$X$4=1," cm",IF(cal!$X$4=2," in"))&" "&$R$16&" "&ROUND(cal!AA46,1)&IF(cal!$X$4=1," cm",IF(cal!$X$4=2," in"))&" "&$R$17&" "&ROUND(cal!AC46,1)&IF(cal!$X$4=1," cm",IF(cal!$X$4=2," in"))&" (Type 5)" -> Clima Canal altura 0 cm ancho 0 cm longitud 0 cm (Type 5)
A45: =cal!$Z$1&" "&$R$15&" "&ROUND(cal!Y52,1)&IF(cal!$X$4=1," cm",IF(cal!$X$4=2," in"))&" "&$R$16&" "&ROUND(cal!AA52,1)&IF(cal!$X$4=1," cm",IF(cal!$X$4=2," in"))&" "&$R$17&" "&ROUND(cal!AC52,1)&IF(cal!$X$4=1," cm",IF(cal!$X$4=2," in"))&" (Type 6)" -> Clima Canal altura 0 cm ancho 0 cm longitud 0 cm (Type 6)
A51: =cal!$Z$1&" "&$R$15&" "&ROUND(cal!Y58,1)&IF(cal!$X$4=1," cm",IF(cal!$X$4=2," in"))&" "&$R$16&" "&ROUND(cal!AA58,1)&IF(cal!$X$4=1," cm",IF(cal!$X$4=2," in"))&" "&$R$17&" "&ROUND(cal!AC58,1)&IF(cal!$X$4=1," cm",IF(cal!$X$4=2," in"))&" (Type 7)" -> Clima Canal altura 0 cm ancho 0 cm longitud 0 cm (Type 7)
A57: =cal!$Z$1&" "&$R$15&" "&ROUND(cal!Y64,1)&IF(cal!$X$4=1," cm",IF(cal!$X$4=2," in"))&" "&$R$16&" "&ROUND(cal!AA64,1)&IF(cal!$X$4=1," cm",IF(cal!$X$4=2," in"))&" "&$R$17&" "&ROUND(cal!AC64,1)&IF(cal!$X$4=1," cm",IF(cal!$X$4=2," in"))&" (Type 8)" -> Clima Canal altura 0 cm ancho 0 cm longitud 0 cm (Type 8)
A63: =cal!$Z$1&" "&$R$15&" "&ROUND(cal!Y70,1)&IF(cal!$X$4=1," cm",IF(cal!$X$4=2," in"))&" "&$R$16&" "&ROUND(cal!AA70,1)&IF(cal!$X$4=1," cm",IF(cal!$X$4=2," in"))&" "&$R$17&" "&ROUND(cal!AC70,1)&IF(cal!$X$4=1," cm",IF(cal!$X$4=2," in"))&" (Type 9)" -> Clima Canal altura 0 cm ancho 0 cm longitud 0 cm (Type 9)
A69: *La potencia de enfriamiento se calcula según la norma EN 16430 con ventiladores de todas las alturas. | M69: =cal!N70 -> v2021-04-19
A70: **Potencia sonora según ISO 3741: 2010.
A71: ***Nivel de presión acústica con una amortiguación ambiental supuesta de 8 dB (A).

Sheet SW (hidden)
A2: Formulary
A4: Conditions
A6: Temperaturer | L6: Höjd över havet
A7: Värme: | F7: Kyla: | Q7: Kopiera all data
A8: Tillopp | D8: =cal!E9 -> 75 | E8: =IF(cal!$X$4=1,"°C",IF(cal!$X$4=2,"°F")) -> °C | F8: =A8 -> Tillopp | J8: =cal!K9 -> 16 | K8: =E8 -> °C | L8: Enhetssystem | Q8: SI-enheter
A9: Retur | D9: =cal!E10 -> 65 | E9: =E8 -> °C | F9: =A9 -> Retur | J9: =cal!K10 -> 19 | K9: =E8 -> °C | Q9: Imperiella-enheter
A10: Rum (torr) | D10: =cal!E11 -> 20 | E10: =E8 -> °C | F10: =A10 -> Rum (torr) | J10: =cal!K11 -> 26 | K10: =E8 -> °C
F11: rel. Fuktighet | J11: =cal!K12 -> 0.5
A14: Fläkthastighet | B14: Spänning, Fläkt [V] | C14: =CONCATENATE("Värme effekt * ",ROUND(D8,0),"/",ROUND(D9,0),"/",ROUND(D10,0)," ["&IF(cal!$X$4=1,"W",IF(cal!$X$4=2,"Btu/h"))&"]") -> Värme effekt * 75/65/20 [W] | D14: ="Vattenflöde, värme ["&IF(cal!$X$4=1,"l/h",IF(cal!$X$4=2,"GPM"))&"]" -> Vattenflöde, värme [l/h] | E14: ="Tryckfall, vatten ["&IF(cal!$X$4=1,"kPa",IF(cal!$X$4=2,"inH2O"))&"]" -> Tryckfall, vatten [kPa] | F14: =CONCATENATE("Märkbar kylkapacitet * ",ROUND(J8,0),"/",ROUND(J9,0),"/",ROUND(J10,0)," ["&IF(cal!$X$4=1,"W",IF(cal!$X$4=2,"Btu/h"))&"]") -> Märkbar kylkapacitet * 16/19/26 [W] | G14: =CONCATENATE("Total kylkapacitet ",ROUND(J8,0),"/",ROUND(J9,0),"/",ROUND(J10,0)," ["&IF(cal!$X$4=1,"W",IF(cal!$X$4=2,"Btu/h"))&"]") -> Total kylkapacitet 16/19/26 [W] | H14: ="Vattenflöde, kyla ["&IF(cal!$X$4=1,"l/h",IF(cal!$X$4=2,"GPM"))&"]" -> Vattenflöde, kyla [l/h] | I14: =E14 -> Tryckfall, vatten [kPa] | J14: Ljudtryck *** [dB(A)] | K14: Ljudeffekt ** [dB(A)] | L14: Effektförbrukning [W] | M14: ="Luftflöde ["&IF(cal!$X$4=1,"m³/h",IF(cal!$X$4=2,"CFM"))&"]" -> Luftflöde [m³/h] | N14: ="Air exhaust temp. heating ["&IF(cal!$X$4=1,"°C",IF(cal!$X$4=2,"°F"))&"]" -> Air exhaust temp. heating [°C] | O14: ="Air exhaust temp. cooling ["&IF(cal!$X$4=1,"°C",IF(cal!$X$4=2,"°F"))&"]" -> Air exhaust temp. cooling [°C]
A15: =cal!$Z$1&" "&$R$15&" "&ROUND(cal!Y22,1)&IF(cal!$X$4=1," cm",IF(cal!$X$4=2," in"))&" "&$R$16&" "&ROUND(cal!AA22,1)&IF(cal!$X$4=1," cm",IF(cal!$X$4=2," in"))&" "&$R$17&" "&ROUND(cal!AC22,1)&IF(cal!$X$4=1," cm",IF(cal!$X$4=2," in"))&" (Typ 1)" -> Clima Canal höjd 19 cm djup 34 cm längd 105 cm (Typ 1) | Q15: Temp. | R15: höjd
Q16: värme! | R16: djup
Q17: kyla! | R17: längd
A21: =cal!$Z$1&" "&$R$15&" "&ROUND(cal!Y28,1)&IF(cal!$X$4=1," cm",IF(cal!$X$4=2," in"))&" "&$R$16&" "&ROUND(cal!AA28,1)&IF(cal!$X$4=1," cm",IF(cal!$X$4=2," in"))&" "&$R$17&" "&ROUND(cal!AC28,1)&IF(cal!$X$4=1," cm",IF(cal!$X$4=2," in"))&" (Typ 2)" -> Clima Canal höjd 19 cm djup 34 cm längd 120 cm (Typ 2)
A27: =cal!$Z$1&" "&$R$15&" "&ROUND(cal!Y34,1)&IF(cal!$X$4=1," cm",IF(cal!$X$4=2," in"))&" "&$R$16&" "&ROUND(cal!AA34,1)&IF(cal!$X$4=1," cm",IF(cal!$X$4=2," in"))&" "&$R$17&" "&ROUND(cal!AC34,1)&IF(cal!$X$4=1," cm",IF(cal!$X$4=2," in"))&" (Typ 3)" -> Clima Canal höjd 19 cm djup 34 cm längd 200 cm (Typ 3)
A33: =cal!$Z$1&" "&$R$15&" "&ROUND(cal!Y40,1)&IF(cal!$X$4=1," cm",IF(cal!$X$4=2," in"))&" "&$R$16&" "&ROUND(cal!AA40,1)&IF(cal!$X$4=1," cm",IF(cal!$X$4=2," in"))&" "&$R$17&" "&ROUND(cal!AC40,1)&IF(cal!$X$4=1," cm",IF(cal!$X$4=2," in"))&" (Typ 4)" -> Clima Canal höjd 19 cm djup 34 cm längd 280 cm (Typ 4)
A39: =cal!$Z$1&" "&$R$15&" "&ROUND(cal!Y46,1)&IF(cal!$X$4=1," cm",IF(cal!$X$4=2," in"))&" "&$R$16&" "&ROUND(cal!AA46,1)&IF(cal!$X$4=1," cm",IF(cal!$X$4=2," in"))&" "&$R$17&" "&ROUND(cal!AC46,1)&IF(cal!$X$4=1," cm",IF(cal!$X$4=2," in"))&" (Typ 5)" -> Clima Canal höjd 0 cm djup 0 cm längd 0 cm (Typ 5)
A45: =cal!$Z$1&" "&$R$15&" "&ROUND(cal!Y52,1)&IF(cal!$X$4=1," cm",IF(cal!$X$4=2," in"))&" "&$R$16&" "&ROUND(cal!AA52,1)&IF(cal!$X$4=1," cm",IF(cal!$X$4=2," in"))&" "&$R$17&" "&ROUND(cal!AC52,1)&IF(cal!$X$4=1," cm",IF(cal!$X$4=2," in"))&" (Typ 6)" -> Clima Canal höjd 0 cm djup 0 cm längd 0 cm (Typ 6)
A51: =cal!$Z$1&" "&$R$15&" "&ROUND(cal!Y58,1)&IF(cal!$X$4=1," cm",IF(cal!$X$4=2," in"))&" "&$R$16&" "&ROUND(cal!AA58,1)&IF(cal!$X$4=1," cm",IF(cal!$X$4=2," in"))&" "&$R$17&" "&ROUND(cal!AC58,1)&IF(cal!$X$4=1," cm",IF(cal!$X$4=2," in"))&" (Typ 7)" -> Clima Canal höjd 0 cm djup 0 cm längd 0 cm (Typ 7)
A57: =cal!$Z$1&" "&$R$15&" "&ROUND(cal!Y64,1)&IF(cal!$X$4=1," cm",IF(cal!$X$4=2," in"))&" "&$R$16&" "&ROUND(cal!AA64,1)&IF(cal!$X$4=1," cm",IF(cal!$X$4=2," in"))&" "&$R$17&" "&ROUND(cal!AC64,1)&IF(cal!$X$4=1," cm",IF(cal!$X$4=2," in"))&" (Typ 8)" -> Clima Canal höjd 0 cm djup 0 cm längd 0 cm (Typ 8)
A63: =cal!$Z$1&" "&$R$15&" "&ROUND(cal!Y70,1)&IF(cal!$X$4=1," cm",IF(cal!$X$4=2," in"))&" "&$R$16&" "&ROUND(cal!AA70,1)&IF(cal!$X$4=1," cm",IF(cal!$X$4=2," in"))&" "&$R$17&" "&ROUND(cal!AC70,1)&IF(cal!$X$4=1," cm",IF(cal!$X$4=2," in"))&" (Typ 9)" -> Clima Canal höjd 0 cm djup 0 cm längd 0 cm (Typ 9)
A69: *Värden enligt EN16430 | M69: =cal!N70 -> v2021-04-19
A70: **Ljudeffekt enligt ISO 3741: 2010
A71: ***Ljudtryck med en antagen rumsdämpning på 8dB (A),

Sheet TS (hidden)
A2: Formulary
A4: Conditions
A6: Teploty | L6: Výška umístění
A7: Topení: | F7: Chlazení: | Q7: Kopírovat všechna data
A8: Voda na přívodu | D8: =cal!E9 -> 75 | E8: =IF(cal!$X$4=1,"°C",IF(cal!$X$4=2,"°F")) -> °C | F8: =A8 -> Voda na přívodu | J8: =cal!K9 -> 16 | K8: =E8 -> °C | L8: Převod jednotek | Q8: Mezinárodní (Sl)
A9: Voda na zpátečce | D9: =cal!E10 -> 65 | E9: =E8 -> °C | F9: =A9 -> Voda na zpátečce | J9: =cal!K10 -> 19 | K9: =E8 -> °C | Q9: Imperiální
A10: "Suchá" Teplota vzduchu | D10: =cal!E11 -> 20 | E10: =E8 -> °C | F10: =A10 -> "Suchá" Teplota vzduchu | J10: =cal!K11 -> 26 | K10: =E8 -> °C
F11: Relativní vlhkost | J11: =cal!K12 -> 0.5
A14: Rychlost | B14: Ovládací napětí [V] | C14: =CONCATENATE("Výkon Topení * ",ROUND(D8,0),"/",ROUND(D9,0),"/",ROUND(D10,0)," ["&IF(cal!$X$4=1,"W",IF(cal!$X$4=2,"Btu/h"))&"]") -> Výkon Topení * 75/65/20 [W] | D14: ="Průtok vody, topení ["&IF(cal!$X$4=1,"l/h",IF(cal!$X$4=2,"GPM"))&"]" -> Průtok vody, topení [l/h] | E14: ="Tlaková ztráta ["&IF(cal!$X$4=1,"kPa",IF(cal!$X$4=2,"inH2O"))&"]" -> Tlaková ztráta [kPa] | F14: =CONCATENATE("Výkon chlazení Znatelný * ",ROUND(J8,0),"/",ROUND(J9,0),"/",ROUND(J10,0)," ["&IF(cal!$X$4=1,"W",IF(cal!$X$4=2,"Btu/h"))&"]") -> Výkon chlazení Znatelný * 16/19/26 [W] | G14: =CONCATENATE("Výkon chlazení Celkový ",ROUND(J8,0),"/",ROUND(J9,0),"/",ROUND(J10,0)," ["&IF(cal!$X$4=1,"W",IF(cal!$X$4=2,"Btu/h"))&"]") -> Výkon chlazení Celkový 16/19/26 [W] | H14: ="Průtok vody,chlazení ["&IF(cal!$X$4=1,"l/h",IF(cal!$X$4=2,"GPM"))&"]" -> Průtok vody,chlazení [l/h] | I14: =E14 -> Tlaková ztráta [kPa] | J14: Akustický tlak *** [dB(A)] | K14: Akustický výkon ** [dB(A)] | L14: Elektrický výkon [W] | M14: ="Průtok vzduchu ["&IF(cal!$X$4=1,"m³/h",IF(cal!$X$4=2,"CFM"))&"]" -> Průtok vzduchu [m³/h] | N14: ="Air exhaust temp. heating ["&IF(cal!$X$4=1,"°C",IF(cal!$X$4=2,"°F"))&"]" -> Air exhaust temp. heating [°C] | O14: ="Air exhaust temp. cooling ["&IF(cal!$X$4=1,"°C",IF(cal!$X$4=2,"°F"))&"]" -> Air exhaust temp. cooling [°C]
A15: =cal!$Z$1&", "&$R$15&" "&ROUND(cal!Y22,1)&IF(cal!$X$4=1," cm",IF(cal!$X$4=2," in"))&", "&$R$16&" "&ROUND(cal!AA22,1)&IF(cal!$X$4=1," cm",IF(cal!$X$4=2," in"))&", "&$R$17&" "&ROUND(cal!AC22,1)&IF(cal!$X$4=1," cm",IF(cal!$X$4=2," in"))&" (Typ 1)" -> Clima Canal, Výška 19 cm, Šířka 34 cm, Délka 105 cm (Typ 1) | Q15: Teploty | R15: Výška
Q16: topení! | R16: Šířka
Q17: chlazení! | R17: Délka
A21: =cal!$Z$1&" "&$R$15&" "&ROUND(cal!Y28,1)&IF(cal!$X$4=1," cm",IF(cal!$X$4=2," in"))&" "&$R$16&" "&ROUND(cal!AA28,1)&IF(cal!$X$4=1," cm",IF(cal!$X$4=2," in"))&" "&$R$17&" "&ROUND(cal!AC28,1)&IF(cal!$X$4=1," cm",IF(cal!$X$4=2," in"))&" (Typ 2)" -> Clima Canal Výška 19 cm Šířka 34 cm Délka 120 cm (Typ 2)
A27: =cal!$Z$1&" "&$R$15&" "&ROUND(cal!Y34,1)&IF(cal!$X$4=1," cm",IF(cal!$X$4=2," in"))&" "&$R$16&" "&ROUND(cal!AA34,1)&IF(cal!$X$4=1," cm",IF(cal!$X$4=2," in"))&" "&$R$17&" "&ROUND(cal!AC34,1)&IF(cal!$X$4=1," cm",IF(cal!$X$4=2," in"))&" (Type 3)" -> Clima Canal Výška 19 cm Šířka 34 cm Délka 200 cm (Type 3)
A33: =cal!$Z$1&" "&$R$15&" "&ROUND(cal!Y40,1)&IF(cal!$X$4=1," cm",IF(cal!$X$4=2," in"))&" "&$R$16&" "&ROUND(cal!AA40,1)&IF(cal!$X$4=1," cm",IF(cal!$X$4=2," in"))&" "&$R$17&" "&ROUND(cal!AC40,1)&IF(cal!$X$4=1," cm",IF(cal!$X$4=2," in"))&" (Typ 4)" -> Clima Canal Výška 19 cm Šířka 34 cm Délka 280 cm (Typ 4)
A39: =cal!$Z$1&" "&$R$15&" "&ROUND(cal!Y46,1)&IF(cal!$X$4=1," cm",IF(cal!$X$4=2," in"))&" "&$R$16&" "&ROUND(cal!AA46,1)&IF(cal!$X$4=1," cm",IF(cal!$X$4=2," in"))&" "&$R$17&" "&ROUND(cal!AC46,1)&IF(cal!$X$4=1," cm",IF(cal!$X$4=2," in"))&" (Typ 5)" -> Clima Canal Výška 0 cm Šířka 0 cm Délka 0 cm (Typ 5)
A45: =cal!$Z$1&" "&$R$15&" "&ROUND(cal!Y52,1)&IF(cal!$X$4=1," cm",IF(cal!$X$4=2," in"))&" "&$R$16&" "&ROUND(cal!AA52,1)&IF(cal!$X$4=1," cm",IF(cal!$X$4=2," in"))&" "&$R$17&" "&ROUND(cal!AC52,1)&IF(cal!$X$4=1," cm",IF(cal!$X$4=2," in"))&" (Typ 6)" -> Clima Canal Výška 0 cm Šířka 0 cm Délka 0 cm (Typ 6)
A51: =cal!$Z$1&" "&$R$15&" "&ROUND(cal!Y58,1)&IF(cal!$X$4=1," cm",IF(cal!$X$4=2," in"))&" "&$R$16&" "&ROUND(cal!AA58,1)&IF(cal!$X$4=1," cm",IF(cal!$X$4=2," in"))&" "&$R$17&" "&ROUND(cal!AC58,1)&IF(cal!$X$4=1," cm",IF(cal!$X$4=2," in"))&" (Typ 7)" -> Clima Canal Výška 0 cm Šířka 0 cm Délka 0 cm (Typ 7)
A57: =cal!$Z$1&" "&$R$15&" "&ROUND(cal!Y64,1)&IF(cal!$X$4=1," cm",IF(cal!$X$4=2," in"))&" "&$R$16&" "&ROUND(cal!AA64,1)&IF(cal!$X$4=1," cm",IF(cal!$X$4=2," in"))&" "&$R$17&" "&ROUND(cal!AC64,1)&IF(cal!$X$4=1," cm",IF(cal!$X$4=2," in"))&" (Typ 8)" -> Clima Canal Výška 0 cm Šířka 0 cm Délka 0 cm (Typ 8)
A63: =cal!$Z$1&" "&$R$15&" "&ROUND(cal!Y70,1)&IF(cal!$X$4=1," cm",IF(cal!$X$4=2," in"))&" "&$R$16&" "&ROUND(cal!AA70,1)&IF(cal!$X$4=1," cm",IF(cal!$X$4=2," in"))&" "&$R$17&" "&ROUND(cal!AC70,1)&IF(cal!$X$4=1," cm",IF(cal!$X$4=2," in"))&" (Typ 9)" -> Clima Canal Výška 0 cm Šířka 0 cm Délka 0 cm (Typ 9)
A69: *Hodnoty podle EN16430 | M69: =cal!N70 -> v2021-04-19
A70: **Akustický tlak podle ISO 3741:2010
A71: ***Akustický výkon s předpokládaným útlumem místnosti 8 dB (A).

Sheet ExtraTaal1 (hidden)
A2: Formulary
A4: Conditions
A6: Temperatures | L6: Altitude
A7: Heating: | F7: Cooling: | Q7: Copy all data
A8: ="Inlet temp." -> Inlet temp. | D8: =cal!E9 -> 75 | E8: =IF(cal!$X$4=1,"°C",IF(cal!$X$4=2,"°F")) -> °C | F8: =A8 -> Inlet temp. | J8: =cal!K9 -> 16 | K8: =E8 -> °C | L8: Unit conversion | Q8: SI-units
A9: ="Return temp." -> Return temp. | D9: =cal!E10 -> 65 | E9: =E8 -> °C | F9: =A9 -> Return temp. | J9: =cal!K10 -> 19 | K9: =E8 -> °C | Q9: Imperial-units
A10: ="Room temp." -> Room temp. | D10: =cal!E11 -> 20 | E10: =E8 -> °C | F10: =A10 -> Room temp. | J10: =cal!K11 -> 26 | K10: =E8 -> °C
F11: Relative humidity | J11: =cal!K12 -> 0.5
A14: Speed level: | B14: Control voltage [V] | C14: =CONCATENATE("Heat output * ",ROUND(D8,0),"/",ROUND(D9,0),"/",ROUND(D10,0)," ["&IF(cal!$X$4=1,"W",IF(cal!$X$4=2,"Btu/h"))&"]") -> Heat output * 75/65/20 [W] | D14: ="Water flowrate, heating ["&IF(cal!$X$4=1,"l/h",IF(cal!$X$4=2,"GPM"))&"]" -> Water flowrate, heating [l/h] | E14: ="Watersided pressure loss ["&IF(cal!$X$4=1,"kPa",IF(cal!$X$4=2,"inH2O"))&"]" -> Watersided pressure loss [kPa] | F14: =CONCATENATE("Sens. cooling capacity * ",ROUND(J8,0),"/",ROUND(J9,0),"/",ROUND(J10,0)," ["&IF(cal!$X$4=1,"W",IF(cal!$X$4=2,"Btu/h"))&"]") -> Sens. cooling capacity * 16/19/26 [W] | G14: =CONCATENATE("Tot. cooling capacity ",ROUND(J8,0),"/",ROUND(J9,0),"/",ROUND(J10,0)," ["&IF(cal!$X$4=1,"W",IF(cal!$X$4=2,"Btu/h"))&"]") -> Tot. cooling capacity 16/19/26 [W] | H14: ="Water flowrate, cooling ["&IF(cal!$X$4=1,"l/h",IF(cal!$X$4=2,"GPM"))&"]" -> Water flowrate, cooling [l/h] | I14: ="Watersided pressure loss ["&IF(cal!$X$4=1,"kPa",IF(cal!$X$4=2,"inH2O"))&"]" -> Watersided pressure loss [kPa] | J14: Sound pressure *** [dB(A)] | K14: Sound power ** [dB(A)] | L14: Electrical power [W] | M14: ="Air flowrate ["&IF(cal!$X$4=1,"m³/h",IF(cal!$X$4=2,"CFM"))&"]" -> Air flowrate [m³/h] | N14: ="Air exhaust temp. heating ["&IF(cal!$X$4=1,"°C",IF(cal!$X$4=2,"°F"))&"]" -> Air exhaust temp. heating [°C] | O14: ="Air exhaust temp. cooling ["&IF(cal!$X$4=1,"°C",IF(cal!$X$4=2,"°F"))&"]" -> Air exhaust temp. cooling [°C]
A15: =cal!$Z$1&" "&$R$15&" "&ROUND(cal!Y22,1)&IF(cal!$X$4=1," cm",IF(cal!$X$4=2," in"))&" "&$R$16&" "&ROUND(cal!AA22,1)&IF(cal!$X$4=1," cm",IF(cal!$X$4=2," in"))&" "&$R$17&" "&ROUND(cal!AC22,1)&IF(cal!$X$4=1," cm",IF(cal!$X$4=2," in"))&" (Type 1)" -> Clima Canal height 19 cm width 34 cm length 105 cm (Type 1) | Q15: Temp. | R15: height
Q16: heating! | R16: width
Q17: cooling! | R17: length
A21: =cal!$Z$1&" "&$R$15&" "&ROUND(cal!Y28,1)&IF(cal!$X$4=1," cm",IF(cal!$X$4=2," in"))&" "&$R$16&" "&ROUND(cal!AA28,1)&IF(cal!$X$4=1," cm",IF(cal!$X$4=2," in"))&" "&$R$17&" "&ROUND(cal!AC28,1)&IF(cal!$X$4=1," cm",IF(cal!$X$4=2," in"))&" (Type 2)" -> Clima Canal height 19 cm width 34 cm length 120 cm (Type 2)
A27: =cal!$Z$1&" "&$R$15&" "&ROUND(cal!Y34,1)&IF(cal!$X$4=1," cm",IF(cal!$X$4=2," in"))&" "&$R$16&" "&ROUND(cal!AA34,1)&IF(cal!$X$4=1," cm",IF(cal!$X$4=2," in"))&" "&$R$17&" "&ROUND(cal!AC34,1)&IF(cal!$X$4=1," cm",IF(cal!$X$4=2," in"))&" (Type 3)" -> Clima Canal height 19 cm width 34 cm length 200 cm (Type 3)
A33: =cal!$Z$1&" "&$R$15&" "&ROUND(cal!Y40,1)&IF(cal!$X$4=1," cm",IF(cal!$X$4=2," in"))&" "&$R$16&" "&ROUND(cal!AA40,1)&IF(cal!$X$4=1," cm",IF(cal!$X$4=2," in"))&" "&$R$17&" "&ROUND(cal!AC40,1)&IF(cal!$X$4=1," cm",IF(cal!$X$4=2," in"))&" (Type 4)" -> Clima Canal height 19 cm width 34 cm length 280 cm (Type 4)
A39: =cal!$Z$1&" "&$R$15&" "&ROUND(cal!Y46,1)&IF(cal!$X$4=1," cm",IF(cal!$X$4=2," in"))&" "&$R$16&" "&ROUND(cal!AA46,1)&IF(cal!$X$4=1," cm",IF(cal!$X$4=2," in"))&" "&$R$17&" "&ROUND(cal!AC46,1)&IF(cal!$X$4=1," cm",IF(cal!$X$4=2," in"))&" (Type 5)" -> Clima Canal height 0 cm width 0 cm length 0 cm (Type 5)
A45: =cal!$Z$1&" "&$R$15&" "&ROUND(cal!Y52,1)&IF(cal!$X$4=1," cm",IF(cal!$X$4=2," in"))&" "&$R$16&" "&ROUND(cal!AA52,1)&IF(cal!$X$4=1," cm",IF(cal!$X$4=2," in"))&" "&$R$17&" "&ROUND(cal!AC52,1)&IF(cal!$X$4=1," cm",IF(cal!$X$4=2," in"))&" (Type 6)" -> Clima Canal height 0 cm width 0 cm length 0 cm (Type 6)
A51: =cal!$Z$1&" "&$R$15&" "&ROUND(cal!Y58,1)&IF(cal!$X$4=1," cm",IF(cal!$X$4=2," in"))&" "&$R$16&" "&ROUND(cal!AA58,1)&IF(cal!$X$4=1," cm",IF(cal!$X$4=2," in"))&" "&$R$17&" "&ROUND(cal!AC58,1)&IF(cal!$X$4=1," cm",IF(cal!$X$4=2," in"))&" (Type 7)" -> Clima Canal height 0 cm width 0 cm length 0 cm (Type 7)
A57: =cal!$Z$1&" "&$R$15&" "&ROUND(cal!Y64,1)&IF(cal!$X$4=1," cm",IF(cal!$X$4=2," in"))&" "&$R$16&" "&ROUND(cal!AA64,1)&IF(cal!$X$4=1," cm",IF(cal!$X$4=2," in"))&" "&$R$17&" "&ROUND(cal!AC64,1)&IF(cal!$X$4=1," cm",IF(cal!$X$4=2," in"))&" (Type 8)" -> Clima Canal height 0 cm width 0 cm length 0 cm (Type 8)
A63: =cal!$Z$1&" "&$R$15&" "&ROUND(cal!Y70,1)&IF(cal!$X$4=1," cm",IF(cal!$X$4=2," in"))&" "&$R$16&" "&ROUND(cal!AA70,1)&IF(cal!$X$4=1," cm",IF(cal!$X$4=2," in"))&" "&$R$17&" "&ROUND(cal!AC70,1)&IF(cal!$X$4=1," cm",IF(cal!$X$4=2," in"))&" (Type 9)" -> Clima Canal height 0 cm width 0 cm length 0 cm (Type 9)
A69: *Values according to EN 16430 | M69: =cal!N70 -> v2021-04-19
A70: **Sound power according to ISO 3741:2010
A71: ***Sound pressure with an assumed room damping of 8dB(A)

Sheet ExtraTaal2 (hidden)
A2: Formulary
A4: Conditions
A6: Temperatures | L6: Altitude
A7: Heating: | F7: Cooling: | Q7: Copy all data
A8: ="Inlet temp." -> Inlet temp. | D8: =cal!E9 -> 75 | E8: =IF(cal!$X$4=1,"°C",IF(cal!$X$4=2,"°F")) -> °C | F8: =A8 -> Inlet temp. | J8: =cal!K9 -> 16 | K8: =E8 -> °C | L8: Unit conversion | Q8: SI-units
A9: ="Return temp." -> Return temp. | D9: =cal!E10 -> 65 | E9: =E8 -> °C | F9: =A9 -> Return temp. | J9: =cal!K10 -> 19 | K9: =E8 -> °C | Q9: Imperial-units
A10: ="Room temp." -> Room temp. | D10: =cal!E11 -> 20 | E10: =E8 -> °C | F10: =A10 -> Room temp. | J10: =cal!K11 -> 26 | K10: =E8 -> °C
F11: Relative humidity | J11: =cal!K12 -> 0.5
A14: Speed level: | B14: Control voltage [V] | C14: =CONCATENATE("Heat output * ",ROUND(D8,0),"/",ROUND(D9,0),"/",ROUND(D10,0)," ["&IF(cal!$X$4=1,"W",IF(cal!$X$4=2,"Btu/h"))&"]") -> Heat output * 75/65/20 [W] | D14: ="Water flowrate, heating ["&IF(cal!$X$4=1,"l/h",IF(cal!$X$4=2,"GPM"))&"]" -> Water flowrate, heating [l/h] | E14: ="Watersided pressure loss ["&IF(cal!$X$4=1,"kPa",IF(cal!$X$4=2,"inH2O"))&"]" -> Watersided pressure loss [kPa] | F14: =CONCATENATE("Sens. cooling capacity * ",ROUND(J8,0),"/",ROUND(J9,0),"/",ROUND(J10,0)," ["&IF(cal!$X$4=1,"W",IF(cal!$X$4=2,"Btu/h"))&"]") -> Sens. cooling capacity * 16/19/26 [W] | G14: =CONCATENATE("Tot. cooling capacity ",ROUND(J8,0),"/",ROUND(J9,0),"/",ROUND(J10,0)," ["&IF(cal!$X$4=1,"W",IF(cal!$X$4=2,"Btu/h"))&"]") -> Tot. cooling capacity 16/19/26 [W] | H14: ="Water flowrate, cooling ["&IF(cal!$X$4=1,"l/h",IF(cal!$X$4=2,"GPM"))&"]" -> Water flowrate, cooling [l/h] | I14: ="Watersided pressure loss ["&IF(cal!$X$4=1,"kPa",IF(cal!$X$4=2,"inH2O"))&"]" -> Watersided pressure loss [kPa] | J14: Sound pressure *** [dB(A)] | K14: Sound power ** [dB(A)] | L14: Electrical power [W] | M14: ="Air flowrate ["&IF(cal!$X$4=1,"m³/h",IF(cal!$X$4=2,"CFM"))&"]" -> Air flowrate [m³/h] | N14: ="Air exhaust temp. heating ["&IF(cal!$X$4=1,"°C",IF(cal!$X$4=2,"°F"))&"]" -> Air exhaust temp. heating [°C] | O14: ="Air exhaust temp. cooling ["&IF(cal!$X$4=1,"°C",IF(cal!$X$4=2,"°F"))&"]" -> Air exhaust temp. cooling [°C]
A15: =cal!$Z$1&" "&$R$15&" "&ROUND(cal!Y22,1)&IF(cal!$X$4=1," cm",IF(cal!$X$4=2," in"))&" "&$R$16&" "&ROUND(cal!AA22,1)&IF(cal!$X$4=1," cm",IF(cal!$X$4=2," in"))&" "&$R$17&" "&ROUND(cal!AC22,1)&IF(cal!$X$4=1," cm",IF(cal!$X$4=2," in"))&" (Type 1)" -> Clima Canal height 19 cm width 34 cm length 105 cm (Type 1) | Q15: Temp. | R15: height
Q16: heating! | R16: width
Q17: cooling! | R17: length
A21: =cal!$Z$1&" "&$R$15&" "&ROUND(cal!Y28,1)&IF(cal!$X$4=1," cm",IF(cal!$X$4=2," in"))&" "&$R$16&" "&ROUND(cal!AA28,1)&IF(cal!$X$4=1," cm",IF(cal!$X$4=2," in"))&" "&$R$17&" "&ROUND(cal!AC28,1)&IF(cal!$X$4=1," cm",IF(cal!$X$4=2," in"))&" (Type 2)" -> Clima Canal height 19 cm width 34 cm length 120 cm (Type 2)
A27: =cal!$Z$1&" "&$R$15&" "&ROUND(cal!Y34,1)&IF(cal!$X$4=1," cm",IF(cal!$X$4=2," in"))&" "&$R$16&" "&ROUND(cal!AA34,1)&IF(cal!$X$4=1," cm",IF(cal!$X$4=2," in"))&" "&$R$17&" "&ROUND(cal!AC34,1)&IF(cal!$X$4=1," cm",IF(cal!$X$4=2," in"))&" (Type 3)" -> Clima Canal height 19 cm width 34 cm length 200 cm (Type 3)
A33: =cal!$Z$1&" "&$R$15&" "&ROUND(cal!Y40,1)&IF(cal!$X$4=1," cm",IF(cal!$X$4=2," in"))&" "&$R$16&" "&ROUND(cal!AA40,1)&IF(cal!$X$4=1," cm",IF(cal!$X$4=2," in"))&" "&$R$17&" "&ROUND(cal!AC40,1)&IF(cal!$X$4=1," cm",IF(cal!$X$4=2," in"))&" (Type 4)" -> Clima Canal height 19 cm width 34 cm length 280 cm (Type 4)
A39: =cal!$Z$1&" "&$R$15&" "&ROUND(cal!Y46,1)&IF(cal!$X$4=1," cm",IF(cal!$X$4=2," in"))&" "&$R$16&" "&ROUND(cal!AA46,1)&IF(cal!$X$4=1," cm",IF(cal!$X$4=2," in"))&" "&$R$17&" "&ROUND(cal!AC46,1)&IF(cal!$X$4=1," cm",IF(cal!$X$4=2," in"))&" (Type 5)" -> Clima Canal height 0 cm width 0 cm length 0 cm (Type 5)
A45: =cal!$Z$1&" "&$R$15&" "&ROUND(cal!Y52,1)&IF(cal!$X$4=1," cm",IF(cal!$X$4=2," in"))&" "&$R$16&" "&ROUND(cal!AA52,1)&IF(cal!$X$4=1," cm",IF(cal!$X$4=2," in"))&" "&$R$17&" "&ROUND(cal!AC52,1)&IF(cal!$X$4=1," cm",IF(cal!$X$4=2," in"))&" (Type 6)" -> Clima Canal height 0 cm width 0 cm length 0 cm (Type 6)
A51: =cal!$Z$1&" "&$R$15&" "&ROUND(cal!Y58,1)&IF(cal!$X$4=1," cm",IF(cal!$X$4=2," in"))&" "&$R$16&" "&ROUND(cal!AA58,1)&IF(cal!$X$4=1," cm",IF(cal!$X$4=2," in"))&" "&$R$17&" "&ROUND(cal!AC58,1)&IF(cal!$X$4=1," cm",IF(cal!$X$4=2," in"))&" (Type 7)" -> Clima Canal height 0 cm width 0 cm length 0 cm (Type 7)
A57: =cal!$Z$1&" "&$R$15&" "&ROUND(cal!Y64,1)&IF(cal!$X$4=1," cm",IF(cal!$X$4=2," in"))&" "&$R$16&" "&ROUND(cal!AA64,1)&IF(cal!$X$4=1," cm",IF(cal!$X$4=2," in"))&" "&$R$17&" "&ROUND(cal!AC64,1)&IF(cal!$X$4=1," cm",IF(cal!$X$4=2," in"))&" (Type 8)" -> Clima Canal height 0 cm width 0 cm length 0 cm (Type 8)
A63: =cal!$Z$1&" "&$R$15&" "&ROUND(cal!Y70,1)&IF(cal!$X$4=1," cm",IF(cal!$X$4=2," in"))&" "&$R$16&" "&ROUND(cal!AA70,1)&IF(cal!$X$4=1," cm",IF(cal!$X$4=2," in"))&" "&$R$17&" "&ROUND(cal!AC70,1)&IF(cal!$X$4=1," cm",IF(cal!$X$4=2," in"))&" (Type 9)" -> Clima Canal height 0 cm width 0 cm length 0 cm (Type 9)
A69: *Values according to EN 16430 | M69: =cal!N70 -> v2021-04-19
A70: **Sound power according to ISO 3741:2010
A71: ***Sound pressure with an assumed room damping of 8dB(A)

Sheet ExtraTaal3 (hidden)
A2: Formulary
A4: Conditions
A6: Temperatures | L6: Altitude
A7: Heating: | F7: Cooling: | Q7: Copy all data
A8: ="Inlet temp." -> Inlet temp. | D8: =cal!E9 -> 75 | E8: =IF(cal!$X$4=1,"°C",IF(cal!$X$4=2,"°F")) -> °C | F8: =A8 -> Inlet temp. | J8: =cal!K9 -> 16 | K8: =E8 -> °C | L8: Unit conversion | Q8: SI-units
A9: ="Return temp." -> Return temp. | D9: =cal!E10 -> 65 | E9: =E8 -> °C | F9: =A9 -> Return temp. | J9: =cal!K10 -> 19 | K9: =E8 -> °C | Q9: Imperial-units
A10: ="Room temp." -> Room temp. | D10: =cal!E11 -> 20 | E10: =E8 -> °C | F10: =A10 -> Room temp. | J10: =cal!K11 -> 26 | K10: =E8 -> °C
F11: Relative humidity | J11: =cal!K12 -> 0.5
A14: Speed level: | B14: Control voltage [V] | C14: =CONCATENATE("Heat output * ",ROUND(D8,0),"/",ROUND(D9,0),"/",ROUND(D10,0)," ["&IF(cal!$X$4=1,"W",IF(cal!$X$4=2,"Btu/h"))&"]") -> Heat output * 75/65/20 [W] | D14: ="Water flowrate, heating ["&IF(cal!$X$4=1,"l/h",IF(cal!$X$4=2,"GPM"))&"]" -> Water flowrate, heating [l/h] | E14: ="Watersided pressure loss ["&IF(cal!$X$4=1,"kPa",IF(cal!$X$4=2,"inH2O"))&"]" -> Watersided pressure loss [kPa] | F14: =CONCATENATE("Sens. cooling capacity * ",ROUND(J8,0),"/",ROUND(J9,0),"/",ROUND(J10,0)," ["&IF(cal!$X$4=1,"W",IF(cal!$X$4=2,"Btu/h"))&"]") -> Sens. cooling capacity * 16/19/26 [W] | G14: =CONCATENATE("Tot. cooling capacity ",ROUND(J8,0),"/",ROUND(J9,0),"/",ROUND(J10,0)," ["&IF(cal!$X$4=1,"W",IF(cal!$X$4=2,"Btu/h"))&"]") -> Tot. cooling capacity 16/19/26 [W] | H14: ="Water flowrate, cooling ["&IF(cal!$X$4=1,"l/h",IF(cal!$X$4=2,"GPM"))&"]" -> Water flowrate, cooling [l/h] | I14: ="Watersided pressure loss ["&IF(cal!$X$4=1,"kPa",IF(cal!$X$4=2,"inH2O"))&"]" -> Watersided pressure loss [kPa] | J14: Sound pressure *** [dB(A)] | K14: Sound power ** [dB(A)] | L14: Electrical power [W] | M14: ="Air flowrate ["&IF(cal!$X$4=1,"m³/h",IF(cal!$X$4=2,"CFM"))&"]" -> Air flowrate [m³/h] | N14: ="Air exhaust temp. heating ["&IF(cal!$X$4=1,"°C",IF(cal!$X$4=2,"°F"))&"]" -> Air exhaust temp. heating [°C] | O14: ="Air exhaust temp. cooling ["&IF(cal!$X$4=1,"°C",IF(cal!$X$4=2,"°F"))&"]" -> Air exhaust temp. cooling [°C]
A15: =cal!$Z$1&" "&$R$15&" "&ROUND(cal!Y22,1)&IF(cal!$X$4=1," cm",IF(cal!$X$4=2," in"))&" "&$R$16&" "&ROUND(cal!AA22,1)&IF(cal!$X$4=1," cm",IF(cal!$X$4=2," in"))&" "&$R$17&" "&ROUND(cal!AC22,1)&IF(cal!$X$4=1," cm",IF(cal!$X$4=2," in"))&" (Type 1)" -> Clima Canal height 19 cm width 34 cm length 105 cm (Type 1) | Q15: Temp. | R15: height
Q16: heating! | R16: width
Q17: cooling! | R17: length
A21: =cal!$Z$1&" "&$R$15&" "&ROUND(cal!Y28,1)&IF(cal!$X$4=1," cm",IF(cal!$X$4=2," in"))&" "&$R$16&" "&ROUND(cal!AA28,1)&IF(cal!$X$4=1," cm",IF(cal!$X$4=2," in"))&" "&$R$17&" "&ROUND(cal!AC28,1)&IF(cal!$X$4=1," cm",IF(cal!$X$4=2," in"))&" (Type 2)" -> Clima Canal height 19 cm width 34 cm length 120 cm (Type 2)
A27: =cal!$Z$1&" "&$R$15&" "&ROUND(cal!Y34,1)&IF(cal!$X$4=1," cm",IF(cal!$X$4=2," in"))&" "&$R$16&" "&ROUND(cal!AA34,1)&IF(cal!$X$4=1," cm",IF(cal!$X$4=2," in"))&" "&$R$17&" "&ROUND(cal!AC34,1)&IF(cal!$X$4=1," cm",IF(cal!$X$4=2," in"))&" (Type 3)" -> Clima Canal height 19 cm width 34 cm length 200 cm (Type 3)
A33: =cal!$Z$1&" "&$R$15&" "&ROUND(cal!Y40,1)&IF(cal!$X$4=1," cm",IF(cal!$X$4=2," in"))&" "&$R$16&" "&ROUND(cal!AA40,1)&IF(cal!$X$4=1," cm",IF(cal!$X$4=2," in"))&" "&$R$17&" "&ROUND(cal!AC40,1)&IF(cal!$X$4=1," cm",IF(cal!$X$4=2," in"))&" (Type 4)" -> Clima Canal height 19 cm width 34 cm length 280 cm (Type 4)
A39: =cal!$Z$1&" "&$R$15&" "&ROUND(cal!Y46,1)&IF(cal!$X$4=1," cm",IF(cal!$X$4=2," in"))&" "&$R$16&" "&ROUND(cal!AA46,1)&IF(cal!$X$4=1," cm",IF(cal!$X$4=2," in"))&" "&$R$17&" "&ROUND(cal!AC46,1)&IF(cal!$X$4=1," cm",IF(cal!$X$4=2," in"))&" (Type 5)" -> Clima Canal height 0 cm width 0 cm length 0 cm (Type 5)
A45: =cal!$Z$1&" "&$R$15&" "&ROUND(cal!Y52,1)&IF(cal!$X$4=1," cm",IF(cal!$X$4=2," in"))&" "&$R$16&" "&ROUND(cal!AA52,1)&IF(cal!$X$4=1," cm",IF(cal!$X$4=2," in"))&" "&$R$17&" "&ROUND(cal!AC52,1)&IF(cal!$X$4=1," cm",IF(cal!$X$4=2," in"))&" (Type 6)" -> Clima Canal height 0 cm width 0 cm length 0 cm (Type 6)
A51: =cal!$Z$1&" "&$R$15&" "&ROUND(cal!Y58,1)&IF(cal!$X$4=1," cm",IF(cal!$X$4=2," in"))&" "&$R$16&" "&ROUND(cal!AA58,1)&IF(cal!$X$4=1," cm",IF(cal!$X$4=2," in"))&" "&$R$17&" "&ROUND(cal!AC58,1)&IF(cal!$X$4=1," cm",IF(cal!$X$4=2," in"))&" (Type 7)" -> Clima Canal height 0 cm width 0 cm length 0 cm (Type 7)
A57: =cal!$Z$1&" "&$R$15&" "&ROUND(cal!Y64,1)&IF(cal!$X$4=1," cm",IF(cal!$X$4=2," in"))&" "&$R$16&" "&ROUND(cal!AA64,1)&IF(cal!$X$4=1," cm",IF(cal!$X$4=2," in"))&" "&$R$17&" "&ROUND(cal!AC64,1)&IF(cal!$X$4=1," cm",IF(cal!$X$4=2," in"))&" (Type 8)" -> Clima Canal height 0 cm width 0 cm length 0 cm (Type 8)
A63: =cal!$Z$1&" "&$R$15&" "&ROUND(cal!Y70,1)&IF(cal!$X$4=1," cm",IF(cal!$X$4=2," in"))&" "&$R$16&" "&ROUND(cal!AA70,1)&IF(cal!$X$4=1," cm",IF(cal!$X$4=2," in"))&" "&$R$17&" "&ROUND(cal!AC70,1)&IF(cal!$X$4=1," cm",IF(cal!$X$4=2," in"))&" (Type 9)" -> Clima Canal height 0 cm width 0 cm length 0 cm (Type 9)
A69: *Values according to EN 16430 | M69: =cal!N70 -> v2021-04-19
A70: **Sound power according to ISO 3741:2010
A71: ***Sound pressure with an assumed room damping of 8dB(A)
